{"text_format":"1","workbook":"xlsx","n_sheets":1,"sheets":["Table"],"not_rendered":{"charts":0,"images":1,"macros":1,"external_links":0,"defined_names":6,"comments":0,"pivot_tables":0},"unopened":[],"bounds":{"document_bytes":16777216,"sheet_cells":100000,"rows_first":2000,"rows_last":500,"rows_between":2000,"halvings":0,"cell_chars":16384,"cell_head_chars":4096},"cells_cut":0,"cells_raw":0,"read":"whole","date_system":"1900"}

{"sheet":"Table","index":0,"n_rows":919,"n_cols":13,"rows_kept":919,"cut":false,"hidden":false,"merged":[]}
[null,null,null,null,null,null,null,null,null,"Модульные кухни","Статус","Индекс","Фильтр"]
[null,"",null,null,null,null,null,null,null,"Корпуса шкафов для проектных кухонь",{"$f":"NOT(ISERROR(SEARCH($B$2,tblData[[#This Row],[Модульные кухни]])))","v":true},{"$f":"IF(tblData[[#This Row],[Статус]],COUNTIF($K$2:tblData[[#This Row],[Статус]],TRUE),\"\")","v":1},{"$f":"IFERROR(INDEX(tblData[Модульные кухни],MATCH(ROWS($L$2:tblData[[#This Row],[Индекс]]),tblData[Индекс],0)),\"\")","v":"Корпуса шкафов для проектных кухонь"}]
[null,null,null,null,null,null,null,null,null,"Фасады шкафов для проектных кухонь",{"$f":"NOT(ISERROR(SEARCH($B$2,tblData[[#This Row],[Модульные кухни]])))","v":true},{"$f":"IF(tblData[[#This Row],[Статус]],COUNTIF($K$2:tblData[[#This Row],[Статус]],TRUE),\"\")","v":2},{"$f":"IFERROR(INDEX(tblData[Модульные кухни],MATCH(ROWS($L$2:tblData[[#This Row],[Индекс]]),tblData[Индекс],0)),\"\")","v":"Фасады шкафов для проектных кухонь"}]
[null,null,null,null,null,null,null,null,null,"Цоколи для кухни и комплектующие",{"$f":"NOT(ISERROR(SEARCH($B$2,tblData[[#This Row],[Модульные кухни]])))","v":true},{"$f":"IF(tblData[[#This Row],[Статус]],COUNTIF($K$2:tblData[[#This Row],[Статус]],TRUE),\"\")","v":3},{"$f":"IFERROR(INDEX(tblData[Модульные кухни],MATCH(ROWS($L$2:tblData[[#This Row],[Индекс]]),tblData[Индекс],0)),\"\")","v":"Цоколи для кухни и комплектующие"}]
[null,null,null,null,null,null,null,null,null,"Кухонные гарнитуры",{"$f":"NOT(ISERROR(SEARCH($B$2,tblData[[#This Row],[Модульные кухни]])))","v":true},{"$f":"IF(tblData[[#This Row],[Статус]],COUNTIF($K$2:tblData[[#This Row],[Статус]],TRUE),\"\")","v":4},{"$f":"IFERROR(INDEX(tblData[Модульные кухни],MATCH(ROWS($L$2:tblData[[#This Row],[Индекс]]),tblData[Индекс],0)),\"\")","v":"Кухонные гарнитуры"}]
[null,null,null,null,null,null,null,null,null,"Фурнитура для кухни",{"$f":"NOT(ISERROR(SEARCH($B$2,tblData[[#This Row],[Модульные кухни]])))","v":true},{"$f":"IF(tblData[[#This Row],[Статус]],COUNTIF($K$2:tblData[[#This Row],[Статус]],TRUE),\"\")","v":5},{"$f":"IFERROR(INDEX(tblData[Модульные кухни],MATCH(ROWS($L$2:tblData[[#This Row],[Индекс]]),tblData[Индекс],0)),\"\")","v":"Фурнитура для кухни"}]
[null,null,null,null,null,null,null,null,null,"Кухонные столы",{"$f":"NOT(ISERROR(SEARCH($B$2,tblData[[#This Row],[Модульные кухни]])))","v":true},{"$f":"IF(tblData[[#This Row],[Статус]],COUNTIF($K$2:tblData[[#This Row],[Статус]],TRUE),\"\")","v":6},{"$f":"IFERROR(INDEX(tblData[Модульные кухни],MATCH(ROWS($L$2:tblData[[#This Row],[Индекс]]),tblData[Индекс],0)),\"\")","v":"Кухонные столы"}]
[null,null,null,null,null,null,null,null,null,"Стулья для кухни",{"$f":"NOT(ISERROR(SEARCH($B$2,tblData[[#This Row],[Модульные кухни]])))","v":true},{"$f":"IF(tblData[[#This Row],[Статус]],COUNTIF($K$2:tblData[[#This Row],[Статус]],TRUE),\"\")","v":7},{"$f":"IFERROR(INDEX(tblData[Модульные кухни],MATCH(ROWS($L$2:tblData[[#This Row],[Индекс]]),tblData[Индекс],0)),\"\")","v":"Стулья для кухни"}]
[null,null,null,null,null,null,null,null,null,"Табуреты",{"$f":"NOT(ISERROR(SEARCH($B$2,tblData[[#This Row],[Модульные кухни]])))","v":true},{"$f":"IF(tblData[[#This Row],[Статус]],COUNTIF($K$2:tblData[[#This Row],[Статус]],TRUE),\"\")","v":8},{"$f":"IFERROR(INDEX(tblData[Модульные кухни],MATCH(ROWS($L$2:tblData[[#This Row],[Индекс]]),tblData[Индекс],0)),\"\")","v":"Табуреты"}]
[null,null,null,null,null,null,null,null,null,"Столешницы для кухни",{"$f":"NOT(ISERROR(SEARCH($B$2,tblData[[#This Row],[Модульные кухни]])))","v":true},{"$f":"IF(tblData[[#This Row],[Статус]],COUNTIF($K$2:tblData[[#This Row],[Статус]],TRUE),\"\")","v":9},{"$f":"IFERROR(INDEX(tblData[Модульные кухни],MATCH(ROWS($L$2:tblData[[#This Row],[Индекс]]),tblData[Индекс],0)),\"\")","v":"Столешницы для кухни"}]
[null,null,null,null,null,null,null,null,null,"Планки и комплекты для установки столешниц",{"$f":"NOT(ISERROR(SEARCH($B$2,tblData[[#This Row],[Модульные кухни]])))","v":true},{"$f":"IF(tblData[[#This Row],[Статус]],COUNTIF($K$2:tblData[[#This Row],[Статус]],TRUE),\"\")","v":10},{"$f":"IFERROR(INDEX(tblData[Модульные кухни],MATCH(ROWS($L$2:tblData[[#This Row],[Индекс]]),tblData[Индекс],0)),\"\")","v":"Планки и комплекты для установки столешниц"}]
[null,null,null,null,null,null,null,null,null,"Кромочный пластик для кухонных столешниц",{"$f":"NOT(ISERROR(SEARCH($B$2,tblData[[#This Row],[Модульные кухни]])))","v":true},{"$f":"IF(tblData[[#This Row],[Статус]],COUNTIF($K$2:tblData[[#This Row],[Статус]],TRUE),\"\")","v":11},{"$f":"IFERROR(INDEX(tblData[Модульные кухни],MATCH(ROWS($L$2:tblData[[#This Row],[Индекс]]),tblData[Индекс],0)),\"\")","v":"Кромочный пластик для кухонных столешниц"}]
[null,null,null,null,null,null,null,null,null,"Плинтусы для кухонных столешниц",{"$f":"NOT(ISERROR(SEARCH($B$2,tblData[[#This Row],[Модульные кухни]])))","v":true},{"$f":"IF(tblData[[#This Row],[Статус]],COUNTIF($K$2:tblData[[#This Row],[Статус]],TRUE),\"\")","v":12},{"$f":"IFERROR(INDEX(tblData[Модульные кухни],MATCH(ROWS($L$2:tblData[[#This Row],[Индекс]]),tblData[Индекс],0)),\"\")","v":"Плинтусы для кухонных столешниц"}]
[null,null,null,null,null,null,null,null,null,"Заглушки для кухонных плинтусов",{"$f":"NOT(ISERROR(SEARCH($B$2,tblData[[#This Row],[Модульные кухни]])))","v":true},{"$f":"IF(tblData[[#This Row],[Статус]],COUNTIF($K$2:tblData[[#This Row],[Статус]],TRUE),\"\")","v":13},{"$f":"IFERROR(INDEX(tblData[Модульные кухни],MATCH(ROWS($L$2:tblData[[#This Row],[Индекс]]),tblData[Индекс],0)),\"\")","v":"Заглушки для кухонных плинтусов"}]
[null,null,null,null,null,null,null,null,null,"Кухонные мойки",{"$f":"NOT(ISERROR(SEARCH($B$2,tblData[[#This Row],[Модульные кухни]])))","v":true},{"$f":"IF(tblData[[#This Row],[Статус]],COUNTIF($K$2:tblData[[#This Row],[Статус]],TRUE),\"\")","v":14},{"$f":"IFERROR(INDEX(tblData[Модульные кухни],MATCH(ROWS($L$2:tblData[[#This Row],[Индекс]]),tblData[Индекс],0)),\"\")","v":"Кухонные мойки"}]
[null,null,null,null,null,null,null,null,null,"Кухонные смесители",{"$f":"NOT(ISERROR(SEARCH($B$2,tblData[[#This Row],[Модульные кухни]])))","v":true},{"$f":"IF(tblData[[#This Row],[Статус]],COUNTIF($K$2:tblData[[#This Row],[Статус]],TRUE),\"\")","v":15},{"$f":"IFERROR(INDEX(tblData[Модульные кухни],MATCH(ROWS($L$2:tblData[[#This Row],[Индекс]]),tblData[Индекс],0)),\"\")","v":"Кухонные смесители"}]
[null,null,null,null,null,null,null,null,null,"Стеновые панели для кухни",{"$f":"NOT(ISERROR(SEARCH($B$2,tblData[[#This Row],[Модульные кухни]])))","v":true},{"$f":"IF(tblData[[#This Row],[Статус]],COUNTIF($K$2:tblData[[#This Row],[Статус]],TRUE),\"\")","v":16},{"$f":"IFERROR(INDEX(tblData[Модульные кухни],MATCH(ROWS($L$2:tblData[[#This Row],[Индекс]]),tblData[Индекс],0)),\"\")","v":"Стеновые панели для кухни"}]
[null,null,null,null,null,null,null,null,null,"Планки для стеновых кухонных панелей",{"$f":"NOT(ISERROR(SEARCH($B$2,tblData[[#This Row],[Модульные кухни]])))","v":true},{"$f":"IF(tblData[[#This Row],[Статус]],COUNTIF($K$2:tblData[[#This Row],[Статус]],TRUE),\"\")","v":17},{"$f":"IFERROR(INDEX(tblData[Модульные кухни],MATCH(ROWS($L$2:tblData[[#This Row],[Индекс]]),tblData[Индекс],0)),\"\")","v":"Планки для стеновых кухонных панелей"}]
[null,null,null,null,null,null,null,null,null,"Люстры",{"$f":"NOT(ISERROR(SEARCH($B$2,tblData[[#This Row],[Модульные кухни]])))","v":true},{"$f":"IF(tblData[[#This Row],[Статус]],COUNTIF($K$2:tblData[[#This Row],[Статус]],TRUE),\"\")","v":18},{"$f":"IFERROR(INDEX(tblData[Модульные кухни],MATCH(ROWS($L$2:tblData[[#This Row],[Индекс]]),tblData[Индекс],0)),\"\")","v":"Люстры"}]
[null,null,null,null,null,null,null,null,null,"Настенно-потолочные светильники",{"$f":"NOT(ISERROR(SEARCH($B$2,tblData[[#This Row],[Модульные кухни]])))","v":true},{"$f":"IF(tblData[[#This Row],[Статус]],COUNTIF($K$2:tblData[[#This Row],[Статус]],TRUE),\"\")","v":19},{"$f":"IFERROR(INDEX(tblData[Модульные кухни],MATCH(ROWS($L$2:tblData[[#This Row],[Индекс]]),tblData[Индекс],0)),\"\")","v":"Настенно-потолочные светильники"}]
[null,null,null,null,null,null,null,null,null,"Подвесные светильники",{"$f":"NOT(ISERROR(SEARCH($B$2,tblData[[#This Row],[Модульные кухни]])))","v":true},{"$f":"IF(tblData[[#This Row],[Статус]],COUNTIF($K$2:tblData[[#This Row],[Статус]],TRUE),\"\")","v":20},{"$f":"IFERROR(INDEX(tblData[Модульные кухни],MATCH(ROWS($L$2:tblData[[#This Row],[Индекс]]),tblData[Индекс],0)),\"\")","v":"Подвесные светильники"}]
[null,null,null,null,null,null,null,null,null,"Точечные светильники",{"$f":"NOT(ISERROR(SEARCH($B$2,tblData[[#This Row],[Модульные кухни]])))","v":true},{"$f":"IF(tblData[[#This Row],[Статус]],COUNTIF($K$2:tblData[[#This Row],[Статус]],TRUE),\"\")","v":21},{"$f":"IFERROR(INDEX(tblData[Модульные кухни],MATCH(ROWS($L$2:tblData[[#This Row],[Индекс]]),tblData[Индекс],0)),\"\")","v":"Точечные светильники"}]
[null,null,null,null,null,null,null,null,null,"Трековые системы освещения",{"$f":"NOT(ISERROR(SEARCH($B$2,tblData[[#This Row],[Модульные кухни]])))","v":true},{"$f":"IF(tblData[[#This Row],[Статус]],COUNTIF($K$2:tblData[[#This Row],[Статус]],TRUE),\"\")","v":22},{"$f":"IFERROR(INDEX(tblData[Модульные кухни],MATCH(ROWS($L$2:tblData[[#This Row],[Индекс]]),tblData[Индекс],0)),\"\")","v":"Трековые системы освещения"}]
[null,null,null,null,null,null,null,null,null,"Споты",{"$f":"NOT(ISERROR(SEARCH($B$2,tblData[[#This Row],[Модульные кухни]])))","v":true},{"$f":"IF(tblData[[#This Row],[Статус]],COUNTIF($K$2:tblData[[#This Row],[Статус]],TRUE),\"\")","v":23},{"$f":"IFERROR(INDEX(tblData[Модульные кухни],MATCH(ROWS($L$2:tblData[[#This Row],[Индекс]]),tblData[Индекс],0)),\"\")","v":"Споты"}]
[null,null,null,null,null,null,null,null,null,"Бра",{"$f":"NOT(ISERROR(SEARCH($B$2,tblData[[#This Row],[Модульные кухни]])))","v":true},{"$f":"IF(tblData[[#This Row],[Статус]],COUNTIF($K$2:tblData[[#This Row],[Статус]],TRUE),\"\")","v":24},{"$f":"IFERROR(INDEX(tblData[Модульные кухни],MATCH(ROWS($L$2:tblData[[#This Row],[Индекс]]),tblData[Индекс],0)),\"\")","v":"Бра"}]
[null,null,null,null,null,null,null,null,null,"Настольные лампы",{"$f":"NOT(ISERROR(SEARCH($B$2,tblData[[#This Row],[Модульные кухни]])))","v":true},{"$f":"IF(tblData[[#This Row],[Статус]],COUNTIF($K$2:tblData[[#This Row],[Статус]],TRUE),\"\")","v":25},{"$f":"IFERROR(INDEX(tblData[Модульные кухни],MATCH(ROWS($L$2:tblData[[#This Row],[Индекс]]),tblData[Индекс],0)),\"\")","v":"Настольные лампы"}]
[null,null,null,null,null,null,null,null,null,"Торшеры",{"$f":"NOT(ISERROR(SEARCH($B$2,tblData[[#This Row],[Модульные кухни]])))","v":true},{"$f":"IF(tblData[[#This Row],[Статус]],COUNTIF($K$2:tblData[[#This Row],[Статус]],TRUE),\"\")","v":26},{"$f":"IFERROR(INDEX(tblData[Модульные кухни],MATCH(ROWS($L$2:tblData[[#This Row],[Индекс]]),tblData[Индекс],0)),\"\")","v":"Торшеры"}]
[null,null,null,null,null,null,null,null,null,"Ночники",{"$f":"NOT(ISERROR(SEARCH($B$2,tblData[[#This Row],[Модульные кухни]])))","v":true},{"$f":"IF(tblData[[#This Row],[Статус]],COUNTIF($K$2:tblData[[#This Row],[Статус]],TRUE),\"\")","v":27},{"$f":"IFERROR(INDEX(tblData[Модульные кухни],MATCH(ROWS($L$2:tblData[[#This Row],[Индекс]]),tblData[Индекс],0)),\"\")","v":"Ночники"}]
[null,null,null,null,null,null,null,null,null,"Гирлянды",{"$f":"NOT(ISERROR(SEARCH($B$2,tblData[[#This Row],[Модульные кухни]])))","v":true},{"$f":"IF(tblData[[#This Row],[Статус]],COUNTIF($K$2:tblData[[#This Row],[Статус]],TRUE),\"\")","v":28},{"$f":"IFERROR(INDEX(tblData[Модульные кухни],MATCH(ROWS($L$2:tblData[[#This Row],[Индекс]]),tblData[Индекс],0)),\"\")","v":"Гирлянды"}]
[null,null,null,null,null,null,null,null,null,"Декоративное освещение",{"$f":"NOT(ISERROR(SEARCH($B$2,tblData[[#This Row],[Модульные кухни]])))","v":true},{"$f":"IF(tblData[[#This Row],[Статус]],COUNTIF($K$2:tblData[[#This Row],[Статус]],TRUE),\"\")","v":29},{"$f":"IFERROR(INDEX(tblData[Модульные кухни],MATCH(ROWS($L$2:tblData[[#This Row],[Индекс]]),tblData[Индекс],0)),\"\")","v":"Декоративное освещение"}]
[null,null,null,null,null,null,null,null,null,"Уличные прожекторы",{"$f":"NOT(ISERROR(SEARCH($B$2,tblData[[#This Row],[Модульные кухни]])))","v":true},{"$f":"IF(tblData[[#This Row],[Статус]],COUNTIF($K$2:tblData[[#This Row],[Статус]],TRUE),\"\")","v":30},{"$f":"IFERROR(INDEX(tblData[Модульные кухни],MATCH(ROWS($L$2:tblData[[#This Row],[Индекс]]),tblData[Индекс],0)),\"\")","v":"Уличные прожекторы"}]
[null,null,null,null,null,null,null,null,null,"Уличные фонарные столбы",{"$f":"NOT(ISERROR(SEARCH($B$2,tblData[[#This Row],[Модульные кухни]])))","v":true},{"$f":"IF(tblData[[#This Row],[Статус]],COUNTIF($K$2:tblData[[#This Row],[Статус]],TRUE),\"\")","v":31},{"$f":"IFERROR(INDEX(tblData[Модульные кухни],MATCH(ROWS($L$2:tblData[[#This Row],[Индекс]]),tblData[Индекс],0)),\"\")","v":"Уличные фонарные столбы"}]
[null,null,null,null,null,null,null,null,null,"Настенные уличные светильники",{"$f":"NOT(ISERROR(SEARCH($B$2,tblData[[#This Row],[Модульные кухни]])))","v":true},{"$f":"IF(tblData[[#This Row],[Статус]],COUNTIF($K$2:tblData[[#This Row],[Статус]],TRUE),\"\")","v":32},{"$f":"IFERROR(INDEX(tblData[Модульные кухни],MATCH(ROWS($L$2:tblData[[#This Row],[Индекс]]),tblData[Индекс],0)),\"\")","v":"Настенные уличные светильники"}]
[null,null,null,null,null,null,null,null,null,"Подвесные уличные светильники",{"$f":"NOT(ISERROR(SEARCH($B$2,tblData[[#This Row],[Модульные кухни]])))","v":true},{"$f":"IF(tblData[[#This Row],[Статус]],COUNTIF($K$2:tblData[[#This Row],[Статус]],TRUE),\"\")","v":33},{"$f":"IFERROR(INDEX(tblData[Модульные кухни],MATCH(ROWS($L$2:tblData[[#This Row],[Индекс]]),tblData[Индекс],0)),\"\")","v":"Подвесные уличные светильники"}]
[null,null,null,null,null,null,null,null,null,"Уличная светодиодная лента",{"$f":"NOT(ISERROR(SEARCH($B$2,tblData[[#This Row],[Модульные кухни]])))","v":true},{"$f":"IF(tblData[[#This Row],[Статус]],COUNTIF($K$2:tblData[[#This Row],[Статус]],TRUE),\"\")","v":34},{"$f":"IFERROR(INDEX(tblData[Модульные кухни],MATCH(ROWS($L$2:tblData[[#This Row],[Индекс]]),tblData[Индекс],0)),\"\")","v":"Уличная светодиодная лента"}]
[null,null,null,null,null,null,null,null,null,"Гирлянды уличные",{"$f":"NOT(ISERROR(SEARCH($B$2,tblData[[#This Row],[Модульные кухни]])))","v":true},{"$f":"IF(tblData[[#This Row],[Статус]],COUNTIF($K$2:tblData[[#This Row],[Статус]],TRUE),\"\")","v":35},{"$f":"IFERROR(INDEX(tblData[Модульные кухни],MATCH(ROWS($L$2:tblData[[#This Row],[Индекс]]),tblData[Индекс],0)),\"\")","v":"Гирлянды уличные"}]
[null,null,null,null,null,null,null,null,null,"Светильники на солнечных батареях",{"$f":"NOT(ISERROR(SEARCH($B$2,tblData[[#This Row],[Модульные кухни]])))","v":true},{"$f":"IF(tblData[[#This Row],[Статус]],COUNTIF($K$2:tblData[[#This Row],[Статус]],TRUE),\"\")","v":36},{"$f":"IFERROR(INDEX(tblData[Модульные кухни],MATCH(ROWS($L$2:tblData[[#This Row],[Индекс]]),tblData[Индекс],0)),\"\")","v":"Светильники на солнечных батареях"}]
[null,null,null,null,null,null,null,null,null,"Ленты светодиодные",{"$f":"NOT(ISERROR(SEARCH($B$2,tblData[[#This Row],[Модульные кухни]])))","v":true},{"$f":"IF(tblData[[#This Row],[Статус]],COUNTIF($K$2:tblData[[#This Row],[Статус]],TRUE),\"\")","v":37},{"$f":"IFERROR(INDEX(tblData[Модульные кухни],MATCH(ROWS($L$2:tblData[[#This Row],[Индекс]]),tblData[Индекс],0)),\"\")","v":"Ленты светодиодные"}]
[null,null,null,null,null,null,null,null,null,"Линейные светильники",{"$f":"NOT(ISERROR(SEARCH($B$2,tblData[[#This Row],[Модульные кухни]])))","v":true},{"$f":"IF(tblData[[#This Row],[Статус]],COUNTIF($K$2:tblData[[#This Row],[Статус]],TRUE),\"\")","v":38},{"$f":"IFERROR(INDEX(tblData[Модульные кухни],MATCH(ROWS($L$2:tblData[[#This Row],[Индекс]]),tblData[Индекс],0)),\"\")","v":"Линейные светильники"}]
[null,null,null,null,null,null,null,null,null,"Прожекторы",{"$f":"NOT(ISERROR(SEARCH($B$2,tblData[[#This Row],[Модульные кухни]])))","v":true},{"$f":"IF(tblData[[#This Row],[Статус]],COUNTIF($K$2:tblData[[#This Row],[Статус]],TRUE),\"\")","v":39},{"$f":"IFERROR(INDEX(tblData[Модульные кухни],MATCH(ROWS($L$2:tblData[[#This Row],[Индекс]]),tblData[Индекс],0)),\"\")","v":"Прожекторы"}]
[null,null,null,null,null,null,null,null,null,"Светодиодные панели",{"$f":"NOT(ISERROR(SEARCH($B$2,tblData[[#This Row],[Модульные кухни]])))","v":true},{"$f":"IF(tblData[[#This Row],[Статус]],COUNTIF($K$2:tblData[[#This Row],[Статус]],TRUE),\"\")","v":40},{"$f":"IFERROR(INDEX(tblData[Модульные кухни],MATCH(ROWS($L$2:tblData[[#This Row],[Индекс]]),tblData[Индекс],0)),\"\")","v":"Светодиодные панели"}]
[null,null,null,null,null,null,null,null,null,"Бактерицидные светильники",{"$f":"NOT(ISERROR(SEARCH($B$2,tblData[[#This Row],[Модульные кухни]])))","v":true},{"$f":"IF(tblData[[#This Row],[Статус]],COUNTIF($K$2:tblData[[#This Row],[Статус]],TRUE),\"\")","v":41},{"$f":"IFERROR(INDEX(tblData[Модульные кухни],MATCH(ROWS($L$2:tblData[[#This Row],[Индекс]]),tblData[Индекс],0)),\"\")","v":"Бактерицидные светильники"}]
[null,null,null,null,null,null,null,null,null,"Фитолампы",{"$f":"NOT(ISERROR(SEARCH($B$2,tblData[[#This Row],[Модульные кухни]])))","v":true},{"$f":"IF(tblData[[#This Row],[Статус]],COUNTIF($K$2:tblData[[#This Row],[Статус]],TRUE),\"\")","v":42},{"$f":"IFERROR(INDEX(tblData[Модульные кухни],MATCH(ROWS($L$2:tblData[[#This Row],[Индекс]]),tblData[Индекс],0)),\"\")","v":"Фитолампы"}]
[null,null,null,null,null,null,null,null,null,"Светильники для бани и сауны",{"$f":"NOT(ISERROR(SEARCH($B$2,tblData[[#This Row],[Модульные кухни]])))","v":true},{"$f":"IF(tblData[[#This Row],[Статус]],COUNTIF($K$2:tblData[[#This Row],[Статус]],TRUE),\"\")","v":43},{"$f":"IFERROR(INDEX(tblData[Модульные кухни],MATCH(ROWS($L$2:tblData[[#This Row],[Индекс]]),tblData[Индекс],0)),\"\")","v":"Светильники для бани и сауны"}]
[null,null,null,null,null,null,null,null,null,"Светильники ЖКХ",{"$f":"NOT(ISERROR(SEARCH($B$2,tblData[[#This Row],[Модульные кухни]])))","v":true},{"$f":"IF(tblData[[#This Row],[Статус]],COUNTIF($K$2:tblData[[#This Row],[Статус]],TRUE),\"\")","v":44},{"$f":"IFERROR(INDEX(tblData[Модульные кухни],MATCH(ROWS($L$2:tblData[[#This Row],[Индекс]]),tblData[Индекс],0)),\"\")","v":"Светильники ЖКХ"}]
[null,null,null,null,null,null,null,null,null,"Аварийные светильники",{"$f":"NOT(ISERROR(SEARCH($B$2,tblData[[#This Row],[Модульные кухни]])))","v":true},{"$f":"IF(tblData[[#This Row],[Статус]],COUNTIF($K$2:tblData[[#This Row],[Статус]],TRUE),\"\")","v":45},{"$f":"IFERROR(INDEX(tblData[Модульные кухни],MATCH(ROWS($L$2:tblData[[#This Row],[Индекс]]),tblData[Индекс],0)),\"\")","v":"Аварийные светильники"}]
[null,null,null,null,null,null,null,null,null,"Фонари налобные и ручные",{"$f":"NOT(ISERROR(SEARCH($B$2,tblData[[#This Row],[Модульные кухни]])))","v":true},{"$f":"IF(tblData[[#This Row],[Статус]],COUNTIF($K$2:tblData[[#This Row],[Статус]],TRUE),\"\")","v":46},{"$f":"IFERROR(INDEX(tblData[Модульные кухни],MATCH(ROWS($L$2:tblData[[#This Row],[Индекс]]),tblData[Индекс],0)),\"\")","v":"Фонари налобные и ручные"}]
[null,null,null,null,null,null,null,null,null,"Светодиодные лампы",{"$f":"NOT(ISERROR(SEARCH($B$2,tblData[[#This Row],[Модульные кухни]])))","v":true},{"$f":"IF(tblData[[#This Row],[Статус]],COUNTIF($K$2:tblData[[#This Row],[Статус]],TRUE),\"\")","v":47},{"$f":"IFERROR(INDEX(tblData[Модульные кухни],MATCH(ROWS($L$2:tblData[[#This Row],[Индекс]]),tblData[Индекс],0)),\"\")","v":"Светодиодные лампы"}]
[null,null,null,null,null,null,null,null,null,"Декоративные лампочки",{"$f":"NOT(ISERROR(SEARCH($B$2,tblData[[#This Row],[Модульные кухни]])))","v":true},{"$f":"IF(tblData[[#This Row],[Статус]],COUNTIF($K$2:tblData[[#This Row],[Статус]],TRUE),\"\")","v":48},{"$f":"IFERROR(INDEX(tblData[Модульные кухни],MATCH(ROWS($L$2:tblData[[#This Row],[Индекс]]),tblData[Индекс],0)),\"\")","v":"Декоративные лампочки"}]
[null,null,null,null,null,null,null,null,null,"Галогеновые лампы",{"$f":"NOT(ISERROR(SEARCH($B$2,tblData[[#This Row],[Модульные кухни]])))","v":true},{"$f":"IF(tblData[[#This Row],[Статус]],COUNTIF($K$2:tblData[[#This Row],[Статус]],TRUE),\"\")","v":49},{"$f":"IFERROR(INDEX(tblData[Модульные кухни],MATCH(ROWS($L$2:tblData[[#This Row],[Индекс]]),tblData[Индекс],0)),\"\")","v":"Галогеновые лампы"}]
[null,null,null,null,null,null,null,null,null,"Светодиодные модули",{"$f":"NOT(ISERROR(SEARCH($B$2,tblData[[#This Row],[Модульные кухни]])))","v":true},{"$f":"IF(tblData[[#This Row],[Статус]],COUNTIF($K$2:tblData[[#This Row],[Статус]],TRUE),\"\")","v":50},{"$f":"IFERROR(INDEX(tblData[Модульные кухни],MATCH(ROWS($L$2:tblData[[#This Row],[Индекс]]),tblData[Индекс],0)),\"\")","v":"Светодиодные модули"}]
[null,null,null,null,null,null,null,null,null,"Лампы накаливания",{"$f":"NOT(ISERROR(SEARCH($B$2,tblData[[#This Row],[Модульные кухни]])))","v":true},{"$f":"IF(tblData[[#This Row],[Статус]],COUNTIF($K$2:tblData[[#This Row],[Статус]],TRUE),\"\")","v":51},{"$f":"IFERROR(INDEX(tblData[Модульные кухни],MATCH(ROWS($L$2:tblData[[#This Row],[Индекс]]),tblData[Индекс],0)),\"\")","v":"Лампы накаливания"}]
[null,null,null,null,null,null,null,null,null,"Компактные люминесцентные лампы",{"$f":"NOT(ISERROR(SEARCH($B$2,tblData[[#This Row],[Модульные кухни]])))","v":true},{"$f":"IF(tblData[[#This Row],[Статус]],COUNTIF($K$2:tblData[[#This Row],[Статус]],TRUE),\"\")","v":52},{"$f":"IFERROR(INDEX(tblData[Модульные кухни],MATCH(ROWS($L$2:tblData[[#This Row],[Индекс]]),tblData[Индекс],0)),\"\")","v":"Компактные люминесцентные лампы"}]
[null,null,null,null,null,null,null,null,null,"Бактерицидные лампы",{"$f":"NOT(ISERROR(SEARCH($B$2,tblData[[#This Row],[Модульные кухни]])))","v":true},{"$f":"IF(tblData[[#This Row],[Статус]],COUNTIF($K$2:tblData[[#This Row],[Статус]],TRUE),\"\")","v":53},{"$f":"IFERROR(INDEX(tblData[Модульные кухни],MATCH(ROWS($L$2:tblData[[#This Row],[Индекс]]),tblData[Индекс],0)),\"\")","v":"Бактерицидные лампы"}]
[null,null,null,null,null,null,null,null,null,"Газоразрядные лампы",{"$f":"NOT(ISERROR(SEARCH($B$2,tblData[[#This Row],[Модульные кухни]])))","v":true},{"$f":"IF(tblData[[#This Row],[Статус]],COUNTIF($K$2:tblData[[#This Row],[Статус]],TRUE),\"\")","v":54},{"$f":"IFERROR(INDEX(tblData[Модульные кухни],MATCH(ROWS($L$2:tblData[[#This Row],[Индекс]]),tblData[Индекс],0)),\"\")","v":"Газоразрядные лампы"}]
[null,null,null,null,null,null,null,null,null,"Аксессуары для светодиодных лент",{"$f":"NOT(ISERROR(SEARCH($B$2,tblData[[#This Row],[Модульные кухни]])))","v":true},{"$f":"IF(tblData[[#This Row],[Статус]],COUNTIF($K$2:tblData[[#This Row],[Статус]],TRUE),\"\")","v":55},{"$f":"IFERROR(INDEX(tblData[Модульные кухни],MATCH(ROWS($L$2:tblData[[#This Row],[Индекс]]),tblData[Индекс],0)),\"\")","v":"Аксессуары для светодиодных лент"}]
[null,null,null,null,null,null,null,null,null,"Понижающие трансформаторы",{"$f":"NOT(ISERROR(SEARCH($B$2,tblData[[#This Row],[Модульные кухни]])))","v":true},{"$f":"IF(tblData[[#This Row],[Статус]],COUNTIF($K$2:tblData[[#This Row],[Статус]],TRUE),\"\")","v":56},{"$f":"IFERROR(INDEX(tblData[Модульные кухни],MATCH(ROWS($L$2:tblData[[#This Row],[Индекс]]),tblData[Индекс],0)),\"\")","v":"Понижающие трансформаторы"}]
[null,null,null,null,null,null,null,null,null,"Умные реле и драйверы",{"$f":"NOT(ISERROR(SEARCH($B$2,tblData[[#This Row],[Модульные кухни]])))","v":true},{"$f":"IF(tblData[[#This Row],[Статус]],COUNTIF($K$2:tblData[[#This Row],[Статус]],TRUE),\"\")","v":57},{"$f":"IFERROR(INDEX(tblData[Модульные кухни],MATCH(ROWS($L$2:tblData[[#This Row],[Индекс]]),tblData[Индекс],0)),\"\")","v":"Умные реле и драйверы"}]
[null,null,null,null,null,null,null,null,null,"Запчасти для светильников",{"$f":"NOT(ISERROR(SEARCH($B$2,tblData[[#This Row],[Модульные кухни]])))","v":true},{"$f":"IF(tblData[[#This Row],[Статус]],COUNTIF($K$2:tblData[[#This Row],[Статус]],TRUE),\"\")","v":58},{"$f":"IFERROR(INDEX(tblData[Модульные кухни],MATCH(ROWS($L$2:tblData[[#This Row],[Индекс]]),tblData[Индекс],0)),\"\")","v":"Запчасти для светильников"}]
[null,null,null,null,null,null,null,null,null,"Потолочные светодиодные светильники",{"$f":"NOT(ISERROR(SEARCH($B$2,tblData[[#This Row],[Модульные кухни]])))","v":true},{"$f":"IF(tblData[[#This Row],[Статус]],COUNTIF($K$2:tblData[[#This Row],[Статус]],TRUE),\"\")","v":59},{"$f":"IFERROR(INDEX(tblData[Модульные кухни],MATCH(ROWS($L$2:tblData[[#This Row],[Индекс]]),tblData[Индекс],0)),\"\")","v":"Потолочные светодиодные светильники"}]
[null,null,null,null,null,null,null,null,null,"Подвесные светодиодные светильники",{"$f":"NOT(ISERROR(SEARCH($B$2,tblData[[#This Row],[Модульные кухни]])))","v":true},{"$f":"IF(tblData[[#This Row],[Статус]],COUNTIF($K$2:tblData[[#This Row],[Статус]],TRUE),\"\")","v":60},{"$f":"IFERROR(INDEX(tblData[Модульные кухни],MATCH(ROWS($L$2:tblData[[#This Row],[Индекс]]),tblData[Индекс],0)),\"\")","v":"Подвесные светодиодные светильники"}]
[null,null,null,null,null,null,null,null,null,"Точечные светодиодные светильники",{"$f":"NOT(ISERROR(SEARCH($B$2,tblData[[#This Row],[Модульные кухни]])))","v":true},{"$f":"IF(tblData[[#This Row],[Статус]],COUNTIF($K$2:tblData[[#This Row],[Статус]],TRUE),\"\")","v":61},{"$f":"IFERROR(INDEX(tblData[Модульные кухни],MATCH(ROWS($L$2:tblData[[#This Row],[Индекс]]),tblData[Индекс],0)),\"\")","v":"Точечные светодиодные светильники"}]
[null,null,null,null,null,null,null,null,null,"Споты светодиодные",{"$f":"NOT(ISERROR(SEARCH($B$2,tblData[[#This Row],[Модульные кухни]])))","v":true},{"$f":"IF(tblData[[#This Row],[Статус]],COUNTIF($K$2:tblData[[#This Row],[Статус]],TRUE),\"\")","v":62},{"$f":"IFERROR(INDEX(tblData[Модульные кухни],MATCH(ROWS($L$2:tblData[[#This Row],[Индекс]]),tblData[Индекс],0)),\"\")","v":"Споты светодиодные"}]
[null,null,null,null,null,null,null,null,null,"Настенные светодиодные светильники",{"$f":"NOT(ISERROR(SEARCH($B$2,tblData[[#This Row],[Модульные кухни]])))","v":true},{"$f":"IF(tblData[[#This Row],[Статус]],COUNTIF($K$2:tblData[[#This Row],[Статус]],TRUE),\"\")","v":63},{"$f":"IFERROR(INDEX(tblData[Модульные кухни],MATCH(ROWS($L$2:tblData[[#This Row],[Индекс]]),tblData[Индекс],0)),\"\")","v":"Настенные светодиодные светильники"}]
[null,null,null,null,null,null,null,null,null,"Настольные светодиодные лампы",{"$f":"NOT(ISERROR(SEARCH($B$2,tblData[[#This Row],[Модульные кухни]])))","v":true},{"$f":"IF(tblData[[#This Row],[Статус]],COUNTIF($K$2:tblData[[#This Row],[Статус]],TRUE),\"\")","v":64},{"$f":"IFERROR(INDEX(tblData[Модульные кухни],MATCH(ROWS($L$2:tblData[[#This Row],[Индекс]]),tblData[Индекс],0)),\"\")","v":"Настольные светодиодные лампы"}]
[null,null,null,null,null,null,null,null,null,"Светодиодная подсветка",{"$f":"NOT(ISERROR(SEARCH($B$2,tblData[[#This Row],[Модульные кухни]])))","v":true},{"$f":"IF(tblData[[#This Row],[Статус]],COUNTIF($K$2:tblData[[#This Row],[Статус]],TRUE),\"\")","v":65},{"$f":"IFERROR(INDEX(tblData[Модульные кухни],MATCH(ROWS($L$2:tblData[[#This Row],[Индекс]]),tblData[Индекс],0)),\"\")","v":"Светодиодная подсветка"}]
[null,null,null,null,null,null,null,null,null,"Линейные светодиодные светильники",{"$f":"NOT(ISERROR(SEARCH($B$2,tblData[[#This Row],[Модульные кухни]])))","v":true},{"$f":"IF(tblData[[#This Row],[Статус]],COUNTIF($K$2:tblData[[#This Row],[Статус]],TRUE),\"\")","v":66},{"$f":"IFERROR(INDEX(tblData[Модульные кухни],MATCH(ROWS($L$2:tblData[[#This Row],[Индекс]]),tblData[Индекс],0)),\"\")","v":"Линейные светодиодные светильники"}]
[null,null,null,null,null,null,null,null,null,"Светильники светодиодные с датчиком",{"$f":"NOT(ISERROR(SEARCH($B$2,tblData[[#This Row],[Модульные кухни]])))","v":true},{"$f":"IF(tblData[[#This Row],[Статус]],COUNTIF($K$2:tblData[[#This Row],[Статус]],TRUE),\"\")","v":67},{"$f":"IFERROR(INDEX(tblData[Модульные кухни],MATCH(ROWS($L$2:tblData[[#This Row],[Индекс]]),tblData[Индекс],0)),\"\")","v":"Светильники светодиодные с датчиком"}]
[null,null,null,null,null,null,null,null,null,"Светодиодные прожекторы",{"$f":"NOT(ISERROR(SEARCH($B$2,tblData[[#This Row],[Модульные кухни]])))","v":true},{"$f":"IF(tblData[[#This Row],[Статус]],COUNTIF($K$2:tblData[[#This Row],[Статус]],TRUE),\"\")","v":68},{"$f":"IFERROR(INDEX(tblData[Модульные кухни],MATCH(ROWS($L$2:tblData[[#This Row],[Индекс]]),tblData[Индекс],0)),\"\")","v":"Светодиодные прожекторы"}]
[null,null,null,null,null,null,null,null,null,"Уличные светодиодные светильники",{"$f":"NOT(ISERROR(SEARCH($B$2,tblData[[#This Row],[Модульные кухни]])))","v":true},{"$f":"IF(tblData[[#This Row],[Статус]],COUNTIF($K$2:tblData[[#This Row],[Статус]],TRUE),\"\")","v":69},{"$f":"IFERROR(INDEX(tblData[Модульные кухни],MATCH(ROWS($L$2:tblData[[#This Row],[Индекс]]),tblData[Индекс],0)),\"\")","v":"Уличные светодиодные светильники"}]
[null,null,null,null,null,null,null,null,null,"Светодиодные светильники Армстронг",{"$f":"NOT(ISERROR(SEARCH($B$2,tblData[[#This Row],[Модульные кухни]])))","v":true},{"$f":"IF(tblData[[#This Row],[Статус]],COUNTIF($K$2:tblData[[#This Row],[Статус]],TRUE),\"\")","v":70},{"$f":"IFERROR(INDEX(tblData[Модульные кухни],MATCH(ROWS($L$2:tblData[[#This Row],[Индекс]]),tblData[Индекс],0)),\"\")","v":"Светодиодные светильники Армстронг"}]
[null,null,null,null,null,null,null,null,null,"Светодиодные светильники ЖКХ",{"$f":"NOT(ISERROR(SEARCH($B$2,tblData[[#This Row],[Модульные кухни]])))","v":true},{"$f":"IF(tblData[[#This Row],[Статус]],COUNTIF($K$2:tblData[[#This Row],[Статус]],TRUE),\"\")","v":71},{"$f":"IFERROR(INDEX(tblData[Модульные кухни],MATCH(ROWS($L$2:tblData[[#This Row],[Индекс]]),tblData[Индекс],0)),\"\")","v":"Светодиодные светильники ЖКХ"}]
[null,null,null,null,null,null,null,null,null,"Светильники аварийные светодиодные",{"$f":"NOT(ISERROR(SEARCH($B$2,tblData[[#This Row],[Модульные кухни]])))","v":true},{"$f":"IF(tblData[[#This Row],[Статус]],COUNTIF($K$2:tblData[[#This Row],[Статус]],TRUE),\"\")","v":72},{"$f":"IFERROR(INDEX(tblData[Модульные кухни],MATCH(ROWS($L$2:tblData[[#This Row],[Индекс]]),tblData[Индекс],0)),\"\")","v":"Светильники аварийные светодиодные"}]
[null,null,null,null,null,null,null,null,null,"Декоративные обои",{"$f":"NOT(ISERROR(SEARCH($B$2,tblData[[#This Row],[Модульные кухни]])))","v":true},{"$f":"IF(tblData[[#This Row],[Статус]],COUNTIF($K$2:tblData[[#This Row],[Статус]],TRUE),\"\")","v":73},{"$f":"IFERROR(INDEX(tblData[Модульные кухни],MATCH(ROWS($L$2:tblData[[#This Row],[Индекс]]),tblData[Индекс],0)),\"\")","v":"Декоративные обои"}]
[null,null,null,null,null,null,null,null,null,"Обои под покраску",{"$f":"NOT(ISERROR(SEARCH($B$2,tblData[[#This Row],[Модульные кухни]])))","v":true},{"$f":"IF(tblData[[#This Row],[Статус]],COUNTIF($K$2:tblData[[#This Row],[Статус]],TRUE),\"\")","v":74},{"$f":"IFERROR(INDEX(tblData[Модульные кухни],MATCH(ROWS($L$2:tblData[[#This Row],[Индекс]]),tblData[Индекс],0)),\"\")","v":"Обои под покраску"}]
[null,null,null,null,null,null,null,null,null,"Фотообои",{"$f":"NOT(ISERROR(SEARCH($B$2,tblData[[#This Row],[Модульные кухни]])))","v":true},{"$f":"IF(tblData[[#This Row],[Статус]],COUNTIF($K$2:tblData[[#This Row],[Статус]],TRUE),\"\")","v":75},{"$f":"IFERROR(INDEX(tblData[Модульные кухни],MATCH(ROWS($L$2:tblData[[#This Row],[Индекс]]),tblData[Индекс],0)),\"\")","v":"Фотообои"}]
[null,null,null,null,null,null,null,null,null,"Стеклообои",{"$f":"NOT(ISERROR(SEARCH($B$2,tblData[[#This Row],[Модульные кухни]])))","v":true},{"$f":"IF(tblData[[#This Row],[Статус]],COUNTIF($K$2:tblData[[#This Row],[Статус]],TRUE),\"\")","v":76},{"$f":"IFERROR(INDEX(tblData[Модульные кухни],MATCH(ROWS($L$2:tblData[[#This Row],[Индекс]]),tblData[Индекс],0)),\"\")","v":"Стеклообои"}]
[null,null,null,null,null,null,null,null,null,"Клей для обоев",{"$f":"NOT(ISERROR(SEARCH($B$2,tblData[[#This Row],[Модульные кухни]])))","v":true},{"$f":"IF(tblData[[#This Row],[Статус]],COUNTIF($K$2:tblData[[#This Row],[Статус]],TRUE),\"\")","v":77},{"$f":"IFERROR(INDEX(tblData[Модульные кухни],MATCH(ROWS($L$2:tblData[[#This Row],[Индекс]]),tblData[Индекс],0)),\"\")","v":"Клей для обоев"}]
[null,null,null,null,null,null,null,null,null,"Грунтовка и средства для снятия обоев",{"$f":"NOT(ISERROR(SEARCH($B$2,tblData[[#This Row],[Модульные кухни]])))","v":true},{"$f":"IF(tblData[[#This Row],[Статус]],COUNTIF($K$2:tblData[[#This Row],[Статус]],TRUE),\"\")","v":78},{"$f":"IFERROR(INDEX(tblData[Модульные кухни],MATCH(ROWS($L$2:tblData[[#This Row],[Индекс]]),tblData[Индекс],0)),\"\")","v":"Грунтовка и средства для снятия обоев"}]
[null,null,null,null,null,null,null,null,null,"Инструмент для поклейки обоев",{"$f":"NOT(ISERROR(SEARCH($B$2,tblData[[#This Row],[Модульные кухни]])))","v":true},{"$f":"IF(tblData[[#This Row],[Статус]],COUNTIF($K$2:tblData[[#This Row],[Статус]],TRUE),\"\")","v":79},{"$f":"IFERROR(INDEX(tblData[Модульные кухни],MATCH(ROWS($L$2:tblData[[#This Row],[Индекс]]),tblData[Индекс],0)),\"\")","v":"Инструмент для поклейки обоев"}]
[null,null,null,null,null,null,null,null,null,"Рулонные шторы",{"$f":"NOT(ISERROR(SEARCH($B$2,tblData[[#This Row],[Модульные кухни]])))","v":true},{"$f":"IF(tblData[[#This Row],[Статус]],COUNTIF($K$2:tblData[[#This Row],[Статус]],TRUE),\"\")","v":80},{"$f":"IFERROR(INDEX(tblData[Модульные кухни],MATCH(ROWS($L$2:tblData[[#This Row],[Индекс]]),tblData[Индекс],0)),\"\")","v":"Рулонные шторы"}]
[null,null,null,null,null,null,null,null,null,"Настенные карнизы",{"$f":"NOT(ISERROR(SEARCH($B$2,tblData[[#This Row],[Модульные кухни]])))","v":true},{"$f":"IF(tblData[[#This Row],[Статус]],COUNTIF($K$2:tblData[[#This Row],[Статус]],TRUE),\"\")","v":81},{"$f":"IFERROR(INDEX(tblData[Модульные кухни],MATCH(ROWS($L$2:tblData[[#This Row],[Индекс]]),tblData[Индекс],0)),\"\")","v":"Настенные карнизы"}]
[null,null,null,null,null,null,null,null,null,"Потолочные карнизы",{"$f":"NOT(ISERROR(SEARCH($B$2,tblData[[#This Row],[Модульные кухни]])))","v":true},{"$f":"IF(tblData[[#This Row],[Статус]],COUNTIF($K$2:tblData[[#This Row],[Статус]],TRUE),\"\")","v":82},{"$f":"IFERROR(INDEX(tblData[Модульные кухни],MATCH(ROWS($L$2:tblData[[#This Row],[Индекс]]),tblData[Индекс],0)),\"\")","v":"Потолочные карнизы"}]
[null,null,null,null,null,null,null,null,null,"Комплектующие для карнизов",{"$f":"NOT(ISERROR(SEARCH($B$2,tblData[[#This Row],[Модульные кухни]])))","v":true},{"$f":"IF(tblData[[#This Row],[Статус]],COUNTIF($K$2:tblData[[#This Row],[Статус]],TRUE),\"\")","v":83},{"$f":"IFERROR(INDEX(tblData[Модульные кухни],MATCH(ROWS($L$2:tblData[[#This Row],[Индекс]]),tblData[Индекс],0)),\"\")","v":"Комплектующие для карнизов"}]
[null,null,null,null,null,null,null,null,null,"Фурнитура для карнизов",{"$f":"NOT(ISERROR(SEARCH($B$2,tblData[[#This Row],[Модульные кухни]])))","v":true},{"$f":"IF(tblData[[#This Row],[Статус]],COUNTIF($K$2:tblData[[#This Row],[Статус]],TRUE),\"\")","v":84},{"$f":"IFERROR(INDEX(tblData[Модульные кухни],MATCH(ROWS($L$2:tblData[[#This Row],[Индекс]]),tblData[Индекс],0)),\"\")","v":"Фурнитура для карнизов"}]
[null,null,null,null,null,null,null,null,null,"Зеркала",{"$f":"NOT(ISERROR(SEARCH($B$2,tblData[[#This Row],[Модульные кухни]])))","v":true},{"$f":"IF(tblData[[#This Row],[Статус]],COUNTIF($K$2:tblData[[#This Row],[Статус]],TRUE),\"\")","v":85},{"$f":"IFERROR(INDEX(tblData[Модульные кухни],MATCH(ROWS($L$2:tblData[[#This Row],[Индекс]]),tblData[Индекс],0)),\"\")","v":"Зеркала"}]
[null,null,null,null,null,null,null,null,null,"Придверные коврики",{"$f":"NOT(ISERROR(SEARCH($B$2,tblData[[#This Row],[Модульные кухни]])))","v":true},{"$f":"IF(tblData[[#This Row],[Статус]],COUNTIF($K$2:tblData[[#This Row],[Статус]],TRUE),\"\")","v":86},{"$f":"IFERROR(INDEX(tblData[Модульные кухни],MATCH(ROWS($L$2:tblData[[#This Row],[Индекс]]),tblData[Индекс],0)),\"\")","v":"Придверные коврики"}]
[null,null,null,null,null,null,null,null,null,"Самоклеящаяся плёнка",{"$f":"NOT(ISERROR(SEARCH($B$2,tblData[[#This Row],[Модульные кухни]])))","v":true},{"$f":"IF(tblData[[#This Row],[Статус]],COUNTIF($K$2:tblData[[#This Row],[Статус]],TRUE),\"\")","v":87},{"$f":"IFERROR(INDEX(tblData[Модульные кухни],MATCH(ROWS($L$2:tblData[[#This Row],[Индекс]]),tblData[Индекс],0)),\"\")","v":"Самоклеящаяся плёнка"}]
[null,null,null,null,null,null,null,null,null,"Потолочная плитка",{"$f":"NOT(ISERROR(SEARCH($B$2,tblData[[#This Row],[Модульные кухни]])))","v":true},{"$f":"IF(tblData[[#This Row],[Статус]],COUNTIF($K$2:tblData[[#This Row],[Статус]],TRUE),\"\")","v":88},{"$f":"IFERROR(INDEX(tblData[Модульные кухни],MATCH(ROWS($L$2:tblData[[#This Row],[Индекс]]),tblData[Индекс],0)),\"\")","v":"Потолочная плитка"}]
[null,null,null,null,null,null,null,null,null,"Потолочные плинтусы",{"$f":"NOT(ISERROR(SEARCH($B$2,tblData[[#This Row],[Модульные кухни]])))","v":true},{"$f":"IF(tblData[[#This Row],[Статус]],COUNTIF($K$2:tblData[[#This Row],[Статус]],TRUE),\"\")","v":89},{"$f":"IFERROR(INDEX(tblData[Модульные кухни],MATCH(ROWS($L$2:tblData[[#This Row],[Индекс]]),tblData[Индекс],0)),\"\")","v":"Потолочные плинтусы"}]
[null,null,null,null,null,null,null,null,null,"Молдинги",{"$f":"NOT(ISERROR(SEARCH($B$2,tblData[[#This Row],[Модульные кухни]])))","v":true},{"$f":"IF(tblData[[#This Row],[Статус]],COUNTIF($K$2:tblData[[#This Row],[Статус]],TRUE),\"\")","v":90},{"$f":"IFERROR(INDEX(tblData[Модульные кухни],MATCH(ROWS($L$2:tblData[[#This Row],[Индекс]]),tblData[Индекс],0)),\"\")","v":"Молдинги"}]
[null,null,null,null,null,null,null,null,null,"Потолочные розетки",{"$f":"NOT(ISERROR(SEARCH($B$2,tblData[[#This Row],[Модульные кухни]])))","v":true},{"$f":"IF(tblData[[#This Row],[Статус]],COUNTIF($K$2:tblData[[#This Row],[Статус]],TRUE),\"\")","v":91},{"$f":"IFERROR(INDEX(tblData[Модульные кухни],MATCH(ROWS($L$2:tblData[[#This Row],[Индекс]]),tblData[Индекс],0)),\"\")","v":"Потолочные розетки"}]
[null,null,null,null,null,null,null,null,null,"Потолочный клей",{"$f":"NOT(ISERROR(SEARCH($B$2,tblData[[#This Row],[Модульные кухни]])))","v":true},{"$f":"IF(tblData[[#This Row],[Статус]],COUNTIF($K$2:tblData[[#This Row],[Статус]],TRUE),\"\")","v":92},{"$f":"IFERROR(INDEX(tblData[Модульные кухни],MATCH(ROWS($L$2:tblData[[#This Row],[Индекс]]),tblData[Индекс],0)),\"\")","v":"Потолочный клей"}]
[null,null,null,null,null,null,null,null,null,"Обои для детской",{"$f":"NOT(ISERROR(SEARCH($B$2,tblData[[#This Row],[Модульные кухни]])))","v":true},{"$f":"IF(tblData[[#This Row],[Статус]],COUNTIF($K$2:tblData[[#This Row],[Статус]],TRUE),\"\")","v":93},{"$f":"IFERROR(INDEX(tblData[Модульные кухни],MATCH(ROWS($L$2:tblData[[#This Row],[Индекс]]),tblData[Индекс],0)),\"\")","v":"Обои для детской"}]
[null,null,null,null,null,null,null,null,null,"Рулонные шторы в детскую",{"$f":"NOT(ISERROR(SEARCH($B$2,tblData[[#This Row],[Модульные кухни]])))","v":true},{"$f":"IF(tblData[[#This Row],[Статус]],COUNTIF($K$2:tblData[[#This Row],[Статус]],TRUE),\"\")","v":94},{"$f":"IFERROR(INDEX(tblData[Модульные кухни],MATCH(ROWS($L$2:tblData[[#This Row],[Индекс]]),tblData[Индекс],0)),\"\")","v":"Рулонные шторы в детскую"}]
[null,null,null,null,null,null,null,null,null,"Светильники в детскую",{"$f":"NOT(ISERROR(SEARCH($B$2,tblData[[#This Row],[Модульные кухни]])))","v":true},{"$f":"IF(tblData[[#This Row],[Статус]],COUNTIF($K$2:tblData[[#This Row],[Статус]],TRUE),\"\")","v":95},{"$f":"IFERROR(INDEX(tblData[Модульные кухни],MATCH(ROWS($L$2:tblData[[#This Row],[Индекс]]),tblData[Индекс],0)),\"\")","v":"Светильники в детскую"}]
[null,null,null,null,null,null,null,null,null,"Обои для кухни",{"$f":"NOT(ISERROR(SEARCH($B$2,tblData[[#This Row],[Модульные кухни]])))","v":true},{"$f":"IF(tblData[[#This Row],[Статус]],COUNTIF($K$2:tblData[[#This Row],[Статус]],TRUE),\"\")","v":96},{"$f":"IFERROR(INDEX(tblData[Модульные кухни],MATCH(ROWS($L$2:tblData[[#This Row],[Индекс]]),tblData[Индекс],0)),\"\")","v":"Обои для кухни"}]
[null,null,null,null,null,null,null,null,null,"Светильники для кухни",{"$f":"NOT(ISERROR(SEARCH($B$2,tblData[[#This Row],[Модульные кухни]])))","v":true},{"$f":"IF(tblData[[#This Row],[Статус]],COUNTIF($K$2:tblData[[#This Row],[Статус]],TRUE),\"\")","v":97},{"$f":"IFERROR(INDEX(tblData[Модульные кухни],MATCH(ROWS($L$2:tblData[[#This Row],[Индекс]]),tblData[Индекс],0)),\"\")","v":"Светильники для кухни"}]
[null,null,null,null,null,null,null,null,null,"Шторы блэкаут",{"$f":"NOT(ISERROR(SEARCH($B$2,tblData[[#This Row],[Модульные кухни]])))","v":true},{"$f":"IF(tblData[[#This Row],[Статус]],COUNTIF($K$2:tblData[[#This Row],[Статус]],TRUE),\"\")","v":98},{"$f":"IFERROR(INDEX(tblData[Модульные кухни],MATCH(ROWS($L$2:tblData[[#This Row],[Индекс]]),tblData[Индекс],0)),\"\")","v":"Шторы блэкаут"}]
[null,null,null,null,null,null,null,null,null,"Рулонные шторы блэкаут",{"$f":"NOT(ISERROR(SEARCH($B$2,tblData[[#This Row],[Модульные кухни]])))","v":true},{"$f":"IF(tblData[[#This Row],[Статус]],COUNTIF($K$2:tblData[[#This Row],[Статус]],TRUE),\"\")","v":99},{"$f":"IFERROR(INDEX(tblData[Модульные кухни],MATCH(ROWS($L$2:tblData[[#This Row],[Индекс]]),tblData[Индекс],0)),\"\")","v":"Рулонные шторы блэкаут"}]
[null,null,null,null,null,null,null,null,null,"Светильники в спальню",{"$f":"NOT(ISERROR(SEARCH($B$2,tblData[[#This Row],[Модульные кухни]])))","v":true},{"$f":"IF(tblData[[#This Row],[Статус]],COUNTIF($K$2:tblData[[#This Row],[Статус]],TRUE),\"\")","v":100},{"$f":"IFERROR(INDEX(tblData[Модульные кухни],MATCH(ROWS($L$2:tblData[[#This Row],[Индекс]]),tblData[Индекс],0)),\"\")","v":"Светильники в спальню"}]
[null,null,null,null,null,null,null,null,null,"Картины для спальни",{"$f":"NOT(ISERROR(SEARCH($B$2,tblData[[#This Row],[Модульные кухни]])))","v":true},{"$f":"IF(tblData[[#This Row],[Статус]],COUNTIF($K$2:tblData[[#This Row],[Статус]],TRUE),\"\")","v":101},{"$f":"IFERROR(INDEX(tblData[Модульные кухни],MATCH(ROWS($L$2:tblData[[#This Row],[Индекс]]),tblData[Индекс],0)),\"\")","v":"Картины для спальни"}]
[null,null,null,null,null,null,null,null,null,"Зеркала для спальни",{"$f":"NOT(ISERROR(SEARCH($B$2,tblData[[#This Row],[Модульные кухни]])))","v":true},{"$f":"IF(tblData[[#This Row],[Статус]],COUNTIF($K$2:tblData[[#This Row],[Статус]],TRUE),\"\")","v":102},{"$f":"IFERROR(INDEX(tblData[Модульные кухни],MATCH(ROWS($L$2:tblData[[#This Row],[Индекс]]),tblData[Индекс],0)),\"\")","v":"Зеркала для спальни"}]
[null,null,null,null,null,null,null,null,null,"Увлажнители воздуха для спальни",{"$f":"NOT(ISERROR(SEARCH($B$2,tblData[[#This Row],[Модульные кухни]])))","v":true},{"$f":"IF(tblData[[#This Row],[Статус]],COUNTIF($K$2:tblData[[#This Row],[Статус]],TRUE),\"\")","v":103},{"$f":"IFERROR(INDEX(tblData[Модульные кухни],MATCH(ROWS($L$2:tblData[[#This Row],[Индекс]]),tblData[Индекс],0)),\"\")","v":"Увлажнители воздуха для спальни"}]
[null,null,null,null,null,null,null,null,null,"Обои для коммерческих помещений",{"$f":"NOT(ISERROR(SEARCH($B$2,tblData[[#This Row],[Модульные кухни]])))","v":true},{"$f":"IF(tblData[[#This Row],[Статус]],COUNTIF($K$2:tblData[[#This Row],[Статус]],TRUE),\"\")","v":104},{"$f":"IFERROR(INDEX(tblData[Модульные кухни],MATCH(ROWS($L$2:tblData[[#This Row],[Индекс]]),tblData[Индекс],0)),\"\")","v":"Обои для коммерческих помещений"}]
[null,null,null,null,null,null,null,null,null,"Потолочные плинтусы и молдинги для коммерческих помещений",{"$f":"NOT(ISERROR(SEARCH($B$2,tblData[[#This Row],[Модульные кухни]])))","v":true},{"$f":"IF(tblData[[#This Row],[Статус]],COUNTIF($K$2:tblData[[#This Row],[Статус]],TRUE),\"\")","v":105},{"$f":"IFERROR(INDEX(tblData[Модульные кухни],MATCH(ROWS($L$2:tblData[[#This Row],[Индекс]]),tblData[Индекс],0)),\"\")","v":"Потолочные плинтусы и молдинги для коммерческих помещений"}]
[null,null,null,null,null,null,null,null,null,"Карнизы усиленные для коммерческих помещений",{"$f":"NOT(ISERROR(SEARCH($B$2,tblData[[#This Row],[Модульные кухни]])))","v":true},{"$f":"IF(tblData[[#This Row],[Статус]],COUNTIF($K$2:tblData[[#This Row],[Статус]],TRUE),\"\")","v":106},{"$f":"IFERROR(INDEX(tblData[Модульные кухни],MATCH(ROWS($L$2:tblData[[#This Row],[Индекс]]),tblData[Индекс],0)),\"\")","v":"Карнизы усиленные для коммерческих помещений"}]
[null,null,null,null,null,null,null,null,null,"Рулонные шторы для коммерческих помещений",{"$f":"NOT(ISERROR(SEARCH($B$2,tblData[[#This Row],[Модульные кухни]])))","v":true},{"$f":"IF(tblData[[#This Row],[Статус]],COUNTIF($K$2:tblData[[#This Row],[Статус]],TRUE),\"\")","v":107},{"$f":"IFERROR(INDEX(tblData[Модульные кухни],MATCH(ROWS($L$2:tblData[[#This Row],[Индекс]]),tblData[Индекс],0)),\"\")","v":"Рулонные шторы для коммерческих помещений"}]
[null,null,null,null,null,null,null,null,null,"Радиаторы биметаллические",{"$f":"NOT(ISERROR(SEARCH($B$2,tblData[[#This Row],[Модульные кухни]])))","v":true},{"$f":"IF(tblData[[#This Row],[Статус]],COUNTIF($K$2:tblData[[#This Row],[Статус]],TRUE),\"\")","v":108},{"$f":"IFERROR(INDEX(tblData[Модульные кухни],MATCH(ROWS($L$2:tblData[[#This Row],[Индекс]]),tblData[Индекс],0)),\"\")","v":"Радиаторы биметаллические"}]
[null,null,null,null,null,null,null,null,null,"Радиаторы алюминиевые",{"$f":"NOT(ISERROR(SEARCH($B$2,tblData[[#This Row],[Модульные кухни]])))","v":true},{"$f":"IF(tblData[[#This Row],[Статус]],COUNTIF($K$2:tblData[[#This Row],[Статус]],TRUE),\"\")","v":109},{"$f":"IFERROR(INDEX(tblData[Модульные кухни],MATCH(ROWS($L$2:tblData[[#This Row],[Индекс]]),tblData[Индекс],0)),\"\")","v":"Радиаторы алюминиевые"}]
[null,null,null,null,null,null,null,null,null,"Панельные радиаторы",{"$f":"NOT(ISERROR(SEARCH($B$2,tblData[[#This Row],[Модульные кухни]])))","v":true},{"$f":"IF(tblData[[#This Row],[Статус]],COUNTIF($K$2:tblData[[#This Row],[Статус]],TRUE),\"\")","v":110},{"$f":"IFERROR(INDEX(tblData[Модульные кухни],MATCH(ROWS($L$2:tblData[[#This Row],[Индекс]]),tblData[Индекс],0)),\"\")","v":"Панельные радиаторы"}]
[null,null,null,null,null,null,null,null,null,"Термоголовки для радиаторов",{"$f":"NOT(ISERROR(SEARCH($B$2,tblData[[#This Row],[Модульные кухни]])))","v":true},{"$f":"IF(tblData[[#This Row],[Статус]],COUNTIF($K$2:tblData[[#This Row],[Статус]],TRUE),\"\")","v":111},{"$f":"IFERROR(INDEX(tblData[Модульные кухни],MATCH(ROWS($L$2:tblData[[#This Row],[Индекс]]),tblData[Индекс],0)),\"\")","v":"Термоголовки для радиаторов"}]
[null,null,null,null,null,null,null,null,null,"Клапаны для радиаторов",{"$f":"NOT(ISERROR(SEARCH($B$2,tblData[[#This Row],[Модульные кухни]])))","v":true},{"$f":"IF(tblData[[#This Row],[Статус]],COUNTIF($K$2:tblData[[#This Row],[Статус]],TRUE),\"\")","v":112},{"$f":"IFERROR(INDEX(tblData[Модульные кухни],MATCH(ROWS($L$2:tblData[[#This Row],[Индекс]]),tblData[Индекс],0)),\"\")","v":"Клапаны для радиаторов"}]
[null,null,null,null,null,null,null,null,null,"Аксессуары для радиаторов",{"$f":"NOT(ISERROR(SEARCH($B$2,tblData[[#This Row],[Модульные кухни]])))","v":true},{"$f":"IF(tblData[[#This Row],[Статус]],COUNTIF($K$2:tblData[[#This Row],[Статус]],TRUE),\"\")","v":113},{"$f":"IFERROR(INDEX(tblData[Модульные кухни],MATCH(ROWS($L$2:tblData[[#This Row],[Индекс]]),tblData[Индекс],0)),\"\")","v":"Аксессуары для радиаторов"}]
[null,null,null,null,null,null,null,null,null,"Кронштейны для радиаторов",{"$f":"NOT(ISERROR(SEARCH($B$2,tblData[[#This Row],[Модульные кухни]])))","v":true},{"$f":"IF(tblData[[#This Row],[Статус]],COUNTIF($K$2:tblData[[#This Row],[Статус]],TRUE),\"\")","v":114},{"$f":"IFERROR(INDEX(tblData[Модульные кухни],MATCH(ROWS($L$2:tblData[[#This Row],[Индекс]]),tblData[Индекс],0)),\"\")","v":"Кронштейны для радиаторов"}]
[null,null,null,null,null,null,null,null,null,"Монтажные комплекты для радиаторов",{"$f":"NOT(ISERROR(SEARCH($B$2,tblData[[#This Row],[Модульные кухни]])))","v":true},{"$f":"IF(tblData[[#This Row],[Статус]],COUNTIF($K$2:tblData[[#This Row],[Статус]],TRUE),\"\")","v":115},{"$f":"IFERROR(INDEX(tblData[Модульные кухни],MATCH(ROWS($L$2:tblData[[#This Row],[Индекс]]),tblData[Индекс],0)),\"\")","v":"Монтажные комплекты для радиаторов"}]
[null,null,null,null,null,null,null,null,null,"Теплоносители для систем отопления",{"$f":"NOT(ISERROR(SEARCH($B$2,tblData[[#This Row],[Модульные кухни]])))","v":true},{"$f":"IF(tblData[[#This Row],[Статус]],COUNTIF($K$2:tblData[[#This Row],[Статус]],TRUE),\"\")","v":116},{"$f":"IFERROR(INDEX(tblData[Модульные кухни],MATCH(ROWS($L$2:tblData[[#This Row],[Индекс]]),tblData[Индекс],0)),\"\")","v":"Теплоносители для систем отопления"}]
[null,null,null,null,null,null,null,null,null,"Трубы для тёплого пола",{"$f":"NOT(ISERROR(SEARCH($B$2,tblData[[#This Row],[Модульные кухни]])))","v":true},{"$f":"IF(tblData[[#This Row],[Статус]],COUNTIF($K$2:tblData[[#This Row],[Статус]],TRUE),\"\")","v":117},{"$f":"IFERROR(INDEX(tblData[Модульные кухни],MATCH(ROWS($L$2:tblData[[#This Row],[Индекс]]),tblData[Индекс],0)),\"\")","v":"Трубы для тёплого пола"}]
[null,null,null,null,null,null,null,null,null,"Фитинги для тёплого пола",{"$f":"NOT(ISERROR(SEARCH($B$2,tblData[[#This Row],[Модульные кухни]])))","v":true},{"$f":"IF(tblData[[#This Row],[Статус]],COUNTIF($K$2:tblData[[#This Row],[Статус]],TRUE),\"\")","v":118},{"$f":"IFERROR(INDEX(tblData[Модульные кухни],MATCH(ROWS($L$2:tblData[[#This Row],[Индекс]]),tblData[Индекс],0)),\"\")","v":"Фитинги для тёплого пола"}]
[null,null,null,null,null,null,null,null,null,"Циркуляционные насосы",{"$f":"NOT(ISERROR(SEARCH($B$2,tblData[[#This Row],[Модульные кухни]])))","v":true},{"$f":"IF(tblData[[#This Row],[Статус]],COUNTIF($K$2:tblData[[#This Row],[Статус]],TRUE),\"\")","v":119},{"$f":"IFERROR(INDEX(tblData[Модульные кухни],MATCH(ROWS($L$2:tblData[[#This Row],[Индекс]]),tblData[Индекс],0)),\"\")","v":"Циркуляционные насосы"}]
[null,null,null,null,null,null,null,null,null,"Коллекторная группа для тёплого пола",{"$f":"NOT(ISERROR(SEARCH($B$2,tblData[[#This Row],[Модульные кухни]])))","v":true},{"$f":"IF(tblData[[#This Row],[Статус]],COUNTIF($K$2:tblData[[#This Row],[Статус]],TRUE),\"\")","v":120},{"$f":"IFERROR(INDEX(tblData[Модульные кухни],MATCH(ROWS($L$2:tblData[[#This Row],[Индекс]]),tblData[Индекс],0)),\"\")","v":"Коллекторная группа для тёплого пола"}]
[null,null,null,null,null,null,null,null,null,"Насосно-смесительные узлы",{"$f":"NOT(ISERROR(SEARCH($B$2,tblData[[#This Row],[Модульные кухни]])))","v":true},{"$f":"IF(tblData[[#This Row],[Статус]],COUNTIF($K$2:tblData[[#This Row],[Статус]],TRUE),\"\")","v":121},{"$f":"IFERROR(INDEX(tblData[Модульные кухни],MATCH(ROWS($L$2:tblData[[#This Row],[Индекс]]),tblData[Индекс],0)),\"\")","v":"Насосно-смесительные узлы"}]
[null,null,null,null,null,null,null,null,null,"Смесительные клапаны",{"$f":"NOT(ISERROR(SEARCH($B$2,tblData[[#This Row],[Модульные кухни]])))","v":true},{"$f":"IF(tblData[[#This Row],[Статус]],COUNTIF($K$2:tblData[[#This Row],[Статус]],TRUE),\"\")","v":122},{"$f":"IFERROR(INDEX(tblData[Модульные кухни],MATCH(ROWS($L$2:tblData[[#This Row],[Индекс]]),tblData[Индекс],0)),\"\")","v":"Смесительные клапаны"}]
[null,null,null,null,null,null,null,null,null,"Терморегуляторы для водяного теплого пола",{"$f":"NOT(ISERROR(SEARCH($B$2,tblData[[#This Row],[Модульные кухни]])))","v":true},{"$f":"IF(tblData[[#This Row],[Статус]],COUNTIF($K$2:tblData[[#This Row],[Статус]],TRUE),\"\")","v":123},{"$f":"IFERROR(INDEX(tblData[Модульные кухни],MATCH(ROWS($L$2:tblData[[#This Row],[Индекс]]),tblData[Индекс],0)),\"\")","v":"Терморегуляторы для водяного теплого пола"}]
[null,null,null,null,null,null,null,null,null,"Комплектующие для тёплого пола",{"$f":"NOT(ISERROR(SEARCH($B$2,tblData[[#This Row],[Модульные кухни]])))","v":true},{"$f":"IF(tblData[[#This Row],[Статус]],COUNTIF($K$2:tblData[[#This Row],[Статус]],TRUE),\"\")","v":124},{"$f":"IFERROR(INDEX(tblData[Модульные кухни],MATCH(ROWS($L$2:tblData[[#This Row],[Индекс]]),tblData[Индекс],0)),\"\")","v":"Комплектующие для тёплого пола"}]
[null,null,null,null,null,null,null,null,null,"Коллекторные шкафы",{"$f":"NOT(ISERROR(SEARCH($B$2,tblData[[#This Row],[Модульные кухни]])))","v":true},{"$f":"IF(tblData[[#This Row],[Статус]],COUNTIF($K$2:tblData[[#This Row],[Статус]],TRUE),\"\")","v":125},{"$f":"IFERROR(INDEX(tblData[Модульные кухни],MATCH(ROWS($L$2:tblData[[#This Row],[Индекс]]),tblData[Индекс],0)),\"\")","v":"Коллекторные шкафы"}]
[null,null,null,null,null,null,null,null,null,"Трубы из сшитого полиэтилена и фитинги",{"$f":"NOT(ISERROR(SEARCH($B$2,tblData[[#This Row],[Модульные кухни]])))","v":true},{"$f":"IF(tblData[[#This Row],[Статус]],COUNTIF($K$2:tblData[[#This Row],[Статус]],TRUE),\"\")","v":126},{"$f":"IFERROR(INDEX(tblData[Модульные кухни],MATCH(ROWS($L$2:tblData[[#This Row],[Индекс]]),tblData[Индекс],0)),\"\")","v":"Трубы из сшитого полиэтилена и фитинги"}]
[null,null,null,null,null,null,null,null,null,"Полипропиленовые трубы и фитинги",{"$f":"NOT(ISERROR(SEARCH($B$2,tblData[[#This Row],[Модульные кухни]])))","v":true},{"$f":"IF(tblData[[#This Row],[Статус]],COUNTIF($K$2:tblData[[#This Row],[Статус]],TRUE),\"\")","v":127},{"$f":"IFERROR(INDEX(tblData[Модульные кухни],MATCH(ROWS($L$2:tblData[[#This Row],[Индекс]]),tblData[Индекс],0)),\"\")","v":"Полипропиленовые трубы и фитинги"}]
[null,null,null,null,null,null,null,null,null,"Металлопластиковые трубы и фитинги",{"$f":"NOT(ISERROR(SEARCH($B$2,tblData[[#This Row],[Модульные кухни]])))","v":true},{"$f":"IF(tblData[[#This Row],[Статус]],COUNTIF($K$2:tblData[[#This Row],[Статус]],TRUE),\"\")","v":128},{"$f":"IFERROR(INDEX(tblData[Модульные кухни],MATCH(ROWS($L$2:tblData[[#This Row],[Индекс]]),tblData[Индекс],0)),\"\")","v":"Металлопластиковые трубы и фитинги"}]
[null,null,null,null,null,null,null,null,null,"Трубы ПНД и фитинги",{"$f":"NOT(ISERROR(SEARCH($B$2,tblData[[#This Row],[Модульные кухни]])))","v":true},{"$f":"IF(tblData[[#This Row],[Статус]],COUNTIF($K$2:tblData[[#This Row],[Статус]],TRUE),\"\")","v":129},{"$f":"IFERROR(INDEX(tblData[Модульные кухни],MATCH(ROWS($L$2:tblData[[#This Row],[Индекс]]),tblData[Индекс],0)),\"\")","v":"Трубы ПНД и фитинги"}]
[null,null,null,null,null,null,null,null,null,"Трубы из нержавеющей стали",{"$f":"NOT(ISERROR(SEARCH($B$2,tblData[[#This Row],[Модульные кухни]])))","v":true},{"$f":"IF(tblData[[#This Row],[Статус]],COUNTIF($K$2:tblData[[#This Row],[Статус]],TRUE),\"\")","v":130},{"$f":"IFERROR(INDEX(tblData[Модульные кухни],MATCH(ROWS($L$2:tblData[[#This Row],[Индекс]]),tblData[Индекс],0)),\"\")","v":"Трубы из нержавеющей стали"}]
[null,null,null,null,null,null,null,null,null,"Резьбовые фитинги",{"$f":"NOT(ISERROR(SEARCH($B$2,tblData[[#This Row],[Модульные кухни]])))","v":true},{"$f":"IF(tblData[[#This Row],[Статус]],COUNTIF($K$2:tblData[[#This Row],[Статус]],TRUE),\"\")","v":131},{"$f":"IFERROR(INDEX(tblData[Модульные кухни],MATCH(ROWS($L$2:tblData[[#This Row],[Индекс]]),tblData[Индекс],0)),\"\")","v":"Резьбовые фитинги"}]
[null,null,null,null,null,null,null,null,null,"Изоляция для труб",{"$f":"NOT(ISERROR(SEARCH($B$2,tblData[[#This Row],[Модульные кухни]])))","v":true},{"$f":"IF(tblData[[#This Row],[Статус]],COUNTIF($K$2:tblData[[#This Row],[Статус]],TRUE),\"\")","v":132},{"$f":"IFERROR(INDEX(tblData[Модульные кухни],MATCH(ROWS($L$2:tblData[[#This Row],[Индекс]]),tblData[Индекс],0)),\"\")","v":"Изоляция для труб"}]
[null,null,null,null,null,null,null,null,null,"Подводка для газа",{"$f":"NOT(ISERROR(SEARCH($B$2,tblData[[#This Row],[Модульные кухни]])))","v":true},{"$f":"IF(tblData[[#This Row],[Статус]],COUNTIF($K$2:tblData[[#This Row],[Статус]],TRUE),\"\")","v":133},{"$f":"IFERROR(INDEX(tblData[Модульные кухни],MATCH(ROWS($L$2:tblData[[#This Row],[Индекс]]),tblData[Индекс],0)),\"\")","v":"Подводка для газа"}]
[null,null,null,null,null,null,null,null,null,"Шланги для стиральных машин",{"$f":"NOT(ISERROR(SEARCH($B$2,tblData[[#This Row],[Модульные кухни]])))","v":true},{"$f":"IF(tblData[[#This Row],[Статус]],COUNTIF($K$2:tblData[[#This Row],[Статус]],TRUE),\"\")","v":134},{"$f":"IFERROR(INDEX(tblData[Модульные кухни],MATCH(ROWS($L$2:tblData[[#This Row],[Индекс]]),tblData[Индекс],0)),\"\")","v":"Шланги для стиральных машин"}]
[null,null,null,null,null,null,null,null,null,"Гибкая подводка для воды",{"$f":"NOT(ISERROR(SEARCH($B$2,tblData[[#This Row],[Модульные кухни]])))","v":true},{"$f":"IF(tblData[[#This Row],[Статус]],COUNTIF($K$2:tblData[[#This Row],[Статус]],TRUE),\"\")","v":135},{"$f":"IFERROR(INDEX(tblData[Модульные кухни],MATCH(ROWS($L$2:tblData[[#This Row],[Индекс]]),tblData[Индекс],0)),\"\")","v":"Гибкая подводка для воды"}]
[null,null,null,null,null,null,null,null,null,"Запорная арматура",{"$f":"NOT(ISERROR(SEARCH($B$2,tblData[[#This Row],[Модульные кухни]])))","v":true},{"$f":"IF(tblData[[#This Row],[Статус]],COUNTIF($K$2:tblData[[#This Row],[Статус]],TRUE),\"\")","v":136},{"$f":"IFERROR(INDEX(tblData[Модульные кухни],MATCH(ROWS($L$2:tblData[[#This Row],[Индекс]]),tblData[Индекс],0)),\"\")","v":"Запорная арматура"}]
[null,null,null,null,null,null,null,null,null,"Коллекторы для воды",{"$f":"NOT(ISERROR(SEARCH($B$2,tblData[[#This Row],[Модульные кухни]])))","v":true},{"$f":"IF(tblData[[#This Row],[Статус]],COUNTIF($K$2:tblData[[#This Row],[Статус]],TRUE),\"\")","v":137},{"$f":"IFERROR(INDEX(tblData[Модульные кухни],MATCH(ROWS($L$2:tblData[[#This Row],[Индекс]]),tblData[Индекс],0)),\"\")","v":"Коллекторы для воды"}]
[null,null,null,null,null,null,null,null,null,"Котлы отопительные газовые",{"$f":"NOT(ISERROR(SEARCH($B$2,tblData[[#This Row],[Модульные кухни]])))","v":true},{"$f":"IF(tblData[[#This Row],[Статус]],COUNTIF($K$2:tblData[[#This Row],[Статус]],TRUE),\"\")","v":138},{"$f":"IFERROR(INDEX(tblData[Модульные кухни],MATCH(ROWS($L$2:tblData[[#This Row],[Индекс]]),tblData[Индекс],0)),\"\")","v":"Котлы отопительные газовые"}]
[null,null,null,null,null,null,null,null,null,"Котлы отопительные электрические",{"$f":"NOT(ISERROR(SEARCH($B$2,tblData[[#This Row],[Модульные кухни]])))","v":true},{"$f":"IF(tblData[[#This Row],[Статус]],COUNTIF($K$2:tblData[[#This Row],[Статус]],TRUE),\"\")","v":139},{"$f":"IFERROR(INDEX(tblData[Модульные кухни],MATCH(ROWS($L$2:tblData[[#This Row],[Индекс]]),tblData[Индекс],0)),\"\")","v":"Котлы отопительные электрические"}]
[null,null,null,null,null,null,null,null,null,"Аксессуары для котлов и отопителей",{"$f":"NOT(ISERROR(SEARCH($B$2,tblData[[#This Row],[Модульные кухни]])))","v":true},{"$f":"IF(tblData[[#This Row],[Статус]],COUNTIF($K$2:tblData[[#This Row],[Статус]],TRUE),\"\")","v":140},{"$f":"IFERROR(INDEX(tblData[Модульные кухни],MATCH(ROWS($L$2:tblData[[#This Row],[Индекс]]),tblData[Индекс],0)),\"\")","v":"Аксессуары для котлов и отопителей"}]
[null,null,null,null,null,null,null,null,null,"Расширительные баки",{"$f":"NOT(ISERROR(SEARCH($B$2,tblData[[#This Row],[Модульные кухни]])))","v":true},{"$f":"IF(tblData[[#This Row],[Статус]],COUNTIF($K$2:tblData[[#This Row],[Статус]],TRUE),\"\")","v":141},{"$f":"IFERROR(INDEX(tblData[Модульные кухни],MATCH(ROWS($L$2:tblData[[#This Row],[Индекс]]),tblData[Индекс],0)),\"\")","v":"Расширительные баки"}]
[null,null,null,null,null,null,null,null,null,"Теплоноситель",{"$f":"NOT(ISERROR(SEARCH($B$2,tblData[[#This Row],[Модульные кухни]])))","v":true},{"$f":"IF(tblData[[#This Row],[Статус]],COUNTIF($K$2:tblData[[#This Row],[Статус]],TRUE),\"\")","v":142},{"$f":"IFERROR(INDEX(tblData[Модульные кухни],MATCH(ROWS($L$2:tblData[[#This Row],[Индекс]]),tblData[Индекс],0)),\"\")","v":"Теплоноситель"}]
[null,null,null,null,null,null,null,null,null,"Электрические водонагреватели накопительные",{"$f":"NOT(ISERROR(SEARCH($B$2,tblData[[#This Row],[Модульные кухни]])))","v":true},{"$f":"IF(tblData[[#This Row],[Статус]],COUNTIF($K$2:tblData[[#This Row],[Статус]],TRUE),\"\")","v":143},{"$f":"IFERROR(INDEX(tblData[Модульные кухни],MATCH(ROWS($L$2:tblData[[#This Row],[Индекс]]),tblData[Индекс],0)),\"\")","v":"Электрические водонагреватели накопительные"}]
[null,null,null,null,null,null,null,null,null,"Электрические водонагреватели проточные",{"$f":"NOT(ISERROR(SEARCH($B$2,tblData[[#This Row],[Модульные кухни]])))","v":true},{"$f":"IF(tblData[[#This Row],[Статус]],COUNTIF($K$2:tblData[[#This Row],[Статус]],TRUE),\"\")","v":144},{"$f":"IFERROR(INDEX(tblData[Модульные кухни],MATCH(ROWS($L$2:tblData[[#This Row],[Индекс]]),tblData[Индекс],0)),\"\")","v":"Электрические водонагреватели проточные"}]
[null,null,null,null,null,null,null,null,null,"Газовые водонагреватели",{"$f":"NOT(ISERROR(SEARCH($B$2,tblData[[#This Row],[Модульные кухни]])))","v":true},{"$f":"IF(tblData[[#This Row],[Статус]],COUNTIF($K$2:tblData[[#This Row],[Статус]],TRUE),\"\")","v":145},{"$f":"IFERROR(INDEX(tblData[Модульные кухни],MATCH(ROWS($L$2:tblData[[#This Row],[Индекс]]),tblData[Индекс],0)),\"\")","v":"Газовые водонагреватели"}]
[null,null,null,null,null,null,null,null,null,"Бойлеры косвенного нагрева",{"$f":"NOT(ISERROR(SEARCH($B$2,tblData[[#This Row],[Модульные кухни]])))","v":true},{"$f":"IF(tblData[[#This Row],[Статус]],COUNTIF($K$2:tblData[[#This Row],[Статус]],TRUE),\"\")","v":146},{"$f":"IFERROR(INDEX(tblData[Модульные кухни],MATCH(ROWS($L$2:tblData[[#This Row],[Индекс]]),tblData[Индекс],0)),\"\")","v":"Бойлеры косвенного нагрева"}]
[null,null,null,null,null,null,null,null,null,"Электрические водонагреватели наливные",{"$f":"NOT(ISERROR(SEARCH($B$2,tblData[[#This Row],[Модульные кухни]])))","v":true},{"$f":"IF(tblData[[#This Row],[Статус]],COUNTIF($K$2:tblData[[#This Row],[Статус]],TRUE),\"\")","v":147},{"$f":"IFERROR(INDEX(tblData[Модульные кухни],MATCH(ROWS($L$2:tblData[[#This Row],[Индекс]]),tblData[Индекс],0)),\"\")","v":"Электрические водонагреватели наливные"}]
[null,null,null,null,null,null,null,null,null,"Комплектующие для водонагревателей",{"$f":"NOT(ISERROR(SEARCH($B$2,tblData[[#This Row],[Модульные кухни]])))","v":true},{"$f":"IF(tblData[[#This Row],[Статус]],COUNTIF($K$2:tblData[[#This Row],[Статус]],TRUE),\"\")","v":148},{"$f":"IFERROR(INDEX(tblData[Модульные кухни],MATCH(ROWS($L$2:tblData[[#This Row],[Индекс]]),tblData[Индекс],0)),\"\")","v":"Комплектующие для водонагревателей"}]
[null,null,null,null,null,null,null,null,null,"Полотенцесушители водяные",{"$f":"NOT(ISERROR(SEARCH($B$2,tblData[[#This Row],[Модульные кухни]])))","v":true},{"$f":"IF(tblData[[#This Row],[Статус]],COUNTIF($K$2:tblData[[#This Row],[Статус]],TRUE),\"\")","v":149},{"$f":"IFERROR(INDEX(tblData[Модульные кухни],MATCH(ROWS($L$2:tblData[[#This Row],[Индекс]]),tblData[Индекс],0)),\"\")","v":"Полотенцесушители водяные"}]
[null,null,null,null,null,null,null,null,null,"Полотенцесушители электрические",{"$f":"NOT(ISERROR(SEARCH($B$2,tblData[[#This Row],[Модульные кухни]])))","v":true},{"$f":"IF(tblData[[#This Row],[Статус]],COUNTIF($K$2:tblData[[#This Row],[Статус]],TRUE),\"\")","v":150},{"$f":"IFERROR(INDEX(tblData[Модульные кухни],MATCH(ROWS($L$2:tblData[[#This Row],[Индекс]]),tblData[Индекс],0)),\"\")","v":"Полотенцесушители электрические"}]
[null,null,null,null,null,null,null,null,null,"Комплекты для подключения полотенцесушителей",{"$f":"NOT(ISERROR(SEARCH($B$2,tblData[[#This Row],[Модульные кухни]])))","v":true},{"$f":"IF(tblData[[#This Row],[Статус]],COUNTIF($K$2:tblData[[#This Row],[Статус]],TRUE),\"\")","v":151},{"$f":"IFERROR(INDEX(tblData[Модульные кухни],MATCH(ROWS($L$2:tblData[[#This Row],[Индекс]]),tblData[Индекс],0)),\"\")","v":"Комплекты для подключения полотенцесушителей"}]
[null,null,null,null,null,null,null,null,null,"Отражатели и крепления для полотенцесушителей",{"$f":"NOT(ISERROR(SEARCH($B$2,tblData[[#This Row],[Модульные кухни]])))","v":true},{"$f":"IF(tblData[[#This Row],[Статус]],COUNTIF($K$2:tblData[[#This Row],[Статус]],TRUE),\"\")","v":152},{"$f":"IFERROR(INDEX(tblData[Модульные кухни],MATCH(ROWS($L$2:tblData[[#This Row],[Индекс]]),tblData[Индекс],0)),\"\")","v":"Отражатели и крепления для полотенцесушителей"}]
[null,null,null,null,null,null,null,null,null,"Санитарные насосы",{"$f":"NOT(ISERROR(SEARCH($B$2,tblData[[#This Row],[Модульные кухни]])))","v":true},{"$f":"IF(tblData[[#This Row],[Статус]],COUNTIF($K$2:tblData[[#This Row],[Статус]],TRUE),\"\")","v":153},{"$f":"IFERROR(INDEX(tblData[Модульные кухни],MATCH(ROWS($L$2:tblData[[#This Row],[Индекс]]),tblData[Индекс],0)),\"\")","v":"Санитарные насосы"}]
[null,null,null,null,null,null,null,null,null,"Насосы для повышения давления воды",{"$f":"NOT(ISERROR(SEARCH($B$2,tblData[[#This Row],[Модульные кухни]])))","v":true},{"$f":"IF(tblData[[#This Row],[Статус]],COUNTIF($K$2:tblData[[#This Row],[Статус]],TRUE),\"\")","v":154},{"$f":"IFERROR(INDEX(tblData[Модульные кухни],MATCH(ROWS($L$2:tblData[[#This Row],[Индекс]]),tblData[Индекс],0)),\"\")","v":"Насосы для повышения давления воды"}]
[null,null,null,null,null,null,null,null,null,"Гидроаккумуляторы",{"$f":"NOT(ISERROR(SEARCH($B$2,tblData[[#This Row],[Модульные кухни]])))","v":true},{"$f":"IF(tblData[[#This Row],[Статус]],COUNTIF($K$2:tblData[[#This Row],[Статус]],TRUE),\"\")","v":155},{"$f":"IFERROR(INDEX(tblData[Модульные кухни],MATCH(ROWS($L$2:tblData[[#This Row],[Индекс]]),tblData[Индекс],0)),\"\")","v":"Гидроаккумуляторы"}]
[null,null,null,null,null,null,null,null,null,"Редукторы давления",{"$f":"NOT(ISERROR(SEARCH($B$2,tblData[[#This Row],[Модульные кухни]])))","v":true},{"$f":"IF(tblData[[#This Row],[Статус]],COUNTIF($K$2:tblData[[#This Row],[Статус]],TRUE),\"\")","v":156},{"$f":"IFERROR(INDEX(tblData[Модульные кухни],MATCH(ROWS($L$2:tblData[[#This Row],[Индекс]]),tblData[Индекс],0)),\"\")","v":"Редукторы давления"}]
[null,null,null,null,null,null,null,null,null,"Обратный клапан",{"$f":"NOT(ISERROR(SEARCH($B$2,tblData[[#This Row],[Модульные кухни]])))","v":true},{"$f":"IF(tblData[[#This Row],[Статус]],COUNTIF($K$2:tblData[[#This Row],[Статус]],TRUE),\"\")","v":157},{"$f":"IFERROR(INDEX(tblData[Модульные кухни],MATCH(ROWS($L$2:tblData[[#This Row],[Индекс]]),tblData[Индекс],0)),\"\")","v":"Обратный клапан"}]
[null,null,null,null,null,null,null,null,null,"Воздухоотводчики",{"$f":"NOT(ISERROR(SEARCH($B$2,tblData[[#This Row],[Модульные кухни]])))","v":true},{"$f":"IF(tblData[[#This Row],[Статус]],COUNTIF($K$2:tblData[[#This Row],[Статус]],TRUE),\"\")","v":158},{"$f":"IFERROR(INDEX(tblData[Модульные кухни],MATCH(ROWS($L$2:tblData[[#This Row],[Индекс]]),tblData[Индекс],0)),\"\")","v":"Воздухоотводчики"}]
[null,null,null,null,null,null,null,null,null,"Группы безопасности",{"$f":"NOT(ISERROR(SEARCH($B$2,tblData[[#This Row],[Модульные кухни]])))","v":true},{"$f":"IF(tblData[[#This Row],[Статус]],COUNTIF($K$2:tblData[[#This Row],[Статус]],TRUE),\"\")","v":159},{"$f":"IFERROR(INDEX(tblData[Модульные кухни],MATCH(ROWS($L$2:tblData[[#This Row],[Индекс]]),tblData[Индекс],0)),\"\")","v":"Группы безопасности"}]
[null,null,null,null,null,null,null,null,null,"Предохранительные клапаны",{"$f":"NOT(ISERROR(SEARCH($B$2,tblData[[#This Row],[Модульные кухни]])))","v":true},{"$f":"IF(tblData[[#This Row],[Статус]],COUNTIF($K$2:tblData[[#This Row],[Статус]],TRUE),\"\")","v":160},{"$f":"IFERROR(INDEX(tblData[Модульные кухни],MATCH(ROWS($L$2:tblData[[#This Row],[Индекс]]),tblData[Индекс],0)),\"\")","v":"Предохранительные клапаны"}]
[null,null,null,null,null,null,null,null,null,"Колбы для фильтров",{"$f":"NOT(ISERROR(SEARCH($B$2,tblData[[#This Row],[Модульные кухни]])))","v":true},{"$f":"IF(tblData[[#This Row],[Статус]],COUNTIF($K$2:tblData[[#This Row],[Статус]],TRUE),\"\")","v":161},{"$f":"IFERROR(INDEX(tblData[Модульные кухни],MATCH(ROWS($L$2:tblData[[#This Row],[Индекс]]),tblData[Индекс],0)),\"\")","v":"Колбы для фильтров"}]
[null,null,null,null,null,null,null,null,null,"Фильтры грубой очистки воды",{"$f":"NOT(ISERROR(SEARCH($B$2,tblData[[#This Row],[Модульные кухни]])))","v":true},{"$f":"IF(tblData[[#This Row],[Статус]],COUNTIF($K$2:tblData[[#This Row],[Статус]],TRUE),\"\")","v":162},{"$f":"IFERROR(INDEX(tblData[Модульные кухни],MATCH(ROWS($L$2:tblData[[#This Row],[Индекс]]),tblData[Индекс],0)),\"\")","v":"Фильтры грубой очистки воды"}]
[null,null,null,null,null,null,null,null,null,"Фильтры тонкой очистки",{"$f":"NOT(ISERROR(SEARCH($B$2,tblData[[#This Row],[Модульные кухни]])))","v":true},{"$f":"IF(tblData[[#This Row],[Статус]],COUNTIF($K$2:tblData[[#This Row],[Статус]],TRUE),\"\")","v":163},{"$f":"IFERROR(INDEX(tblData[Модульные кухни],MATCH(ROWS($L$2:tblData[[#This Row],[Индекс]]),tblData[Индекс],0)),\"\")","v":"Фильтры тонкой очистки"}]
[null,null,null,null,null,null,null,null,null,"Фильтрующие элементы (картриджи) ",{"$f":"NOT(ISERROR(SEARCH($B$2,tblData[[#This Row],[Модульные кухни]])))","v":true},{"$f":"IF(tblData[[#This Row],[Статус]],COUNTIF($K$2:tblData[[#This Row],[Статус]],TRUE),\"\")","v":164},{"$f":"IFERROR(INDEX(tblData[Модульные кухни],MATCH(ROWS($L$2:tblData[[#This Row],[Индекс]]),tblData[Индекс],0)),\"\")","v":"Фильтрующие элементы (картриджи) "}]
[null,null,null,null,null,null,null,null,null,"Системы обратного осмоса",{"$f":"NOT(ISERROR(SEARCH($B$2,tblData[[#This Row],[Модульные кухни]])))","v":true},{"$f":"IF(tblData[[#This Row],[Статус]],COUNTIF($K$2:tblData[[#This Row],[Статус]],TRUE),\"\")","v":165},{"$f":"IFERROR(INDEX(tblData[Модульные кухни],MATCH(ROWS($L$2:tblData[[#This Row],[Индекс]]),tblData[Индекс],0)),\"\")","v":"Системы обратного осмоса"}]
[null,null,null,null,null,null,null,null,null,"Фильтры для воды под мойку",{"$f":"NOT(ISERROR(SEARCH($B$2,tblData[[#This Row],[Модульные кухни]])))","v":true},{"$f":"IF(tblData[[#This Row],[Статус]],COUNTIF($K$2:tblData[[#This Row],[Статус]],TRUE),\"\")","v":166},{"$f":"IFERROR(INDEX(tblData[Модульные кухни],MATCH(ROWS($L$2:tblData[[#This Row],[Индекс]]),tblData[Индекс],0)),\"\")","v":"Фильтры для воды под мойку"}]
[null,null,null,null,null,null,null,null,null,"Комплекты картриджей для воды",{"$f":"NOT(ISERROR(SEARCH($B$2,tblData[[#This Row],[Модульные кухни]])))","v":true},{"$f":"IF(tblData[[#This Row],[Статус]],COUNTIF($K$2:tblData[[#This Row],[Статус]],TRUE),\"\")","v":167},{"$f":"IFERROR(INDEX(tblData[Модульные кухни],MATCH(ROWS($L$2:tblData[[#This Row],[Индекс]]),tblData[Индекс],0)),\"\")","v":"Комплекты картриджей для воды"}]
[null,null,null,null,null,null,null,null,null,"Картриджи для воды",{"$f":"NOT(ISERROR(SEARCH($B$2,tblData[[#This Row],[Модульные кухни]])))","v":true},{"$f":"IF(tblData[[#This Row],[Статус]],COUNTIF($K$2:tblData[[#This Row],[Статус]],TRUE),\"\")","v":168},{"$f":"IFERROR(INDEX(tblData[Модульные кухни],MATCH(ROWS($L$2:tblData[[#This Row],[Индекс]]),tblData[Индекс],0)),\"\")","v":"Картриджи для воды"}]
[null,null,null,null,null,null,null,null,null,"Мембраны обратного осмоса",{"$f":"NOT(ISERROR(SEARCH($B$2,tblData[[#This Row],[Модульные кухни]])))","v":true},{"$f":"IF(tblData[[#This Row],[Статус]],COUNTIF($K$2:tblData[[#This Row],[Статус]],TRUE),\"\")","v":169},{"$f":"IFERROR(INDEX(tblData[Модульные кухни],MATCH(ROWS($L$2:tblData[[#This Row],[Индекс]]),tblData[Индекс],0)),\"\")","v":"Мембраны обратного осмоса"}]
[null,null,null,null,null,null,null,null,null,"Краны чистой воды",{"$f":"NOT(ISERROR(SEARCH($B$2,tblData[[#This Row],[Модульные кухни]])))","v":true},{"$f":"IF(tblData[[#This Row],[Статус]],COUNTIF($K$2:tblData[[#This Row],[Статус]],TRUE),\"\")","v":170},{"$f":"IFERROR(INDEX(tblData[Модульные кухни],MATCH(ROWS($L$2:tblData[[#This Row],[Индекс]]),tblData[Индекс],0)),\"\")","v":"Краны чистой воды"}]
[null,null,null,null,null,null,null,null,null,"Запасные части для фильтров воды ",{"$f":"NOT(ISERROR(SEARCH($B$2,tblData[[#This Row],[Модульные кухни]])))","v":true},{"$f":"IF(tblData[[#This Row],[Статус]],COUNTIF($K$2:tblData[[#This Row],[Статус]],TRUE),\"\")","v":171},{"$f":"IFERROR(INDEX(tblData[Модульные кухни],MATCH(ROWS($L$2:tblData[[#This Row],[Индекс]]),tblData[Индекс],0)),\"\")","v":"Запасные части для фильтров воды "}]
[null,null,null,null,null,null,null,null,null,"Сифоны",{"$f":"NOT(ISERROR(SEARCH($B$2,tblData[[#This Row],[Модульные кухни]])))","v":true},{"$f":"IF(tblData[[#This Row],[Статус]],COUNTIF($K$2:tblData[[#This Row],[Статус]],TRUE),\"\")","v":172},{"$f":"IFERROR(INDEX(tblData[Модульные кухни],MATCH(ROWS($L$2:tblData[[#This Row],[Индекс]]),tblData[Индекс],0)),\"\")","v":"Сифоны"}]
[null,null,null,null,null,null,null,null,null,"Душевые трапы",{"$f":"NOT(ISERROR(SEARCH($B$2,tblData[[#This Row],[Модульные кухни]])))","v":true},{"$f":"IF(tblData[[#This Row],[Статус]],COUNTIF($K$2:tblData[[#This Row],[Статус]],TRUE),\"\")","v":173},{"$f":"IFERROR(INDEX(tblData[Модульные кухни],MATCH(ROWS($L$2:tblData[[#This Row],[Индекс]]),tblData[Индекс],0)),\"\")","v":"Душевые трапы"}]
[null,null,null,null,null,null,null,null,null,"Сливы-переливы для ванн",{"$f":"NOT(ISERROR(SEARCH($B$2,tblData[[#This Row],[Модульные кухни]])))","v":true},{"$f":"IF(tblData[[#This Row],[Статус]],COUNTIF($K$2:tblData[[#This Row],[Статус]],TRUE),\"\")","v":174},{"$f":"IFERROR(INDEX(tblData[Модульные кухни],MATCH(ROWS($L$2:tblData[[#This Row],[Индекс]]),tblData[Индекс],0)),\"\")","v":"Сливы-переливы для ванн"}]
[null,null,null,null,null,null,null,null,null,"Донные клапаны",{"$f":"NOT(ISERROR(SEARCH($B$2,tblData[[#This Row],[Модульные кухни]])))","v":true},{"$f":"IF(tblData[[#This Row],[Статус]],COUNTIF($K$2:tblData[[#This Row],[Статус]],TRUE),\"\")","v":175},{"$f":"IFERROR(INDEX(tblData[Модульные кухни],MATCH(ROWS($L$2:tblData[[#This Row],[Индекс]]),tblData[Индекс],0)),\"\")","v":"Донные клапаны"}]
[null,null,null,null,null,null,null,null,null,"Гофрированные трубы для сифона",{"$f":"NOT(ISERROR(SEARCH($B$2,tblData[[#This Row],[Модульные кухни]])))","v":true},{"$f":"IF(tblData[[#This Row],[Статус]],COUNTIF($K$2:tblData[[#This Row],[Статус]],TRUE),\"\")","v":176},{"$f":"IFERROR(INDEX(tblData[Модульные кухни],MATCH(ROWS($L$2:tblData[[#This Row],[Индекс]]),tblData[Индекс],0)),\"\")","v":"Гофрированные трубы для сифона"}]
[null,null,null,null,null,null,null,null,null,"Трубы для внутренней канализации",{"$f":"NOT(ISERROR(SEARCH($B$2,tblData[[#This Row],[Модульные кухни]])))","v":true},{"$f":"IF(tblData[[#This Row],[Статус]],COUNTIF($K$2:tblData[[#This Row],[Статус]],TRUE),\"\")","v":177},{"$f":"IFERROR(INDEX(tblData[Модульные кухни],MATCH(ROWS($L$2:tblData[[#This Row],[Индекс]]),tblData[Индекс],0)),\"\")","v":"Трубы для внутренней канализации"}]
[null,null,null,null,null,null,null,null,null,"Прочистка труб от засоров",{"$f":"NOT(ISERROR(SEARCH($B$2,tblData[[#This Row],[Модульные кухни]])))","v":true},{"$f":"IF(tblData[[#This Row],[Статус]],COUNTIF($K$2:tblData[[#This Row],[Статус]],TRUE),\"\")","v":178},{"$f":"IFERROR(INDEX(tblData[Модульные кухни],MATCH(ROWS($L$2:tblData[[#This Row],[Индекс]]),tblData[Индекс],0)),\"\")","v":"Прочистка труб от засоров"}]
[null,null,null,null,null,null,null,null,null,"Арматура для унитазов",{"$f":"NOT(ISERROR(SEARCH($B$2,tblData[[#This Row],[Модульные кухни]])))","v":true},{"$f":"IF(tblData[[#This Row],[Статус]],COUNTIF($K$2:tblData[[#This Row],[Статус]],TRUE),\"\")","v":179},{"$f":"IFERROR(INDEX(tblData[Модульные кухни],MATCH(ROWS($L$2:tblData[[#This Row],[Индекс]]),tblData[Индекс],0)),\"\")","v":"Арматура для унитазов"}]
[null,null,null,null,null,null,null,null,null,"Комплектующие для сифона",{"$f":"NOT(ISERROR(SEARCH($B$2,tblData[[#This Row],[Модульные кухни]])))","v":true},{"$f":"IF(tblData[[#This Row],[Статус]],COUNTIF($K$2:tblData[[#This Row],[Статус]],TRUE),\"\")","v":180},{"$f":"IFERROR(INDEX(tblData[Модульные кухни],MATCH(ROWS($L$2:tblData[[#This Row],[Индекс]]),tblData[Индекс],0)),\"\")","v":"Комплектующие для сифона"}]
[null,null,null,null,null,null,null,null,null,"Пробки для слива ванны",{"$f":"NOT(ISERROR(SEARCH($B$2,tblData[[#This Row],[Модульные кухни]])))","v":true},{"$f":"IF(tblData[[#This Row],[Статус]],COUNTIF($K$2:tblData[[#This Row],[Статус]],TRUE),\"\")","v":181},{"$f":"IFERROR(INDEX(tblData[Модульные кухни],MATCH(ROWS($L$2:tblData[[#This Row],[Индекс]]),tblData[Индекс],0)),\"\")","v":"Пробки для слива ванны"}]
[null,null,null,null,null,null,null,null,null,"Насосы измельчители",{"$f":"NOT(ISERROR(SEARCH($B$2,tblData[[#This Row],[Модульные кухни]])))","v":true},{"$f":"IF(tblData[[#This Row],[Статус]],COUNTIF($K$2:tblData[[#This Row],[Статус]],TRUE),\"\")","v":182},{"$f":"IFERROR(INDEX(tblData[Модульные кухни],MATCH(ROWS($L$2:tblData[[#This Row],[Индекс]]),tblData[Индекс],0)),\"\")","v":"Насосы измельчители"}]
[null,null,null,null,null,null,null,null,null,"Канализационные трубы",{"$f":"NOT(ISERROR(SEARCH($B$2,tblData[[#This Row],[Модульные кухни]])))","v":true},{"$f":"IF(tblData[[#This Row],[Статус]],COUNTIF($K$2:tblData[[#This Row],[Статус]],TRUE),\"\")","v":183},{"$f":"IFERROR(INDEX(tblData[Модульные кухни],MATCH(ROWS($L$2:tblData[[#This Row],[Индекс]]),tblData[Индекс],0)),\"\")","v":"Канализационные трубы"}]
[null,null,null,null,null,null,null,null,null,"Фитинги для канализации",{"$f":"NOT(ISERROR(SEARCH($B$2,tblData[[#This Row],[Модульные кухни]])))","v":true},{"$f":"IF(tblData[[#This Row],[Статус]],COUNTIF($K$2:tblData[[#This Row],[Статус]],TRUE),\"\")","v":184},{"$f":"IFERROR(INDEX(tblData[Модульные кухни],MATCH(ROWS($L$2:tblData[[#This Row],[Индекс]]),tblData[Индекс],0)),\"\")","v":"Фитинги для канализации"}]
[null,null,null,null,null,null,null,null,null,"Прокладки и манжеты для канализации",{"$f":"NOT(ISERROR(SEARCH($B$2,tblData[[#This Row],[Модульные кухни]])))","v":true},{"$f":"IF(tblData[[#This Row],[Статус]],COUNTIF($K$2:tblData[[#This Row],[Статус]],TRUE),\"\")","v":185},{"$f":"IFERROR(INDEX(tblData[Модульные кухни],MATCH(ROWS($L$2:tblData[[#This Row],[Индекс]]),tblData[Индекс],0)),\"\")","v":"Прокладки и манжеты для канализации"}]
[null,null,null,null,null,null,null,null,null,"Гофрированные трубы и манжеты для унитаза",{"$f":"NOT(ISERROR(SEARCH($B$2,tblData[[#This Row],[Модульные кухни]])))","v":true},{"$f":"IF(tblData[[#This Row],[Статус]],COUNTIF($K$2:tblData[[#This Row],[Статус]],TRUE),\"\")","v":186},{"$f":"IFERROR(INDEX(tblData[Модульные кухни],MATCH(ROWS($L$2:tblData[[#This Row],[Индекс]]),tblData[Индекс],0)),\"\")","v":"Гофрированные трубы и манжеты для унитаза"}]
[null,null,null,null,null,null,null,null,null,"Арматура для сливных бачков унитазов",{"$f":"NOT(ISERROR(SEARCH($B$2,tblData[[#This Row],[Модульные кухни]])))","v":true},{"$f":"IF(tblData[[#This Row],[Статус]],COUNTIF($K$2:tblData[[#This Row],[Статус]],TRUE),\"\")","v":187},{"$f":"IFERROR(INDEX(tblData[Модульные кухни],MATCH(ROWS($L$2:tblData[[#This Row],[Индекс]]),tblData[Индекс],0)),\"\")","v":"Арматура для сливных бачков унитазов"}]
[null,null,null,null,null,null,null,null,null,"Средства для прочистки канализации",{"$f":"NOT(ISERROR(SEARCH($B$2,tblData[[#This Row],[Модульные кухни]])))","v":true},{"$f":"IF(tblData[[#This Row],[Статус]],COUNTIF($K$2:tblData[[#This Row],[Статус]],TRUE),\"\")","v":188},{"$f":"IFERROR(INDEX(tblData[Модульные кухни],MATCH(ROWS($L$2:tblData[[#This Row],[Индекс]]),tblData[Индекс],0)),\"\")","v":"Средства для прочистки канализации"}]
[null,null,null,null,null,null,null,null,null,"Трапы и душевые лотки",{"$f":"NOT(ISERROR(SEARCH($B$2,tblData[[#This Row],[Модульные кухни]])))","v":true},{"$f":"IF(tblData[[#This Row],[Статус]],COUNTIF($K$2:tblData[[#This Row],[Статус]],TRUE),\"\")","v":189},{"$f":"IFERROR(INDEX(tblData[Модульные кухни],MATCH(ROWS($L$2:tblData[[#This Row],[Индекс]]),tblData[Индекс],0)),\"\")","v":"Трапы и душевые лотки"}]
[null,null,null,null,null,null,null,null,null,"Отражатели",{"$f":"NOT(ISERROR(SEARCH($B$2,tblData[[#This Row],[Модульные кухни]])))","v":true},{"$f":"IF(tblData[[#This Row],[Статус]],COUNTIF($K$2:tblData[[#This Row],[Статус]],TRUE),\"\")","v":190},{"$f":"IFERROR(INDEX(tblData[Модульные кухни],MATCH(ROWS($L$2:tblData[[#This Row],[Индекс]]),tblData[Индекс],0)),\"\")","v":"Отражатели"}]
[null,null,null,null,null,null,null,null,null,"Уплотнительные прокладки и кольца для труб",{"$f":"NOT(ISERROR(SEARCH($B$2,tblData[[#This Row],[Модульные кухни]])))","v":true},{"$f":"IF(tblData[[#This Row],[Статус]],COUNTIF($K$2:tblData[[#This Row],[Статус]],TRUE),\"\")","v":191},{"$f":"IFERROR(INDEX(tblData[Модульные кухни],MATCH(ROWS($L$2:tblData[[#This Row],[Индекс]]),tblData[Индекс],0)),\"\")","v":"Уплотнительные прокладки и кольца для труб"}]
[null,null,null,null,null,null,null,null,null,"Уплотнители для труб",{"$f":"NOT(ISERROR(SEARCH($B$2,tblData[[#This Row],[Модульные кухни]])))","v":true},{"$f":"IF(tblData[[#This Row],[Статус]],COUNTIF($K$2:tblData[[#This Row],[Статус]],TRUE),\"\")","v":192},{"$f":"IFERROR(INDEX(tblData[Модульные кухни],MATCH(ROWS($L$2:tblData[[#This Row],[Индекс]]),tblData[Индекс],0)),\"\")","v":"Уплотнители для труб"}]
[null,null,null,null,null,null,null,null,null,"Комплектующие для смесителей",{"$f":"NOT(ISERROR(SEARCH($B$2,tblData[[#This Row],[Модульные кухни]])))","v":true},{"$f":"IF(tblData[[#This Row],[Статус]],COUNTIF($K$2:tblData[[#This Row],[Статус]],TRUE),\"\")","v":193},{"$f":"IFERROR(INDEX(tblData[Модульные кухни],MATCH(ROWS($L$2:tblData[[#This Row],[Индекс]]),tblData[Индекс],0)),\"\")","v":"Комплектующие для смесителей"}]
[null,null,null,null,null,null,null,null,null,"Хомуты для труб",{"$f":"NOT(ISERROR(SEARCH($B$2,tblData[[#This Row],[Модульные кухни]])))","v":true},{"$f":"IF(tblData[[#This Row],[Статус]],COUNTIF($K$2:tblData[[#This Row],[Статус]],TRUE),\"\")","v":194},{"$f":"IFERROR(INDEX(tblData[Модульные кухни],MATCH(ROWS($L$2:tblData[[#This Row],[Индекс]]),tblData[Индекс],0)),\"\")","v":"Хомуты для труб"}]
[null,null,null,null,null,null,null,null,null,"Монтажные планки и профили",{"$f":"NOT(ISERROR(SEARCH($B$2,tblData[[#This Row],[Модульные кухни]])))","v":true},{"$f":"IF(tblData[[#This Row],[Статус]],COUNTIF($K$2:tblData[[#This Row],[Статус]],TRUE),\"\")","v":195},{"$f":"IFERROR(INDEX(tblData[Модульные кухни],MATCH(ROWS($L$2:tblData[[#This Row],[Индекс]]),tblData[Индекс],0)),\"\")","v":"Монтажные планки и профили"}]
[null,null,null,null,null,null,null,null,null,"Сантехнический лен, пасты, герметики для труб",{"$f":"NOT(ISERROR(SEARCH($B$2,tblData[[#This Row],[Модульные кухни]])))","v":true},{"$f":"IF(tblData[[#This Row],[Статус]],COUNTIF($K$2:tblData[[#This Row],[Статус]],TRUE),\"\")","v":196},{"$f":"IFERROR(INDEX(tblData[Модульные кухни],MATCH(ROWS($L$2:tblData[[#This Row],[Индекс]]),tblData[Индекс],0)),\"\")","v":"Сантехнический лен, пасты, герметики для труб"}]
[null,null,null,null,null,null,null,null,null,"Фиксаторы для труб",{"$f":"NOT(ISERROR(SEARCH($B$2,tblData[[#This Row],[Модульные кухни]])))","v":true},{"$f":"IF(tblData[[#This Row],[Статус]],COUNTIF($K$2:tblData[[#This Row],[Статус]],TRUE),\"\")","v":197},{"$f":"IFERROR(INDEX(tblData[Модульные кухни],MATCH(ROWS($L$2:tblData[[#This Row],[Индекс]]),tblData[Индекс],0)),\"\")","v":"Фиксаторы для труб"}]
[null,null,null,null,null,null,null,null,null,"Клипсы для крепления труб",{"$f":"NOT(ISERROR(SEARCH($B$2,tblData[[#This Row],[Модульные кухни]])))","v":true},{"$f":"IF(tblData[[#This Row],[Статус]],COUNTIF($K$2:tblData[[#This Row],[Статус]],TRUE),\"\")","v":198},{"$f":"IFERROR(INDEX(tblData[Модульные кухни],MATCH(ROWS($L$2:tblData[[#This Row],[Индекс]]),tblData[Индекс],0)),\"\")","v":"Клипсы для крепления труб"}]
[null,null,null,null,null,null,null,null,null,"Аксессуары для труб",{"$f":"NOT(ISERROR(SEARCH($B$2,tblData[[#This Row],[Модульные кухни]])))","v":true},{"$f":"IF(tblData[[#This Row],[Статус]],COUNTIF($K$2:tblData[[#This Row],[Статус]],TRUE),\"\")","v":199},{"$f":"IFERROR(INDEX(tblData[Модульные кухни],MATCH(ROWS($L$2:tblData[[#This Row],[Индекс]]),tblData[Индекс],0)),\"\")","v":"Аксессуары для труб"}]
[null,null,null,null,null,null,null,null,null,"Инструменты для труб",{"$f":"NOT(ISERROR(SEARCH($B$2,tblData[[#This Row],[Модульные кухни]])))","v":true},{"$f":"IF(tblData[[#This Row],[Статус]],COUNTIF($K$2:tblData[[#This Row],[Статус]],TRUE),\"\")","v":200},{"$f":"IFERROR(INDEX(tblData[Модульные кухни],MATCH(ROWS($L$2:tblData[[#This Row],[Индекс]]),tblData[Индекс],0)),\"\")","v":"Инструменты для труб"}]
[null,null,null,null,null,null,null,null,null,"Счетчики для воды",{"$f":"NOT(ISERROR(SEARCH($B$2,tblData[[#This Row],[Модульные кухни]])))","v":true},{"$f":"IF(tblData[[#This Row],[Статус]],COUNTIF($K$2:tblData[[#This Row],[Статус]],TRUE),\"\")","v":201},{"$f":"IFERROR(INDEX(tblData[Модульные кухни],MATCH(ROWS($L$2:tblData[[#This Row],[Индекс]]),tblData[Индекс],0)),\"\")","v":"Счетчики для воды"}]
[null,null,null,null,null,null,null,null,null,"Счетчики для газа",{"$f":"NOT(ISERROR(SEARCH($B$2,tblData[[#This Row],[Модульные кухни]])))","v":true},{"$f":"IF(tblData[[#This Row],[Статус]],COUNTIF($K$2:tblData[[#This Row],[Статус]],TRUE),\"\")","v":202},{"$f":"IFERROR(INDEX(tblData[Модульные кухни],MATCH(ROWS($L$2:tblData[[#This Row],[Индекс]]),tblData[Индекс],0)),\"\")","v":"Счетчики для газа"}]
[null,null,null,null,null,null,null,null,null,"Реле давления",{"$f":"NOT(ISERROR(SEARCH($B$2,tblData[[#This Row],[Модульные кухни]])))","v":true},{"$f":"IF(tblData[[#This Row],[Статус]],COUNTIF($K$2:tblData[[#This Row],[Статус]],TRUE),\"\")","v":203},{"$f":"IFERROR(INDEX(tblData[Модульные кухни],MATCH(ROWS($L$2:tblData[[#This Row],[Индекс]]),tblData[Индекс],0)),\"\")","v":"Реле давления"}]
[null,null,null,null,null,null,null,null,null,"Манометры для воды",{"$f":"NOT(ISERROR(SEARCH($B$2,tblData[[#This Row],[Модульные кухни]])))","v":true},{"$f":"IF(tblData[[#This Row],[Статус]],COUNTIF($K$2:tblData[[#This Row],[Статус]],TRUE),\"\")","v":204},{"$f":"IFERROR(INDEX(tblData[Модульные кухни],MATCH(ROWS($L$2:tblData[[#This Row],[Индекс]]),tblData[Индекс],0)),\"\")","v":"Манометры для воды"}]
[null,null,null,null,null,null,null,null,null,"Столы",{"$f":"NOT(ISERROR(SEARCH($B$2,tblData[[#This Row],[Модульные кухни]])))","v":true},{"$f":"IF(tblData[[#This Row],[Статус]],COUNTIF($K$2:tblData[[#This Row],[Статус]],TRUE),\"\")","v":205},{"$f":"IFERROR(INDEX(tblData[Модульные кухни],MATCH(ROWS($L$2:tblData[[#This Row],[Индекс]]),tblData[Индекс],0)),\"\")","v":"Столы"}]
[null,null,null,null,null,null,null,null,null,"Обувницы",{"$f":"NOT(ISERROR(SEARCH($B$2,tblData[[#This Row],[Модульные кухни]])))","v":true},{"$f":"IF(tblData[[#This Row],[Статус]],COUNTIF($K$2:tblData[[#This Row],[Статус]],TRUE),\"\")","v":206},{"$f":"IFERROR(INDEX(tblData[Модульные кухни],MATCH(ROWS($L$2:tblData[[#This Row],[Индекс]]),tblData[Индекс],0)),\"\")","v":"Обувницы"}]
[null,null,null,null,null,null,null,null,null,"Сейфы",{"$f":"NOT(ISERROR(SEARCH($B$2,tblData[[#This Row],[Модульные кухни]])))","v":true},{"$f":"IF(tblData[[#This Row],[Статус]],COUNTIF($K$2:tblData[[#This Row],[Статус]],TRUE),\"\")","v":207},{"$f":"IFERROR(INDEX(tblData[Модульные кухни],MATCH(ROWS($L$2:tblData[[#This Row],[Индекс]]),tblData[Индекс],0)),\"\")","v":"Сейфы"}]
[null,null,null,null,null,null,null,null,null,"Фасады мебельные",{"$f":"NOT(ISERROR(SEARCH($B$2,tblData[[#This Row],[Модульные кухни]])))","v":true},{"$f":"IF(tblData[[#This Row],[Статус]],COUNTIF($K$2:tblData[[#This Row],[Статус]],TRUE),\"\")","v":208},{"$f":"IFERROR(INDEX(tblData[Модульные кухни],MATCH(ROWS($L$2:tblData[[#This Row],[Индекс]]),tblData[Индекс],0)),\"\")","v":"Фасады мебельные"}]
[null,null,null,null,null,null,null,null,null,"Уголки мебельные",{"$f":"NOT(ISERROR(SEARCH($B$2,tblData[[#This Row],[Модульные кухни]])))","v":true},{"$f":"IF(tblData[[#This Row],[Статус]],COUNTIF($K$2:tblData[[#This Row],[Статус]],TRUE),\"\")","v":209},{"$f":"IFERROR(INDEX(tblData[Модульные кухни],MATCH(ROWS($L$2:tblData[[#This Row],[Индекс]]),tblData[Индекс],0)),\"\")","v":"Уголки мебельные"}]
[null,null,null,null,null,null,null,null,null,"Кромочные ленты",{"$f":"NOT(ISERROR(SEARCH($B$2,tblData[[#This Row],[Модульные кухни]])))","v":true},{"$f":"IF(tblData[[#This Row],[Статус]],COUNTIF($K$2:tblData[[#This Row],[Статус]],TRUE),\"\")","v":210},{"$f":"IFERROR(INDEX(tblData[Модульные кухни],MATCH(ROWS($L$2:tblData[[#This Row],[Индекс]]),tblData[Индекс],0)),\"\")","v":"Кромочные ленты"}]
[null,null,null,null,null,null,null,null,null,"Мебельные светильники",{"$f":"NOT(ISERROR(SEARCH($B$2,tblData[[#This Row],[Модульные кухни]])))","v":true},{"$f":"IF(tblData[[#This Row],[Статус]],COUNTIF($K$2:tblData[[#This Row],[Статус]],TRUE),\"\")","v":211},{"$f":"IFERROR(INDEX(tblData[Модульные кухни],MATCH(ROWS($L$2:tblData[[#This Row],[Индекс]]),tblData[Индекс],0)),\"\")","v":"Мебельные светильники"}]
[null,null,null,null,null,null,null,null,null,"Коробки и корзины для хранения",{"$f":"NOT(ISERROR(SEARCH($B$2,tblData[[#This Row],[Модульные кухни]])))","v":true},{"$f":"IF(tblData[[#This Row],[Статус]],COUNTIF($K$2:tblData[[#This Row],[Статус]],TRUE),\"\")","v":212},{"$f":"IFERROR(INDEX(tblData[Модульные кухни],MATCH(ROWS($L$2:tblData[[#This Row],[Индекс]]),tblData[Индекс],0)),\"\")","v":"Коробки и корзины для хранения"}]
[null,null,null,null,null,null,null,null,null,"Пластиковые контейнеры и ящики для хранения",{"$f":"NOT(ISERROR(SEARCH($B$2,tblData[[#This Row],[Модульные кухни]])))","v":true},{"$f":"IF(tblData[[#This Row],[Статус]],COUNTIF($K$2:tblData[[#This Row],[Статус]],TRUE),\"\")","v":213},{"$f":"IFERROR(INDEX(tblData[Модульные кухни],MATCH(ROWS($L$2:tblData[[#This Row],[Индекс]]),tblData[Индекс],0)),\"\")","v":"Пластиковые контейнеры и ящики для хранения"}]
[null,null,null,null,null,null,null,null,null,"Саморезы",{"$f":"NOT(ISERROR(SEARCH($B$2,tblData[[#This Row],[Модульные кухни]])))","v":true},{"$f":"IF(tblData[[#This Row],[Статус]],COUNTIF($K$2:tblData[[#This Row],[Статус]],TRUE),\"\")","v":214},{"$f":"IFERROR(INDEX(tblData[Модульные кухни],MATCH(ROWS($L$2:tblData[[#This Row],[Индекс]]),tblData[Индекс],0)),\"\")","v":"Саморезы"}]
[null,null,null,null,null,null,null,null,null,"Дюбели",{"$f":"NOT(ISERROR(SEARCH($B$2,tblData[[#This Row],[Модульные кухни]])))","v":true},{"$f":"IF(tblData[[#This Row],[Статус]],COUNTIF($K$2:tblData[[#This Row],[Статус]],TRUE),\"\")","v":215},{"$f":"IFERROR(INDEX(tblData[Модульные кухни],MATCH(ROWS($L$2:tblData[[#This Row],[Индекс]]),tblData[Индекс],0)),\"\")","v":"Дюбели"}]
[null,null,null,null,null,null,null,null,null,"Дюбель-гвозди",{"$f":"NOT(ISERROR(SEARCH($B$2,tblData[[#This Row],[Модульные кухни]])))","v":true},{"$f":"IF(tblData[[#This Row],[Статус]],COUNTIF($K$2:tblData[[#This Row],[Статус]],TRUE),\"\")","v":216},{"$f":"IFERROR(INDEX(tblData[Модульные кухни],MATCH(ROWS($L$2:tblData[[#This Row],[Индекс]]),tblData[Индекс],0)),\"\")","v":"Дюбель-гвозди"}]
[null,null,null,null,null,null,null,null,null,"Анкеры",{"$f":"NOT(ISERROR(SEARCH($B$2,tblData[[#This Row],[Модульные кухни]])))","v":true},{"$f":"IF(tblData[[#This Row],[Статус]],COUNTIF($K$2:tblData[[#This Row],[Статус]],TRUE),\"\")","v":217},{"$f":"IFERROR(INDEX(tblData[Модульные кухни],MATCH(ROWS($L$2:tblData[[#This Row],[Индекс]]),tblData[Индекс],0)),\"\")","v":"Анкеры"}]
[null,null,null,null,null,null,null,null,null,"Химические анкеры и аксессуары",{"$f":"NOT(ISERROR(SEARCH($B$2,tblData[[#This Row],[Модульные кухни]])))","v":true},{"$f":"IF(tblData[[#This Row],[Статус]],COUNTIF($K$2:tblData[[#This Row],[Статус]],TRUE),\"\")","v":218},{"$f":"IFERROR(INDEX(tblData[Модульные кухни],MATCH(ROWS($L$2:tblData[[#This Row],[Индекс]]),tblData[Индекс],0)),\"\")","v":"Химические анкеры и аксессуары"}]
[null,null,null,null,null,null,null,null,null,"Гвозди",{"$f":"NOT(ISERROR(SEARCH($B$2,tblData[[#This Row],[Модульные кухни]])))","v":true},{"$f":"IF(tblData[[#This Row],[Статус]],COUNTIF($K$2:tblData[[#This Row],[Статус]],TRUE),\"\")","v":219},{"$f":"IFERROR(INDEX(tblData[Модульные кухни],MATCH(ROWS($L$2:tblData[[#This Row],[Индекс]]),tblData[Индекс],0)),\"\")","v":"Гвозди"}]
[null,null,null,null,null,null,null,null,null,"Гайки",{"$f":"NOT(ISERROR(SEARCH($B$2,tblData[[#This Row],[Модульные кухни]])))","v":true},{"$f":"IF(tblData[[#This Row],[Статус]],COUNTIF($K$2:tblData[[#This Row],[Статус]],TRUE),\"\")","v":220},{"$f":"IFERROR(INDEX(tblData[Модульные кухни],MATCH(ROWS($L$2:tblData[[#This Row],[Индекс]]),tblData[Индекс],0)),\"\")","v":"Гайки"}]
[null,null,null,null,null,null,null,null,null,"Шайбы",{"$f":"NOT(ISERROR(SEARCH($B$2,tblData[[#This Row],[Модульные кухни]])))","v":true},{"$f":"IF(tblData[[#This Row],[Статус]],COUNTIF($K$2:tblData[[#This Row],[Статус]],TRUE),\"\")","v":221},{"$f":"IFERROR(INDEX(tblData[Модульные кухни],MATCH(ROWS($L$2:tblData[[#This Row],[Индекс]]),tblData[Индекс],0)),\"\")","v":"Шайбы"}]
[null,null,null,null,null,null,null,null,null,"Болты",{"$f":"NOT(ISERROR(SEARCH($B$2,tblData[[#This Row],[Модульные кухни]])))","v":true},{"$f":"IF(tblData[[#This Row],[Статус]],COUNTIF($K$2:tblData[[#This Row],[Статус]],TRUE),\"\")","v":222},{"$f":"IFERROR(INDEX(tblData[Модульные кухни],MATCH(ROWS($L$2:tblData[[#This Row],[Индекс]]),tblData[Индекс],0)),\"\")","v":"Болты"}]
[null,null,null,null,null,null,null,null,null,"Винты",{"$f":"NOT(ISERROR(SEARCH($B$2,tblData[[#This Row],[Модульные кухни]])))","v":true},{"$f":"IF(tblData[[#This Row],[Статус]],COUNTIF($K$2:tblData[[#This Row],[Статус]],TRUE),\"\")","v":223},{"$f":"IFERROR(INDEX(tblData[Модульные кухни],MATCH(ROWS($L$2:tblData[[#This Row],[Индекс]]),tblData[Индекс],0)),\"\")","v":"Винты"}]
[null,null,null,null,null,null,null,null,null,"Шпильки резьбовые",{"$f":"NOT(ISERROR(SEARCH($B$2,tblData[[#This Row],[Модульные кухни]])))","v":true},{"$f":"IF(tblData[[#This Row],[Статус]],COUNTIF($K$2:tblData[[#This Row],[Статус]],TRUE),\"\")","v":224},{"$f":"IFERROR(INDEX(tblData[Модульные кухни],MATCH(ROWS($L$2:tblData[[#This Row],[Индекс]]),tblData[Индекс],0)),\"\")","v":"Шпильки резьбовые"}]
[null,null,null,null,null,null,null,null,null,"Шплинты",{"$f":"NOT(ISERROR(SEARCH($B$2,tblData[[#This Row],[Модульные кухни]])))","v":true},{"$f":"IF(tblData[[#This Row],[Статус]],COUNTIF($K$2:tblData[[#This Row],[Статус]],TRUE),\"\")","v":225},{"$f":"IFERROR(INDEX(tblData[Модульные кухни],MATCH(ROWS($L$2:tblData[[#This Row],[Индекс]]),tblData[Индекс],0)),\"\")","v":"Шплинты"}]
[null,null,null,null,null,null,null,null,null,"Заклепки",{"$f":"NOT(ISERROR(SEARCH($B$2,tblData[[#This Row],[Модульные кухни]])))","v":true},{"$f":"IF(tblData[[#This Row],[Статус]],COUNTIF($K$2:tblData[[#This Row],[Статус]],TRUE),\"\")","v":226},{"$f":"IFERROR(INDEX(tblData[Модульные кухни],MATCH(ROWS($L$2:tblData[[#This Row],[Индекс]]),tblData[Индекс],0)),\"\")","v":"Заклепки"}]
[null,null,null,null,null,null,null,null,null,"Уголки крепежные",{"$f":"NOT(ISERROR(SEARCH($B$2,tblData[[#This Row],[Модульные кухни]])))","v":true},{"$f":"IF(tblData[[#This Row],[Статус]],COUNTIF($K$2:tblData[[#This Row],[Статус]],TRUE),\"\")","v":227},{"$f":"IFERROR(INDEX(tblData[Модульные кухни],MATCH(ROWS($L$2:tblData[[#This Row],[Индекс]]),tblData[Индекс],0)),\"\")","v":"Уголки крепежные"}]
[null,null,null,null,null,null,null,null,null,"Пластины крепежные",{"$f":"NOT(ISERROR(SEARCH($B$2,tblData[[#This Row],[Модульные кухни]])))","v":true},{"$f":"IF(tblData[[#This Row],[Статус]],COUNTIF($K$2:tblData[[#This Row],[Статус]],TRUE),\"\")","v":228},{"$f":"IFERROR(INDEX(tblData[Модульные кухни],MATCH(ROWS($L$2:tblData[[#This Row],[Индекс]]),tblData[Индекс],0)),\"\")","v":"Пластины крепежные"}]
[null,null,null,null,null,null,null,null,null,"Крепежные кронштейны",{"$f":"NOT(ISERROR(SEARCH($B$2,tblData[[#This Row],[Модульные кухни]])))","v":true},{"$f":"IF(tblData[[#This Row],[Статус]],COUNTIF($K$2:tblData[[#This Row],[Статус]],TRUE),\"\")","v":229},{"$f":"IFERROR(INDEX(tblData[Модульные кухни],MATCH(ROWS($L$2:tblData[[#This Row],[Индекс]]),tblData[Индекс],0)),\"\")","v":"Крепежные кронштейны"}]
[null,null,null,null,null,null,null,null,null,"Ленты монтажные перфорированные",{"$f":"NOT(ISERROR(SEARCH($B$2,tblData[[#This Row],[Модульные кухни]])))","v":true},{"$f":"IF(tblData[[#This Row],[Статус]],COUNTIF($K$2:tblData[[#This Row],[Статус]],TRUE),\"\")","v":230},{"$f":"IFERROR(INDEX(tblData[Модульные кухни],MATCH(ROWS($L$2:tblData[[#This Row],[Индекс]]),tblData[Индекс],0)),\"\")","v":"Ленты монтажные перфорированные"}]
[null,null,null,null,null,null,null,null,null,"Крепления для балки",{"$f":"NOT(ISERROR(SEARCH($B$2,tblData[[#This Row],[Модульные кухни]])))","v":true},{"$f":"IF(tblData[[#This Row],[Статус]],COUNTIF($K$2:tblData[[#This Row],[Статус]],TRUE),\"\")","v":231},{"$f":"IFERROR(INDEX(tblData[Модульные кухни],MATCH(ROWS($L$2:tblData[[#This Row],[Индекс]]),tblData[Индекс],0)),\"\")","v":"Крепления для балки"}]
[null,null,null,null,null,null,null,null,null,"Хомуты",{"$f":"NOT(ISERROR(SEARCH($B$2,tblData[[#This Row],[Модульные кухни]])))","v":true},{"$f":"IF(tblData[[#This Row],[Статус]],COUNTIF($K$2:tblData[[#This Row],[Статус]],TRUE),\"\")","v":232},{"$f":"IFERROR(INDEX(tblData[Модульные кухни],MATCH(ROWS($L$2:tblData[[#This Row],[Индекс]]),tblData[Индекс],0)),\"\")","v":"Хомуты"}]
[null,null,null,null,null,null,null,null,null,"Крепления без сверления",{"$f":"NOT(ISERROR(SEARCH($B$2,tblData[[#This Row],[Модульные кухни]])))","v":true},{"$f":"IF(tblData[[#This Row],[Статус]],COUNTIF($K$2:tblData[[#This Row],[Статус]],TRUE),\"\")","v":233},{"$f":"IFERROR(INDEX(tblData[Модульные кухни],MATCH(ROWS($L$2:tblData[[#This Row],[Индекс]]),tblData[Индекс],0)),\"\")","v":"Крепления без сверления"}]
[null,null,null,null,null,null,null,null,null,"Сантехнический крепеж",{"$f":"NOT(ISERROR(SEARCH($B$2,tblData[[#This Row],[Модульные кухни]])))","v":true},{"$f":"IF(tblData[[#This Row],[Статус]],COUNTIF($K$2:tblData[[#This Row],[Статус]],TRUE),\"\")","v":234},{"$f":"IFERROR(INDEX(tblData[Модульные кухни],MATCH(ROWS($L$2:tblData[[#This Row],[Индекс]]),tblData[Индекс],0)),\"\")","v":"Сантехнический крепеж"}]
[null,null,null,null,null,null,null,null,null,"Проволоки",{"$f":"NOT(ISERROR(SEARCH($B$2,tblData[[#This Row],[Модульные кухни]])))","v":true},{"$f":"IF(tblData[[#This Row],[Статус]],COUNTIF($K$2:tblData[[#This Row],[Статус]],TRUE),\"\")","v":235},{"$f":"IFERROR(INDEX(tblData[Модульные кухни],MATCH(ROWS($L$2:tblData[[#This Row],[Индекс]]),tblData[Индекс],0)),\"\")","v":"Проволоки"}]
[null,null,null,null,null,null,null,null,null,"Неодимовые магниты",{"$f":"NOT(ISERROR(SEARCH($B$2,tblData[[#This Row],[Модульные кухни]])))","v":true},{"$f":"IF(tblData[[#This Row],[Статус]],COUNTIF($K$2:tblData[[#This Row],[Статус]],TRUE),\"\")","v":236},{"$f":"IFERROR(INDEX(tblData[Модульные кухни],MATCH(ROWS($L$2:tblData[[#This Row],[Индекс]]),tblData[Индекс],0)),\"\")","v":"Неодимовые магниты"}]
[null,null,null,null,null,null,null,null,null,"Такелажный крепеж",{"$f":"NOT(ISERROR(SEARCH($B$2,tblData[[#This Row],[Модульные кухни]])))","v":true},{"$f":"IF(tblData[[#This Row],[Статус]],COUNTIF($K$2:tblData[[#This Row],[Статус]],TRUE),\"\")","v":237},{"$f":"IFERROR(INDEX(tblData[Модульные кухни],MATCH(ROWS($L$2:tblData[[#This Row],[Индекс]]),tblData[Индекс],0)),\"\")","v":"Такелажный крепеж"}]
[null,null,null,null,null,null,null,null,null,"Крепления для картин ",{"$f":"NOT(ISERROR(SEARCH($B$2,tblData[[#This Row],[Модульные кухни]])))","v":true},{"$f":"IF(tblData[[#This Row],[Статус]],COUNTIF($K$2:tblData[[#This Row],[Статус]],TRUE),\"\")","v":238},{"$f":"IFERROR(INDEX(tblData[Модульные кухни],MATCH(ROWS($L$2:tblData[[#This Row],[Индекс]]),tblData[Индекс],0)),\"\")","v":"Крепления для картин "}]
[null,null,null,null,null,null,null,null,null,"Скрытый крепеж",{"$f":"NOT(ISERROR(SEARCH($B$2,tblData[[#This Row],[Модульные кухни]])))","v":true},{"$f":"IF(tblData[[#This Row],[Статус]],COUNTIF($K$2:tblData[[#This Row],[Статус]],TRUE),\"\")","v":239},{"$f":"IFERROR(INDEX(tblData[Модульные кухни],MATCH(ROWS($L$2:tblData[[#This Row],[Индекс]]),tblData[Индекс],0)),\"\")","v":"Скрытый крепеж"}]
[null,null,null,null,null,null,null,null,null,"Крепление для зеркал",{"$f":"NOT(ISERROR(SEARCH($B$2,tblData[[#This Row],[Модульные кухни]])))","v":true},{"$f":"IF(tblData[[#This Row],[Статус]],COUNTIF($K$2:tblData[[#This Row],[Статус]],TRUE),\"\")","v":240},{"$f":"IFERROR(INDEX(tblData[Модульные кухни],MATCH(ROWS($L$2:tblData[[#This Row],[Индекс]]),tblData[Индекс],0)),\"\")","v":"Крепление для зеркал"}]
[null,null,null,null,null,null,null,null,null,"Заглушки мебельные",{"$f":"NOT(ISERROR(SEARCH($B$2,tblData[[#This Row],[Модульные кухни]])))","v":true},{"$f":"IF(tblData[[#This Row],[Статус]],COUNTIF($K$2:tblData[[#This Row],[Статус]],TRUE),\"\")","v":241},{"$f":"IFERROR(INDEX(tblData[Модульные кухни],MATCH(ROWS($L$2:tblData[[#This Row],[Индекс]]),tblData[Индекс],0)),\"\")","v":"Заглушки мебельные"}]
[null,null,null,null,null,null,null,null,null,"Навесы мебельные",{"$f":"NOT(ISERROR(SEARCH($B$2,tblData[[#This Row],[Модульные кухни]])))","v":true},{"$f":"IF(tblData[[#This Row],[Статус]],COUNTIF($K$2:tblData[[#This Row],[Статус]],TRUE),\"\")","v":242},{"$f":"IFERROR(INDEX(tblData[Модульные кухни],MATCH(ROWS($L$2:tblData[[#This Row],[Индекс]]),tblData[Индекс],0)),\"\")","v":"Навесы мебельные"}]
[null,null,null,null,null,null,null,null,null,"Болты мебельные",{"$f":"NOT(ISERROR(SEARCH($B$2,tblData[[#This Row],[Модульные кухни]])))","v":true},{"$f":"IF(tblData[[#This Row],[Статус]],COUNTIF($K$2:tblData[[#This Row],[Статус]],TRUE),\"\")","v":243},{"$f":"IFERROR(INDEX(tblData[Модульные кухни],MATCH(ROWS($L$2:tblData[[#This Row],[Индекс]]),tblData[Индекс],0)),\"\")","v":"Болты мебельные"}]
[null,null,null,null,null,null,null,null,null,"Стяжки мебельные",{"$f":"NOT(ISERROR(SEARCH($B$2,tblData[[#This Row],[Модульные кухни]])))","v":true},{"$f":"IF(tblData[[#This Row],[Статус]],COUNTIF($K$2:tblData[[#This Row],[Статус]],TRUE),\"\")","v":244},{"$f":"IFERROR(INDEX(tblData[Модульные кухни],MATCH(ROWS($L$2:tblData[[#This Row],[Индекс]]),tblData[Индекс],0)),\"\")","v":"Стяжки мебельные"}]
[null,null,null,null,null,null,null,null,null,"Саморезы декоративные",{"$f":"NOT(ISERROR(SEARCH($B$2,tblData[[#This Row],[Модульные кухни]])))","v":true},{"$f":"IF(tblData[[#This Row],[Статус]],COUNTIF($K$2:tblData[[#This Row],[Статус]],TRUE),\"\")","v":245},{"$f":"IFERROR(INDEX(tblData[Модульные кухни],MATCH(ROWS($L$2:tblData[[#This Row],[Индекс]]),tblData[Индекс],0)),\"\")","v":"Саморезы декоративные"}]
[null,null,null,null,null,null,null,null,null,"Веревки",{"$f":"NOT(ISERROR(SEARCH($B$2,tblData[[#This Row],[Модульные кухни]])))","v":true},{"$f":"IF(tblData[[#This Row],[Статус]],COUNTIF($K$2:tblData[[#This Row],[Статус]],TRUE),\"\")","v":246},{"$f":"IFERROR(INDEX(tblData[Модульные кухни],MATCH(ROWS($L$2:tblData[[#This Row],[Индекс]]),tblData[Индекс],0)),\"\")","v":"Веревки"}]
[null,null,null,null,null,null,null,null,null,"Такелажные ремни",{"$f":"NOT(ISERROR(SEARCH($B$2,tblData[[#This Row],[Модульные кухни]])))","v":true},{"$f":"IF(tblData[[#This Row],[Статус]],COUNTIF($K$2:tblData[[#This Row],[Статус]],TRUE),\"\")","v":247},{"$f":"IFERROR(INDEX(tblData[Модульные кухни],MATCH(ROWS($L$2:tblData[[#This Row],[Индекс]]),tblData[Индекс],0)),\"\")","v":"Такелажные ремни"}]
[null,null,null,null,null,null,null,null,null,"Стропы",{"$f":"NOT(ISERROR(SEARCH($B$2,tblData[[#This Row],[Модульные кухни]])))","v":true},{"$f":"IF(tblData[[#This Row],[Статус]],COUNTIF($K$2:tblData[[#This Row],[Статус]],TRUE),\"\")","v":248},{"$f":"IFERROR(INDEX(tblData[Модульные кухни],MATCH(ROWS($L$2:tblData[[#This Row],[Индекс]]),tblData[Индекс],0)),\"\")","v":"Стропы"}]
[null,null,null,null,null,null,null,null,null,"Цепи",{"$f":"NOT(ISERROR(SEARCH($B$2,tblData[[#This Row],[Модульные кухни]])))","v":true},{"$f":"IF(tblData[[#This Row],[Статус]],COUNTIF($K$2:tblData[[#This Row],[Статус]],TRUE),\"\")","v":249},{"$f":"IFERROR(INDEX(tblData[Модульные кухни],MATCH(ROWS($L$2:tblData[[#This Row],[Индекс]]),tblData[Индекс],0)),\"\")","v":"Цепи"}]
[null,null,null,null,null,null,null,null,null,"Тросы",{"$f":"NOT(ISERROR(SEARCH($B$2,tblData[[#This Row],[Модульные кухни]])))","v":true},{"$f":"IF(tblData[[#This Row],[Статус]],COUNTIF($K$2:tblData[[#This Row],[Статус]],TRUE),\"\")","v":250},{"$f":"IFERROR(INDEX(tblData[Модульные кухни],MATCH(ROWS($L$2:tblData[[#This Row],[Индекс]]),tblData[Индекс],0)),\"\")","v":"Тросы"}]
[null,null,null,null,null,null,null,null,null,"Такелажное оборудование",{"$f":"NOT(ISERROR(SEARCH($B$2,tblData[[#This Row],[Модульные кухни]])))","v":true},{"$f":"IF(tblData[[#This Row],[Статус]],COUNTIF($K$2:tblData[[#This Row],[Статус]],TRUE),\"\")","v":251},{"$f":"IFERROR(INDEX(tblData[Модульные кухни],MATCH(ROWS($L$2:tblData[[#This Row],[Индекс]]),tblData[Индекс],0)),\"\")","v":"Такелажное оборудование"}]
[null,null,null,null,null,null,null,null,null,"Металлические профили",{"$f":"NOT(ISERROR(SEARCH($B$2,tblData[[#This Row],[Модульные кухни]])))","v":true},{"$f":"IF(tblData[[#This Row],[Статус]],COUNTIF($K$2:tblData[[#This Row],[Статус]],TRUE),\"\")","v":252},{"$f":"IFERROR(INDEX(tblData[Модульные кухни],MATCH(ROWS($L$2:tblData[[#This Row],[Индекс]]),tblData[Индекс],0)),\"\")","v":"Металлические профили"}]
[null,null,null,null,null,null,null,null,null,"Трубы и прутки",{"$f":"NOT(ISERROR(SEARCH($B$2,tblData[[#This Row],[Модульные кухни]])))","v":true},{"$f":"IF(tblData[[#This Row],[Статус]],COUNTIF($K$2:tblData[[#This Row],[Статус]],TRUE),\"\")","v":253},{"$f":"IFERROR(INDEX(tblData[Модульные кухни],MATCH(ROWS($L$2:tblData[[#This Row],[Индекс]]),tblData[Индекс],0)),\"\")","v":"Трубы и прутки"}]
[null,null,null,null,null,null,null,null,null,"Металлические листы",{"$f":"NOT(ISERROR(SEARCH($B$2,tblData[[#This Row],[Модульные кухни]])))","v":true},{"$f":"IF(tblData[[#This Row],[Статус]],COUNTIF($K$2:tblData[[#This Row],[Статус]],TRUE),\"\")","v":254},{"$f":"IFERROR(INDEX(tblData[Модульные кухни],MATCH(ROWS($L$2:tblData[[#This Row],[Индекс]]),tblData[Индекс],0)),\"\")","v":"Металлические листы"}]
[null,null,null,null,null,null,null,null,null,"Система Джокер",{"$f":"NOT(ISERROR(SEARCH($B$2,tblData[[#This Row],[Модульные кухни]])))","v":true},{"$f":"IF(tblData[[#This Row],[Статус]],COUNTIF($K$2:tblData[[#This Row],[Статус]],TRUE),\"\")","v":255},{"$f":"IFERROR(INDEX(tblData[Модульные кухни],MATCH(ROWS($L$2:tblData[[#This Row],[Индекс]]),tblData[Индекс],0)),\"\")","v":"Система Джокер"}]
[null,null,null,null,null,null,null,null,null,"Каркасно-модульная система Лофт",{"$f":"NOT(ISERROR(SEARCH($B$2,tblData[[#This Row],[Модульные кухни]])))","v":true},{"$f":"IF(tblData[[#This Row],[Статус]],COUNTIF($K$2:tblData[[#This Row],[Статус]],TRUE),\"\")","v":256},{"$f":"IFERROR(INDEX(tblData[Модульные кухни],MATCH(ROWS($L$2:tblData[[#This Row],[Индекс]]),tblData[Индекс],0)),\"\")","v":"Каркасно-модульная система Лофт"}]
[null,null,null,null,null,null,null,null,null,"Мебельные ножки и опоры",{"$f":"NOT(ISERROR(SEARCH($B$2,tblData[[#This Row],[Модульные кухни]])))","v":true},{"$f":"IF(tblData[[#This Row],[Статус]],COUNTIF($K$2:tblData[[#This Row],[Статус]],TRUE),\"\")","v":257},{"$f":"IFERROR(INDEX(tblData[Модульные кухни],MATCH(ROWS($L$2:tblData[[#This Row],[Индекс]]),tblData[Индекс],0)),\"\")","v":"Мебельные ножки и опоры"}]
[null,null,null,null,null,null,null,null,null,"Мебельные колеса",{"$f":"NOT(ISERROR(SEARCH($B$2,tblData[[#This Row],[Модульные кухни]])))","v":true},{"$f":"IF(tblData[[#This Row],[Статус]],COUNTIF($K$2:tblData[[#This Row],[Статус]],TRUE),\"\")","v":258},{"$f":"IFERROR(INDEX(tblData[Модульные кухни],MATCH(ROWS($L$2:tblData[[#This Row],[Индекс]]),tblData[Индекс],0)),\"\")","v":"Мебельные колеса"}]
[null,null,null,null,null,null,null,null,null,"Мебельные ручки",{"$f":"NOT(ISERROR(SEARCH($B$2,tblData[[#This Row],[Модульные кухни]])))","v":true},{"$f":"IF(tblData[[#This Row],[Статус]],COUNTIF($K$2:tblData[[#This Row],[Статус]],TRUE),\"\")","v":259},{"$f":"IFERROR(INDEX(tblData[Модульные кухни],MATCH(ROWS($L$2:tblData[[#This Row],[Индекс]]),tblData[Индекс],0)),\"\")","v":"Мебельные ручки"}]
[null,null,null,null,null,null,null,null,null,"Крючки и вешалки настенные",{"$f":"NOT(ISERROR(SEARCH($B$2,tblData[[#This Row],[Модульные кухни]])))","v":true},{"$f":"IF(tblData[[#This Row],[Статус]],COUNTIF($K$2:tblData[[#This Row],[Статус]],TRUE),\"\")","v":260},{"$f":"IFERROR(INDEX(tblData[Модульные кухни],MATCH(ROWS($L$2:tblData[[#This Row],[Индекс]]),tblData[Индекс],0)),\"\")","v":"Крючки и вешалки настенные"}]
[null,null,null,null,null,null,null,null,null,"Почтовые ящики",{"$f":"NOT(ISERROR(SEARCH($B$2,tblData[[#This Row],[Модульные кухни]])))","v":true},{"$f":"IF(tblData[[#This Row],[Статус]],COUNTIF($K$2:tblData[[#This Row],[Статус]],TRUE),\"\")","v":261},{"$f":"IFERROR(INDEX(tblData[Модульные кухни],MATCH(ROWS($L$2:tblData[[#This Row],[Индекс]]),tblData[Индекс],0)),\"\")","v":"Почтовые ящики"}]
[null,null,null,null,null,null,null,null,null,"Замки почтовые",{"$f":"NOT(ISERROR(SEARCH($B$2,tblData[[#This Row],[Модульные кухни]])))","v":true},{"$f":"IF(tblData[[#This Row],[Статус]],COUNTIF($K$2:tblData[[#This Row],[Статус]],TRUE),\"\")","v":262},{"$f":"IFERROR(INDEX(tblData[Модульные кухни],MATCH(ROWS($L$2:tblData[[#This Row],[Индекс]]),tblData[Индекс],0)),\"\")","v":"Замки почтовые"}]
[null,null,null,null,null,null,null,null,null,"Универсальные смазки",{"$f":"NOT(ISERROR(SEARCH($B$2,tblData[[#This Row],[Модульные кухни]])))","v":true},{"$f":"IF(tblData[[#This Row],[Статус]],COUNTIF($K$2:tblData[[#This Row],[Статус]],TRUE),\"\")","v":263},{"$f":"IFERROR(INDEX(tblData[Модульные кухни],MATCH(ROWS($L$2:tblData[[#This Row],[Индекс]]),tblData[Индекс],0)),\"\")","v":"Универсальные смазки"}]
[null,null,null,null,null,null,null,null,null,"Специализированные смазки",{"$f":"NOT(ISERROR(SEARCH($B$2,tblData[[#This Row],[Модульные кухни]])))","v":true},{"$f":"IF(tblData[[#This Row],[Статус]],COUNTIF($K$2:tblData[[#This Row],[Статус]],TRUE),\"\")","v":264},{"$f":"IFERROR(INDEX(tblData[Модульные кухни],MATCH(ROWS($L$2:tblData[[#This Row],[Индекс]]),tblData[Индекс],0)),\"\")","v":"Специализированные смазки"}]
[null,null,null,null,null,null,null,null,null,"Пластичные смазки",{"$f":"NOT(ISERROR(SEARCH($B$2,tblData[[#This Row],[Модульные кухни]])))","v":true},{"$f":"IF(tblData[[#This Row],[Статус]],COUNTIF($K$2:tblData[[#This Row],[Статус]],TRUE),\"\")","v":265},{"$f":"IFERROR(INDEX(tblData[Модульные кухни],MATCH(ROWS($L$2:tblData[[#This Row],[Индекс]]),tblData[Индекс],0)),\"\")","v":"Пластичные смазки"}]
[null,null,null,null,null,null,null,null,null,"Товары для отопления квартиры и дачи",{"$f":"NOT(ISERROR(SEARCH($B$2,tblData[[#This Row],[Модульные кухни]])))","v":true},{"$f":"IF(tblData[[#This Row],[Статус]],COUNTIF($K$2:tblData[[#This Row],[Статус]],TRUE),\"\")","v":266},{"$f":"IFERROR(INDEX(tblData[Модульные кухни],MATCH(ROWS($L$2:tblData[[#This Row],[Индекс]]),tblData[Индекс],0)),\"\")","v":"Товары для отопления квартиры и дачи"}]
[null,null,null,null,null,null,null,null,null,"Обогреватели",{"$f":"NOT(ISERROR(SEARCH($B$2,tblData[[#This Row],[Модульные кухни]])))","v":true},{"$f":"IF(tblData[[#This Row],[Статус]],COUNTIF($K$2:tblData[[#This Row],[Статус]],TRUE),\"\")","v":267},{"$f":"IFERROR(INDEX(tblData[Модульные кухни],MATCH(ROWS($L$2:tblData[[#This Row],[Индекс]]),tblData[Индекс],0)),\"\")","v":"Обогреватели"}]
[null,null,null,null,null,null,null,null,null,"Тепловые пушки",{"$f":"NOT(ISERROR(SEARCH($B$2,tblData[[#This Row],[Модульные кухни]])))","v":true},{"$f":"IF(tblData[[#This Row],[Статус]],COUNTIF($K$2:tblData[[#This Row],[Статус]],TRUE),\"\")","v":268},{"$f":"IFERROR(INDEX(tblData[Модульные кухни],MATCH(ROWS($L$2:tblData[[#This Row],[Индекс]]),tblData[Индекс],0)),\"\")","v":"Тепловые пушки"}]
[null,null,null,null,null,null,null,null,null,"Тепловентиляторы",{"$f":"NOT(ISERROR(SEARCH($B$2,tblData[[#This Row],[Модульные кухни]])))","v":true},{"$f":"IF(tblData[[#This Row],[Статус]],COUNTIF($K$2:tblData[[#This Row],[Статус]],TRUE),\"\")","v":269},{"$f":"IFERROR(INDEX(tblData[Модульные кухни],MATCH(ROWS($L$2:tblData[[#This Row],[Индекс]]),tblData[Индекс],0)),\"\")","v":"Тепловентиляторы"}]
[null,null,null,null,null,null,null,null,null,"Тепловые завесы",{"$f":"NOT(ISERROR(SEARCH($B$2,tblData[[#This Row],[Модульные кухни]])))","v":true},{"$f":"IF(tblData[[#This Row],[Статус]],COUNTIF($K$2:tblData[[#This Row],[Статус]],TRUE),\"\")","v":270},{"$f":"IFERROR(INDEX(tblData[Модульные кухни],MATCH(ROWS($L$2:tblData[[#This Row],[Индекс]]),tblData[Индекс],0)),\"\")","v":"Тепловые завесы"}]
[null,null,null,null,null,null,null,null,null,"Тёплый пол",{"$f":"NOT(ISERROR(SEARCH($B$2,tblData[[#This Row],[Модульные кухни]])))","v":true},{"$f":"IF(tblData[[#This Row],[Статус]],COUNTIF($K$2:tblData[[#This Row],[Статус]],TRUE),\"\")","v":271},{"$f":"IFERROR(INDEX(tblData[Модульные кухни],MATCH(ROWS($L$2:tblData[[#This Row],[Индекс]]),tblData[Индекс],0)),\"\")","v":"Тёплый пол"}]
[null,null,null,null,null,null,null,null,null,"Греющие кабели",{"$f":"NOT(ISERROR(SEARCH($B$2,tblData[[#This Row],[Модульные кухни]])))","v":true},{"$f":"IF(tblData[[#This Row],[Статус]],COUNTIF($K$2:tblData[[#This Row],[Статус]],TRUE),\"\")","v":272},{"$f":"IFERROR(INDEX(tblData[Модульные кухни],MATCH(ROWS($L$2:tblData[[#This Row],[Индекс]]),tblData[Индекс],0)),\"\")","v":"Греющие кабели"}]
[null,null,null,null,null,null,null,null,null,"Терморегуляторы для теплого пола",{"$f":"NOT(ISERROR(SEARCH($B$2,tblData[[#This Row],[Модульные кухни]])))","v":true},{"$f":"IF(tblData[[#This Row],[Статус]],COUNTIF($K$2:tblData[[#This Row],[Статус]],TRUE),\"\")","v":273},{"$f":"IFERROR(INDEX(tblData[Модульные кухни],MATCH(ROWS($L$2:tblData[[#This Row],[Индекс]]),tblData[Индекс],0)),\"\")","v":"Терморегуляторы для теплого пола"}]
[null,null,null,null,null,null,null,null,null,"Аксессуары для теплого пола",{"$f":"NOT(ISERROR(SEARCH($B$2,tblData[[#This Row],[Модульные кухни]])))","v":true},{"$f":"IF(tblData[[#This Row],[Статус]],COUNTIF($K$2:tblData[[#This Row],[Статус]],TRUE),\"\")","v":274},{"$f":"IFERROR(INDEX(tblData[Модульные кухни],MATCH(ROWS($L$2:tblData[[#This Row],[Индекс]]),tblData[Индекс],0)),\"\")","v":"Аксессуары для теплого пола"}]
[null,null,null,null,null,null,null,null,null,"Аксессуары для обогревателей",{"$f":"NOT(ISERROR(SEARCH($B$2,tblData[[#This Row],[Модульные кухни]])))","v":true},{"$f":"IF(tblData[[#This Row],[Статус]],COUNTIF($K$2:tblData[[#This Row],[Статус]],TRUE),\"\")","v":275},{"$f":"IFERROR(INDEX(tblData[Модульные кухни],MATCH(ROWS($L$2:tblData[[#This Row],[Индекс]]),tblData[Индекс],0)),\"\")","v":"Аксессуары для обогревателей"}]
[null,null,null,null,null,null,null,null,null,"Розетки и выключатели",{"$f":"NOT(ISERROR(SEARCH($B$2,tblData[[#This Row],[Модульные кухни]])))","v":true},{"$f":"IF(tblData[[#This Row],[Статус]],COUNTIF($K$2:tblData[[#This Row],[Статус]],TRUE),\"\")","v":276},{"$f":"IFERROR(INDEX(tblData[Модульные кухни],MATCH(ROWS($L$2:tblData[[#This Row],[Индекс]]),tblData[Индекс],0)),\"\")","v":"Розетки и выключатели"}]
[null,null,null,null,null,null,null,null,null,"Рамки для розеток и выключателей",{"$f":"NOT(ISERROR(SEARCH($B$2,tblData[[#This Row],[Модульные кухни]])))","v":true},{"$f":"IF(tblData[[#This Row],[Статус]],COUNTIF($K$2:tblData[[#This Row],[Статус]],TRUE),\"\")","v":277},{"$f":"IFERROR(INDEX(tblData[Модульные кухни],MATCH(ROWS($L$2:tblData[[#This Row],[Индекс]]),tblData[Индекс],0)),\"\")","v":"Рамки для розеток и выключателей"}]
[null,null,null,null,null,null,null,null,null,"Накладки для розеток и выключателей",{"$f":"NOT(ISERROR(SEARCH($B$2,tblData[[#This Row],[Модульные кухни]])))","v":true},{"$f":"IF(tblData[[#This Row],[Статус]],COUNTIF($K$2:tblData[[#This Row],[Статус]],TRUE),\"\")","v":278},{"$f":"IFERROR(INDEX(tblData[Модульные кухни],MATCH(ROWS($L$2:tblData[[#This Row],[Индекс]]),tblData[Индекс],0)),\"\")","v":"Накладки для розеток и выключателей"}]
[null,null,null,null,null,null,null,null,null,"Силовые розетки и вилки",{"$f":"NOT(ISERROR(SEARCH($B$2,tblData[[#This Row],[Модульные кухни]])))","v":true},{"$f":"IF(tblData[[#This Row],[Статус]],COUNTIF($K$2:tblData[[#This Row],[Статус]],TRUE),\"\")","v":279},{"$f":"IFERROR(INDEX(tblData[Модульные кухни],MATCH(ROWS($L$2:tblData[[#This Row],[Индекс]]),tblData[Индекс],0)),\"\")","v":"Силовые розетки и вилки"}]
[null,null,null,null,null,null,null,null,null,"Силовые кабели",{"$f":"NOT(ISERROR(SEARCH($B$2,tblData[[#This Row],[Модульные кухни]])))","v":true},{"$f":"IF(tblData[[#This Row],[Статус]],COUNTIF($K$2:tblData[[#This Row],[Статус]],TRUE),\"\")","v":280},{"$f":"IFERROR(INDEX(tblData[Модульные кухни],MATCH(ROWS($L$2:tblData[[#This Row],[Индекс]]),tblData[Индекс],0)),\"\")","v":"Силовые кабели"}]
[null,null,null,null,null,null,null,null,null,"Кабели аудио, ТВ и интернет",{"$f":"NOT(ISERROR(SEARCH($B$2,tblData[[#This Row],[Модульные кухни]])))","v":true},{"$f":"IF(tblData[[#This Row],[Статус]],COUNTIF($K$2:tblData[[#This Row],[Статус]],TRUE),\"\")","v":281},{"$f":"IFERROR(INDEX(tblData[Модульные кухни],MATCH(ROWS($L$2:tblData[[#This Row],[Индекс]]),tblData[Индекс],0)),\"\")","v":"Кабели аудио, ТВ и интернет"}]
[null,null,null,null,null,null,null,null,null,"Кабель-каналы и комплектующие",{"$f":"NOT(ISERROR(SEARCH($B$2,tblData[[#This Row],[Модульные кухни]])))","v":true},{"$f":"IF(tblData[[#This Row],[Статус]],COUNTIF($K$2:tblData[[#This Row],[Статус]],TRUE),\"\")","v":282},{"$f":"IFERROR(INDEX(tblData[Модульные кухни],MATCH(ROWS($L$2:tblData[[#This Row],[Индекс]]),tblData[Индекс],0)),\"\")","v":"Кабель-каналы и комплектующие"}]
[null,null,null,null,null,null,null,null,null,"Гофрированные трубы для кабеля и комплектующие",{"$f":"NOT(ISERROR(SEARCH($B$2,tblData[[#This Row],[Модульные кухни]])))","v":true},{"$f":"IF(tblData[[#This Row],[Статус]],COUNTIF($K$2:tblData[[#This Row],[Статус]],TRUE),\"\")","v":283},{"$f":"IFERROR(INDEX(tblData[Модульные кухни],MATCH(ROWS($L$2:tblData[[#This Row],[Индекс]]),tblData[Индекс],0)),\"\")","v":"Гофрированные трубы для кабеля и комплектующие"}]
[null,null,null,null,null,null,null,null,null,"Распределительные коробки",{"$f":"NOT(ISERROR(SEARCH($B$2,tblData[[#This Row],[Модульные кухни]])))","v":true},{"$f":"IF(tblData[[#This Row],[Статус]],COUNTIF($K$2:tblData[[#This Row],[Статус]],TRUE),\"\")","v":284},{"$f":"IFERROR(INDEX(tblData[Модульные кухни],MATCH(ROWS($L$2:tblData[[#This Row],[Индекс]]),tblData[Индекс],0)),\"\")","v":"Распределительные коробки"}]
[null,null,null,null,null,null,null,null,null,"Подрозетники",{"$f":"NOT(ISERROR(SEARCH($B$2,tblData[[#This Row],[Модульные кухни]])))","v":true},{"$f":"IF(tblData[[#This Row],[Статус]],COUNTIF($K$2:tblData[[#This Row],[Статус]],TRUE),\"\")","v":285},{"$f":"IFERROR(INDEX(tblData[Модульные кухни],MATCH(ROWS($L$2:tblData[[#This Row],[Индекс]]),tblData[Индекс],0)),\"\")","v":"Подрозетники"}]
[null,null,null,null,null,null,null,null,null,"Крепеж проводов и кабелей",{"$f":"NOT(ISERROR(SEARCH($B$2,tblData[[#This Row],[Модульные кухни]])))","v":true},{"$f":"IF(tblData[[#This Row],[Статус]],COUNTIF($K$2:tblData[[#This Row],[Статус]],TRUE),\"\")","v":286},{"$f":"IFERROR(INDEX(tblData[Модульные кухни],MATCH(ROWS($L$2:tblData[[#This Row],[Индекс]]),tblData[Индекс],0)),\"\")","v":"Крепеж проводов и кабелей"}]
[null,null,null,null,null,null,null,null,null,"Соединение кабеля",{"$f":"NOT(ISERROR(SEARCH($B$2,tblData[[#This Row],[Модульные кухни]])))","v":true},{"$f":"IF(tblData[[#This Row],[Статус]],COUNTIF($K$2:tblData[[#This Row],[Статус]],TRUE),\"\")","v":287},{"$f":"IFERROR(INDEX(tblData[Модульные кухни],MATCH(ROWS($L$2:tblData[[#This Row],[Индекс]]),tblData[Индекс],0)),\"\")","v":"Соединение кабеля"}]
[null,null,null,null,null,null,null,null,null,"Изоляция кабеля",{"$f":"NOT(ISERROR(SEARCH($B$2,tblData[[#This Row],[Модульные кухни]])))","v":true},{"$f":"IF(tblData[[#This Row],[Статус]],COUNTIF($K$2:tblData[[#This Row],[Статус]],TRUE),\"\")","v":288},{"$f":"IFERROR(INDEX(tblData[Модульные кухни],MATCH(ROWS($L$2:tblData[[#This Row],[Индекс]]),tblData[Индекс],0)),\"\")","v":"Изоляция кабеля"}]
[null,null,null,null,null,null,null,null,null,"Инструменты для зачистки проводов",{"$f":"NOT(ISERROR(SEARCH($B$2,tblData[[#This Row],[Модульные кухни]])))","v":true},{"$f":"IF(tblData[[#This Row],[Статус]],COUNTIF($K$2:tblData[[#This Row],[Статус]],TRUE),\"\")","v":289},{"$f":"IFERROR(INDEX(tblData[Модульные кухни],MATCH(ROWS($L$2:tblData[[#This Row],[Индекс]]),tblData[Индекс],0)),\"\")","v":"Инструменты для зачистки проводов"}]
[null,null,null,null,null,null,null,null,null,"Инструменты для обжима проводов",{"$f":"NOT(ISERROR(SEARCH($B$2,tblData[[#This Row],[Модульные кухни]])))","v":true},{"$f":"IF(tblData[[#This Row],[Статус]],COUNTIF($K$2:tblData[[#This Row],[Статус]],TRUE),\"\")","v":290},{"$f":"IFERROR(INDEX(tblData[Модульные кухни],MATCH(ROWS($L$2:tblData[[#This Row],[Индекс]]),tblData[Индекс],0)),\"\")","v":"Инструменты для обжима проводов"}]
[null,null,null,null,null,null,null,null,null,"Мультиметры",{"$f":"NOT(ISERROR(SEARCH($B$2,tblData[[#This Row],[Модульные кухни]])))","v":true},{"$f":"IF(tblData[[#This Row],[Статус]],COUNTIF($K$2:tblData[[#This Row],[Статус]],TRUE),\"\")","v":291},{"$f":"IFERROR(INDEX(tblData[Модульные кухни],MATCH(ROWS($L$2:tblData[[#This Row],[Индекс]]),tblData[Индекс],0)),\"\")","v":"Мультиметры"}]
[null,null,null,null,null,null,null,null,null,"Отвертки-пробники, индикаторы",{"$f":"NOT(ISERROR(SEARCH($B$2,tblData[[#This Row],[Модульные кухни]])))","v":true},{"$f":"IF(tblData[[#This Row],[Статус]],COUNTIF($K$2:tblData[[#This Row],[Статус]],TRUE),\"\")","v":292},{"$f":"IFERROR(INDEX(tblData[Модульные кухни],MATCH(ROWS($L$2:tblData[[#This Row],[Индекс]]),tblData[Индекс],0)),\"\")","v":"Отвертки-пробники, индикаторы"}]
[null,null,null,null,null,null,null,null,null,"Автоматические выключатели",{"$f":"NOT(ISERROR(SEARCH($B$2,tblData[[#This Row],[Модульные кухни]])))","v":true},{"$f":"IF(tblData[[#This Row],[Статус]],COUNTIF($K$2:tblData[[#This Row],[Статус]],TRUE),\"\")","v":293},{"$f":"IFERROR(INDEX(tblData[Модульные кухни],MATCH(ROWS($L$2:tblData[[#This Row],[Индекс]]),tblData[Индекс],0)),\"\")","v":"Автоматические выключатели"}]
[null,null,null,null,null,null,null,null,null,"Дифференциальные автоматы",{"$f":"NOT(ISERROR(SEARCH($B$2,tblData[[#This Row],[Модульные кухни]])))","v":true},{"$f":"IF(tblData[[#This Row],[Статус]],COUNTIF($K$2:tblData[[#This Row],[Статус]],TRUE),\"\")","v":294},{"$f":"IFERROR(INDEX(tblData[Модульные кухни],MATCH(ROWS($L$2:tblData[[#This Row],[Индекс]]),tblData[Индекс],0)),\"\")","v":"Дифференциальные автоматы"}]
[null,null,null,null,null,null,null,null,null,"УЗО",{"$f":"NOT(ISERROR(SEARCH($B$2,tblData[[#This Row],[Модульные кухни]])))","v":true},{"$f":"IF(tblData[[#This Row],[Статус]],COUNTIF($K$2:tblData[[#This Row],[Статус]],TRUE),\"\")","v":295},{"$f":"IFERROR(INDEX(tblData[Модульные кухни],MATCH(ROWS($L$2:tblData[[#This Row],[Индекс]]),tblData[Индекс],0)),\"\")","v":"УЗО"}]
[null,null,null,null,null,null,null,null,null,"Электрические щиты и минибоксы",{"$f":"NOT(ISERROR(SEARCH($B$2,tblData[[#This Row],[Модульные кухни]])))","v":true},{"$f":"IF(tblData[[#This Row],[Статус]],COUNTIF($K$2:tblData[[#This Row],[Статус]],TRUE),\"\")","v":296},{"$f":"IFERROR(INDEX(tblData[Модульные кухни],MATCH(ROWS($L$2:tblData[[#This Row],[Индекс]]),tblData[Индекс],0)),\"\")","v":"Электрические щиты и минибоксы"}]
[null,null,null,null,null,null,null,null,null,"Аксессуары для электрических щитов",{"$f":"NOT(ISERROR(SEARCH($B$2,tblData[[#This Row],[Модульные кухни]])))","v":true},{"$f":"IF(tblData[[#This Row],[Статус]],COUNTIF($K$2:tblData[[#This Row],[Статус]],TRUE),\"\")","v":297},{"$f":"IFERROR(INDEX(tblData[Модульные кухни],MATCH(ROWS($L$2:tblData[[#This Row],[Индекс]]),tblData[Индекс],0)),\"\")","v":"Аксессуары для электрических щитов"}]
[null,null,null,null,null,null,null,null,null,"Счетчики электроэнергии",{"$f":"NOT(ISERROR(SEARCH($B$2,tblData[[#This Row],[Модульные кухни]])))","v":true},{"$f":"IF(tblData[[#This Row],[Статус]],COUNTIF($K$2:tblData[[#This Row],[Статус]],TRUE),\"\")","v":298},{"$f":"IFERROR(INDEX(tblData[Модульные кухни],MATCH(ROWS($L$2:tblData[[#This Row],[Индекс]]),tblData[Индекс],0)),\"\")","v":"Счетчики электроэнергии"}]
[null,null,null,null,null,null,null,null,null,"Стабилизаторы напряжения",{"$f":"NOT(ISERROR(SEARCH($B$2,tblData[[#This Row],[Модульные кухни]])))","v":true},{"$f":"IF(tblData[[#This Row],[Статус]],COUNTIF($K$2:tblData[[#This Row],[Статус]],TRUE),\"\")","v":299},{"$f":"IFERROR(INDEX(tblData[Модульные кухни],MATCH(ROWS($L$2:tblData[[#This Row],[Индекс]]),tblData[Индекс],0)),\"\")","v":"Стабилизаторы напряжения"}]
[null,null,null,null,null,null,null,null,null,"Реле напряжения",{"$f":"NOT(ISERROR(SEARCH($B$2,tblData[[#This Row],[Модульные кухни]])))","v":true},{"$f":"IF(tblData[[#This Row],[Статус]],COUNTIF($K$2:tblData[[#This Row],[Статус]],TRUE),\"\")","v":300},{"$f":"IFERROR(INDEX(tblData[Модульные кухни],MATCH(ROWS($L$2:tblData[[#This Row],[Индекс]]),tblData[Индекс],0)),\"\")","v":"Реле напряжения"}]
[null,null,null,null,null,null,null,null,null,"Реле времени и таймеры",{"$f":"NOT(ISERROR(SEARCH($B$2,tblData[[#This Row],[Модульные кухни]])))","v":true},{"$f":"IF(tblData[[#This Row],[Статус]],COUNTIF($K$2:tblData[[#This Row],[Статус]],TRUE),\"\")","v":301},{"$f":"IFERROR(INDEX(tblData[Модульные кухни],MATCH(ROWS($L$2:tblData[[#This Row],[Индекс]]),tblData[Индекс],0)),\"\")","v":"Реле времени и таймеры"}]
[null,null,null,null,null,null,null,null,null,"Кнопки, выключатели и тумблеры",{"$f":"NOT(ISERROR(SEARCH($B$2,tblData[[#This Row],[Модульные кухни]])))","v":true},{"$f":"IF(tblData[[#This Row],[Статус]],COUNTIF($K$2:tblData[[#This Row],[Статус]],TRUE),\"\")","v":302},{"$f":"IFERROR(INDEX(tblData[Модульные кухни],MATCH(ROWS($L$2:tblData[[#This Row],[Индекс]]),tblData[Индекс],0)),\"\")","v":"Кнопки, выключатели и тумблеры"}]
[null,null,null,null,null,null,null,null,null,"Вентиляторы",{"$f":"NOT(ISERROR(SEARCH($B$2,tblData[[#This Row],[Модульные кухни]])))","v":true},{"$f":"IF(tblData[[#This Row],[Статус]],COUNTIF($K$2:tblData[[#This Row],[Статус]],TRUE),\"\")","v":303},{"$f":"IFERROR(INDEX(tblData[Модульные кухни],MATCH(ROWS($L$2:tblData[[#This Row],[Индекс]]),tblData[Индекс],0)),\"\")","v":"Вентиляторы"}]
[null,null,null,null,null,null,null,null,null,"Кондиционеры",{"$f":"NOT(ISERROR(SEARCH($B$2,tblData[[#This Row],[Модульные кухни]])))","v":true},{"$f":"IF(tblData[[#This Row],[Статус]],COUNTIF($K$2:tblData[[#This Row],[Статус]],TRUE),\"\")","v":304},{"$f":"IFERROR(INDEX(tblData[Модульные кухни],MATCH(ROWS($L$2:tblData[[#This Row],[Индекс]]),tblData[Индекс],0)),\"\")","v":"Кондиционеры"}]
[null,null,null,null,null,null,null,null,null,"Охладители воздуха",{"$f":"NOT(ISERROR(SEARCH($B$2,tblData[[#This Row],[Модульные кухни]])))","v":true},{"$f":"IF(tblData[[#This Row],[Статус]],COUNTIF($K$2:tblData[[#This Row],[Статус]],TRUE),\"\")","v":305},{"$f":"IFERROR(INDEX(tblData[Модульные кухни],MATCH(ROWS($L$2:tblData[[#This Row],[Индекс]]),tblData[Индекс],0)),\"\")","v":"Охладители воздуха"}]
[null,null,null,null,null,null,null,null,null,"Аксессуары для кондиционеров",{"$f":"NOT(ISERROR(SEARCH($B$2,tblData[[#This Row],[Модульные кухни]])))","v":true},{"$f":"IF(tblData[[#This Row],[Статус]],COUNTIF($K$2:tblData[[#This Row],[Статус]],TRUE),\"\")","v":306},{"$f":"IFERROR(INDEX(tblData[Модульные кухни],MATCH(ROWS($L$2:tblData[[#This Row],[Индекс]]),tblData[Индекс],0)),\"\")","v":"Аксессуары для кондиционеров"}]
[null,null,null,null,null,null,null,null,null,"Увлажнители воздуха",{"$f":"NOT(ISERROR(SEARCH($B$2,tblData[[#This Row],[Модульные кухни]])))","v":true},{"$f":"IF(tblData[[#This Row],[Статус]],COUNTIF($K$2:tblData[[#This Row],[Статус]],TRUE),\"\")","v":307},{"$f":"IFERROR(INDEX(tblData[Модульные кухни],MATCH(ROWS($L$2:tblData[[#This Row],[Индекс]]),tblData[Индекс],0)),\"\")","v":"Увлажнители воздуха"}]
[null,null,null,null,null,null,null,null,null,"Вентиляторы вытяжные",{"$f":"NOT(ISERROR(SEARCH($B$2,tblData[[#This Row],[Модульные кухни]])))","v":true},{"$f":"IF(tblData[[#This Row],[Статус]],COUNTIF($K$2:tblData[[#This Row],[Статус]],TRUE),\"\")","v":308},{"$f":"IFERROR(INDEX(tblData[Модульные кухни],MATCH(ROWS($L$2:tblData[[#This Row],[Индекс]]),tblData[Индекс],0)),\"\")","v":"Вентиляторы вытяжные"}]
[null,null,null,null,null,null,null,null,null,"Вентиляционные решетки",{"$f":"NOT(ISERROR(SEARCH($B$2,tblData[[#This Row],[Модульные кухни]])))","v":true},{"$f":"IF(tblData[[#This Row],[Статус]],COUNTIF($K$2:tblData[[#This Row],[Статус]],TRUE),\"\")","v":309},{"$f":"IFERROR(INDEX(tblData[Модульные кухни],MATCH(ROWS($L$2:tblData[[#This Row],[Индекс]]),tblData[Индекс],0)),\"\")","v":"Вентиляционные решетки"}]
[null,null,null,null,null,null,null,null,null,"Воздуховоды и комплектующие для вентиляции пластиковые",{"$f":"NOT(ISERROR(SEARCH($B$2,tblData[[#This Row],[Модульные кухни]])))","v":true},{"$f":"IF(tblData[[#This Row],[Статус]],COUNTIF($K$2:tblData[[#This Row],[Статус]],TRUE),\"\")","v":310},{"$f":"IFERROR(INDEX(tblData[Модульные кухни],MATCH(ROWS($L$2:tblData[[#This Row],[Индекс]]),tblData[Индекс],0)),\"\")","v":"Воздуховоды и комплектующие для вентиляции пластиковые"}]
[null,null,null,null,null,null,null,null,null,"Воздуховоды и комплектующие для вентиляции металлические",{"$f":"NOT(ISERROR(SEARCH($B$2,tblData[[#This Row],[Модульные кухни]])))","v":true},{"$f":"IF(tblData[[#This Row],[Статус]],COUNTIF($K$2:tblData[[#This Row],[Статус]],TRUE),\"\")","v":311},{"$f":"IFERROR(INDEX(tblData[Модульные кухни],MATCH(ROWS($L$2:tblData[[#This Row],[Индекс]]),tblData[Индекс],0)),\"\")","v":"Воздуховоды и комплектующие для вентиляции металлические"}]
[null,null,null,null,null,null,null,null,null,"Удлинители",{"$f":"NOT(ISERROR(SEARCH($B$2,tblData[[#This Row],[Модульные кухни]])))","v":true},{"$f":"IF(tblData[[#This Row],[Статус]],COUNTIF($K$2:tblData[[#This Row],[Статус]],TRUE),\"\")","v":312},{"$f":"IFERROR(INDEX(tblData[Модульные кухни],MATCH(ROWS($L$2:tblData[[#This Row],[Индекс]]),tblData[Индекс],0)),\"\")","v":"Удлинители"}]
[null,null,null,null,null,null,null,null,null,"Сетевые фильтры",{"$f":"NOT(ISERROR(SEARCH($B$2,tblData[[#This Row],[Модульные кухни]])))","v":true},{"$f":"IF(tblData[[#This Row],[Статус]],COUNTIF($K$2:tblData[[#This Row],[Статус]],TRUE),\"\")","v":313},{"$f":"IFERROR(INDEX(tblData[Модульные кухни],MATCH(ROWS($L$2:tblData[[#This Row],[Индекс]]),tblData[Индекс],0)),\"\")","v":"Сетевые фильтры"}]
[null,null,null,null,null,null,null,null,null,"Разветвители и переходники",{"$f":"NOT(ISERROR(SEARCH($B$2,tblData[[#This Row],[Модульные кухни]])))","v":true},{"$f":"IF(tblData[[#This Row],[Статус]],COUNTIF($K$2:tblData[[#This Row],[Статус]],TRUE),\"\")","v":314},{"$f":"IFERROR(INDEX(tblData[Модульные кухни],MATCH(ROWS($L$2:tblData[[#This Row],[Индекс]]),tblData[Индекс],0)),\"\")","v":"Разветвители и переходники"}]
[null,null,null,null,null,null,null,null,null,"Колодки для удлинителей",{"$f":"NOT(ISERROR(SEARCH($B$2,tblData[[#This Row],[Модульные кухни]])))","v":true},{"$f":"IF(tblData[[#This Row],[Статус]],COUNTIF($K$2:tblData[[#This Row],[Статус]],TRUE),\"\")","v":315},{"$f":"IFERROR(INDEX(tblData[Модульные кухни],MATCH(ROWS($L$2:tblData[[#This Row],[Индекс]]),tblData[Индекс],0)),\"\")","v":"Колодки для удлинителей"}]
[null,null,null,null,null,null,null,null,null,"Сетевые шнуры",{"$f":"NOT(ISERROR(SEARCH($B$2,tblData[[#This Row],[Модульные кухни]])))","v":true},{"$f":"IF(tblData[[#This Row],[Статус]],COUNTIF($K$2:tblData[[#This Row],[Статус]],TRUE),\"\")","v":316},{"$f":"IFERROR(INDEX(tblData[Модульные кухни],MATCH(ROWS($L$2:tblData[[#This Row],[Индекс]]),tblData[Индекс],0)),\"\")","v":"Сетевые шнуры"}]
[null,null,null,null,null,null,null,null,null,"Дверные звонки и кнопки",{"$f":"NOT(ISERROR(SEARCH($B$2,tblData[[#This Row],[Модульные кухни]])))","v":true},{"$f":"IF(tblData[[#This Row],[Статус]],COUNTIF($K$2:tblData[[#This Row],[Статус]],TRUE),\"\")","v":317},{"$f":"IFERROR(INDEX(tblData[Модульные кухни],MATCH(ROWS($L$2:tblData[[#This Row],[Индекс]]),tblData[Индекс],0)),\"\")","v":"Дверные звонки и кнопки"}]
[null,null,null,null,null,null,null,null,null,"Трубки для домофона",{"$f":"NOT(ISERROR(SEARCH($B$2,tblData[[#This Row],[Модульные кухни]])))","v":true},{"$f":"IF(tblData[[#This Row],[Статус]],COUNTIF($K$2:tblData[[#This Row],[Статус]],TRUE),\"\")","v":318},{"$f":"IFERROR(INDEX(tblData[Модульные кухни],MATCH(ROWS($L$2:tblData[[#This Row],[Индекс]]),tblData[Индекс],0)),\"\")","v":"Трубки для домофона"}]
[null,null,null,null,null,null,null,null,null,"Видеодомофоны",{"$f":"NOT(ISERROR(SEARCH($B$2,tblData[[#This Row],[Модульные кухни]])))","v":true},{"$f":"IF(tblData[[#This Row],[Статус]],COUNTIF($K$2:tblData[[#This Row],[Статус]],TRUE),\"\")","v":319},{"$f":"IFERROR(INDEX(tblData[Модульные кухни],MATCH(ROWS($L$2:tblData[[#This Row],[Индекс]]),tblData[Индекс],0)),\"\")","v":"Видеодомофоны"}]
[null,null,null,null,null,null,null,null,null,"Комплектующие для домофонов",{"$f":"NOT(ISERROR(SEARCH($B$2,tblData[[#This Row],[Модульные кухни]])))","v":true},{"$f":"IF(tblData[[#This Row],[Статус]],COUNTIF($K$2:tblData[[#This Row],[Статус]],TRUE),\"\")","v":320},{"$f":"IFERROR(INDEX(tblData[Модульные кухни],MATCH(ROWS($L$2:tblData[[#This Row],[Индекс]]),tblData[Индекс],0)),\"\")","v":"Комплектующие для домофонов"}]
[null,null,null,null,null,null,null,null,null,"Датчики движения",{"$f":"NOT(ISERROR(SEARCH($B$2,tblData[[#This Row],[Модульные кухни]])))","v":true},{"$f":"IF(tblData[[#This Row],[Статус]],COUNTIF($K$2:tblData[[#This Row],[Статус]],TRUE),\"\")","v":321},{"$f":"IFERROR(INDEX(tblData[Модульные кухни],MATCH(ROWS($L$2:tblData[[#This Row],[Индекс]]),tblData[Индекс],0)),\"\")","v":"Датчики движения"}]
[null,null,null,null,null,null,null,null,null,"Системы оповещения и датчики",{"$f":"NOT(ISERROR(SEARCH($B$2,tblData[[#This Row],[Модульные кухни]])))","v":true},{"$f":"IF(tblData[[#This Row],[Статус]],COUNTIF($K$2:tblData[[#This Row],[Статус]],TRUE),\"\")","v":322},{"$f":"IFERROR(INDEX(tblData[Модульные кухни],MATCH(ROWS($L$2:tblData[[#This Row],[Индекс]]),tblData[Индекс],0)),\"\")","v":"Системы оповещения и датчики"}]
[null,null,null,null,null,null,null,null,null,"Розетка с таймером",{"$f":"NOT(ISERROR(SEARCH($B$2,tblData[[#This Row],[Модульные кухни]])))","v":true},{"$f":"IF(tblData[[#This Row],[Статус]],COUNTIF($K$2:tblData[[#This Row],[Статус]],TRUE),\"\")","v":323},{"$f":"IFERROR(INDEX(tblData[Модульные кухни],MATCH(ROWS($L$2:tblData[[#This Row],[Индекс]]),tblData[Индекс],0)),\"\")","v":"Розетка с таймером"}]
[null,null,null,null,null,null,null,null,null,"Интернет кабель",{"$f":"NOT(ISERROR(SEARCH($B$2,tblData[[#This Row],[Модульные кухни]])))","v":true},{"$f":"IF(tblData[[#This Row],[Статус]],COUNTIF($K$2:tblData[[#This Row],[Статус]],TRUE),\"\")","v":324},{"$f":"IFERROR(INDEX(tblData[Модульные кухни],MATCH(ROWS($L$2:tblData[[#This Row],[Индекс]]),tblData[Индекс],0)),\"\")","v":"Интернет кабель"}]
[null,null,null,null,null,null,null,null,null,"Кабели акустические",{"$f":"NOT(ISERROR(SEARCH($B$2,tblData[[#This Row],[Модульные кухни]])))","v":true},{"$f":"IF(tblData[[#This Row],[Статус]],COUNTIF($K$2:tblData[[#This Row],[Статус]],TRUE),\"\")","v":325},{"$f":"IFERROR(INDEX(tblData[Модульные кухни],MATCH(ROWS($L$2:tblData[[#This Row],[Индекс]]),tblData[Индекс],0)),\"\")","v":"Кабели акустические"}]
[null,null,null,null,null,null,null,null,null,"ТВ кабель",{"$f":"NOT(ISERROR(SEARCH($B$2,tblData[[#This Row],[Модульные кухни]])))","v":true},{"$f":"IF(tblData[[#This Row],[Статус]],COUNTIF($K$2:tblData[[#This Row],[Статус]],TRUE),\"\")","v":326},{"$f":"IFERROR(INDEX(tblData[Модульные кухни],MATCH(ROWS($L$2:tblData[[#This Row],[Индекс]]),tblData[Индекс],0)),\"\")","v":"ТВ кабель"}]
[null,null,null,null,null,null,null,null,null,"Штекеры и переходники",{"$f":"NOT(ISERROR(SEARCH($B$2,tblData[[#This Row],[Модульные кухни]])))","v":true},{"$f":"IF(tblData[[#This Row],[Статус]],COUNTIF($K$2:tblData[[#This Row],[Статус]],TRUE),\"\")","v":327},{"$f":"IFERROR(INDEX(tblData[Модульные кухни],MATCH(ROWS($L$2:tblData[[#This Row],[Индекс]]),tblData[Индекс],0)),\"\")","v":"Штекеры и переходники"}]
[null,null,null,null,null,null,null,null,null,"ТВ разветвители и комплектующие",{"$f":"NOT(ISERROR(SEARCH($B$2,tblData[[#This Row],[Модульные кухни]])))","v":true},{"$f":"IF(tblData[[#This Row],[Статус]],COUNTIF($K$2:tblData[[#This Row],[Статус]],TRUE),\"\")","v":328},{"$f":"IFERROR(INDEX(tblData[Модульные кухни],MATCH(ROWS($L$2:tblData[[#This Row],[Индекс]]),tblData[Индекс],0)),\"\")","v":"ТВ разветвители и комплектующие"}]
[null,null,null,null,null,null,null,null,null,"Батарейки",{"$f":"NOT(ISERROR(SEARCH($B$2,tblData[[#This Row],[Модульные кухни]])))","v":true},{"$f":"IF(tblData[[#This Row],[Статус]],COUNTIF($K$2:tblData[[#This Row],[Статус]],TRUE),\"\")","v":329},{"$f":"IFERROR(INDEX(tblData[Модульные кухни],MATCH(ROWS($L$2:tblData[[#This Row],[Индекс]]),tblData[Индекс],0)),\"\")","v":"Батарейки"}]
[null,null,null,null,null,null,null,null,null,"Фонари налобные",{"$f":"NOT(ISERROR(SEARCH($B$2,tblData[[#This Row],[Модульные кухни]])))","v":true},{"$f":"IF(tblData[[#This Row],[Статус]],COUNTIF($K$2:tblData[[#This Row],[Статус]],TRUE),\"\")","v":330},{"$f":"IFERROR(INDEX(tblData[Модульные кухни],MATCH(ROWS($L$2:tblData[[#This Row],[Индекс]]),tblData[Индекс],0)),\"\")","v":"Фонари налобные"}]
[null,null,null,null,null,null,null,null,null,"Фонари ручные",{"$f":"NOT(ISERROR(SEARCH($B$2,tblData[[#This Row],[Модульные кухни]])))","v":true},{"$f":"IF(tblData[[#This Row],[Статус]],COUNTIF($K$2:tblData[[#This Row],[Статус]],TRUE),\"\")","v":331},{"$f":"IFERROR(INDEX(tblData[Модульные кухни],MATCH(ROWS($L$2:tblData[[#This Row],[Индекс]]),tblData[Индекс],0)),\"\")","v":"Фонари ручные"}]
[null,null,null,null,null,null,null,null,null,"ОСП-3",{"$f":"NOT(ISERROR(SEARCH($B$2,tblData[[#This Row],[Модульные кухни]])))","v":true},{"$f":"IF(tblData[[#This Row],[Статус]],COUNTIF($K$2:tblData[[#This Row],[Статус]],TRUE),\"\")","v":332},{"$f":"IFERROR(INDEX(tblData[Модульные кухни],MATCH(ROWS($L$2:tblData[[#This Row],[Индекс]]),tblData[Индекс],0)),\"\")","v":"ОСП-3"}]
[null,null,null,null,null,null,null,null,null,"Фанера",{"$f":"NOT(ISERROR(SEARCH($B$2,tblData[[#This Row],[Модульные кухни]])))","v":true},{"$f":"IF(tblData[[#This Row],[Статус]],COUNTIF($K$2:tblData[[#This Row],[Статус]],TRUE),\"\")","v":333},{"$f":"IFERROR(INDEX(tblData[Модульные кухни],MATCH(ROWS($L$2:tblData[[#This Row],[Индекс]]),tblData[Индекс],0)),\"\")","v":"Фанера"}]
[null,null,null,null,null,null,null,null,null,"ДСП шпунтованная",{"$f":"NOT(ISERROR(SEARCH($B$2,tblData[[#This Row],[Модульные кухни]])))","v":true},{"$f":"IF(tblData[[#This Row],[Статус]],COUNTIF($K$2:tblData[[#This Row],[Статус]],TRUE),\"\")","v":334},{"$f":"IFERROR(INDEX(tblData[Модульные кухни],MATCH(ROWS($L$2:tblData[[#This Row],[Индекс]]),tblData[Индекс],0)),\"\")","v":"ДСП шпунтованная"}]
[null,null,null,null,null,null,null,null,null,"ДВП",{"$f":"NOT(ISERROR(SEARCH($B$2,tblData[[#This Row],[Модульные кухни]])))","v":true},{"$f":"IF(tblData[[#This Row],[Статус]],COUNTIF($K$2:tblData[[#This Row],[Статус]],TRUE),\"\")","v":335},{"$f":"IFERROR(INDEX(tblData[Модульные кухни],MATCH(ROWS($L$2:tblData[[#This Row],[Индекс]]),tblData[Индекс],0)),\"\")","v":"ДВП"}]
[null,null,null,null,null,null,null,null,null,"ХДФ",{"$f":"NOT(ISERROR(SEARCH($B$2,tblData[[#This Row],[Модульные кухни]])))","v":true},{"$f":"IF(tblData[[#This Row],[Статус]],COUNTIF($K$2:tblData[[#This Row],[Статус]],TRUE),\"\")","v":336},{"$f":"IFERROR(INDEX(tblData[Модульные кухни],MATCH(ROWS($L$2:tblData[[#This Row],[Индекс]]),tblData[Индекс],0)),\"\")","v":"ХДФ"}]
[null,null,null,null,null,null,null,null,null,"МДФ",{"$f":"NOT(ISERROR(SEARCH($B$2,tblData[[#This Row],[Модульные кухни]])))","v":true},{"$f":"IF(tblData[[#This Row],[Статус]],COUNTIF($K$2:tblData[[#This Row],[Статус]],TRUE),\"\")","v":337},{"$f":"IFERROR(INDEX(tblData[Модульные кухни],MATCH(ROWS($L$2:tblData[[#This Row],[Индекс]]),tblData[Индекс],0)),\"\")","v":"МДФ"}]
[null,null,null,null,null,null,null,null,null,"Рейки",{"$f":"NOT(ISERROR(SEARCH($B$2,tblData[[#This Row],[Модульные кухни]])))","v":true},{"$f":"IF(tblData[[#This Row],[Статус]],COUNTIF($K$2:tblData[[#This Row],[Статус]],TRUE),\"\")","v":338},{"$f":"IFERROR(INDEX(tblData[Модульные кухни],MATCH(ROWS($L$2:tblData[[#This Row],[Индекс]]),tblData[Индекс],0)),\"\")","v":"Рейки"}]
[null,null,null,null,null,null,null,null,null,"Бруски",{"$f":"NOT(ISERROR(SEARCH($B$2,tblData[[#This Row],[Модульные кухни]])))","v":true},{"$f":"IF(tblData[[#This Row],[Статус]],COUNTIF($K$2:tblData[[#This Row],[Статус]],TRUE),\"\")","v":339},{"$f":"IFERROR(INDEX(tblData[Модульные кухни],MATCH(ROWS($L$2:tblData[[#This Row],[Индекс]]),tblData[Индекс],0)),\"\")","v":"Бруски"}]
[null,null,null,null,null,null,null,null,null,"Доски",{"$f":"NOT(ISERROR(SEARCH($B$2,tblData[[#This Row],[Модульные кухни]])))","v":true},{"$f":"IF(tblData[[#This Row],[Статус]],COUNTIF($K$2:tblData[[#This Row],[Статус]],TRUE),\"\")","v":340},{"$f":"IFERROR(INDEX(tblData[Модульные кухни],MATCH(ROWS($L$2:tblData[[#This Row],[Индекс]]),tblData[Индекс],0)),\"\")","v":"Доски"}]
[null,null,null,null,null,null,null,null,null,"Паллеты",{"$f":"NOT(ISERROR(SEARCH($B$2,tblData[[#This Row],[Модульные кухни]])))","v":true},{"$f":"IF(tblData[[#This Row],[Статус]],COUNTIF($K$2:tblData[[#This Row],[Статус]],TRUE),\"\")","v":341},{"$f":"IFERROR(INDEX(tblData[Модульные кухни],MATCH(ROWS($L$2:tblData[[#This Row],[Индекс]]),tblData[Индекс],0)),\"\")","v":"Паллеты"}]
[null,null,null,null,null,null,null,null,null,"Панели ПВХ",{"$f":"NOT(ISERROR(SEARCH($B$2,tblData[[#This Row],[Модульные кухни]])))","v":true},{"$f":"IF(tblData[[#This Row],[Статус]],COUNTIF($K$2:tblData[[#This Row],[Статус]],TRUE),\"\")","v":342},{"$f":"IFERROR(INDEX(tblData[Модульные кухни],MATCH(ROWS($L$2:tblData[[#This Row],[Индекс]]),tblData[Индекс],0)),\"\")","v":"Панели ПВХ"}]
[null,null,null,null,null,null,null,null,null,"Панели МДФ",{"$f":"NOT(ISERROR(SEARCH($B$2,tblData[[#This Row],[Модульные кухни]])))","v":true},{"$f":"IF(tblData[[#This Row],[Статус]],COUNTIF($K$2:tblData[[#This Row],[Статус]],TRUE),\"\")","v":343},{"$f":"IFERROR(INDEX(tblData[Модульные кухни],MATCH(ROWS($L$2:tblData[[#This Row],[Индекс]]),tblData[Индекс],0)),\"\")","v":"Панели МДФ"}]
[null,null,null,null,null,null,null,null,null,"Профили для панелей",{"$f":"NOT(ISERROR(SEARCH($B$2,tblData[[#This Row],[Модульные кухни]])))","v":true},{"$f":"IF(tblData[[#This Row],[Статус]],COUNTIF($K$2:tblData[[#This Row],[Статус]],TRUE),\"\")","v":344},{"$f":"IFERROR(INDEX(tblData[Модульные кухни],MATCH(ROWS($L$2:tblData[[#This Row],[Индекс]]),tblData[Индекс],0)),\"\")","v":"Профили для панелей"}]
[null,null,null,null,null,null,null,null,null,"Углы ПВХ",{"$f":"NOT(ISERROR(SEARCH($B$2,tblData[[#This Row],[Модульные кухни]])))","v":true},{"$f":"IF(tblData[[#This Row],[Статус]],COUNTIF($K$2:tblData[[#This Row],[Статус]],TRUE),\"\")","v":345},{"$f":"IFERROR(INDEX(tblData[Модульные кухни],MATCH(ROWS($L$2:tblData[[#This Row],[Индекс]]),tblData[Индекс],0)),\"\")","v":"Углы ПВХ"}]
[null,null,null,null,null,null,null,null,null,"Углы МДФ",{"$f":"NOT(ISERROR(SEARCH($B$2,tblData[[#This Row],[Модульные кухни]])))","v":true},{"$f":"IF(tblData[[#This Row],[Статус]],COUNTIF($K$2:tblData[[#This Row],[Статус]],TRUE),\"\")","v":346},{"$f":"IFERROR(INDEX(tblData[Модульные кухни],MATCH(ROWS($L$2:tblData[[#This Row],[Индекс]]),tblData[Индекс],0)),\"\")","v":"Углы МДФ"}]
[null,null,null,null,null,null,null,null,null,"Экраны для радиаторов",{"$f":"NOT(ISERROR(SEARCH($B$2,tblData[[#This Row],[Модульные кухни]])))","v":true},{"$f":"IF(tblData[[#This Row],[Статус]],COUNTIF($K$2:tblData[[#This Row],[Статус]],TRUE),\"\")","v":347},{"$f":"IFERROR(INDEX(tblData[Модульные кухни],MATCH(ROWS($L$2:tblData[[#This Row],[Индекс]]),tblData[Индекс],0)),\"\")","v":"Экраны для радиаторов"}]
[null,null,null,null,null,null,null,null,null,"Декоративные перегородки",{"$f":"NOT(ISERROR(SEARCH($B$2,tblData[[#This Row],[Модульные кухни]])))","v":true},{"$f":"IF(tblData[[#This Row],[Статус]],COUNTIF($K$2:tblData[[#This Row],[Статус]],TRUE),\"\")","v":348},{"$f":"IFERROR(INDEX(tblData[Модульные кухни],MATCH(ROWS($L$2:tblData[[#This Row],[Индекс]]),tblData[Индекс],0)),\"\")","v":"Декоративные перегородки"}]
[null,null,null,null,null,null,null,null,null,"Межкомнатные окна",{"$f":"NOT(ISERROR(SEARCH($B$2,tblData[[#This Row],[Модульные кухни]])))","v":true},{"$f":"IF(tblData[[#This Row],[Статус]],COUNTIF($K$2:tblData[[#This Row],[Статус]],TRUE),\"\")","v":349},{"$f":"IFERROR(INDEX(tblData[Модульные кухни],MATCH(ROWS($L$2:tblData[[#This Row],[Индекс]]),tblData[Индекс],0)),\"\")","v":"Межкомнатные окна"}]
[null,null,null,null,null,null,null,null,null,"Ширмы",{"$f":"NOT(ISERROR(SEARCH($B$2,tblData[[#This Row],[Модульные кухни]])))","v":true},{"$f":"IF(tblData[[#This Row],[Статус]],COUNTIF($K$2:tblData[[#This Row],[Статус]],TRUE),\"\")","v":350},{"$f":"IFERROR(INDEX(tblData[Модульные кухни],MATCH(ROWS($L$2:tblData[[#This Row],[Индекс]]),tblData[Индекс],0)),\"\")","v":"Ширмы"}]
[null,null,null,null,null,null,null,null,null,"Декоративные рейки и бруски",{"$f":"NOT(ISERROR(SEARCH($B$2,tblData[[#This Row],[Модульные кухни]])))","v":true},{"$f":"IF(tblData[[#This Row],[Статус]],COUNTIF($K$2:tblData[[#This Row],[Статус]],TRUE),\"\")","v":351},{"$f":"IFERROR(INDEX(tblData[Модульные кухни],MATCH(ROWS($L$2:tblData[[#This Row],[Индекс]]),tblData[Индекс],0)),\"\")","v":"Декоративные рейки и бруски"}]
[null,null,null,null,null,null,null,null,null,"Декоративные балки",{"$f":"NOT(ISERROR(SEARCH($B$2,tblData[[#This Row],[Модульные кухни]])))","v":true},{"$f":"IF(tblData[[#This Row],[Статус]],COUNTIF($K$2:tblData[[#This Row],[Статус]],TRUE),\"\")","v":352},{"$f":"IFERROR(INDEX(tblData[Модульные кухни],MATCH(ROWS($L$2:tblData[[#This Row],[Индекс]]),tblData[Индекс],0)),\"\")","v":"Декоративные балки"}]
[null,null,null,null,null,null,null,null,null,"Экраны для проекторов",{"$f":"NOT(ISERROR(SEARCH($B$2,tblData[[#This Row],[Модульные кухни]])))","v":true},{"$f":"IF(tblData[[#This Row],[Статус]],COUNTIF($K$2:tblData[[#This Row],[Статус]],TRUE),\"\")","v":353},{"$f":"IFERROR(INDEX(tblData[Модульные кухни],MATCH(ROWS($L$2:tblData[[#This Row],[Индекс]]),tblData[Индекс],0)),\"\")","v":"Экраны для проекторов"}]
[null,null,null,null,null,null,null,null,null,"Защитные барьеры",{"$f":"NOT(ISERROR(SEARCH($B$2,tblData[[#This Row],[Модульные кухни]])))","v":true},{"$f":"IF(tblData[[#This Row],[Статус]],COUNTIF($K$2:tblData[[#This Row],[Статус]],TRUE),\"\")","v":354},{"$f":"IFERROR(INDEX(tblData[Модульные кухни],MATCH(ROWS($L$2:tblData[[#This Row],[Индекс]]),tblData[Индекс],0)),\"\")","v":"Защитные барьеры"}]
[null,null,null,null,null,null,null,null,null,"Защита на окна",{"$f":"NOT(ISERROR(SEARCH($B$2,tblData[[#This Row],[Модульные кухни]])))","v":true},{"$f":"IF(tblData[[#This Row],[Статус]],COUNTIF($K$2:tblData[[#This Row],[Статус]],TRUE),\"\")","v":355},{"$f":"IFERROR(INDEX(tblData[Модульные кухни],MATCH(ROWS($L$2:tblData[[#This Row],[Индекс]]),tblData[Индекс],0)),\"\")","v":"Защита на окна"}]
[null,null,null,null,null,null,null,null,null,"Ограждения территории",{"$f":"NOT(ISERROR(SEARCH($B$2,tblData[[#This Row],[Модульные кухни]])))","v":true},{"$f":"IF(tblData[[#This Row],[Статус]],COUNTIF($K$2:tblData[[#This Row],[Статус]],TRUE),\"\")","v":356},{"$f":"IFERROR(INDEX(tblData[Модульные кухни],MATCH(ROWS($L$2:tblData[[#This Row],[Индекс]]),tblData[Индекс],0)),\"\")","v":"Ограждения территории"}]
[null,null,null,null,null,null,null,null,null,"Декоративные ограждения",{"$f":"NOT(ISERROR(SEARCH($B$2,tblData[[#This Row],[Модульные кухни]])))","v":true},{"$f":"IF(tblData[[#This Row],[Статус]],COUNTIF($K$2:tblData[[#This Row],[Статус]],TRUE),\"\")","v":357},{"$f":"IFERROR(INDEX(tblData[Модульные кухни],MATCH(ROWS($L$2:tblData[[#This Row],[Индекс]]),tblData[Индекс],0)),\"\")","v":"Декоративные ограждения"}]
[null,null,null,null,null,null,null,null,null,"Нержавеющие ограждения",{"$f":"NOT(ISERROR(SEARCH($B$2,tblData[[#This Row],[Модульные кухни]])))","v":true},{"$f":"IF(tblData[[#This Row],[Статус]],COUNTIF($K$2:tblData[[#This Row],[Статус]],TRUE),\"\")","v":358},{"$f":"IFERROR(INDEX(tblData[Модульные кухни],MATCH(ROWS($L$2:tblData[[#This Row],[Индекс]]),tblData[Индекс],0)),\"\")","v":"Нержавеющие ограждения"}]
[null,null,null,null,null,null,null,null,null,"Ленточные ограждения",{"$f":"NOT(ISERROR(SEARCH($B$2,tblData[[#This Row],[Модульные кухни]])))","v":true},{"$f":"IF(tblData[[#This Row],[Статус]],COUNTIF($K$2:tblData[[#This Row],[Статус]],TRUE),\"\")","v":359},{"$f":"IFERROR(INDEX(tblData[Модульные кухни],MATCH(ROWS($L$2:tblData[[#This Row],[Индекс]]),tblData[Индекс],0)),\"\")","v":"Ленточные ограждения"}]
[null,null,null,null,null,null,null,null,null,"Входные двери",{"$f":"NOT(ISERROR(SEARCH($B$2,tblData[[#This Row],[Модульные кухни]])))","v":true},{"$f":"IF(tblData[[#This Row],[Статус]],COUNTIF($K$2:tblData[[#This Row],[Статус]],TRUE),\"\")","v":360},{"$f":"IFERROR(INDEX(tblData[Модульные кухни],MATCH(ROWS($L$2:tblData[[#This Row],[Индекс]]),tblData[Индекс],0)),\"\")","v":"Входные двери"}]
[null,null,null,null,null,null,null,null,null,"Межкомнатные двери",{"$f":"NOT(ISERROR(SEARCH($B$2,tblData[[#This Row],[Модульные кухни]])))","v":true},{"$f":"IF(tblData[[#This Row],[Статус]],COUNTIF($K$2:tblData[[#This Row],[Статус]],TRUE),\"\")","v":361},{"$f":"IFERROR(INDEX(tblData[Модульные кухни],MATCH(ROWS($L$2:tblData[[#This Row],[Индекс]]),tblData[Индекс],0)),\"\")","v":"Межкомнатные двери"}]
[null,null,null,null,null,null,null,null,null,"Арки межкомнатные",{"$f":"NOT(ISERROR(SEARCH($B$2,tblData[[#This Row],[Модульные кухни]])))","v":true},{"$f":"IF(tblData[[#This Row],[Статус]],COUNTIF($K$2:tblData[[#This Row],[Статус]],TRUE),\"\")","v":362},{"$f":"IFERROR(INDEX(tblData[Модульные кухни],MATCH(ROWS($L$2:tblData[[#This Row],[Индекс]]),tblData[Индекс],0)),\"\")","v":"Арки межкомнатные"}]
[null,null,null,null,null,null,null,null,null,"Дверные коробки, наличники и доборы",{"$f":"NOT(ISERROR(SEARCH($B$2,tblData[[#This Row],[Модульные кухни]])))","v":true},{"$f":"IF(tblData[[#This Row],[Статус]],COUNTIF($K$2:tblData[[#This Row],[Статус]],TRUE),\"\")","v":363},{"$f":"IFERROR(INDEX(tblData[Модульные кухни],MATCH(ROWS($L$2:tblData[[#This Row],[Индекс]]),tblData[Индекс],0)),\"\")","v":"Дверные коробки, наличники и доборы"}]
[null,null,null,null,null,null,null,null,null,"Замки накладные и врезные",{"$f":"NOT(ISERROR(SEARCH($B$2,tblData[[#This Row],[Модульные кухни]])))","v":true},{"$f":"IF(tblData[[#This Row],[Статус]],COUNTIF($K$2:tblData[[#This Row],[Статус]],TRUE),\"\")","v":364},{"$f":"IFERROR(INDEX(tblData[Модульные кухни],MATCH(ROWS($L$2:tblData[[#This Row],[Индекс]]),tblData[Индекс],0)),\"\")","v":"Замки накладные и врезные"}]
[null,null,null,null,null,null,null,null,null,"Цилиндры для замков",{"$f":"NOT(ISERROR(SEARCH($B$2,tblData[[#This Row],[Модульные кухни]])))","v":true},{"$f":"IF(tblData[[#This Row],[Статус]],COUNTIF($K$2:tblData[[#This Row],[Статус]],TRUE),\"\")","v":365},{"$f":"IFERROR(INDEX(tblData[Модульные кухни],MATCH(ROWS($L$2:tblData[[#This Row],[Индекс]]),tblData[Индекс],0)),\"\")","v":"Цилиндры для замков"}]
[null,null,null,null,null,null,null,null,null,"Защелки врезные межкомнатные",{"$f":"NOT(ISERROR(SEARCH($B$2,tblData[[#This Row],[Модульные кухни]])))","v":true},{"$f":"IF(tblData[[#This Row],[Статус]],COUNTIF($K$2:tblData[[#This Row],[Статус]],TRUE),\"\")","v":366},{"$f":"IFERROR(INDEX(tblData[Модульные кухни],MATCH(ROWS($L$2:tblData[[#This Row],[Индекс]]),tblData[Индекс],0)),\"\")","v":"Защелки врезные межкомнатные"}]
[null,null,null,null,null,null,null,null,null,"Замки навесные",{"$f":"NOT(ISERROR(SEARCH($B$2,tblData[[#This Row],[Модульные кухни]])))","v":true},{"$f":"IF(tblData[[#This Row],[Статус]],COUNTIF($K$2:tblData[[#This Row],[Статус]],TRUE),\"\")","v":367},{"$f":"IFERROR(INDEX(tblData[Модульные кухни],MATCH(ROWS($L$2:tblData[[#This Row],[Индекс]]),tblData[Индекс],0)),\"\")","v":"Замки навесные"}]
[null,null,null,null,null,null,null,null,null,"Проушины и навески для навесных замков",{"$f":"NOT(ISERROR(SEARCH($B$2,tblData[[#This Row],[Модульные кухни]])))","v":true},{"$f":"IF(tblData[[#This Row],[Статус]],COUNTIF($K$2:tblData[[#This Row],[Статус]],TRUE),\"\")","v":368},{"$f":"IFERROR(INDEX(tblData[Модульные кухни],MATCH(ROWS($L$2:tblData[[#This Row],[Индекс]]),tblData[Индекс],0)),\"\")","v":"Проушины и навески для навесных замков"}]
[null,null,null,null,null,null,null,null,null,"Задвижки и шпингалеты для дверей",{"$f":"NOT(ISERROR(SEARCH($B$2,tblData[[#This Row],[Модульные кухни]])))","v":true},{"$f":"IF(tblData[[#This Row],[Статус]],COUNTIF($K$2:tblData[[#This Row],[Статус]],TRUE),\"\")","v":369},{"$f":"IFERROR(INDEX(tblData[Модульные кухни],MATCH(ROWS($L$2:tblData[[#This Row],[Индекс]]),tblData[Индекс],0)),\"\")","v":"Задвижки и шпингалеты для дверей"}]
[null,null,null,null,null,null,null,null,null,"Дверные ручки на планке",{"$f":"NOT(ISERROR(SEARCH($B$2,tblData[[#This Row],[Модульные кухни]])))","v":true},{"$f":"IF(tblData[[#This Row],[Статус]],COUNTIF($K$2:tblData[[#This Row],[Статус]],TRUE),\"\")","v":370},{"$f":"IFERROR(INDEX(tblData[Модульные кухни],MATCH(ROWS($L$2:tblData[[#This Row],[Индекс]]),tblData[Индекс],0)),\"\")","v":"Дверные ручки на планке"}]
[null,null,null,null,null,null,null,null,null,"Дверные ручки на розетке",{"$f":"NOT(ISERROR(SEARCH($B$2,tblData[[#This Row],[Модульные кухни]])))","v":true},{"$f":"IF(tblData[[#This Row],[Статус]],COUNTIF($K$2:tblData[[#This Row],[Статус]],TRUE),\"\")","v":371},{"$f":"IFERROR(INDEX(tblData[Модульные кухни],MATCH(ROWS($L$2:tblData[[#This Row],[Индекс]]),tblData[Индекс],0)),\"\")","v":"Дверные ручки на розетке"}]
[null,null,null,null,null,null,null,null,null,"Ручки кнобы",{"$f":"NOT(ISERROR(SEARCH($B$2,tblData[[#This Row],[Модульные кухни]])))","v":true},{"$f":"IF(tblData[[#This Row],[Статус]],COUNTIF($K$2:tblData[[#This Row],[Статус]],TRUE),\"\")","v":372},{"$f":"IFERROR(INDEX(tblData[Модульные кухни],MATCH(ROWS($L$2:tblData[[#This Row],[Индекс]]),tblData[Индекс],0)),\"\")","v":"Ручки кнобы"}]
[null,null,null,null,null,null,null,null,null,"Ручки скобы",{"$f":"NOT(ISERROR(SEARCH($B$2,tblData[[#This Row],[Модульные кухни]])))","v":true},{"$f":"IF(tblData[[#This Row],[Статус]],COUNTIF($K$2:tblData[[#This Row],[Статус]],TRUE),\"\")","v":373},{"$f":"IFERROR(INDEX(tblData[Модульные кухни],MATCH(ROWS($L$2:tblData[[#This Row],[Индекс]]),tblData[Индекс],0)),\"\")","v":"Ручки скобы"}]
[null,null,null,null,null,null,null,null,null,"Ручки для раздвижных дверей",{"$f":"NOT(ISERROR(SEARCH($B$2,tblData[[#This Row],[Модульные кухни]])))","v":true},{"$f":"IF(tblData[[#This Row],[Статус]],COUNTIF($K$2:tblData[[#This Row],[Статус]],TRUE),\"\")","v":374},{"$f":"IFERROR(INDEX(tblData[Модульные кухни],MATCH(ROWS($L$2:tblData[[#This Row],[Индекс]]),tblData[Индекс],0)),\"\")","v":"Ручки для раздвижных дверей"}]
[null,null,null,null,null,null,null,null,null,"Завертки",{"$f":"NOT(ISERROR(SEARCH($B$2,tblData[[#This Row],[Модульные кухни]])))","v":true},{"$f":"IF(tblData[[#This Row],[Статус]],COUNTIF($K$2:tblData[[#This Row],[Статус]],TRUE),\"\")","v":375},{"$f":"IFERROR(INDEX(tblData[Модульные кухни],MATCH(ROWS($L$2:tblData[[#This Row],[Индекс]]),tblData[Индекс],0)),\"\")","v":"Завертки"}]
[null,null,null,null,null,null,null,null,null,"Накладки на замок",{"$f":"NOT(ISERROR(SEARCH($B$2,tblData[[#This Row],[Модульные кухни]])))","v":true},{"$f":"IF(tblData[[#This Row],[Статус]],COUNTIF($K$2:tblData[[#This Row],[Статус]],TRUE),\"\")","v":376},{"$f":"IFERROR(INDEX(tblData[Модульные кухни],MATCH(ROWS($L$2:tblData[[#This Row],[Индекс]]),tblData[Индекс],0)),\"\")","v":"Накладки на замок"}]
[null,null,null,null,null,null,null,null,null,"Петли и шарниры дверные",{"$f":"NOT(ISERROR(SEARCH($B$2,tblData[[#This Row],[Модульные кухни]])))","v":true},{"$f":"IF(tblData[[#This Row],[Статус]],COUNTIF($K$2:tblData[[#This Row],[Статус]],TRUE),\"\")","v":377},{"$f":"IFERROR(INDEX(tblData[Модульные кухни],MATCH(ROWS($L$2:tblData[[#This Row],[Индекс]]),tblData[Индекс],0)),\"\")","v":"Петли и шарниры дверные"}]
[null,null,null,null,null,null,null,null,null,"Доводчики для дверей",{"$f":"NOT(ISERROR(SEARCH($B$2,tblData[[#This Row],[Модульные кухни]])))","v":true},{"$f":"IF(tblData[[#This Row],[Статус]],COUNTIF($K$2:tblData[[#This Row],[Статус]],TRUE),\"\")","v":378},{"$f":"IFERROR(INDEX(tblData[Модульные кухни],MATCH(ROWS($L$2:tblData[[#This Row],[Индекс]]),tblData[Индекс],0)),\"\")","v":"Доводчики для дверей"}]
[null,null,null,null,null,null,null,null,null,"Стопоры дверные",{"$f":"NOT(ISERROR(SEARCH($B$2,tblData[[#This Row],[Модульные кухни]])))","v":true},{"$f":"IF(tblData[[#This Row],[Статус]],COUNTIF($K$2:tblData[[#This Row],[Статус]],TRUE),\"\")","v":379},{"$f":"IFERROR(INDEX(tblData[Модульные кухни],MATCH(ROWS($L$2:tblData[[#This Row],[Индекс]]),tblData[Индекс],0)),\"\")","v":"Стопоры дверные"}]
[null,null,null,null,null,null,null,null,null,"Глазки дверные",{"$f":"NOT(ISERROR(SEARCH($B$2,tblData[[#This Row],[Модульные кухни]])))","v":true},{"$f":"IF(tblData[[#This Row],[Статус]],COUNTIF($K$2:tblData[[#This Row],[Статус]],TRUE),\"\")","v":380},{"$f":"IFERROR(INDEX(tblData[Модульные кухни],MATCH(ROWS($L$2:tblData[[#This Row],[Индекс]]),tblData[Индекс],0)),\"\")","v":"Глазки дверные"}]
[null,null,null,null,null,null,null,null,null,"Номера на дверь",{"$f":"NOT(ISERROR(SEARCH($B$2,tblData[[#This Row],[Модульные кухни]])))","v":true},{"$f":"IF(tblData[[#This Row],[Статус]],COUNTIF($K$2:tblData[[#This Row],[Статус]],TRUE),\"\")","v":381},{"$f":"IFERROR(INDEX(tblData[Модульные кухни],MATCH(ROWS($L$2:tblData[[#This Row],[Индекс]]),tblData[Индекс],0)),\"\")","v":"Номера на дверь"}]
[null,null,null,null,null,null,null,null,null,"Фурнитура для раздвижных дверей",{"$f":"NOT(ISERROR(SEARCH($B$2,tblData[[#This Row],[Модульные кухни]])))","v":true},{"$f":"IF(tblData[[#This Row],[Статус]],COUNTIF($K$2:tblData[[#This Row],[Статус]],TRUE),\"\")","v":382},{"$f":"IFERROR(INDEX(tblData[Модульные кухни],MATCH(ROWS($L$2:tblData[[#This Row],[Индекс]]),tblData[Индекс],0)),\"\")","v":"Фурнитура для раздвижных дверей"}]
[null,null,null,null,null,null,null,null,null,"Штукатурки",{"$f":"NOT(ISERROR(SEARCH($B$2,tblData[[#This Row],[Модульные кухни]])))","v":true},{"$f":"IF(tblData[[#This Row],[Статус]],COUNTIF($K$2:tblData[[#This Row],[Статус]],TRUE),\"\")","v":383},{"$f":"IFERROR(INDEX(tblData[Модульные кухни],MATCH(ROWS($L$2:tblData[[#This Row],[Индекс]]),tblData[Индекс],0)),\"\")","v":"Штукатурки"}]
[null,null,null,null,null,null,null,null,null,"Шпаклёвки",{"$f":"NOT(ISERROR(SEARCH($B$2,tblData[[#This Row],[Модульные кухни]])))","v":true},{"$f":"IF(tblData[[#This Row],[Статус]],COUNTIF($K$2:tblData[[#This Row],[Статус]],TRUE),\"\")","v":384},{"$f":"IFERROR(INDEX(tblData[Модульные кухни],MATCH(ROWS($L$2:tblData[[#This Row],[Индекс]]),tblData[Индекс],0)),\"\")","v":"Шпаклёвки"}]
[null,null,null,null,null,null,null,null,null,"Штукатурные профили и маяки",{"$f":"NOT(ISERROR(SEARCH($B$2,tblData[[#This Row],[Модульные кухни]])))","v":true},{"$f":"IF(tblData[[#This Row],[Статус]],COUNTIF($K$2:tblData[[#This Row],[Статус]],TRUE),\"\")","v":385},{"$f":"IFERROR(INDEX(tblData[Модульные кухни],MATCH(ROWS($L$2:tblData[[#This Row],[Индекс]]),tblData[Индекс],0)),\"\")","v":"Штукатурные профили и маяки"}]
[null,null,null,null,null,null,null,null,null,"Штукатурные сетки",{"$f":"NOT(ISERROR(SEARCH($B$2,tblData[[#This Row],[Модульные кухни]])))","v":true},{"$f":"IF(tblData[[#This Row],[Статус]],COUNTIF($K$2:tblData[[#This Row],[Статус]],TRUE),\"\")","v":386},{"$f":"IFERROR(INDEX(tblData[Модульные кухни],MATCH(ROWS($L$2:tblData[[#This Row],[Индекс]]),tblData[Индекс],0)),\"\")","v":"Штукатурные сетки"}]
[null,null,null,null,null,null,null,null,null,"Грунтовки",{"$f":"NOT(ISERROR(SEARCH($B$2,tblData[[#This Row],[Модульные кухни]])))","v":true},{"$f":"IF(tblData[[#This Row],[Статус]],COUNTIF($K$2:tblData[[#This Row],[Статус]],TRUE),\"\")","v":387},{"$f":"IFERROR(INDEX(tblData[Модульные кухни],MATCH(ROWS($L$2:tblData[[#This Row],[Индекс]]),tblData[Индекс],0)),\"\")","v":"Грунтовки"}]
[null,null,null,null,null,null,null,null,null,"Смеси для пола",{"$f":"NOT(ISERROR(SEARCH($B$2,tblData[[#This Row],[Модульные кухни]])))","v":true},{"$f":"IF(tblData[[#This Row],[Статус]],COUNTIF($K$2:tblData[[#This Row],[Статус]],TRUE),\"\")","v":388},{"$f":"IFERROR(INDEX(tblData[Модульные кухни],MATCH(ROWS($L$2:tblData[[#This Row],[Индекс]]),tblData[Индекс],0)),\"\")","v":"Смеси для пола"}]
[null,null,null,null,null,null,null,null,null,"Клеи для плитки, камня и изоляции",{"$f":"NOT(ISERROR(SEARCH($B$2,tblData[[#This Row],[Модульные кухни]])))","v":true},{"$f":"IF(tblData[[#This Row],[Статус]],COUNTIF($K$2:tblData[[#This Row],[Статус]],TRUE),\"\")","v":389},{"$f":"IFERROR(INDEX(tblData[Модульные кухни],MATCH(ROWS($L$2:tblData[[#This Row],[Индекс]]),tblData[Индекс],0)),\"\")","v":"Клеи для плитки, камня и изоляции"}]
[null,null,null,null,null,null,null,null,null,"Монтажные и кладочные смеси",{"$f":"NOT(ISERROR(SEARCH($B$2,tblData[[#This Row],[Модульные кухни]])))","v":true},{"$f":"IF(tblData[[#This Row],[Статус]],COUNTIF($K$2:tblData[[#This Row],[Статус]],TRUE),\"\")","v":390},{"$f":"IFERROR(INDEX(tblData[Модульные кухни],MATCH(ROWS($L$2:tblData[[#This Row],[Индекс]]),tblData[Индекс],0)),\"\")","v":"Монтажные и кладочные смеси"}]
[null,null,null,null,null,null,null,null,null,"Смеси для кладки печей и каминов",{"$f":"NOT(ISERROR(SEARCH($B$2,tblData[[#This Row],[Модульные кухни]])))","v":true},{"$f":"IF(tblData[[#This Row],[Статус]],COUNTIF($K$2:tblData[[#This Row],[Статус]],TRUE),\"\")","v":391},{"$f":"IFERROR(INDEX(tblData[Модульные кухни],MATCH(ROWS($L$2:tblData[[#This Row],[Индекс]]),tblData[Индекс],0)),\"\")","v":"Смеси для кладки печей и каминов"}]
[null,null,null,null,null,null,null,null,null,"Ремонтные смеси",{"$f":"NOT(ISERROR(SEARCH($B$2,tblData[[#This Row],[Модульные кухни]])))","v":true},{"$f":"IF(tblData[[#This Row],[Статус]],COUNTIF($K$2:tblData[[#This Row],[Статус]],TRUE),\"\")","v":392},{"$f":"IFERROR(INDEX(tblData[Модульные кухни],MATCH(ROWS($L$2:tblData[[#This Row],[Индекс]]),tblData[Индекс],0)),\"\")","v":"Ремонтные смеси"}]
[null,null,null,null,null,null,null,null,null,"Цемент и сыпучие материалы",{"$f":"NOT(ISERROR(SEARCH($B$2,tblData[[#This Row],[Модульные кухни]])))","v":true},{"$f":"IF(tblData[[#This Row],[Статус]],COUNTIF($K$2:tblData[[#This Row],[Статус]],TRUE),\"\")","v":393},{"$f":"IFERROR(INDEX(tblData[Модульные кухни],MATCH(ROWS($L$2:tblData[[#This Row],[Индекс]]),tblData[Индекс],0)),\"\")","v":"Цемент и сыпучие материалы"}]
[null,null,null,null,null,null,null,null,null,"Пескобетон",{"$f":"NOT(ISERROR(SEARCH($B$2,tblData[[#This Row],[Модульные кухни]])))","v":true},{"$f":"IF(tblData[[#This Row],[Статус]],COUNTIF($K$2:tblData[[#This Row],[Статус]],TRUE),\"\")","v":394},{"$f":"IFERROR(INDEX(tblData[Модульные кухни],MATCH(ROWS($L$2:tblData[[#This Row],[Индекс]]),tblData[Индекс],0)),\"\")","v":"Пескобетон"}]
[null,null,null,null,null,null,null,null,null,"Добавки для строительных растворов",{"$f":"NOT(ISERROR(SEARCH($B$2,tblData[[#This Row],[Модульные кухни]])))","v":true},{"$f":"IF(tblData[[#This Row],[Статус]],COUNTIF($K$2:tblData[[#This Row],[Статус]],TRUE),\"\")","v":395},{"$f":"IFERROR(INDEX(tblData[Модульные кухни],MATCH(ROWS($L$2:tblData[[#This Row],[Индекс]]),tblData[Индекс],0)),\"\")","v":"Добавки для строительных растворов"}]
[null,null,null,null,null,null,null,null,null,"Ленты углоформирующие",{"$f":"NOT(ISERROR(SEARCH($B$2,tblData[[#This Row],[Модульные кухни]])))","v":true},{"$f":"IF(tblData[[#This Row],[Статус]],COUNTIF($K$2:tblData[[#This Row],[Статус]],TRUE),\"\")","v":396},{"$f":"IFERROR(INDEX(tblData[Модульные кухни],MATCH(ROWS($L$2:tblData[[#This Row],[Индекс]]),tblData[Индекс],0)),\"\")","v":"Ленты углоформирующие"}]
[null,null,null,null,null,null,null,null,null,"Ленты демпферные для полов",{"$f":"NOT(ISERROR(SEARCH($B$2,tblData[[#This Row],[Модульные кухни]])))","v":true},{"$f":"IF(tblData[[#This Row],[Статус]],COUNTIF($K$2:tblData[[#This Row],[Статус]],TRUE),\"\")","v":397},{"$f":"IFERROR(INDEX(tblData[Модульные кухни],MATCH(ROWS($L$2:tblData[[#This Row],[Индекс]]),tblData[Индекс],0)),\"\")","v":"Ленты демпферные для полов"}]
[null,null,null,null,null,null,null,null,null,"Теплоизоляция",{"$f":"NOT(ISERROR(SEARCH($B$2,tblData[[#This Row],[Модульные кухни]])))","v":true},{"$f":"IF(tblData[[#This Row],[Статус]],COUNTIF($K$2:tblData[[#This Row],[Статус]],TRUE),\"\")","v":398},{"$f":"IFERROR(INDEX(tblData[Модульные кухни],MATCH(ROWS($L$2:tblData[[#This Row],[Индекс]]),tblData[Индекс],0)),\"\")","v":"Теплоизоляция"}]
[null,null,null,null,null,null,null,null,null,"Шумоизоляция",{"$f":"NOT(ISERROR(SEARCH($B$2,tblData[[#This Row],[Модульные кухни]])))","v":true},{"$f":"IF(tblData[[#This Row],[Статус]],COUNTIF($K$2:tblData[[#This Row],[Статус]],TRUE),\"\")","v":399},{"$f":"IFERROR(INDEX(tblData[Модульные кухни],MATCH(ROWS($L$2:tblData[[#This Row],[Индекс]]),tblData[Индекс],0)),\"\")","v":"Шумоизоляция"}]
[null,null,null,null,null,null,null,null,null,"Гидроизоляция",{"$f":"NOT(ISERROR(SEARCH($B$2,tblData[[#This Row],[Модульные кухни]])))","v":true},{"$f":"IF(tblData[[#This Row],[Статус]],COUNTIF($K$2:tblData[[#This Row],[Статус]],TRUE),\"\")","v":400},{"$f":"IFERROR(INDEX(tblData[Модульные кухни],MATCH(ROWS($L$2:tblData[[#This Row],[Индекс]]),tblData[Индекс],0)),\"\")","v":"Гидроизоляция"}]
[null,null,null,null,null,null,null,null,null,"Пароизоляция",{"$f":"NOT(ISERROR(SEARCH($B$2,tblData[[#This Row],[Модульные кухни]])))","v":true},{"$f":"IF(tblData[[#This Row],[Статус]],COUNTIF($K$2:tblData[[#This Row],[Статус]],TRUE),\"\")","v":401},{"$f":"IFERROR(INDEX(tblData[Модульные кухни],MATCH(ROWS($L$2:tblData[[#This Row],[Индекс]]),tblData[Индекс],0)),\"\")","v":"Пароизоляция"}]
[null,null,null,null,null,null,null,null,null,"Гипсокартон",{"$f":"NOT(ISERROR(SEARCH($B$2,tblData[[#This Row],[Модульные кухни]])))","v":true},{"$f":"IF(tblData[[#This Row],[Статус]],COUNTIF($K$2:tblData[[#This Row],[Статус]],TRUE),\"\")","v":402},{"$f":"IFERROR(INDEX(tblData[Модульные кухни],MATCH(ROWS($L$2:tblData[[#This Row],[Индекс]]),tblData[Индекс],0)),\"\")","v":"Гипсокартон"}]
[null,null,null,null,null,null,null,null,null,"Профиль для гипсокартона и аксессуары для монтажа",{"$f":"NOT(ISERROR(SEARCH($B$2,tblData[[#This Row],[Модульные кухни]])))","v":true},{"$f":"IF(tblData[[#This Row],[Статус]],COUNTIF($K$2:tblData[[#This Row],[Статус]],TRUE),\"\")","v":403},{"$f":"IFERROR(INDEX(tblData[Модульные кухни],MATCH(ROWS($L$2:tblData[[#This Row],[Индекс]]),tblData[Индекс],0)),\"\")","v":"Профиль для гипсокартона и аксессуары для монтажа"}]
[null,null,null,null,null,null,null,null,null,"Гипсоволокнистые листы",{"$f":"NOT(ISERROR(SEARCH($B$2,tblData[[#This Row],[Модульные кухни]])))","v":true},{"$f":"IF(tblData[[#This Row],[Статус]],COUNTIF($K$2:tblData[[#This Row],[Статус]],TRUE),\"\")","v":404},{"$f":"IFERROR(INDEX(tblData[Модульные кухни],MATCH(ROWS($L$2:tblData[[#This Row],[Индекс]]),tblData[Индекс],0)),\"\")","v":"Гипсоволокнистые листы"}]
[null,null,null,null,null,null,null,null,null,"Цементно-стружечные плиты",{"$f":"NOT(ISERROR(SEARCH($B$2,tblData[[#This Row],[Модульные кухни]])))","v":true},{"$f":"IF(tblData[[#This Row],[Статус]],COUNTIF($K$2:tblData[[#This Row],[Статус]],TRUE),\"\")","v":405},{"$f":"IFERROR(INDEX(tblData[Модульные кухни],MATCH(ROWS($L$2:tblData[[#This Row],[Индекс]]),tblData[Индекс],0)),\"\")","v":"Цементно-стружечные плиты"}]
[null,null,null,null,null,null,null,null,null,"Аквапанели",{"$f":"NOT(ISERROR(SEARCH($B$2,tblData[[#This Row],[Модульные кухни]])))","v":true},{"$f":"IF(tblData[[#This Row],[Статус]],COUNTIF($K$2:tblData[[#This Row],[Статус]],TRUE),\"\")","v":406},{"$f":"IFERROR(INDEX(tblData[Модульные кухни],MATCH(ROWS($L$2:tblData[[#This Row],[Индекс]]),tblData[Индекс],0)),\"\")","v":"Аквапанели"}]
[null,null,null,null,null,null,null,null,null,"Фиброцементные плиты",{"$f":"NOT(ISERROR(SEARCH($B$2,tblData[[#This Row],[Модульные кухни]])))","v":true},{"$f":"IF(tblData[[#This Row],[Статус]],COUNTIF($K$2:tblData[[#This Row],[Статус]],TRUE),\"\")","v":407},{"$f":"IFERROR(INDEX(tblData[Модульные кухни],MATCH(ROWS($L$2:tblData[[#This Row],[Индекс]]),tblData[Индекс],0)),\"\")","v":"Фиброцементные плиты"}]
[null,null,null,null,null,null,null,null,null,"Ленты уплотнительные для профилей гипсокартона",{"$f":"NOT(ISERROR(SEARCH($B$2,tblData[[#This Row],[Модульные кухни]])))","v":true},{"$f":"IF(tblData[[#This Row],[Статус]],COUNTIF($K$2:tblData[[#This Row],[Статус]],TRUE),\"\")","v":408},{"$f":"IFERROR(INDEX(tblData[Модульные кухни],MATCH(ROWS($L$2:tblData[[#This Row],[Индекс]]),tblData[Индекс],0)),\"\")","v":"Ленты уплотнительные для профилей гипсокартона"}]
[null,null,null,null,null,null,null,null,null,"Серпянки",{"$f":"NOT(ISERROR(SEARCH($B$2,tblData[[#This Row],[Модульные кухни]])))","v":true},{"$f":"IF(tblData[[#This Row],[Статус]],COUNTIF($K$2:tblData[[#This Row],[Статус]],TRUE),\"\")","v":409},{"$f":"IFERROR(INDEX(tblData[Модульные кухни],MATCH(ROWS($L$2:tblData[[#This Row],[Индекс]]),tblData[Индекс],0)),\"\")","v":"Серпянки"}]
[null,null,null,null,null,null,null,null,null,"Ленты для стыков гипсокартона",{"$f":"NOT(ISERROR(SEARCH($B$2,tblData[[#This Row],[Модульные кухни]])))","v":true},{"$f":"IF(tblData[[#This Row],[Статус]],COUNTIF($K$2:tblData[[#This Row],[Статус]],TRUE),\"\")","v":410},{"$f":"IFERROR(INDEX(tblData[Модульные кухни],MATCH(ROWS($L$2:tblData[[#This Row],[Индекс]]),tblData[Индекс],0)),\"\")","v":"Ленты для стыков гипсокартона"}]
[null,null,null,null,null,null,null,null,null,"Геоматериалы",{"$f":"NOT(ISERROR(SEARCH($B$2,tblData[[#This Row],[Модульные кухни]])))","v":true},{"$f":"IF(tblData[[#This Row],[Статус]],COUNTIF($K$2:tblData[[#This Row],[Статус]],TRUE),\"\")","v":411},{"$f":"IFERROR(INDEX(tblData[Модульные кухни],MATCH(ROWS($L$2:tblData[[#This Row],[Индекс]]),tblData[Индекс],0)),\"\")","v":"Геоматериалы"}]
[null,null,null,null,null,null,null,null,null,"Ливневая канализация",{"$f":"NOT(ISERROR(SEARCH($B$2,tblData[[#This Row],[Модульные кухни]])))","v":true},{"$f":"IF(tblData[[#This Row],[Статус]],COUNTIF($K$2:tblData[[#This Row],[Статус]],TRUE),\"\")","v":412},{"$f":"IFERROR(INDEX(tblData[Модульные кухни],MATCH(ROWS($L$2:tblData[[#This Row],[Индекс]]),tblData[Индекс],0)),\"\")","v":"Ливневая канализация"}]
[null,null,null,null,null,null,null,null,null,"Системы закрытого дренажа",{"$f":"NOT(ISERROR(SEARCH($B$2,tblData[[#This Row],[Модульные кухни]])))","v":true},{"$f":"IF(tblData[[#This Row],[Статус]],COUNTIF($K$2:tblData[[#This Row],[Статус]],TRUE),\"\")","v":413},{"$f":"IFERROR(INDEX(tblData[Модульные кухни],MATCH(ROWS($L$2:tblData[[#This Row],[Индекс]]),tblData[Индекс],0)),\"\")","v":"Системы закрытого дренажа"}]
[null,null,null,null,null,null,null,null,null,"Септики",{"$f":"NOT(ISERROR(SEARCH($B$2,tblData[[#This Row],[Модульные кухни]])))","v":true},{"$f":"IF(tblData[[#This Row],[Статус]],COUNTIF($K$2:tblData[[#This Row],[Статус]],TRUE),\"\")","v":414},{"$f":"IFERROR(INDEX(tblData[Модульные кухни],MATCH(ROWS($L$2:tblData[[#This Row],[Индекс]]),tblData[Индекс],0)),\"\")","v":"Септики"}]
[null,null,null,null,null,null,null,null,null,"Трубы для наружной канализации",{"$f":"NOT(ISERROR(SEARCH($B$2,tblData[[#This Row],[Модульные кухни]])))","v":true},{"$f":"IF(tblData[[#This Row],[Статус]],COUNTIF($K$2:tblData[[#This Row],[Статус]],TRUE),\"\")","v":415},{"$f":"IFERROR(INDEX(tblData[Модульные кухни],MATCH(ROWS($L$2:tblData[[#This Row],[Индекс]]),tblData[Индекс],0)),\"\")","v":"Трубы для наружной канализации"}]
[null,null,null,null,null,null,null,null,null,"Колодцы",{"$f":"NOT(ISERROR(SEARCH($B$2,tblData[[#This Row],[Модульные кухни]])))","v":true},{"$f":"IF(tblData[[#This Row],[Статус]],COUNTIF($K$2:tblData[[#This Row],[Статус]],TRUE),\"\")","v":416},{"$f":"IFERROR(INDEX(tblData[Модульные кухни],MATCH(ROWS($L$2:tblData[[#This Row],[Индекс]]),tblData[Индекс],0)),\"\")","v":"Колодцы"}]
[null,null,null,null,null,null,null,null,null,"Тротуарная плитка",{"$f":"NOT(ISERROR(SEARCH($B$2,tblData[[#This Row],[Модульные кухни]])))","v":true},{"$f":"IF(tblData[[#This Row],[Статус]],COUNTIF($K$2:tblData[[#This Row],[Статус]],TRUE),\"\")","v":417},{"$f":"IFERROR(INDEX(tblData[Модульные кухни],MATCH(ROWS($L$2:tblData[[#This Row],[Индекс]]),tblData[Индекс],0)),\"\")","v":"Тротуарная плитка"}]
[null,null,null,null,null,null,null,null,null,"Мягкий асфальт",{"$f":"NOT(ISERROR(SEARCH($B$2,tblData[[#This Row],[Модульные кухни]])))","v":true},{"$f":"IF(tblData[[#This Row],[Статус]],COUNTIF($K$2:tblData[[#This Row],[Статус]],TRUE),\"\")","v":418},{"$f":"IFERROR(INDEX(tblData[Модульные кухни],MATCH(ROWS($L$2:tblData[[#This Row],[Индекс]]),tblData[Индекс],0)),\"\")","v":"Мягкий асфальт"}]
[null,null,null,null,null,null,null,null,null,"Сайдинг",{"$f":"NOT(ISERROR(SEARCH($B$2,tblData[[#This Row],[Модульные кухни]])))","v":true},{"$f":"IF(tblData[[#This Row],[Статус]],COUNTIF($K$2:tblData[[#This Row],[Статус]],TRUE),\"\")","v":419},{"$f":"IFERROR(INDEX(tblData[Модульные кухни],MATCH(ROWS($L$2:tblData[[#This Row],[Индекс]]),tblData[Индекс],0)),\"\")","v":"Сайдинг"}]
[null,null,null,null,null,null,null,null,null,"Декоративный камень",{"$f":"NOT(ISERROR(SEARCH($B$2,tblData[[#This Row],[Модульные кухни]])))","v":true},{"$f":"IF(tblData[[#This Row],[Статус]],COUNTIF($K$2:tblData[[#This Row],[Статус]],TRUE),\"\")","v":420},{"$f":"IFERROR(INDEX(tblData[Модульные кухни],MATCH(ROWS($L$2:tblData[[#This Row],[Индекс]]),tblData[Индекс],0)),\"\")","v":"Декоративный камень"}]
[null,null,null,null,null,null,null,null,null,"Клинкерная плитка",{"$f":"NOT(ISERROR(SEARCH($B$2,tblData[[#This Row],[Модульные кухни]])))","v":true},{"$f":"IF(tblData[[#This Row],[Статус]],COUNTIF($K$2:tblData[[#This Row],[Статус]],TRUE),\"\")","v":421},{"$f":"IFERROR(INDEX(tblData[Модульные кухни],MATCH(ROWS($L$2:tblData[[#This Row],[Индекс]]),tblData[Индекс],0)),\"\")","v":"Клинкерная плитка"}]
[null,null,null,null,null,null,null,null,null,"Фасадные панели",{"$f":"NOT(ISERROR(SEARCH($B$2,tblData[[#This Row],[Модульные кухни]])))","v":true},{"$f":"IF(tblData[[#This Row],[Статус]],COUNTIF($K$2:tblData[[#This Row],[Статус]],TRUE),\"\")","v":422},{"$f":"IFERROR(INDEX(tblData[Модульные кухни],MATCH(ROWS($L$2:tblData[[#This Row],[Индекс]]),tblData[Индекс],0)),\"\")","v":"Фасадные панели"}]
[null,null,null,null,null,null,null,null,null,"Профнастил фасадный",{"$f":"NOT(ISERROR(SEARCH($B$2,tblData[[#This Row],[Модульные кухни]])))","v":true},{"$f":"IF(tblData[[#This Row],[Статус]],COUNTIF($K$2:tblData[[#This Row],[Статус]],TRUE),\"\")","v":423},{"$f":"IFERROR(INDEX(tblData[Модульные кухни],MATCH(ROWS($L$2:tblData[[#This Row],[Индекс]]),tblData[Индекс],0)),\"\")","v":"Профнастил фасадный"}]
[null,null,null,null,null,null,null,null,null,"Термопанели",{"$f":"NOT(ISERROR(SEARCH($B$2,tblData[[#This Row],[Модульные кухни]])))","v":true},{"$f":"IF(tblData[[#This Row],[Статус]],COUNTIF($K$2:tblData[[#This Row],[Статус]],TRUE),\"\")","v":424},{"$f":"IFERROR(INDEX(tblData[Модульные кухни],MATCH(ROWS($L$2:tblData[[#This Row],[Индекс]]),tblData[Индекс],0)),\"\")","v":"Термопанели"}]
[null,null,null,null,null,null,null,null,null,"Подсистема на профилях Standers",{"$f":"NOT(ISERROR(SEARCH($B$2,tblData[[#This Row],[Модульные кухни]])))","v":true},{"$f":"IF(tblData[[#This Row],[Статус]],COUNTIF($K$2:tblData[[#This Row],[Статус]],TRUE),\"\")","v":425},{"$f":"IFERROR(INDEX(tblData[Модульные кухни],MATCH(ROWS($L$2:tblData[[#This Row],[Индекс]]),tblData[Индекс],0)),\"\")","v":"Подсистема на профилях Standers"}]
[null,null,null,null,null,null,null,null,null,"Штукатурные фасады СФТК",{"$f":"NOT(ISERROR(SEARCH($B$2,tblData[[#This Row],[Модульные кухни]])))","v":true},{"$f":"IF(tblData[[#This Row],[Статус]],COUNTIF($K$2:tblData[[#This Row],[Статус]],TRUE),\"\")","v":426},{"$f":"IFERROR(INDEX(tblData[Модульные кухни],MATCH(ROWS($L$2:tblData[[#This Row],[Индекс]]),tblData[Индекс],0)),\"\")","v":"Штукатурные фасады СФТК"}]
[null,null,null,null,null,null,null,null,null,"Софиты",{"$f":"NOT(ISERROR(SEARCH($B$2,tblData[[#This Row],[Модульные кухни]])))","v":true},{"$f":"IF(tblData[[#This Row],[Статус]],COUNTIF($K$2:tblData[[#This Row],[Статус]],TRUE),\"\")","v":427},{"$f":"IFERROR(INDEX(tblData[Модульные кухни],MATCH(ROWS($L$2:tblData[[#This Row],[Индекс]]),tblData[Индекс],0)),\"\")","v":"Софиты"}]
[null,null,null,null,null,null,null,null,null,"Архитектурный декор",{"$f":"NOT(ISERROR(SEARCH($B$2,tblData[[#This Row],[Модульные кухни]])))","v":true},{"$f":"IF(tblData[[#This Row],[Статус]],COUNTIF($K$2:tblData[[#This Row],[Статус]],TRUE),\"\")","v":428},{"$f":"IFERROR(INDEX(tblData[Модульные кухни],MATCH(ROWS($L$2:tblData[[#This Row],[Индекс]]),tblData[Индекс],0)),\"\")","v":"Архитектурный декор"}]
[null,null,null,null,null,null,null,null,null,"Очистители и пропитки для камня",{"$f":"NOT(ISERROR(SEARCH($B$2,tblData[[#This Row],[Модульные кухни]])))","v":true},{"$f":"IF(tblData[[#This Row],[Статус]],COUNTIF($K$2:tblData[[#This Row],[Статус]],TRUE),\"\")","v":429},{"$f":"IFERROR(INDEX(tblData[Модульные кухни],MATCH(ROWS($L$2:tblData[[#This Row],[Индекс]]),tblData[Индекс],0)),\"\")","v":"Очистители и пропитки для камня"}]
[null,null,null,null,null,null,null,null,null,"Реечные потолки",{"$f":"NOT(ISERROR(SEARCH($B$2,tblData[[#This Row],[Модульные кухни]])))","v":true},{"$f":"IF(tblData[[#This Row],[Статус]],COUNTIF($K$2:tblData[[#This Row],[Статус]],TRUE),\"\")","v":430},{"$f":"IFERROR(INDEX(tblData[Модульные кухни],MATCH(ROWS($L$2:tblData[[#This Row],[Индекс]]),tblData[Индекс],0)),\"\")","v":"Реечные потолки"}]
[null,null,null,null,null,null,null,null,null,"Потолочные плиты",{"$f":"NOT(ISERROR(SEARCH($B$2,tblData[[#This Row],[Модульные кухни]])))","v":true},{"$f":"IF(tblData[[#This Row],[Статус]],COUNTIF($K$2:tblData[[#This Row],[Статус]],TRUE),\"\")","v":431},{"$f":"IFERROR(INDEX(tblData[Модульные кухни],MATCH(ROWS($L$2:tblData[[#This Row],[Индекс]]),tblData[Индекс],0)),\"\")","v":"Потолочные плиты"}]
[null,null,null,null,null,null,null,null,null,"Грильято",{"$f":"NOT(ISERROR(SEARCH($B$2,tblData[[#This Row],[Модульные кухни]])))","v":true},{"$f":"IF(tblData[[#This Row],[Статус]],COUNTIF($K$2:tblData[[#This Row],[Статус]],TRUE),\"\")","v":432},{"$f":"IFERROR(INDEX(tblData[Модульные кухни],MATCH(ROWS($L$2:tblData[[#This Row],[Индекс]]),tblData[Индекс],0)),\"\")","v":"Грильято"}]
[null,null,null,null,null,null,null,null,null,"Комплектующие для реечных потолков",{"$f":"NOT(ISERROR(SEARCH($B$2,tblData[[#This Row],[Модульные кухни]])))","v":true},{"$f":"IF(tblData[[#This Row],[Статус]],COUNTIF($K$2:tblData[[#This Row],[Статус]],TRUE),\"\")","v":433},{"$f":"IFERROR(INDEX(tblData[Модульные кухни],MATCH(ROWS($L$2:tblData[[#This Row],[Индекс]]),tblData[Индекс],0)),\"\")","v":"Комплектующие для реечных потолков"}]
[null,null,null,null,null,null,null,null,null,"Профили и углы для подвесных потолков",{"$f":"NOT(ISERROR(SEARCH($B$2,tblData[[#This Row],[Модульные кухни]])))","v":true},{"$f":"IF(tblData[[#This Row],[Статус]],COUNTIF($K$2:tblData[[#This Row],[Статус]],TRUE),\"\")","v":434},{"$f":"IFERROR(INDEX(tblData[Модульные кухни],MATCH(ROWS($L$2:tblData[[#This Row],[Индекс]]),tblData[Индекс],0)),\"\")","v":"Профили и углы для подвесных потолков"}]
[null,null,null,null,null,null,null,null,null,"Блоки строительные",{"$f":"NOT(ISERROR(SEARCH($B$2,tblData[[#This Row],[Модульные кухни]])))","v":true},{"$f":"IF(tblData[[#This Row],[Статус]],COUNTIF($K$2:tblData[[#This Row],[Статус]],TRUE),\"\")","v":435},{"$f":"IFERROR(INDEX(tblData[Модульные кухни],MATCH(ROWS($L$2:tblData[[#This Row],[Индекс]]),tblData[Индекс],0)),\"\")","v":"Блоки строительные"}]
[null,null,null,null,null,null,null,null,null,"Кирпич",{"$f":"NOT(ISERROR(SEARCH($B$2,tblData[[#This Row],[Модульные кухни]])))","v":true},{"$f":"IF(tblData[[#This Row],[Статус]],COUNTIF($K$2:tblData[[#This Row],[Статус]],TRUE),\"\")","v":436},{"$f":"IFERROR(INDEX(tblData[Модульные кухни],MATCH(ROWS($L$2:tblData[[#This Row],[Индекс]]),tblData[Индекс],0)),\"\")","v":"Кирпич"}]
[null,null,null,null,null,null,null,null,null,"Плиты пазогребневые",{"$f":"NOT(ISERROR(SEARCH($B$2,tblData[[#This Row],[Модульные кухни]])))","v":true},{"$f":"IF(tblData[[#This Row],[Статус]],COUNTIF($K$2:tblData[[#This Row],[Статус]],TRUE),\"\")","v":437},{"$f":"IFERROR(INDEX(tblData[Модульные кухни],MATCH(ROWS($L$2:tblData[[#This Row],[Индекс]]),tblData[Индекс],0)),\"\")","v":"Плиты пазогребневые"}]
[null,null,null,null,null,null,null,null,null,"Стеклоблоки",{"$f":"NOT(ISERROR(SEARCH($B$2,tblData[[#This Row],[Модульные кухни]])))","v":true},{"$f":"IF(tblData[[#This Row],[Статус]],COUNTIF($K$2:tblData[[#This Row],[Статус]],TRUE),\"\")","v":438},{"$f":"IFERROR(INDEX(tblData[Модульные кухни],MATCH(ROWS($L$2:tblData[[#This Row],[Индекс]]),tblData[Индекс],0)),\"\")","v":"Стеклоблоки"}]
[null,null,null,null,null,null,null,null,null,"Арматура, уголки, трубы",{"$f":"NOT(ISERROR(SEARCH($B$2,tblData[[#This Row],[Модульные кухни]])))","v":true},{"$f":"IF(tblData[[#This Row],[Статус]],COUNTIF($K$2:tblData[[#This Row],[Статус]],TRUE),\"\")","v":439},{"$f":"IFERROR(INDEX(tblData[Модульные кухни],MATCH(ROWS($L$2:tblData[[#This Row],[Индекс]]),tblData[Индекс],0)),\"\")","v":"Арматура, уголки, трубы"}]
[null,null,null,null,null,null,null,null,null,"Строительные сетки",{"$f":"NOT(ISERROR(SEARCH($B$2,tblData[[#This Row],[Модульные кухни]])))","v":true},{"$f":"IF(tblData[[#This Row],[Статус]],COUNTIF($K$2:tblData[[#This Row],[Статус]],TRUE),\"\")","v":440},{"$f":"IFERROR(INDEX(tblData[Модульные кухни],MATCH(ROWS($L$2:tblData[[#This Row],[Индекс]]),tblData[Индекс],0)),\"\")","v":"Строительные сетки"}]
[null,null,null,null,null,null,null,null,null,"Винтовые сваи",{"$f":"NOT(ISERROR(SEARCH($B$2,tblData[[#This Row],[Модульные кухни]])))","v":true},{"$f":"IF(tblData[[#This Row],[Статус]],COUNTIF($K$2:tblData[[#This Row],[Статус]],TRUE),\"\")","v":441},{"$f":"IFERROR(INDEX(tblData[Модульные кухни],MATCH(ROWS($L$2:tblData[[#This Row],[Индекс]]),tblData[Индекс],0)),\"\")","v":"Винтовые сваи"}]
[null,null,null,null,null,null,null,null,null,"Опалубка",{"$f":"NOT(ISERROR(SEARCH($B$2,tblData[[#This Row],[Модульные кухни]])))","v":true},{"$f":"IF(tblData[[#This Row],[Статус]],COUNTIF($K$2:tblData[[#This Row],[Статус]],TRUE),\"\")","v":442},{"$f":"IFERROR(INDEX(tblData[Модульные кухни],MATCH(ROWS($L$2:tblData[[#This Row],[Индекс]]),tblData[Индекс],0)),\"\")","v":"Опалубка"}]
[null,null,null,null,null,null,null,null,null,"Оборудование для работы с арматурой",{"$f":"NOT(ISERROR(SEARCH($B$2,tblData[[#This Row],[Модульные кухни]])))","v":true},{"$f":"IF(tblData[[#This Row],[Статус]],COUNTIF($K$2:tblData[[#This Row],[Статус]],TRUE),\"\")","v":443},{"$f":"IFERROR(INDEX(tblData[Модульные кухни],MATCH(ROWS($L$2:tblData[[#This Row],[Индекс]]),tblData[Индекс],0)),\"\")","v":"Оборудование для работы с арматурой"}]
[null,null,null,null,null,null,null,null,null,"Оборудование для бетонных работ",{"$f":"NOT(ISERROR(SEARCH($B$2,tblData[[#This Row],[Модульные кухни]])))","v":true},{"$f":"IF(tblData[[#This Row],[Статус]],COUNTIF($K$2:tblData[[#This Row],[Статус]],TRUE),\"\")","v":444},{"$f":"IFERROR(INDEX(tblData[Модульные кухни],MATCH(ROWS($L$2:tblData[[#This Row],[Индекс]]),tblData[Индекс],0)),\"\")","v":"Оборудование для бетонных работ"}]
[null,null,null,null,null,null,null,null,null,"Прицепы",{"$f":"NOT(ISERROR(SEARCH($B$2,tblData[[#This Row],[Модульные кухни]])))","v":true},{"$f":"IF(tblData[[#This Row],[Статус]],COUNTIF($K$2:tblData[[#This Row],[Статус]],TRUE),\"\")","v":445},{"$f":"IFERROR(INDEX(tblData[Модульные кухни],MATCH(ROWS($L$2:tblData[[#This Row],[Индекс]]),tblData[Индекс],0)),\"\")","v":"Прицепы"}]
[null,null,null,null,null,null,null,null,null,"Тачки строительные",{"$f":"NOT(ISERROR(SEARCH($B$2,tblData[[#This Row],[Модульные кухни]])))","v":true},{"$f":"IF(tblData[[#This Row],[Статус]],COUNTIF($K$2:tblData[[#This Row],[Статус]],TRUE),\"\")","v":446},{"$f":"IFERROR(INDEX(tblData[Модульные кухни],MATCH(ROWS($L$2:tblData[[#This Row],[Индекс]]),tblData[Индекс],0)),\"\")","v":"Тачки строительные"}]
[null,null,null,null,null,null,null,null,null,"Товары для безопасности на стройке",{"$f":"NOT(ISERROR(SEARCH($B$2,tblData[[#This Row],[Модульные кухни]])))","v":true},{"$f":"IF(tblData[[#This Row],[Статус]],COUNTIF($K$2:tblData[[#This Row],[Статус]],TRUE),\"\")","v":447},{"$f":"IFERROR(INDEX(tblData[Модульные кухни],MATCH(ROWS($L$2:tblData[[#This Row],[Индекс]]),tblData[Индекс],0)),\"\")","v":"Товары для безопасности на стройке"}]
[null,null,null,null,null,null,null,null,null,"Лестницы строительные",{"$f":"NOT(ISERROR(SEARCH($B$2,tblData[[#This Row],[Модульные кухни]])))","v":true},{"$f":"IF(tblData[[#This Row],[Статус]],COUNTIF($K$2:tblData[[#This Row],[Статус]],TRUE),\"\")","v":448},{"$f":"IFERROR(INDEX(tblData[Модульные кухни],MATCH(ROWS($L$2:tblData[[#This Row],[Индекс]]),tblData[Индекс],0)),\"\")","v":"Лестницы строительные"}]
[null,null,null,null,null,null,null,null,null,"Вышки туры",{"$f":"NOT(ISERROR(SEARCH($B$2,tblData[[#This Row],[Модульные кухни]])))","v":true},{"$f":"IF(tblData[[#This Row],[Статус]],COUNTIF($K$2:tblData[[#This Row],[Статус]],TRUE),\"\")","v":449},{"$f":"IFERROR(INDEX(tblData[Модульные кухни],MATCH(ROWS($L$2:tblData[[#This Row],[Индекс]]),tblData[Индекс],0)),\"\")","v":"Вышки туры"}]
[null,null,null,null,null,null,null,null,null,"Леса строительные",{"$f":"NOT(ISERROR(SEARCH($B$2,tblData[[#This Row],[Модульные кухни]])))","v":true},{"$f":"IF(tblData[[#This Row],[Статус]],COUNTIF($K$2:tblData[[#This Row],[Статус]],TRUE),\"\")","v":450},{"$f":"IFERROR(INDEX(tblData[Модульные кухни],MATCH(ROWS($L$2:tblData[[#This Row],[Индекс]]),tblData[Индекс],0)),\"\")","v":"Леса строительные"}]
[null,null,null,null,null,null,null,null,null,"Помосты",{"$f":"NOT(ISERROR(SEARCH($B$2,tblData[[#This Row],[Модульные кухни]])))","v":true},{"$f":"IF(tblData[[#This Row],[Статус]],COUNTIF($K$2:tblData[[#This Row],[Статус]],TRUE),\"\")","v":451},{"$f":"IFERROR(INDEX(tblData[Модульные кухни],MATCH(ROWS($L$2:tblData[[#This Row],[Индекс]]),tblData[Индекс],0)),\"\")","v":"Помосты"}]
[null,null,null,null,null,null,null,null,null,"Камины электрические",{"$f":"NOT(ISERROR(SEARCH($B$2,tblData[[#This Row],[Модульные кухни]])))","v":true},{"$f":"IF(tblData[[#This Row],[Статус]],COUNTIF($K$2:tblData[[#This Row],[Статус]],TRUE),\"\")","v":452},{"$f":"IFERROR(INDEX(tblData[Модульные кухни],MATCH(ROWS($L$2:tblData[[#This Row],[Индекс]]),tblData[Индекс],0)),\"\")","v":"Камины электрические"}]
[null,null,null,null,null,null,null,null,null,"Мешки строительные",{"$f":"NOT(ISERROR(SEARCH($B$2,tblData[[#This Row],[Модульные кухни]])))","v":true},{"$f":"IF(tblData[[#This Row],[Статус]],COUNTIF($K$2:tblData[[#This Row],[Статус]],TRUE),\"\")","v":453},{"$f":"IFERROR(INDEX(tblData[Модульные кухни],MATCH(ROWS($L$2:tblData[[#This Row],[Индекс]]),tblData[Индекс],0)),\"\")","v":"Мешки строительные"}]
[null,null,null,null,null,null,null,null,null,"Пленки строительные",{"$f":"NOT(ISERROR(SEARCH($B$2,tblData[[#This Row],[Модульные кухни]])))","v":true},{"$f":"IF(tblData[[#This Row],[Статус]],COUNTIF($K$2:tblData[[#This Row],[Статус]],TRUE),\"\")","v":454},{"$f":"IFERROR(INDEX(tblData[Модульные кухни],MATCH(ROWS($L$2:tblData[[#This Row],[Индекс]]),tblData[Индекс],0)),\"\")","v":"Пленки строительные"}]
[null,null,null,null,null,null,null,null,null,"Тенты строительные",{"$f":"NOT(ISERROR(SEARCH($B$2,tblData[[#This Row],[Модульные кухни]])))","v":true},{"$f":"IF(tblData[[#This Row],[Статус]],COUNTIF($K$2:tblData[[#This Row],[Статус]],TRUE),\"\")","v":455},{"$f":"IFERROR(INDEX(tblData[Модульные кухни],MATCH(ROWS($L$2:tblData[[#This Row],[Индекс]]),tblData[Индекс],0)),\"\")","v":"Тенты строительные"}]
[null,null,null,null,null,null,null,null,null,"Укрывные фасадные сетки",{"$f":"NOT(ISERROR(SEARCH($B$2,tblData[[#This Row],[Модульные кухни]])))","v":true},{"$f":"IF(tblData[[#This Row],[Статус]],COUNTIF($K$2:tblData[[#This Row],[Статус]],TRUE),\"\")","v":456},{"$f":"IFERROR(INDEX(tblData[Модульные кухни],MATCH(ROWS($L$2:tblData[[#This Row],[Индекс]]),tblData[Индекс],0)),\"\")","v":"Укрывные фасадные сетки"}]
[null,null,null,null,null,null,null,null,null,"Ветошь",{"$f":"NOT(ISERROR(SEARCH($B$2,tblData[[#This Row],[Модульные кухни]])))","v":true},{"$f":"IF(tblData[[#This Row],[Статус]],COUNTIF($K$2:tblData[[#This Row],[Статус]],TRUE),\"\")","v":457},{"$f":"IFERROR(INDEX(tblData[Модульные кухни],MATCH(ROWS($L$2:tblData[[#This Row],[Индекс]]),tblData[Индекс],0)),\"\")","v":"Ветошь"}]
[null,null,null,null,null,null,null,null,null,"Промышленные рукава",{"$f":"NOT(ISERROR(SEARCH($B$2,tblData[[#This Row],[Модульные кухни]])))","v":true},{"$f":"IF(tblData[[#This Row],[Статус]],COUNTIF($K$2:tblData[[#This Row],[Статус]],TRUE),\"\")","v":458},{"$f":"IFERROR(INDEX(tblData[Модульные кухни],MATCH(ROWS($L$2:tblData[[#This Row],[Индекс]]),tblData[Индекс],0)),\"\")","v":"Промышленные рукава"}]
[null,null,null,null,null,null,null,null,null,"Камлоки",{"$f":"NOT(ISERROR(SEARCH($B$2,tblData[[#This Row],[Модульные кухни]])))","v":true},{"$f":"IF(tblData[[#This Row],[Статус]],COUNTIF($K$2:tblData[[#This Row],[Статус]],TRUE),\"\")","v":459},{"$f":"IFERROR(INDEX(tblData[Модульные кухни],MATCH(ROWS($L$2:tblData[[#This Row],[Индекс]]),tblData[Индекс],0)),\"\")","v":"Камлоки"}]
[null,null,null,null,null,null,null,null,null,"Быстроразъемные соединения БРС",{"$f":"NOT(ISERROR(SEARCH($B$2,tblData[[#This Row],[Модульные кухни]])))","v":true},{"$f":"IF(tblData[[#This Row],[Статус]],COUNTIF($K$2:tblData[[#This Row],[Статус]],TRUE),\"\")","v":460},{"$f":"IFERROR(INDEX(tblData[Модульные кухни],MATCH(ROWS($L$2:tblData[[#This Row],[Индекс]]),tblData[Индекс],0)),\"\")","v":"Быстроразъемные соединения БРС"}]
[null,null,null,null,null,null,null,null,null,"Соединительная арматура для промышленных рукавов",{"$f":"NOT(ISERROR(SEARCH($B$2,tblData[[#This Row],[Модульные кухни]])))","v":true},{"$f":"IF(tblData[[#This Row],[Статус]],COUNTIF($K$2:tblData[[#This Row],[Статус]],TRUE),\"\")","v":461},{"$f":"IFERROR(INDEX(tblData[Модульные кухни],MATCH(ROWS($L$2:tblData[[#This Row],[Индекс]]),tblData[Индекс],0)),\"\")","v":"Соединительная арматура для промышленных рукавов"}]
[null,null,null,null,null,null,null,null,null,"Дрели-шуруповерты",{"$f":"NOT(ISERROR(SEARCH($B$2,tblData[[#This Row],[Модульные кухни]])))","v":true},{"$f":"IF(tblData[[#This Row],[Статус]],COUNTIF($K$2:tblData[[#This Row],[Статус]],TRUE),\"\")","v":462},{"$f":"IFERROR(INDEX(tblData[Модульные кухни],MATCH(ROWS($L$2:tblData[[#This Row],[Индекс]]),tblData[Индекс],0)),\"\")","v":"Дрели-шуруповерты"}]
[null,null,null,null,null,null,null,null,null,"Перфораторы",{"$f":"NOT(ISERROR(SEARCH($B$2,tblData[[#This Row],[Модульные кухни]])))","v":true},{"$f":"IF(tblData[[#This Row],[Статус]],COUNTIF($K$2:tblData[[#This Row],[Статус]],TRUE),\"\")","v":463},{"$f":"IFERROR(INDEX(tblData[Модульные кухни],MATCH(ROWS($L$2:tblData[[#This Row],[Индекс]]),tblData[Индекс],0)),\"\")","v":"Перфораторы"}]
[null,null,null,null,null,null,null,null,null,"УШМ (болгарки)",{"$f":"NOT(ISERROR(SEARCH($B$2,tblData[[#This Row],[Модульные кухни]])))","v":true},{"$f":"IF(tblData[[#This Row],[Статус]],COUNTIF($K$2:tblData[[#This Row],[Статус]],TRUE),\"\")","v":464},{"$f":"IFERROR(INDEX(tblData[Модульные кухни],MATCH(ROWS($L$2:tblData[[#This Row],[Индекс]]),tblData[Индекс],0)),\"\")","v":"УШМ (болгарки)"}]
[null,null,null,null,null,null,null,null,null,"Дрели",{"$f":"NOT(ISERROR(SEARCH($B$2,tblData[[#This Row],[Модульные кухни]])))","v":true},{"$f":"IF(tblData[[#This Row],[Статус]],COUNTIF($K$2:tblData[[#This Row],[Статус]],TRUE),\"\")","v":465},{"$f":"IFERROR(INDEX(tblData[Модульные кухни],MATCH(ROWS($L$2:tblData[[#This Row],[Индекс]]),tblData[Индекс],0)),\"\")","v":"Дрели"}]
[null,null,null,null,null,null,null,null,null,"Шлифовальные машины",{"$f":"NOT(ISERROR(SEARCH($B$2,tblData[[#This Row],[Модульные кухни]])))","v":true},{"$f":"IF(tblData[[#This Row],[Статус]],COUNTIF($K$2:tblData[[#This Row],[Статус]],TRUE),\"\")","v":466},{"$f":"IFERROR(INDEX(tblData[Модульные кухни],MATCH(ROWS($L$2:tblData[[#This Row],[Индекс]]),tblData[Индекс],0)),\"\")","v":"Шлифовальные машины"}]
[null,null,null,null,null,null,null,null,null,"Фрезеры",{"$f":"NOT(ISERROR(SEARCH($B$2,tblData[[#This Row],[Модульные кухни]])))","v":true},{"$f":"IF(tblData[[#This Row],[Статус]],COUNTIF($K$2:tblData[[#This Row],[Статус]],TRUE),\"\")","v":467},{"$f":"IFERROR(INDEX(tblData[Модульные кухни],MATCH(ROWS($L$2:tblData[[#This Row],[Индекс]]),tblData[Индекс],0)),\"\")","v":"Фрезеры"}]
[null,null,null,null,null,null,null,null,null,"Электролобзики",{"$f":"NOT(ISERROR(SEARCH($B$2,tblData[[#This Row],[Модульные кухни]])))","v":true},{"$f":"IF(tblData[[#This Row],[Статус]],COUNTIF($K$2:tblData[[#This Row],[Статус]],TRUE),\"\")","v":468},{"$f":"IFERROR(INDEX(tblData[Модульные кухни],MATCH(ROWS($L$2:tblData[[#This Row],[Индекс]]),tblData[Индекс],0)),\"\")","v":"Электролобзики"}]
[null,null,null,null,null,null,null,null,null,"Электрорубанки",{"$f":"NOT(ISERROR(SEARCH($B$2,tblData[[#This Row],[Модульные кухни]])))","v":true},{"$f":"IF(tblData[[#This Row],[Статус]],COUNTIF($K$2:tblData[[#This Row],[Статус]],TRUE),\"\")","v":469},{"$f":"IFERROR(INDEX(tblData[Модульные кухни],MATCH(ROWS($L$2:tblData[[#This Row],[Индекс]]),tblData[Индекс],0)),\"\")","v":"Электрорубанки"}]
[null,null,null,null,null,null,null,null,null,"Граверы",{"$f":"NOT(ISERROR(SEARCH($B$2,tblData[[#This Row],[Модульные кухни]])))","v":true},{"$f":"IF(tblData[[#This Row],[Статус]],COUNTIF($K$2:tblData[[#This Row],[Статус]],TRUE),\"\")","v":470},{"$f":"IFERROR(INDEX(tblData[Модульные кухни],MATCH(ROWS($L$2:tblData[[#This Row],[Индекс]]),tblData[Индекс],0)),\"\")","v":"Граверы"}]
[null,null,null,null,null,null,null,null,null,"Реноваторы",{"$f":"NOT(ISERROR(SEARCH($B$2,tblData[[#This Row],[Модульные кухни]])))","v":true},{"$f":"IF(tblData[[#This Row],[Статус]],COUNTIF($K$2:tblData[[#This Row],[Статус]],TRUE),\"\")","v":471},{"$f":"IFERROR(INDEX(tblData[Модульные кухни],MATCH(ROWS($L$2:tblData[[#This Row],[Индекс]]),tblData[Индекс],0)),\"\")","v":"Реноваторы"}]
[null,null,null,null,null,null,null,null,null,"Краскопульты электрические",{"$f":"NOT(ISERROR(SEARCH($B$2,tblData[[#This Row],[Модульные кухни]])))","v":true},{"$f":"IF(tblData[[#This Row],[Статус]],COUNTIF($K$2:tblData[[#This Row],[Статус]],TRUE),\"\")","v":472},{"$f":"IFERROR(INDEX(tblData[Модульные кухни],MATCH(ROWS($L$2:tblData[[#This Row],[Индекс]]),tblData[Индекс],0)),\"\")","v":"Краскопульты электрические"}]
[null,null,null,null,null,null,null,null,null,"Гайковерты",{"$f":"NOT(ISERROR(SEARCH($B$2,tblData[[#This Row],[Модульные кухни]])))","v":true},{"$f":"IF(tblData[[#This Row],[Статус]],COUNTIF($K$2:tblData[[#This Row],[Статус]],TRUE),\"\")","v":473},{"$f":"IFERROR(INDEX(tblData[Модульные кухни],MATCH(ROWS($L$2:tblData[[#This Row],[Индекс]]),tblData[Индекс],0)),\"\")","v":"Гайковерты"}]
[null,null,null,null,null,null,null,null,null,"Строительные фены",{"$f":"NOT(ISERROR(SEARCH($B$2,tblData[[#This Row],[Модульные кухни]])))","v":true},{"$f":"IF(tblData[[#This Row],[Статус]],COUNTIF($K$2:tblData[[#This Row],[Статус]],TRUE),\"\")","v":474},{"$f":"IFERROR(INDEX(tblData[Модульные кухни],MATCH(ROWS($L$2:tblData[[#This Row],[Индекс]]),tblData[Индекс],0)),\"\")","v":"Строительные фены"}]
[null,null,null,null,null,null,null,null,null,"Миксеры строительные",{"$f":"NOT(ISERROR(SEARCH($B$2,tblData[[#This Row],[Модульные кухни]])))","v":true},{"$f":"IF(tblData[[#This Row],[Статус]],COUNTIF($K$2:tblData[[#This Row],[Статус]],TRUE),\"\")","v":475},{"$f":"IFERROR(INDEX(tblData[Модульные кухни],MATCH(ROWS($L$2:tblData[[#This Row],[Индекс]]),tblData[Индекс],0)),\"\")","v":"Миксеры строительные"}]
[null,null,null,null,null,null,null,null,null,"Штроборезы",{"$f":"NOT(ISERROR(SEARCH($B$2,tblData[[#This Row],[Модульные кухни]])))","v":true},{"$f":"IF(tblData[[#This Row],[Статус]],COUNTIF($K$2:tblData[[#This Row],[Статус]],TRUE),\"\")","v":476},{"$f":"IFERROR(INDEX(tblData[Модульные кухни],MATCH(ROWS($L$2:tblData[[#This Row],[Индекс]]),tblData[Индекс],0)),\"\")","v":"Штроборезы"}]
[null,null,null,null,null,null,null,null,null,"Глубинные вибраторы для бетона",{"$f":"NOT(ISERROR(SEARCH($B$2,tblData[[#This Row],[Модульные кухни]])))","v":true},{"$f":"IF(tblData[[#This Row],[Статус]],COUNTIF($K$2:tblData[[#This Row],[Статус]],TRUE),\"\")","v":477},{"$f":"IFERROR(INDEX(tblData[Модульные кухни],MATCH(ROWS($L$2:tblData[[#This Row],[Индекс]]),tblData[Индекс],0)),\"\")","v":"Глубинные вибраторы для бетона"}]
[null,null,null,null,null,null,null,null,null,"Отбойные молотки",{"$f":"NOT(ISERROR(SEARCH($B$2,tblData[[#This Row],[Модульные кухни]])))","v":true},{"$f":"IF(tblData[[#This Row],[Статус]],COUNTIF($K$2:tblData[[#This Row],[Статус]],TRUE),\"\")","v":478},{"$f":"IFERROR(INDEX(tblData[Модульные кухни],MATCH(ROWS($L$2:tblData[[#This Row],[Индекс]]),tblData[Индекс],0)),\"\")","v":"Отбойные молотки"}]
[null,null,null,null,null,null,null,null,null,"Ножницы электрические",{"$f":"NOT(ISERROR(SEARCH($B$2,tblData[[#This Row],[Модульные кухни]])))","v":true},{"$f":"IF(tblData[[#This Row],[Статус]],COUNTIF($K$2:tblData[[#This Row],[Статус]],TRUE),\"\")","v":479},{"$f":"IFERROR(INDEX(tblData[Модульные кухни],MATCH(ROWS($L$2:tblData[[#This Row],[Индекс]]),tblData[Индекс],0)),\"\")","v":"Ножницы электрические"}]
[null,null,null,null,null,null,null,null,null,"Электроинструменты для различных работ",{"$f":"NOT(ISERROR(SEARCH($B$2,tblData[[#This Row],[Модульные кухни]])))","v":true},{"$f":"IF(tblData[[#This Row],[Статус]],COUNTIF($K$2:tblData[[#This Row],[Статус]],TRUE),\"\")","v":480},{"$f":"IFERROR(INDEX(tblData[Модульные кухни],MATCH(ROWS($L$2:tblData[[#This Row],[Индекс]]),tblData[Индекс],0)),\"\")","v":"Электроинструменты для различных работ"}]
[null,null,null,null,null,null,null,null,null,"Биты и наборы бит для шуруповерта",{"$f":"NOT(ISERROR(SEARCH($B$2,tblData[[#This Row],[Модульные кухни]])))","v":true},{"$f":"IF(tblData[[#This Row],[Статус]],COUNTIF($K$2:tblData[[#This Row],[Статус]],TRUE),\"\")","v":481},{"$f":"IFERROR(INDEX(tblData[Модульные кухни],MATCH(ROWS($L$2:tblData[[#This Row],[Индекс]]),tblData[Индекс],0)),\"\")","v":"Биты и наборы бит для шуруповерта"}]
[null,null,null,null,null,null,null,null,null,"Сверла и наборы сверл",{"$f":"NOT(ISERROR(SEARCH($B$2,tblData[[#This Row],[Модульные кухни]])))","v":true},{"$f":"IF(tblData[[#This Row],[Статус]],COUNTIF($K$2:tblData[[#This Row],[Статус]],TRUE),\"\")","v":482},{"$f":"IFERROR(INDEX(tblData[Модульные кухни],MATCH(ROWS($L$2:tblData[[#This Row],[Индекс]]),tblData[Индекс],0)),\"\")","v":"Сверла и наборы сверл"}]
[null,null,null,null,null,null,null,null,null,"Буры, пики и зубила",{"$f":"NOT(ISERROR(SEARCH($B$2,tblData[[#This Row],[Модульные кухни]])))","v":true},{"$f":"IF(tblData[[#This Row],[Статус]],COUNTIF($K$2:tblData[[#This Row],[Статус]],TRUE),\"\")","v":483},{"$f":"IFERROR(INDEX(tblData[Модульные кухни],MATCH(ROWS($L$2:tblData[[#This Row],[Индекс]]),tblData[Индекс],0)),\"\")","v":"Буры, пики и зубила"}]
[null,null,null,null,null,null,null,null,null,"Отрезные и алмазные диски",{"$f":"NOT(ISERROR(SEARCH($B$2,tblData[[#This Row],[Модульные кухни]])))","v":true},{"$f":"IF(tblData[[#This Row],[Статус]],COUNTIF($K$2:tblData[[#This Row],[Статус]],TRUE),\"\")","v":484},{"$f":"IFERROR(INDEX(tblData[Модульные кухни],MATCH(ROWS($L$2:tblData[[#This Row],[Индекс]]),tblData[Индекс],0)),\"\")","v":"Отрезные и алмазные диски"}]
[null,null,null,null,null,null,null,null,null,"Пильные диски",{"$f":"NOT(ISERROR(SEARCH($B$2,tblData[[#This Row],[Модульные кухни]])))","v":true},{"$f":"IF(tblData[[#This Row],[Статус]],COUNTIF($K$2:tblData[[#This Row],[Статус]],TRUE),\"\")","v":485},{"$f":"IFERROR(INDEX(tblData[Модульные кухни],MATCH(ROWS($L$2:tblData[[#This Row],[Индекс]]),tblData[Индекс],0)),\"\")","v":"Пильные диски"}]
[null,null,null,null,null,null,null,null,null,"Коронки для электроинструментов",{"$f":"NOT(ISERROR(SEARCH($B$2,tblData[[#This Row],[Модульные кухни]])))","v":true},{"$f":"IF(tblData[[#This Row],[Статус]],COUNTIF($K$2:tblData[[#This Row],[Статус]],TRUE),\"\")","v":486},{"$f":"IFERROR(INDEX(tblData[Модульные кухни],MATCH(ROWS($L$2:tblData[[#This Row],[Индекс]]),tblData[Индекс],0)),\"\")","v":"Коронки для электроинструментов"}]
[null,null,null,null,null,null,null,null,null,"Шлифовальные круги и насадки",{"$f":"NOT(ISERROR(SEARCH($B$2,tblData[[#This Row],[Модульные кухни]])))","v":true},{"$f":"IF(tblData[[#This Row],[Статус]],COUNTIF($K$2:tblData[[#This Row],[Статус]],TRUE),\"\")","v":487},{"$f":"IFERROR(INDEX(tblData[Модульные кухни],MATCH(ROWS($L$2:tblData[[#This Row],[Индекс]]),tblData[Индекс],0)),\"\")","v":"Шлифовальные круги и насадки"}]
[null,null,null,null,null,null,null,null,null,"Фрезы по дереву",{"$f":"NOT(ISERROR(SEARCH($B$2,tblData[[#This Row],[Модульные кухни]])))","v":true},{"$f":"IF(tblData[[#This Row],[Статус]],COUNTIF($K$2:tblData[[#This Row],[Статус]],TRUE),\"\")","v":488},{"$f":"IFERROR(INDEX(tblData[Модульные кухни],MATCH(ROWS($L$2:tblData[[#This Row],[Индекс]]),tblData[Индекс],0)),\"\")","v":"Фрезы по дереву"}]
[null,null,null,null,null,null,null,null,null,"Пилки для электролобзиков",{"$f":"NOT(ISERROR(SEARCH($B$2,tblData[[#This Row],[Модульные кухни]])))","v":true},{"$f":"IF(tblData[[#This Row],[Статус]],COUNTIF($K$2:tblData[[#This Row],[Статус]],TRUE),\"\")","v":489},{"$f":"IFERROR(INDEX(tblData[Модульные кухни],MATCH(ROWS($L$2:tblData[[#This Row],[Индекс]]),tblData[Индекс],0)),\"\")","v":"Пилки для электролобзиков"}]
[null,null,null,null,null,null,null,null,null,"Ножи для электрических рубанков",{"$f":"NOT(ISERROR(SEARCH($B$2,tblData[[#This Row],[Модульные кухни]])))","v":true},{"$f":"IF(tblData[[#This Row],[Статус]],COUNTIF($K$2:tblData[[#This Row],[Статус]],TRUE),\"\")","v":490},{"$f":"IFERROR(INDEX(tblData[Модульные кухни],MATCH(ROWS($L$2:tblData[[#This Row],[Индекс]]),tblData[Индекс],0)),\"\")","v":"Ножи для электрических рубанков"}]
[null,null,null,null,null,null,null,null,null,"Насадки для граверов",{"$f":"NOT(ISERROR(SEARCH($B$2,tblData[[#This Row],[Модульные кухни]])))","v":true},{"$f":"IF(tblData[[#This Row],[Статус]],COUNTIF($K$2:tblData[[#This Row],[Статус]],TRUE),\"\")","v":491},{"$f":"IFERROR(INDEX(tblData[Модульные кухни],MATCH(ROWS($L$2:tblData[[#This Row],[Индекс]]),tblData[Индекс],0)),\"\")","v":"Насадки для граверов"}]
[null,null,null,null,null,null,null,null,null,"Насадки для реноваторов",{"$f":"NOT(ISERROR(SEARCH($B$2,tblData[[#This Row],[Модульные кухни]])))","v":true},{"$f":"IF(tblData[[#This Row],[Статус]],COUNTIF($K$2:tblData[[#This Row],[Статус]],TRUE),\"\")","v":492},{"$f":"IFERROR(INDEX(tblData[Модульные кухни],MATCH(ROWS($L$2:tblData[[#This Row],[Индекс]]),tblData[Индекс],0)),\"\")","v":"Насадки для реноваторов"}]
[null,null,null,null,null,null,null,null,null,"Полотна для сабельных пил",{"$f":"NOT(ISERROR(SEARCH($B$2,tblData[[#This Row],[Модульные кухни]])))","v":true},{"$f":"IF(tblData[[#This Row],[Статус]],COUNTIF($K$2:tblData[[#This Row],[Статус]],TRUE),\"\")","v":493},{"$f":"IFERROR(INDEX(tblData[Модульные кухни],MATCH(ROWS($L$2:tblData[[#This Row],[Индекс]]),tblData[Индекс],0)),\"\")","v":"Полотна для сабельных пил"}]
[null,null,null,null,null,null,null,null,null,"Оснастка и комплектующие для строительных фенов",{"$f":"NOT(ISERROR(SEARCH($B$2,tblData[[#This Row],[Модульные кухни]])))","v":true},{"$f":"IF(tblData[[#This Row],[Статус]],COUNTIF($K$2:tblData[[#This Row],[Статус]],TRUE),\"\")","v":494},{"$f":"IFERROR(INDEX(tblData[Модульные кухни],MATCH(ROWS($L$2:tblData[[#This Row],[Индекс]]),tblData[Индекс],0)),\"\")","v":"Оснастка и комплектующие для строительных фенов"}]
[null,null,null,null,null,null,null,null,null,"Аккумуляторы и зарядные устройства для электроинструмента",{"$f":"NOT(ISERROR(SEARCH($B$2,tblData[[#This Row],[Модульные кухни]])))","v":true},{"$f":"IF(tblData[[#This Row],[Статус]],COUNTIF($K$2:tblData[[#This Row],[Статус]],TRUE),\"\")","v":495},{"$f":"IFERROR(INDEX(tblData[Модульные кухни],MATCH(ROWS($L$2:tblData[[#This Row],[Индекс]]),tblData[Индекс],0)),\"\")","v":"Аккумуляторы и зарядные устройства для электроинструмента"}]
[null,null,null,null,null,null,null,null,null,"Стойки для электроинструмента",{"$f":"NOT(ISERROR(SEARCH($B$2,tblData[[#This Row],[Модульные кухни]])))","v":true},{"$f":"IF(tblData[[#This Row],[Статус]],COUNTIF($K$2:tblData[[#This Row],[Статус]],TRUE),\"\")","v":496},{"$f":"IFERROR(INDEX(tblData[Модульные кухни],MATCH(ROWS($L$2:tblData[[#This Row],[Индекс]]),tblData[Индекс],0)),\"\")","v":"Стойки для электроинструмента"}]
[null,null,null,null,null,null,null,null,null,"Комплектующие для дрелей",{"$f":"NOT(ISERROR(SEARCH($B$2,tblData[[#This Row],[Модульные кухни]])))","v":true},{"$f":"IF(tblData[[#This Row],[Статус]],COUNTIF($K$2:tblData[[#This Row],[Статус]],TRUE),\"\")","v":497},{"$f":"IFERROR(INDEX(tblData[Модульные кухни],MATCH(ROWS($L$2:tblData[[#This Row],[Индекс]]),tblData[Индекс],0)),\"\")","v":"Комплектующие для дрелей"}]
[null,null,null,null,null,null,null,null,null,"Патроны для дрелей",{"$f":"NOT(ISERROR(SEARCH($B$2,tblData[[#This Row],[Модульные кухни]])))","v":true},{"$f":"IF(tblData[[#This Row],[Статус]],COUNTIF($K$2:tblData[[#This Row],[Статус]],TRUE),\"\")","v":498},{"$f":"IFERROR(INDEX(tblData[Модульные кухни],MATCH(ROWS($L$2:tblData[[#This Row],[Индекс]]),tblData[Индекс],0)),\"\")","v":"Патроны для дрелей"}]
[null,null,null,null,null,null,null,null,null,"Насадки для дрелей",{"$f":"NOT(ISERROR(SEARCH($B$2,tblData[[#This Row],[Модульные кухни]])))","v":true},{"$f":"IF(tblData[[#This Row],[Статус]],COUNTIF($K$2:tblData[[#This Row],[Статус]],TRUE),\"\")","v":499},{"$f":"IFERROR(INDEX(tblData[Модульные кухни],MATCH(ROWS($L$2:tblData[[#This Row],[Индекс]]),tblData[Индекс],0)),\"\")","v":"Насадки для дрелей"}]
[null,null,null,null,null,null,null,null,null,"Наборы инструментов",{"$f":"NOT(ISERROR(SEARCH($B$2,tblData[[#This Row],[Модульные кухни]])))","v":true},{"$f":"IF(tblData[[#This Row],[Статус]],COUNTIF($K$2:tblData[[#This Row],[Статус]],TRUE),\"\")","v":500},{"$f":"IFERROR(INDEX(tblData[Модульные кухни],MATCH(ROWS($L$2:tblData[[#This Row],[Индекс]]),tblData[Индекс],0)),\"\")","v":"Наборы инструментов"}]
[null,null,null,null,null,null,null,null,null,"Отвертки",{"$f":"NOT(ISERROR(SEARCH($B$2,tblData[[#This Row],[Модульные кухни]])))","v":true},{"$f":"IF(tblData[[#This Row],[Статус]],COUNTIF($K$2:tblData[[#This Row],[Статус]],TRUE),\"\")","v":501},{"$f":"IFERROR(INDEX(tblData[Модульные кухни],MATCH(ROWS($L$2:tblData[[#This Row],[Индекс]]),tblData[Индекс],0)),\"\")","v":"Отвертки"}]
[null,null,null,null,null,null,null,null,null,"Плоскогубцы и пассатижи",{"$f":"NOT(ISERROR(SEARCH($B$2,tblData[[#This Row],[Модульные кухни]])))","v":true},{"$f":"IF(tblData[[#This Row],[Статус]],COUNTIF($K$2:tblData[[#This Row],[Статус]],TRUE),\"\")","v":502},{"$f":"IFERROR(INDEX(tblData[Модульные кухни],MATCH(ROWS($L$2:tblData[[#This Row],[Индекс]]),tblData[Индекс],0)),\"\")","v":"Плоскогубцы и пассатижи"}]
[null,null,null,null,null,null,null,null,null,"Ключи",{"$f":"NOT(ISERROR(SEARCH($B$2,tblData[[#This Row],[Модульные кухни]])))","v":true},{"$f":"IF(tblData[[#This Row],[Статус]],COUNTIF($K$2:tblData[[#This Row],[Статус]],TRUE),\"\")","v":503},{"$f":"IFERROR(INDEX(tblData[Модульные кухни],MATCH(ROWS($L$2:tblData[[#This Row],[Индекс]]),tblData[Индекс],0)),\"\")","v":"Ключи"}]
[null,null,null,null,null,null,null,null,null,"Торцевые головки",{"$f":"NOT(ISERROR(SEARCH($B$2,tblData[[#This Row],[Модульные кухни]])))","v":true},{"$f":"IF(tblData[[#This Row],[Статус]],COUNTIF($K$2:tblData[[#This Row],[Статус]],TRUE),\"\")","v":504},{"$f":"IFERROR(INDEX(tblData[Модульные кухни],MATCH(ROWS($L$2:tblData[[#This Row],[Индекс]]),tblData[Индекс],0)),\"\")","v":"Торцевые головки"}]
[null,null,null,null,null,null,null,null,null,"Ножи строительные",{"$f":"NOT(ISERROR(SEARCH($B$2,tblData[[#This Row],[Модульные кухни]])))","v":true},{"$f":"IF(tblData[[#This Row],[Статус]],COUNTIF($K$2:tblData[[#This Row],[Статус]],TRUE),\"\")","v":505},{"$f":"IFERROR(INDEX(tblData[Модульные кухни],MATCH(ROWS($L$2:tblData[[#This Row],[Индекс]]),tblData[Индекс],0)),\"\")","v":"Ножи строительные"}]
[null,null,null,null,null,null,null,null,null,"Ножницы",{"$f":"NOT(ISERROR(SEARCH($B$2,tblData[[#This Row],[Модульные кухни]])))","v":true},{"$f":"IF(tblData[[#This Row],[Статус]],COUNTIF($K$2:tblData[[#This Row],[Статус]],TRUE),\"\")","v":506},{"$f":"IFERROR(INDEX(tblData[Модульные кухни],MATCH(ROWS($L$2:tblData[[#This Row],[Индекс]]),tblData[Индекс],0)),\"\")","v":"Ножницы"}]
[null,null,null,null,null,null,null,null,null,"Бокорезы и кусачки",{"$f":"NOT(ISERROR(SEARCH($B$2,tblData[[#This Row],[Модульные кухни]])))","v":true},{"$f":"IF(tblData[[#This Row],[Статус]],COUNTIF($K$2:tblData[[#This Row],[Статус]],TRUE),\"\")","v":507},{"$f":"IFERROR(INDEX(tblData[Модульные кухни],MATCH(ROWS($L$2:tblData[[#This Row],[Индекс]]),tblData[Индекс],0)),\"\")","v":"Бокорезы и кусачки"}]
[null,null,null,null,null,null,null,null,null,"Болторезы",{"$f":"NOT(ISERROR(SEARCH($B$2,tblData[[#This Row],[Модульные кухни]])))","v":true},{"$f":"IF(tblData[[#This Row],[Статус]],COUNTIF($K$2:tblData[[#This Row],[Статус]],TRUE),\"\")","v":508},{"$f":"IFERROR(INDEX(tblData[Модульные кухни],MATCH(ROWS($L$2:tblData[[#This Row],[Индекс]]),tblData[Индекс],0)),\"\")","v":"Болторезы"}]
[null,null,null,null,null,null,null,null,null,"Пилы и ножовки",{"$f":"NOT(ISERROR(SEARCH($B$2,tblData[[#This Row],[Модульные кухни]])))","v":true},{"$f":"IF(tblData[[#This Row],[Статус]],COUNTIF($K$2:tblData[[#This Row],[Статус]],TRUE),\"\")","v":509},{"$f":"IFERROR(INDEX(tblData[Модульные кухни],MATCH(ROWS($L$2:tblData[[#This Row],[Индекс]]),tblData[Индекс],0)),\"\")","v":"Пилы и ножовки"}]
[null,null,null,null,null,null,null,null,null,"Молотки",{"$f":"NOT(ISERROR(SEARCH($B$2,tblData[[#This Row],[Модульные кухни]])))","v":true},{"$f":"IF(tblData[[#This Row],[Статус]],COUNTIF($K$2:tblData[[#This Row],[Статус]],TRUE),\"\")","v":510},{"$f":"IFERROR(INDEX(tblData[Модульные кухни],MATCH(ROWS($L$2:tblData[[#This Row],[Индекс]]),tblData[Индекс],0)),\"\")","v":"Молотки"}]
[null,null,null,null,null,null,null,null,null,"Кувалды",{"$f":"NOT(ISERROR(SEARCH($B$2,tblData[[#This Row],[Модульные кухни]])))","v":true},{"$f":"IF(tblData[[#This Row],[Статус]],COUNTIF($K$2:tblData[[#This Row],[Статус]],TRUE),\"\")","v":511},{"$f":"IFERROR(INDEX(tblData[Модульные кухни],MATCH(ROWS($L$2:tblData[[#This Row],[Индекс]]),tblData[Индекс],0)),\"\")","v":"Кувалды"}]
[null,null,null,null,null,null,null,null,null,"Ломы и гвоздодеры",{"$f":"NOT(ISERROR(SEARCH($B$2,tblData[[#This Row],[Модульные кухни]])))","v":true},{"$f":"IF(tblData[[#This Row],[Статус]],COUNTIF($K$2:tblData[[#This Row],[Статус]],TRUE),\"\")","v":512},{"$f":"IFERROR(INDEX(tblData[Модульные кухни],MATCH(ROWS($L$2:tblData[[#This Row],[Индекс]]),tblData[Индекс],0)),\"\")","v":"Ломы и гвоздодеры"}]
[null,null,null,null,null,null,null,null,null,"Кирки",{"$f":"NOT(ISERROR(SEARCH($B$2,tblData[[#This Row],[Модульные кухни]])))","v":true},{"$f":"IF(tblData[[#This Row],[Статус]],COUNTIF($K$2:tblData[[#This Row],[Статус]],TRUE),\"\")","v":513},{"$f":"IFERROR(INDEX(tblData[Модульные кухни],MATCH(ROWS($L$2:tblData[[#This Row],[Индекс]]),tblData[Индекс],0)),\"\")","v":"Кирки"}]
[null,null,null,null,null,null,null,null,null,"Клещи строительные",{"$f":"NOT(ISERROR(SEARCH($B$2,tblData[[#This Row],[Модульные кухни]])))","v":true},{"$f":"IF(tblData[[#This Row],[Статус]],COUNTIF($K$2:tblData[[#This Row],[Статус]],TRUE),\"\")","v":514},{"$f":"IFERROR(INDEX(tblData[Модульные кухни],MATCH(ROWS($L$2:tblData[[#This Row],[Индекс]]),tblData[Индекс],0)),\"\")","v":"Клещи строительные"}]
[null,null,null,null,null,null,null,null,null,"Столярные инструменты",{"$f":"NOT(ISERROR(SEARCH($B$2,tblData[[#This Row],[Модульные кухни]])))","v":true},{"$f":"IF(tblData[[#This Row],[Статус]],COUNTIF($K$2:tblData[[#This Row],[Статус]],TRUE),\"\")","v":515},{"$f":"IFERROR(INDEX(tblData[Модульные кухни],MATCH(ROWS($L$2:tblData[[#This Row],[Индекс]]),tblData[Индекс],0)),\"\")","v":"Столярные инструменты"}]
[null,null,null,null,null,null,null,null,null,"Зубила, кернеры и пробойники",{"$f":"NOT(ISERROR(SEARCH($B$2,tblData[[#This Row],[Модульные кухни]])))","v":true},{"$f":"IF(tblData[[#This Row],[Статус]],COUNTIF($K$2:tblData[[#This Row],[Статус]],TRUE),\"\")","v":516},{"$f":"IFERROR(INDEX(tblData[Модульные кухни],MATCH(ROWS($L$2:tblData[[#This Row],[Индекс]]),tblData[Индекс],0)),\"\")","v":"Зубила, кернеры и пробойники"}]
[null,null,null,null,null,null,null,null,null,"Дыроколы строительные",{"$f":"NOT(ISERROR(SEARCH($B$2,tblData[[#This Row],[Модульные кухни]])))","v":true},{"$f":"IF(tblData[[#This Row],[Статус]],COUNTIF($K$2:tblData[[#This Row],[Статус]],TRUE),\"\")","v":517},{"$f":"IFERROR(INDEX(tblData[Модульные кухни],MATCH(ROWS($L$2:tblData[[#This Row],[Индекс]]),tblData[Индекс],0)),\"\")","v":"Дыроколы строительные"}]
[null,null,null,null,null,null,null,null,null,"Мойки высокого давления",{"$f":"NOT(ISERROR(SEARCH($B$2,tblData[[#This Row],[Модульные кухни]])))","v":true},{"$f":"IF(tblData[[#This Row],[Статус]],COUNTIF($K$2:tblData[[#This Row],[Статус]],TRUE),\"\")","v":518},{"$f":"IFERROR(INDEX(tblData[Модульные кухни],MATCH(ROWS($L$2:tblData[[#This Row],[Индекс]]),tblData[Индекс],0)),\"\")","v":"Мойки высокого давления"}]
[null,null,null,null,null,null,null,null,null,"Пылесосы строительные",{"$f":"NOT(ISERROR(SEARCH($B$2,tblData[[#This Row],[Модульные кухни]])))","v":true},{"$f":"IF(tblData[[#This Row],[Статус]],COUNTIF($K$2:tblData[[#This Row],[Статус]],TRUE),\"\")","v":519},{"$f":"IFERROR(INDEX(tblData[Модульные кухни],MATCH(ROWS($L$2:tblData[[#This Row],[Индекс]]),tblData[Индекс],0)),\"\")","v":"Пылесосы строительные"}]
[null,null,null,null,null,null,null,null,null,"Аксессуары для моек высокого давления",{"$f":"NOT(ISERROR(SEARCH($B$2,tblData[[#This Row],[Модульные кухни]])))","v":true},{"$f":"IF(tblData[[#This Row],[Статус]],COUNTIF($K$2:tblData[[#This Row],[Статус]],TRUE),\"\")","v":520},{"$f":"IFERROR(INDEX(tblData[Модульные кухни],MATCH(ROWS($L$2:tblData[[#This Row],[Индекс]]),tblData[Индекс],0)),\"\")","v":"Аксессуары для моек высокого давления"}]
[null,null,null,null,null,null,null,null,null,"Аксессуары для строительных пылесосов",{"$f":"NOT(ISERROR(SEARCH($B$2,tblData[[#This Row],[Модульные кухни]])))","v":true},{"$f":"IF(tblData[[#This Row],[Статус]],COUNTIF($K$2:tblData[[#This Row],[Статус]],TRUE),\"\")","v":521},{"$f":"IFERROR(INDEX(tblData[Модульные кухни],MATCH(ROWS($L$2:tblData[[#This Row],[Индекс]]),tblData[Индекс],0)),\"\")","v":"Аксессуары для строительных пылесосов"}]
[null,null,null,null,null,null,null,null,null,"Стеклоочистители и пароочистители",{"$f":"NOT(ISERROR(SEARCH($B$2,tblData[[#This Row],[Модульные кухни]])))","v":true},{"$f":"IF(tblData[[#This Row],[Статус]],COUNTIF($K$2:tblData[[#This Row],[Статус]],TRUE),\"\")","v":522},{"$f":"IFERROR(INDEX(tblData[Модульные кухни],MATCH(ROWS($L$2:tblData[[#This Row],[Индекс]]),tblData[Индекс],0)),\"\")","v":"Стеклоочистители и пароочистители"}]
[null,null,null,null,null,null,null,null,null,"Товары для уборки",{"$f":"NOT(ISERROR(SEARCH($B$2,tblData[[#This Row],[Модульные кухни]])))","v":true},{"$f":"IF(tblData[[#This Row],[Статус]],COUNTIF($K$2:tblData[[#This Row],[Статус]],TRUE),\"\")","v":523},{"$f":"IFERROR(INDEX(tblData[Модульные кухни],MATCH(ROWS($L$2:tblData[[#This Row],[Индекс]]),tblData[Индекс],0)),\"\")","v":"Товары для уборки"}]
[null,null,null,null,null,null,null,null,null,"Генераторы",{"$f":"NOT(ISERROR(SEARCH($B$2,tblData[[#This Row],[Модульные кухни]])))","v":true},{"$f":"IF(tblData[[#This Row],[Статус]],COUNTIF($K$2:tblData[[#This Row],[Статус]],TRUE),\"\")","v":524},{"$f":"IFERROR(INDEX(tblData[Модульные кухни],MATCH(ROWS($L$2:tblData[[#This Row],[Индекс]]),tblData[Индекс],0)),\"\")","v":"Генераторы"}]
[null,null,null,null,null,null,null,null,null,"Аксессуары для генераторов",{"$f":"NOT(ISERROR(SEARCH($B$2,tblData[[#This Row],[Модульные кухни]])))","v":true},{"$f":"IF(tblData[[#This Row],[Статус]],COUNTIF($K$2:tblData[[#This Row],[Статус]],TRUE),\"\")","v":525},{"$f":"IFERROR(INDEX(tblData[Модульные кухни],MATCH(ROWS($L$2:tblData[[#This Row],[Индекс]]),tblData[Индекс],0)),\"\")","v":"Аксессуары для генераторов"}]
[null,null,null,null,null,null,null,null,null,"Компрессоры",{"$f":"NOT(ISERROR(SEARCH($B$2,tblData[[#This Row],[Модульные кухни]])))","v":true},{"$f":"IF(tblData[[#This Row],[Статус]],COUNTIF($K$2:tblData[[#This Row],[Статус]],TRUE),\"\")","v":526},{"$f":"IFERROR(INDEX(tblData[Модульные кухни],MATCH(ROWS($L$2:tblData[[#This Row],[Индекс]]),tblData[Индекс],0)),\"\")","v":"Компрессоры"}]
[null,null,null,null,null,null,null,null,null,"Аксессуары для компрессоров",{"$f":"NOT(ISERROR(SEARCH($B$2,tblData[[#This Row],[Модульные кухни]])))","v":true},{"$f":"IF(tblData[[#This Row],[Статус]],COUNTIF($K$2:tblData[[#This Row],[Статус]],TRUE),\"\")","v":527},{"$f":"IFERROR(INDEX(tblData[Модульные кухни],MATCH(ROWS($L$2:tblData[[#This Row],[Индекс]]),tblData[Индекс],0)),\"\")","v":"Аксессуары для компрессоров"}]
[null,null,null,null,null,null,null,null,null,"Пневмоинструменты",{"$f":"NOT(ISERROR(SEARCH($B$2,tblData[[#This Row],[Модульные кухни]])))","v":true},{"$f":"IF(tblData[[#This Row],[Статус]],COUNTIF($K$2:tblData[[#This Row],[Статус]],TRUE),\"\")","v":528},{"$f":"IFERROR(INDEX(tblData[Модульные кухни],MATCH(ROWS($L$2:tblData[[#This Row],[Индекс]]),tblData[Индекс],0)),\"\")","v":"Пневмоинструменты"}]
[null,null,null,null,null,null,null,null,null,"Торцовочные пилы",{"$f":"NOT(ISERROR(SEARCH($B$2,tblData[[#This Row],[Модульные кухни]])))","v":true},{"$f":"IF(tblData[[#This Row],[Статус]],COUNTIF($K$2:tblData[[#This Row],[Статус]],TRUE),\"\")","v":529},{"$f":"IFERROR(INDEX(tblData[Модульные кухни],MATCH(ROWS($L$2:tblData[[#This Row],[Индекс]]),tblData[Индекс],0)),\"\")","v":"Торцовочные пилы"}]
[null,null,null,null,null,null,null,null,null,"Циркулярные пилы",{"$f":"NOT(ISERROR(SEARCH($B$2,tblData[[#This Row],[Модульные кухни]])))","v":true},{"$f":"IF(tblData[[#This Row],[Статус]],COUNTIF($K$2:tblData[[#This Row],[Статус]],TRUE),\"\")","v":530},{"$f":"IFERROR(INDEX(tblData[Модульные кухни],MATCH(ROWS($L$2:tblData[[#This Row],[Индекс]]),tblData[Индекс],0)),\"\")","v":"Циркулярные пилы"}]
[null,null,null,null,null,null,null,null,null,"Сабельные пилы",{"$f":"NOT(ISERROR(SEARCH($B$2,tblData[[#This Row],[Модульные кухни]])))","v":true},{"$f":"IF(tblData[[#This Row],[Статус]],COUNTIF($K$2:tblData[[#This Row],[Статус]],TRUE),\"\")","v":531},{"$f":"IFERROR(INDEX(tblData[Модульные кухни],MATCH(ROWS($L$2:tblData[[#This Row],[Индекс]]),tblData[Индекс],0)),\"\")","v":"Сабельные пилы"}]
[null,null,null,null,null,null,null,null,null,"Пилы ленточные",{"$f":"NOT(ISERROR(SEARCH($B$2,tblData[[#This Row],[Модульные кухни]])))","v":true},{"$f":"IF(tblData[[#This Row],[Статус]],COUNTIF($K$2:tblData[[#This Row],[Статус]],TRUE),\"\")","v":532},{"$f":"IFERROR(INDEX(tblData[Модульные кухни],MATCH(ROWS($L$2:tblData[[#This Row],[Индекс]]),tblData[Индекс],0)),\"\")","v":"Пилы ленточные"}]
[null,null,null,null,null,null,null,null,null,"Монтажные пилы",{"$f":"NOT(ISERROR(SEARCH($B$2,tblData[[#This Row],[Модульные кухни]])))","v":true},{"$f":"IF(tblData[[#This Row],[Статус]],COUNTIF($K$2:tblData[[#This Row],[Статус]],TRUE),\"\")","v":533},{"$f":"IFERROR(INDEX(tblData[Модульные кухни],MATCH(ROWS($L$2:tblData[[#This Row],[Индекс]]),tblData[Индекс],0)),\"\")","v":"Монтажные пилы"}]
[null,null,null,null,null,null,null,null,null,"Сварочные аппараты",{"$f":"NOT(ISERROR(SEARCH($B$2,tblData[[#This Row],[Модульные кухни]])))","v":true},{"$f":"IF(tblData[[#This Row],[Статус]],COUNTIF($K$2:tblData[[#This Row],[Статус]],TRUE),\"\")","v":534},{"$f":"IFERROR(INDEX(tblData[Модульные кухни],MATCH(ROWS($L$2:tblData[[#This Row],[Индекс]]),tblData[Индекс],0)),\"\")","v":"Сварочные аппараты"}]
[null,null,null,null,null,null,null,null,null,"Аксессуары для сварки",{"$f":"NOT(ISERROR(SEARCH($B$2,tblData[[#This Row],[Модульные кухни]])))","v":true},{"$f":"IF(tblData[[#This Row],[Статус]],COUNTIF($K$2:tblData[[#This Row],[Статус]],TRUE),\"\")","v":535},{"$f":"IFERROR(INDEX(tblData[Модульные кухни],MATCH(ROWS($L$2:tblData[[#This Row],[Индекс]]),tblData[Индекс],0)),\"\")","v":"Аксессуары для сварки"}]
[null,null,null,null,null,null,null,null,null,"Маски и перчатки для сварки",{"$f":"NOT(ISERROR(SEARCH($B$2,tblData[[#This Row],[Модульные кухни]])))","v":true},{"$f":"IF(tblData[[#This Row],[Статус]],COUNTIF($K$2:tblData[[#This Row],[Статус]],TRUE),\"\")","v":536},{"$f":"IFERROR(INDEX(tblData[Модульные кухни],MATCH(ROWS($L$2:tblData[[#This Row],[Индекс]]),tblData[Индекс],0)),\"\")","v":"Маски и перчатки для сварки"}]
[null,null,null,null,null,null,null,null,null,"Проволока и электроды для сварки",{"$f":"NOT(ISERROR(SEARCH($B$2,tblData[[#This Row],[Модульные кухни]])))","v":true},{"$f":"IF(tblData[[#This Row],[Статус]],COUNTIF($K$2:tblData[[#This Row],[Статус]],TRUE),\"\")","v":537},{"$f":"IFERROR(INDEX(tblData[Модульные кухни],MATCH(ROWS($L$2:tblData[[#This Row],[Индекс]]),tblData[Индекс],0)),\"\")","v":"Проволока и электроды для сварки"}]
[null,null,null,null,null,null,null,null,null,"Паяльники и аксессуары",{"$f":"NOT(ISERROR(SEARCH($B$2,tblData[[#This Row],[Модульные кухни]])))","v":true},{"$f":"IF(tblData[[#This Row],[Статус]],COUNTIF($K$2:tblData[[#This Row],[Статус]],TRUE),\"\")","v":538},{"$f":"IFERROR(INDEX(tblData[Модульные кухни],MATCH(ROWS($L$2:tblData[[#This Row],[Индекс]]),tblData[Индекс],0)),\"\")","v":"Паяльники и аксессуары"}]
[null,null,null,null,null,null,null,null,null,"Горелки газовые",{"$f":"NOT(ISERROR(SEARCH($B$2,tblData[[#This Row],[Модульные кухни]])))","v":true},{"$f":"IF(tblData[[#This Row],[Статус]],COUNTIF($K$2:tblData[[#This Row],[Статус]],TRUE),\"\")","v":539},{"$f":"IFERROR(INDEX(tblData[Модульные кухни],MATCH(ROWS($L$2:tblData[[#This Row],[Индекс]]),tblData[Индекс],0)),\"\")","v":"Горелки газовые"}]
[null,null,null,null,null,null,null,null,null,"Лампы паяльные",{"$f":"NOT(ISERROR(SEARCH($B$2,tblData[[#This Row],[Модульные кухни]])))","v":true},{"$f":"IF(tblData[[#This Row],[Статус]],COUNTIF($K$2:tblData[[#This Row],[Статус]],TRUE),\"\")","v":540},{"$f":"IFERROR(INDEX(tblData[Модульные кухни],MATCH(ROWS($L$2:tblData[[#This Row],[Индекс]]),tblData[Индекс],0)),\"\")","v":"Лампы паяльные"}]
[null,null,null,null,null,null,null,null,null,"Пильные станки",{"$f":"NOT(ISERROR(SEARCH($B$2,tblData[[#This Row],[Модульные кухни]])))","v":true},{"$f":"IF(tblData[[#This Row],[Статус]],COUNTIF($K$2:tblData[[#This Row],[Статус]],TRUE),\"\")","v":541},{"$f":"IFERROR(INDEX(tblData[Модульные кухни],MATCH(ROWS($L$2:tblData[[#This Row],[Индекс]]),tblData[Индекс],0)),\"\")","v":"Пильные станки"}]
[null,null,null,null,null,null,null,null,null,"Точильные станки",{"$f":"NOT(ISERROR(SEARCH($B$2,tblData[[#This Row],[Модульные кухни]])))","v":true},{"$f":"IF(tblData[[#This Row],[Статус]],COUNTIF($K$2:tblData[[#This Row],[Статус]],TRUE),\"\")","v":542},{"$f":"IFERROR(INDEX(tblData[Модульные кухни],MATCH(ROWS($L$2:tblData[[#This Row],[Индекс]]),tblData[Индекс],0)),\"\")","v":"Точильные станки"}]
[null,null,null,null,null,null,null,null,null,"Шлифовальные станки",{"$f":"NOT(ISERROR(SEARCH($B$2,tblData[[#This Row],[Модульные кухни]])))","v":true},{"$f":"IF(tblData[[#This Row],[Статус]],COUNTIF($K$2:tblData[[#This Row],[Статус]],TRUE),\"\")","v":543},{"$f":"IFERROR(INDEX(tblData[Модульные кухни],MATCH(ROWS($L$2:tblData[[#This Row],[Индекс]]),tblData[Индекс],0)),\"\")","v":"Шлифовальные станки"}]
[null,null,null,null,null,null,null,null,null,"Строгальные станки",{"$f":"NOT(ISERROR(SEARCH($B$2,tblData[[#This Row],[Модульные кухни]])))","v":true},{"$f":"IF(tblData[[#This Row],[Статус]],COUNTIF($K$2:tblData[[#This Row],[Статус]],TRUE),\"\")","v":544},{"$f":"IFERROR(INDEX(tblData[Модульные кухни],MATCH(ROWS($L$2:tblData[[#This Row],[Индекс]]),tblData[Индекс],0)),\"\")","v":"Строгальные станки"}]
[null,null,null,null,null,null,null,null,null,"Токарные станки",{"$f":"NOT(ISERROR(SEARCH($B$2,tblData[[#This Row],[Модульные кухни]])))","v":true},{"$f":"IF(tblData[[#This Row],[Статус]],COUNTIF($K$2:tblData[[#This Row],[Статус]],TRUE),\"\")","v":545},{"$f":"IFERROR(INDEX(tblData[Модульные кухни],MATCH(ROWS($L$2:tblData[[#This Row],[Индекс]]),tblData[Индекс],0)),\"\")","v":"Токарные станки"}]
[null,null,null,null,null,null,null,null,null,"Фрезерные станки",{"$f":"NOT(ISERROR(SEARCH($B$2,tblData[[#This Row],[Модульные кухни]])))","v":true},{"$f":"IF(tblData[[#This Row],[Статус]],COUNTIF($K$2:tblData[[#This Row],[Статус]],TRUE),\"\")","v":546},{"$f":"IFERROR(INDEX(tblData[Модульные кухни],MATCH(ROWS($L$2:tblData[[#This Row],[Индекс]]),tblData[Индекс],0)),\"\")","v":"Фрезерные станки"}]
[null,null,null,null,null,null,null,null,null,"Сверлильные станки",{"$f":"NOT(ISERROR(SEARCH($B$2,tblData[[#This Row],[Модульные кухни]])))","v":true},{"$f":"IF(tblData[[#This Row],[Статус]],COUNTIF($K$2:tblData[[#This Row],[Статус]],TRUE),\"\")","v":547},{"$f":"IFERROR(INDEX(tblData[Модульные кухни],MATCH(ROWS($L$2:tblData[[#This Row],[Индекс]]),tblData[Индекс],0)),\"\")","v":"Сверлильные станки"}]
[null,null,null,null,null,null,null,null,null,"Стружкоотсосы",{"$f":"NOT(ISERROR(SEARCH($B$2,tblData[[#This Row],[Модульные кухни]])))","v":true},{"$f":"IF(tblData[[#This Row],[Статус]],COUNTIF($K$2:tblData[[#This Row],[Статус]],TRUE),\"\")","v":548},{"$f":"IFERROR(INDEX(tblData[Модульные кухни],MATCH(ROWS($L$2:tblData[[#This Row],[Индекс]]),tblData[Индекс],0)),\"\")","v":"Стружкоотсосы"}]
[null,null,null,null,null,null,null,null,null,"Станки для арматуры",{"$f":"NOT(ISERROR(SEARCH($B$2,tblData[[#This Row],[Модульные кухни]])))","v":true},{"$f":"IF(tblData[[#This Row],[Статус]],COUNTIF($K$2:tblData[[#This Row],[Статус]],TRUE),\"\")","v":549},{"$f":"IFERROR(INDEX(tblData[Модульные кухни],MATCH(ROWS($L$2:tblData[[#This Row],[Индекс]]),tblData[Индекс],0)),\"\")","v":"Станки для арматуры"}]
[null,null,null,null,null,null,null,null,null,"Установки алмазного сверления",{"$f":"NOT(ISERROR(SEARCH($B$2,tblData[[#This Row],[Модульные кухни]])))","v":true},{"$f":"IF(tblData[[#This Row],[Статус]],COUNTIF($K$2:tblData[[#This Row],[Статус]],TRUE),\"\")","v":550},{"$f":"IFERROR(INDEX(tblData[Модульные кухни],MATCH(ROWS($L$2:tblData[[#This Row],[Индекс]]),tblData[Индекс],0)),\"\")","v":"Установки алмазного сверления"}]
[null,null,null,null,null,null,null,null,null,"Рулетки измерительные",{"$f":"NOT(ISERROR(SEARCH($B$2,tblData[[#This Row],[Модульные кухни]])))","v":true},{"$f":"IF(tblData[[#This Row],[Статус]],COUNTIF($K$2:tblData[[#This Row],[Статус]],TRUE),\"\")","v":551},{"$f":"IFERROR(INDEX(tblData[Модульные кухни],MATCH(ROWS($L$2:tblData[[#This Row],[Индекс]]),tblData[Индекс],0)),\"\")","v":"Рулетки измерительные"}]
[null,null,null,null,null,null,null,null,null,"Строительные уровни",{"$f":"NOT(ISERROR(SEARCH($B$2,tblData[[#This Row],[Модульные кухни]])))","v":true},{"$f":"IF(tblData[[#This Row],[Статус]],COUNTIF($K$2:tblData[[#This Row],[Статус]],TRUE),\"\")","v":552},{"$f":"IFERROR(INDEX(tblData[Модульные кухни],MATCH(ROWS($L$2:tblData[[#This Row],[Индекс]]),tblData[Индекс],0)),\"\")","v":"Строительные уровни"}]
[null,null,null,null,null,null,null,null,null,"Лазерные уровни",{"$f":"NOT(ISERROR(SEARCH($B$2,tblData[[#This Row],[Модульные кухни]])))","v":true},{"$f":"IF(tblData[[#This Row],[Статус]],COUNTIF($K$2:tblData[[#This Row],[Статус]],TRUE),\"\")","v":553},{"$f":"IFERROR(INDEX(tblData[Модульные кухни],MATCH(ROWS($L$2:tblData[[#This Row],[Индекс]]),tblData[Индекс],0)),\"\")","v":"Лазерные уровни"}]
[null,null,null,null,null,null,null,null,null,"Лазерные рулетки и дальномеры",{"$f":"NOT(ISERROR(SEARCH($B$2,tblData[[#This Row],[Модульные кухни]])))","v":true},{"$f":"IF(tblData[[#This Row],[Статус]],COUNTIF($K$2:tblData[[#This Row],[Статус]],TRUE),\"\")","v":554},{"$f":"IFERROR(INDEX(tblData[Модульные кухни],MATCH(ROWS($L$2:tblData[[#This Row],[Индекс]]),tblData[Индекс],0)),\"\")","v":"Лазерные рулетки и дальномеры"}]
[null,null,null,null,null,null,null,null,null,"Детекторы обнаружения материалов",{"$f":"NOT(ISERROR(SEARCH($B$2,tblData[[#This Row],[Модульные кухни]])))","v":true},{"$f":"IF(tblData[[#This Row],[Статус]],COUNTIF($K$2:tblData[[#This Row],[Статус]],TRUE),\"\")","v":555},{"$f":"IFERROR(INDEX(tblData[Модульные кухни],MATCH(ROWS($L$2:tblData[[#This Row],[Индекс]]),tblData[Индекс],0)),\"\")","v":"Детекторы обнаружения материалов"}]
[null,null,null,null,null,null,null,null,null,"Разметочные инструменты",{"$f":"NOT(ISERROR(SEARCH($B$2,tblData[[#This Row],[Модульные кухни]])))","v":true},{"$f":"IF(tblData[[#This Row],[Статус]],COUNTIF($K$2:tblData[[#This Row],[Статус]],TRUE),\"\")","v":556},{"$f":"IFERROR(INDEX(tblData[Модульные кухни],MATCH(ROWS($L$2:tblData[[#This Row],[Индекс]]),tblData[Индекс],0)),\"\")","v":"Разметочные инструменты"}]
[null,null,null,null,null,null,null,null,null,"Ручные измерительные инструменты",{"$f":"NOT(ISERROR(SEARCH($B$2,tblData[[#This Row],[Модульные кухни]])))","v":true},{"$f":"IF(tblData[[#This Row],[Статус]],COUNTIF($K$2:tblData[[#This Row],[Статус]],TRUE),\"\")","v":557},{"$f":"IFERROR(INDEX(tblData[Модульные кухни],MATCH(ROWS($L$2:tblData[[#This Row],[Индекс]]),tblData[Индекс],0)),\"\")","v":"Ручные измерительные инструменты"}]
[null,null,null,null,null,null,null,null,null,"Пирометры и влагомеры",{"$f":"NOT(ISERROR(SEARCH($B$2,tblData[[#This Row],[Модульные кухни]])))","v":true},{"$f":"IF(tblData[[#This Row],[Статус]],COUNTIF($K$2:tblData[[#This Row],[Статус]],TRUE),\"\")","v":558},{"$f":"IFERROR(INDEX(tblData[Модульные кухни],MATCH(ROWS($L$2:tblData[[#This Row],[Индекс]]),tblData[Индекс],0)),\"\")","v":"Пирометры и влагомеры"}]
[null,null,null,null,null,null,null,null,null,"Штативы для лазерных уровней и нивелиров",{"$f":"NOT(ISERROR(SEARCH($B$2,tblData[[#This Row],[Модульные кухни]])))","v":true},{"$f":"IF(tblData[[#This Row],[Статус]],COUNTIF($K$2:tblData[[#This Row],[Статус]],TRUE),\"\")","v":559},{"$f":"IFERROR(INDEX(tblData[Модульные кухни],MATCH(ROWS($L$2:tblData[[#This Row],[Индекс]]),tblData[Индекс],0)),\"\")","v":"Штативы для лазерных уровней и нивелиров"}]
[null,null,null,null,null,null,null,null,null,"Виброплиты бензиновые",{"$f":"NOT(ISERROR(SEARCH($B$2,tblData[[#This Row],[Модульные кухни]])))","v":true},{"$f":"IF(tblData[[#This Row],[Статус]],COUNTIF($K$2:tblData[[#This Row],[Статус]],TRUE),\"\")","v":560},{"$f":"IFERROR(INDEX(tblData[Модульные кухни],MATCH(ROWS($L$2:tblData[[#This Row],[Индекс]]),tblData[Индекс],0)),\"\")","v":"Виброплиты бензиновые"}]
[null,null,null,null,null,null,null,null,null,"Резчики швов бензиновые",{"$f":"NOT(ISERROR(SEARCH($B$2,tblData[[#This Row],[Модульные кухни]])))","v":true},{"$f":"IF(tblData[[#This Row],[Статус]],COUNTIF($K$2:tblData[[#This Row],[Статус]],TRUE),\"\")","v":561},{"$f":"IFERROR(INDEX(tblData[Модульные кухни],MATCH(ROWS($L$2:tblData[[#This Row],[Индекс]]),tblData[Индекс],0)),\"\")","v":"Резчики швов бензиновые"}]
[null,null,null,null,null,null,null,null,null,"Бензоэлектростанции",{"$f":"NOT(ISERROR(SEARCH($B$2,tblData[[#This Row],[Модульные кухни]])))","v":true},{"$f":"IF(tblData[[#This Row],[Статус]],COUNTIF($K$2:tblData[[#This Row],[Статус]],TRUE),\"\")","v":562},{"$f":"IFERROR(INDEX(tblData[Модульные кухни],MATCH(ROWS($L$2:tblData[[#This Row],[Индекс]]),tblData[Индекс],0)),\"\")","v":"Бензоэлектростанции"}]
[null,null,null,null,null,null,null,null,null,"Бензиновые мойки высокого давления",{"$f":"NOT(ISERROR(SEARCH($B$2,tblData[[#This Row],[Модульные кухни]])))","v":true},{"$f":"IF(tblData[[#This Row],[Статус]],COUNTIF($K$2:tblData[[#This Row],[Статус]],TRUE),\"\")","v":563},{"$f":"IFERROR(INDEX(tblData[Модульные кухни],MATCH(ROWS($L$2:tblData[[#This Row],[Индекс]]),tblData[Индекс],0)),\"\")","v":"Бензиновые мойки высокого давления"}]
[null,null,null,null,null,null,null,null,null,"Машины затирочные по бетону бензиновые",{"$f":"NOT(ISERROR(SEARCH($B$2,tblData[[#This Row],[Модульные кухни]])))","v":true},{"$f":"IF(tblData[[#This Row],[Статус]],COUNTIF($K$2:tblData[[#This Row],[Статус]],TRUE),\"\")","v":564},{"$f":"IFERROR(INDEX(tblData[Модульные кухни],MATCH(ROWS($L$2:tblData[[#This Row],[Индекс]]),tblData[Индекс],0)),\"\")","v":"Машины затирочные по бетону бензиновые"}]
[null,null,null,null,null,null,null,null,null,"Бензиновые виброрейки",{"$f":"NOT(ISERROR(SEARCH($B$2,tblData[[#This Row],[Модульные кухни]])))","v":true},{"$f":"IF(tblData[[#This Row],[Статус]],COUNTIF($K$2:tblData[[#This Row],[Статус]],TRUE),\"\")","v":565},{"$f":"IFERROR(INDEX(tblData[Модульные кухни],MATCH(ROWS($L$2:tblData[[#This Row],[Индекс]]),tblData[Индекс],0)),\"\")","v":"Бензиновые виброрейки"}]
[null,null,null,null,null,null,null,null,null,"Бензорезы",{"$f":"NOT(ISERROR(SEARCH($B$2,tblData[[#This Row],[Модульные кухни]])))","v":true},{"$f":"IF(tblData[[#This Row],[Статус]],COUNTIF($K$2:tblData[[#This Row],[Статус]],TRUE),\"\")","v":566},{"$f":"IFERROR(INDEX(tblData[Модульные кухни],MATCH(ROWS($L$2:tblData[[#This Row],[Индекс]]),tblData[Индекс],0)),\"\")","v":"Бензорезы"}]
[null,null,null,null,null,null,null,null,null,"Ящики и сумки для инструмента",{"$f":"NOT(ISERROR(SEARCH($B$2,tblData[[#This Row],[Модульные кухни]])))","v":true},{"$f":"IF(tblData[[#This Row],[Статус]],COUNTIF($K$2:tblData[[#This Row],[Статус]],TRUE),\"\")","v":567},{"$f":"IFERROR(INDEX(tblData[Модульные кухни],MATCH(ROWS($L$2:tblData[[#This Row],[Индекс]]),tblData[Индекс],0)),\"\")","v":"Ящики и сумки для инструмента"}]
[null,null,null,null,null,null,null,null,null,"Верстаки",{"$f":"NOT(ISERROR(SEARCH($B$2,tblData[[#This Row],[Модульные кухни]])))","v":true},{"$f":"IF(tblData[[#This Row],[Статус]],COUNTIF($K$2:tblData[[#This Row],[Статус]],TRUE),\"\")","v":568},{"$f":"IFERROR(INDEX(tblData[Модульные кухни],MATCH(ROWS($L$2:tblData[[#This Row],[Индекс]]),tblData[Индекс],0)),\"\")","v":"Верстаки"}]
[null,null,null,null,null,null,null,null,null,"Стремянки",{"$f":"NOT(ISERROR(SEARCH($B$2,tblData[[#This Row],[Модульные кухни]])))","v":true},{"$f":"IF(tblData[[#This Row],[Статус]],COUNTIF($K$2:tblData[[#This Row],[Статус]],TRUE),\"\")","v":569},{"$f":"IFERROR(INDEX(tblData[Модульные кухни],MATCH(ROWS($L$2:tblData[[#This Row],[Индекс]]),tblData[Индекс],0)),\"\")","v":"Стремянки"}]
[null,null,null,null,null,null,null,null,null,"Лебедки",{"$f":"NOT(ISERROR(SEARCH($B$2,tblData[[#This Row],[Модульные кухни]])))","v":true},{"$f":"IF(tblData[[#This Row],[Статус]],COUNTIF($K$2:tblData[[#This Row],[Статус]],TRUE),\"\")","v":570},{"$f":"IFERROR(INDEX(tblData[Модульные кухни],MATCH(ROWS($L$2:tblData[[#This Row],[Индекс]]),tblData[Индекс],0)),\"\")","v":"Лебедки"}]
[null,null,null,null,null,null,null,null,null,"Тележки",{"$f":"NOT(ISERROR(SEARCH($B$2,tblData[[#This Row],[Модульные кухни]])))","v":true},{"$f":"IF(tblData[[#This Row],[Статус]],COUNTIF($K$2:tblData[[#This Row],[Статус]],TRUE),\"\")","v":571},{"$f":"IFERROR(INDEX(tblData[Модульные кухни],MATCH(ROWS($L$2:tblData[[#This Row],[Индекс]]),tblData[Индекс],0)),\"\")","v":"Тележки"}]
[null,null,null,null,null,null,null,null,null,"Домкраты",{"$f":"NOT(ISERROR(SEARCH($B$2,tblData[[#This Row],[Модульные кухни]])))","v":true},{"$f":"IF(tblData[[#This Row],[Статус]],COUNTIF($K$2:tblData[[#This Row],[Статус]],TRUE),\"\")","v":572},{"$f":"IFERROR(INDEX(tblData[Модульные кухни],MATCH(ROWS($L$2:tblData[[#This Row],[Индекс]]),tblData[Индекс],0)),\"\")","v":"Домкраты"}]
[null,null,null,null,null,null,null,null,null,"Полки и панели для инструмента",{"$f":"NOT(ISERROR(SEARCH($B$2,tblData[[#This Row],[Модульные кухни]])))","v":true},{"$f":"IF(tblData[[#This Row],[Статус]],COUNTIF($K$2:tblData[[#This Row],[Статус]],TRUE),\"\")","v":573},{"$f":"IFERROR(INDEX(tblData[Модульные кухни],MATCH(ROWS($L$2:tblData[[#This Row],[Индекс]]),tblData[Индекс],0)),\"\")","v":"Полки и панели для инструмента"}]
[null,null,null,null,null,null,null,null,null,"Перчатки рабочие",{"$f":"NOT(ISERROR(SEARCH($B$2,tblData[[#This Row],[Модульные кухни]])))","v":true},{"$f":"IF(tblData[[#This Row],[Статус]],COUNTIF($K$2:tblData[[#This Row],[Статус]],TRUE),\"\")","v":574},{"$f":"IFERROR(INDEX(tblData[Модульные кухни],MATCH(ROWS($L$2:tblData[[#This Row],[Индекс]]),tblData[Индекс],0)),\"\")","v":"Перчатки рабочие"}]
[null,null,null,null,null,null,null,null,null,"Очки защитные",{"$f":"NOT(ISERROR(SEARCH($B$2,tblData[[#This Row],[Модульные кухни]])))","v":true},{"$f":"IF(tblData[[#This Row],[Статус]],COUNTIF($K$2:tblData[[#This Row],[Статус]],TRUE),\"\")","v":575},{"$f":"IFERROR(INDEX(tblData[Модульные кухни],MATCH(ROWS($L$2:tblData[[#This Row],[Индекс]]),tblData[Индекс],0)),\"\")","v":"Очки защитные"}]
[null,null,null,null,null,null,null,null,null,"Респираторы и защитные маски",{"$f":"NOT(ISERROR(SEARCH($B$2,tblData[[#This Row],[Модульные кухни]])))","v":true},{"$f":"IF(tblData[[#This Row],[Статус]],COUNTIF($K$2:tblData[[#This Row],[Статус]],TRUE),\"\")","v":576},{"$f":"IFERROR(INDEX(tblData[Модульные кухни],MATCH(ROWS($L$2:tblData[[#This Row],[Индекс]]),tblData[Индекс],0)),\"\")","v":"Респираторы и защитные маски"}]
[null,null,null,null,null,null,null,null,null,"Каски строительные",{"$f":"NOT(ISERROR(SEARCH($B$2,tblData[[#This Row],[Модульные кухни]])))","v":true},{"$f":"IF(tblData[[#This Row],[Статус]],COUNTIF($K$2:tblData[[#This Row],[Статус]],TRUE),\"\")","v":577},{"$f":"IFERROR(INDEX(tblData[Модульные кухни],MATCH(ROWS($L$2:tblData[[#This Row],[Индекс]]),tblData[Индекс],0)),\"\")","v":"Каски строительные"}]
[null,null,null,null,null,null,null,null,null,"Наушники и беруши противошумные",{"$f":"NOT(ISERROR(SEARCH($B$2,tblData[[#This Row],[Модульные кухни]])))","v":true},{"$f":"IF(tblData[[#This Row],[Статус]],COUNTIF($K$2:tblData[[#This Row],[Статус]],TRUE),\"\")","v":578},{"$f":"IFERROR(INDEX(tblData[Модульные кухни],MATCH(ROWS($L$2:tblData[[#This Row],[Индекс]]),tblData[Индекс],0)),\"\")","v":"Наушники и беруши противошумные"}]
[null,null,null,null,null,null,null,null,null,"Наколенники строительные",{"$f":"NOT(ISERROR(SEARCH($B$2,tblData[[#This Row],[Модульные кухни]])))","v":true},{"$f":"IF(tblData[[#This Row],[Статус]],COUNTIF($K$2:tblData[[#This Row],[Статус]],TRUE),\"\")","v":579},{"$f":"IFERROR(INDEX(tblData[Модульные кухни],MATCH(ROWS($L$2:tblData[[#This Row],[Индекс]]),tblData[Индекс],0)),\"\")","v":"Наколенники строительные"}]
[null,null,null,null,null,null,null,null,null,"Средства защиты от падения с высоты",{"$f":"NOT(ISERROR(SEARCH($B$2,tblData[[#This Row],[Модульные кухни]])))","v":true},{"$f":"IF(tblData[[#This Row],[Статус]],COUNTIF($K$2:tblData[[#This Row],[Статус]],TRUE),\"\")","v":580},{"$f":"IFERROR(INDEX(tblData[Модульные кухни],MATCH(ROWS($L$2:tblData[[#This Row],[Индекс]]),tblData[Индекс],0)),\"\")","v":"Средства защиты от падения с высоты"}]
[null,null,null,null,null,null,null,null,null,"Тиски",{"$f":"NOT(ISERROR(SEARCH($B$2,tblData[[#This Row],[Модульные кухни]])))","v":true},{"$f":"IF(tblData[[#This Row],[Статус]],COUNTIF($K$2:tblData[[#This Row],[Статус]],TRUE),\"\")","v":581},{"$f":"IFERROR(INDEX(tblData[Модульные кухни],MATCH(ROWS($L$2:tblData[[#This Row],[Индекс]]),tblData[Индекс],0)),\"\")","v":"Тиски"}]
[null,null,null,null,null,null,null,null,null,"Струбцины",{"$f":"NOT(ISERROR(SEARCH($B$2,tblData[[#This Row],[Модульные кухни]])))","v":true},{"$f":"IF(tblData[[#This Row],[Статус]],COUNTIF($K$2:tblData[[#This Row],[Статус]],TRUE),\"\")","v":582},{"$f":"IFERROR(INDEX(tblData[Модульные кухни],MATCH(ROWS($L$2:tblData[[#This Row],[Индекс]]),tblData[Индекс],0)),\"\")","v":"Струбцины"}]
[null,null,null,null,null,null,null,null,null,"Пружинные зажимы",{"$f":"NOT(ISERROR(SEARCH($B$2,tblData[[#This Row],[Модульные кухни]])))","v":true},{"$f":"IF(tblData[[#This Row],[Статус]],COUNTIF($K$2:tblData[[#This Row],[Статус]],TRUE),\"\")","v":583},{"$f":"IFERROR(INDEX(tblData[Модульные кухни],MATCH(ROWS($L$2:tblData[[#This Row],[Индекс]]),tblData[Индекс],0)),\"\")","v":"Пружинные зажимы"}]
[null,null,null,null,null,null,null,null,null,"Строительные степлеры",{"$f":"NOT(ISERROR(SEARCH($B$2,tblData[[#This Row],[Модульные кухни]])))","v":true},{"$f":"IF(tblData[[#This Row],[Статус]],COUNTIF($K$2:tblData[[#This Row],[Статус]],TRUE),\"\")","v":584},{"$f":"IFERROR(INDEX(tblData[Модульные кухни],MATCH(ROWS($L$2:tblData[[#This Row],[Индекс]]),tblData[Индекс],0)),\"\")","v":"Строительные степлеры"}]
[null,null,null,null,null,null,null,null,null,"Клеевые пистолеты",{"$f":"NOT(ISERROR(SEARCH($B$2,tblData[[#This Row],[Модульные кухни]])))","v":true},{"$f":"IF(tblData[[#This Row],[Статус]],COUNTIF($K$2:tblData[[#This Row],[Статус]],TRUE),\"\")","v":585},{"$f":"IFERROR(INDEX(tblData[Модульные кухни],MATCH(ROWS($L$2:tblData[[#This Row],[Индекс]]),tblData[Индекс],0)),\"\")","v":"Клеевые пистолеты"}]
[null,null,null,null,null,null,null,null,null,"Заклепочники",{"$f":"NOT(ISERROR(SEARCH($B$2,tblData[[#This Row],[Модульные кухни]])))","v":true},{"$f":"IF(tblData[[#This Row],[Статус]],COUNTIF($K$2:tblData[[#This Row],[Статус]],TRUE),\"\")","v":586},{"$f":"IFERROR(INDEX(tblData[Модульные кухни],MATCH(ROWS($L$2:tblData[[#This Row],[Индекс]]),tblData[Индекс],0)),\"\")","v":"Заклепочники"}]
[null,null,null,null,null,null,null,null,null,"Скобы для строительных степлеров",{"$f":"NOT(ISERROR(SEARCH($B$2,tblData[[#This Row],[Модульные кухни]])))","v":true},{"$f":"IF(tblData[[#This Row],[Статус]],COUNTIF($K$2:tblData[[#This Row],[Статус]],TRUE),\"\")","v":587},{"$f":"IFERROR(INDEX(tblData[Модульные кухни],MATCH(ROWS($L$2:tblData[[#This Row],[Индекс]]),tblData[Индекс],0)),\"\")","v":"Скобы для строительных степлеров"}]
[null,null,null,null,null,null,null,null,null,"Стержни для клеевых пистолетов",{"$f":"NOT(ISERROR(SEARCH($B$2,tblData[[#This Row],[Модульные кухни]])))","v":true},{"$f":"IF(tblData[[#This Row],[Статус]],COUNTIF($K$2:tblData[[#This Row],[Статус]],TRUE),\"\")","v":588},{"$f":"IFERROR(INDEX(tblData[Модульные кухни],MATCH(ROWS($L$2:tblData[[#This Row],[Индекс]]),tblData[Индекс],0)),\"\")","v":"Стержни для клеевых пистолетов"}]
[null,null,null,null,null,null,null,null,null,"Шпатели",{"$f":"NOT(ISERROR(SEARCH($B$2,tblData[[#This Row],[Модульные кухни]])))","v":true},{"$f":"IF(tblData[[#This Row],[Статус]],COUNTIF($K$2:tblData[[#This Row],[Статус]],TRUE),\"\")","v":589},{"$f":"IFERROR(INDEX(tblData[Модульные кухни],MATCH(ROWS($L$2:tblData[[#This Row],[Индекс]]),tblData[Индекс],0)),\"\")","v":"Шпатели"}]
[null,null,null,null,null,null,null,null,null,"Кельмы и расшивки",{"$f":"NOT(ISERROR(SEARCH($B$2,tblData[[#This Row],[Модульные кухни]])))","v":true},{"$f":"IF(tblData[[#This Row],[Статус]],COUNTIF($K$2:tblData[[#This Row],[Статус]],TRUE),\"\")","v":590},{"$f":"IFERROR(INDEX(tblData[Модульные кухни],MATCH(ROWS($L$2:tblData[[#This Row],[Индекс]]),tblData[Индекс],0)),\"\")","v":"Кельмы и расшивки"}]
[null,null,null,null,null,null,null,null,null,"Терки для штукатурки",{"$f":"NOT(ISERROR(SEARCH($B$2,tblData[[#This Row],[Модульные кухни]])))","v":true},{"$f":"IF(tblData[[#This Row],[Статус]],COUNTIF($K$2:tblData[[#This Row],[Статус]],TRUE),\"\")","v":591},{"$f":"IFERROR(INDEX(tblData[Модульные кухни],MATCH(ROWS($L$2:tblData[[#This Row],[Индекс]]),tblData[Индекс],0)),\"\")","v":"Терки для штукатурки"}]
[null,null,null,null,null,null,null,null,null,"Шлифовальные листы",{"$f":"NOT(ISERROR(SEARCH($B$2,tblData[[#This Row],[Модульные кухни]])))","v":true},{"$f":"IF(tblData[[#This Row],[Статус]],COUNTIF($K$2:tblData[[#This Row],[Статус]],TRUE),\"\")","v":592},{"$f":"IFERROR(INDEX(tblData[Модульные кухни],MATCH(ROWS($L$2:tblData[[#This Row],[Индекс]]),tblData[Индекс],0)),\"\")","v":"Шлифовальные листы"}]
[null,null,null,null,null,null,null,null,null,"Правила строительные",{"$f":"NOT(ISERROR(SEARCH($B$2,tblData[[#This Row],[Модульные кухни]])))","v":true},{"$f":"IF(tblData[[#This Row],[Статус]],COUNTIF($K$2:tblData[[#This Row],[Статус]],TRUE),\"\")","v":593},{"$f":"IFERROR(INDEX(tblData[Модульные кухни],MATCH(ROWS($L$2:tblData[[#This Row],[Индекс]]),tblData[Индекс],0)),\"\")","v":"Правила строительные"}]
[null,null,null,null,null,null,null,null,null,"Строительные ведра и емкости",{"$f":"NOT(ISERROR(SEARCH($B$2,tblData[[#This Row],[Модульные кухни]])))","v":true},{"$f":"IF(tblData[[#This Row],[Статус]],COUNTIF($K$2:tblData[[#This Row],[Статус]],TRUE),\"\")","v":594},{"$f":"IFERROR(INDEX(tblData[Модульные кухни],MATCH(ROWS($L$2:tblData[[#This Row],[Индекс]]),tblData[Индекс],0)),\"\")","v":"Строительные ведра и емкости"}]
[null,null,null,null,null,null,null,null,null,"Щетки металлические ручные",{"$f":"NOT(ISERROR(SEARCH($B$2,tblData[[#This Row],[Модульные кухни]])))","v":true},{"$f":"IF(tblData[[#This Row],[Статус]],COUNTIF($K$2:tblData[[#This Row],[Статус]],TRUE),\"\")","v":595},{"$f":"IFERROR(INDEX(tblData[Модульные кухни],MATCH(ROWS($L$2:tblData[[#This Row],[Индекс]]),tblData[Индекс],0)),\"\")","v":"Щетки металлические ручные"}]
[null,null,null,null,null,null,null,null,null,"Валики для ремонта",{"$f":"NOT(ISERROR(SEARCH($B$2,tblData[[#This Row],[Модульные кухни]])))","v":true},{"$f":"IF(tblData[[#This Row],[Статус]],COUNTIF($K$2:tblData[[#This Row],[Статус]],TRUE),\"\")","v":596},{"$f":"IFERROR(INDEX(tblData[Модульные кухни],MATCH(ROWS($L$2:tblData[[#This Row],[Индекс]]),tblData[Индекс],0)),\"\")","v":"Валики для ремонта"}]
[null,null,null,null,null,null,null,null,null,"Пистолеты для герметика",{"$f":"NOT(ISERROR(SEARCH($B$2,tblData[[#This Row],[Модульные кухни]])))","v":true},{"$f":"IF(tblData[[#This Row],[Статус]],COUNTIF($K$2:tblData[[#This Row],[Статус]],TRUE),\"\")","v":597},{"$f":"IFERROR(INDEX(tblData[Модульные кухни],MATCH(ROWS($L$2:tblData[[#This Row],[Индекс]]),tblData[Индекс],0)),\"\")","v":"Пистолеты для герметика"}]
[null,null,null,null,null,null,null,null,null,"Скребки строительные",{"$f":"NOT(ISERROR(SEARCH($B$2,tblData[[#This Row],[Модульные кухни]])))","v":true},{"$f":"IF(tblData[[#This Row],[Статус]],COUNTIF($K$2:tblData[[#This Row],[Статус]],TRUE),\"\")","v":598},{"$f":"IFERROR(INDEX(tblData[Модульные кухни],MATCH(ROWS($L$2:tblData[[#This Row],[Индекс]]),tblData[Индекс],0)),\"\")","v":"Скребки строительные"}]
[null,null,null,null,null,null,null,null,null,"Инструмент для общестроительных работ",{"$f":"NOT(ISERROR(SEARCH($B$2,tblData[[#This Row],[Модульные кухни]])))","v":true},{"$f":"IF(tblData[[#This Row],[Статус]],COUNTIF($K$2:tblData[[#This Row],[Статус]],TRUE),\"\")","v":599},{"$f":"IFERROR(INDEX(tblData[Модульные кухни],MATCH(ROWS($L$2:tblData[[#This Row],[Индекс]]),tblData[Индекс],0)),\"\")","v":"Инструмент для общестроительных работ"}]
[null,null,null,null,null,null,null,null,null,"Инструменты для плитки",{"$f":"NOT(ISERROR(SEARCH($B$2,tblData[[#This Row],[Модульные кухни]])))","v":true},{"$f":"IF(tblData[[#This Row],[Статус]],COUNTIF($K$2:tblData[[#This Row],[Статус]],TRUE),\"\")","v":600},{"$f":"IFERROR(INDEX(tblData[Модульные кухни],MATCH(ROWS($L$2:tblData[[#This Row],[Индекс]]),tblData[Индекс],0)),\"\")","v":"Инструменты для плитки"}]
[null,null,null,null,null,null,null,null,null,"Инструмент для трубных работ",{"$f":"NOT(ISERROR(SEARCH($B$2,tblData[[#This Row],[Модульные кухни]])))","v":true},{"$f":"IF(tblData[[#This Row],[Статус]],COUNTIF($K$2:tblData[[#This Row],[Статус]],TRUE),\"\")","v":601},{"$f":"IFERROR(INDEX(tblData[Модульные кухни],MATCH(ROWS($L$2:tblData[[#This Row],[Индекс]]),tblData[Индекс],0)),\"\")","v":"Инструмент для трубных работ"}]
[null,null,null,null,null,null,null,null,null,"Стеклодомкраты и стеклорезы",{"$f":"NOT(ISERROR(SEARCH($B$2,tblData[[#This Row],[Модульные кухни]])))","v":true},{"$f":"IF(tblData[[#This Row],[Статус]],COUNTIF($K$2:tblData[[#This Row],[Статус]],TRUE),\"\")","v":602},{"$f":"IFERROR(INDEX(tblData[Модульные кухни],MATCH(ROWS($L$2:tblData[[#This Row],[Индекс]]),tblData[Индекс],0)),\"\")","v":"Стеклодомкраты и стеклорезы"}]
[null,null,null,null,null,null,null,null,null,"Инструмент для малярных и отделочных работ",{"$f":"NOT(ISERROR(SEARCH($B$2,tblData[[#This Row],[Модульные кухни]])))","v":true},{"$f":"IF(tblData[[#This Row],[Статус]],COUNTIF($K$2:tblData[[#This Row],[Статус]],TRUE),\"\")","v":603},{"$f":"IFERROR(INDEX(tblData[Модульные кухни],MATCH(ROWS($L$2:tblData[[#This Row],[Индекс]]),tblData[Индекс],0)),\"\")","v":"Инструмент для малярных и отделочных работ"}]
[null,null,null,null,null,null,null,null,null,"Инструменты для точных работ",{"$f":"NOT(ISERROR(SEARCH($B$2,tblData[[#This Row],[Модульные кухни]])))","v":true},{"$f":"IF(tblData[[#This Row],[Статус]],COUNTIF($K$2:tblData[[#This Row],[Статус]],TRUE),\"\")","v":604},{"$f":"IFERROR(INDEX(tblData[Модульные кухни],MATCH(ROWS($L$2:tblData[[#This Row],[Индекс]]),tblData[Индекс],0)),\"\")","v":"Инструменты для точных работ"}]
[null,null,null,null,null,null,null,null,null,"Инструменты для газобетона",{"$f":"NOT(ISERROR(SEARCH($B$2,tblData[[#This Row],[Модульные кухни]])))","v":true},{"$f":"IF(tblData[[#This Row],[Статус]],COUNTIF($K$2:tblData[[#This Row],[Статус]],TRUE),\"\")","v":605},{"$f":"IFERROR(INDEX(tblData[Модульные кухни],MATCH(ROWS($L$2:tblData[[#This Row],[Индекс]]),tblData[Индекс],0)),\"\")","v":"Инструменты для газобетона"}]
[null,null,null,null,null,null,null,null,null,"Инструменты для гипсокартона",{"$f":"NOT(ISERROR(SEARCH($B$2,tblData[[#This Row],[Модульные кухни]])))","v":true},{"$f":"IF(tblData[[#This Row],[Статус]],COUNTIF($K$2:tblData[[#This Row],[Статус]],TRUE),\"\")","v":606},{"$f":"IFERROR(INDEX(tblData[Модульные кухни],MATCH(ROWS($L$2:tblData[[#This Row],[Индекс]]),tblData[Индекс],0)),\"\")","v":"Инструменты для гипсокартона"}]
[null,null,null,null,null,null,null,null,null,"Инструменты для наливного пола",{"$f":"NOT(ISERROR(SEARCH($B$2,tblData[[#This Row],[Модульные кухни]])))","v":true},{"$f":"IF(tblData[[#This Row],[Статус]],COUNTIF($K$2:tblData[[#This Row],[Статус]],TRUE),\"\")","v":607},{"$f":"IFERROR(INDEX(tblData[Модульные кухни],MATCH(ROWS($L$2:tblData[[#This Row],[Индекс]]),tblData[Индекс],0)),\"\")","v":"Инструменты для наливного пола"}]
[null,null,null,null,null,null,null,null,null,"Инструменты для электрики",{"$f":"NOT(ISERROR(SEARCH($B$2,tblData[[#This Row],[Модульные кухни]])))","v":true},{"$f":"IF(tblData[[#This Row],[Статус]],COUNTIF($K$2:tblData[[#This Row],[Статус]],TRUE),\"\")","v":608},{"$f":"IFERROR(INDEX(tblData[Модульные кухни],MATCH(ROWS($L$2:tblData[[#This Row],[Индекс]]),tblData[Индекс],0)),\"\")","v":"Инструменты для электрики"}]
[null,null,null,null,null,null,null,null,null,"Крючки для вязки арматуры",{"$f":"NOT(ISERROR(SEARCH($B$2,tblData[[#This Row],[Модульные кухни]])))","v":true},{"$f":"IF(tblData[[#This Row],[Статус]],COUNTIF($K$2:tblData[[#This Row],[Статус]],TRUE),\"\")","v":609},{"$f":"IFERROR(INDEX(tblData[Модульные кухни],MATCH(ROWS($L$2:tblData[[#This Row],[Индекс]]),tblData[Индекс],0)),\"\")","v":"Крючки для вязки арматуры"}]
[null,null,null,null,null,null,null,null,null,"Подвесные унитазы",{"$f":"NOT(ISERROR(SEARCH($B$2,tblData[[#This Row],[Модульные кухни]])))","v":true},{"$f":"IF(tblData[[#This Row],[Статус]],COUNTIF($K$2:tblData[[#This Row],[Статус]],TRUE),\"\")","v":610},{"$f":"IFERROR(INDEX(tblData[Модульные кухни],MATCH(ROWS($L$2:tblData[[#This Row],[Индекс]]),tblData[Индекс],0)),\"\")","v":"Подвесные унитазы"}]
[null,null,null,null,null,null,null,null,null,"Унитазы-компакт",{"$f":"NOT(ISERROR(SEARCH($B$2,tblData[[#This Row],[Модульные кухни]])))","v":true},{"$f":"IF(tblData[[#This Row],[Статус]],COUNTIF($K$2:tblData[[#This Row],[Статус]],TRUE),\"\")","v":611},{"$f":"IFERROR(INDEX(tblData[Модульные кухни],MATCH(ROWS($L$2:tblData[[#This Row],[Индекс]]),tblData[Индекс],0)),\"\")","v":"Унитазы-компакт"}]
[null,null,null,null,null,null,null,null,null,"Инсталляции для унитазов",{"$f":"NOT(ISERROR(SEARCH($B$2,tblData[[#This Row],[Модульные кухни]])))","v":true},{"$f":"IF(tblData[[#This Row],[Статус]],COUNTIF($K$2:tblData[[#This Row],[Статус]],TRUE),\"\")","v":612},{"$f":"IFERROR(INDEX(tblData[Модульные кухни],MATCH(ROWS($L$2:tblData[[#This Row],[Индекс]]),tblData[Индекс],0)),\"\")","v":"Инсталляции для унитазов"}]
[null,null,null,null,null,null,null,null,null,"Кнопка смыва для инсталляции",{"$f":"NOT(ISERROR(SEARCH($B$2,tblData[[#This Row],[Модульные кухни]])))","v":true},{"$f":"IF(tblData[[#This Row],[Статус]],COUNTIF($K$2:tblData[[#This Row],[Статус]],TRUE),\"\")","v":613},{"$f":"IFERROR(INDEX(tblData[Модульные кухни],MATCH(ROWS($L$2:tblData[[#This Row],[Индекс]]),tblData[Индекс],0)),\"\")","v":"Кнопка смыва для инсталляции"}]
[null,null,null,null,null,null,null,null,null,"Сиденья для унитаза",{"$f":"NOT(ISERROR(SEARCH($B$2,tblData[[#This Row],[Модульные кухни]])))","v":true},{"$f":"IF(tblData[[#This Row],[Статус]],COUNTIF($K$2:tblData[[#This Row],[Статус]],TRUE),\"\")","v":614},{"$f":"IFERROR(INDEX(tblData[Модульные кухни],MATCH(ROWS($L$2:tblData[[#This Row],[Индекс]]),tblData[Индекс],0)),\"\")","v":"Сиденья для унитаза"}]
[null,null,null,null,null,null,null,null,null,"Биде",{"$f":"NOT(ISERROR(SEARCH($B$2,tblData[[#This Row],[Модульные кухни]])))","v":true},{"$f":"IF(tblData[[#This Row],[Статус]],COUNTIF($K$2:tblData[[#This Row],[Статус]],TRUE),\"\")","v":615},{"$f":"IFERROR(INDEX(tblData[Модульные кухни],MATCH(ROWS($L$2:tblData[[#This Row],[Индекс]]),tblData[Индекс],0)),\"\")","v":"Биде"}]
[null,null,null,null,null,null,null,null,null,"Чаши унитазов",{"$f":"NOT(ISERROR(SEARCH($B$2,tblData[[#This Row],[Модульные кухни]])))","v":true},{"$f":"IF(tblData[[#This Row],[Статус]],COUNTIF($K$2:tblData[[#This Row],[Статус]],TRUE),\"\")","v":616},{"$f":"IFERROR(INDEX(tblData[Модульные кухни],MATCH(ROWS($L$2:tblData[[#This Row],[Индекс]]),tblData[Индекс],0)),\"\")","v":"Чаши унитазов"}]
[null,null,null,null,null,null,null,null,null,"Бачки для унитазов",{"$f":"NOT(ISERROR(SEARCH($B$2,tblData[[#This Row],[Модульные кухни]])))","v":true},{"$f":"IF(tblData[[#This Row],[Статус]],COUNTIF($K$2:tblData[[#This Row],[Статус]],TRUE),\"\")","v":617},{"$f":"IFERROR(INDEX(tblData[Модульные кухни],MATCH(ROWS($L$2:tblData[[#This Row],[Индекс]]),tblData[Индекс],0)),\"\")","v":"Бачки для унитазов"}]
[null,null,null,null,null,null,null,null,null,"Писсуары",{"$f":"NOT(ISERROR(SEARCH($B$2,tblData[[#This Row],[Модульные кухни]])))","v":true},{"$f":"IF(tblData[[#This Row],[Статус]],COUNTIF($K$2:tblData[[#This Row],[Статус]],TRUE),\"\")","v":618},{"$f":"IFERROR(INDEX(tblData[Модульные кухни],MATCH(ROWS($L$2:tblData[[#This Row],[Индекс]]),tblData[Индекс],0)),\"\")","v":"Писсуары"}]
[null,null,null,null,null,null,null,null,null,"Комплектующие для унитазов и инсталляций",{"$f":"NOT(ISERROR(SEARCH($B$2,tblData[[#This Row],[Модульные кухни]])))","v":true},{"$f":"IF(tblData[[#This Row],[Статус]],COUNTIF($K$2:tblData[[#This Row],[Статус]],TRUE),\"\")","v":619},{"$f":"IFERROR(INDEX(tblData[Модульные кухни],MATCH(ROWS($L$2:tblData[[#This Row],[Индекс]]),tblData[Индекс],0)),\"\")","v":"Комплектующие для унитазов и инсталляций"}]
[null,null,null,null,null,null,null,null,null,"Ванны",{"$f":"NOT(ISERROR(SEARCH($B$2,tblData[[#This Row],[Модульные кухни]])))","v":true},{"$f":"IF(tblData[[#This Row],[Статус]],COUNTIF($K$2:tblData[[#This Row],[Статус]],TRUE),\"\")","v":620},{"$f":"IFERROR(INDEX(tblData[Модульные кухни],MATCH(ROWS($L$2:tblData[[#This Row],[Индекс]]),tblData[Индекс],0)),\"\")","v":"Ванны"}]
[null,null,null,null,null,null,null,null,null,"Ширмы для ванн",{"$f":"NOT(ISERROR(SEARCH($B$2,tblData[[#This Row],[Модульные кухни]])))","v":true},{"$f":"IF(tblData[[#This Row],[Статус]],COUNTIF($K$2:tblData[[#This Row],[Статус]],TRUE),\"\")","v":621},{"$f":"IFERROR(INDEX(tblData[Модульные кухни],MATCH(ROWS($L$2:tblData[[#This Row],[Индекс]]),tblData[Индекс],0)),\"\")","v":"Ширмы для ванн"}]
[null,null,null,null,null,null,null,null,null,"Экраны под ванну",{"$f":"NOT(ISERROR(SEARCH($B$2,tblData[[#This Row],[Модульные кухни]])))","v":true},{"$f":"IF(tblData[[#This Row],[Статус]],COUNTIF($K$2:tblData[[#This Row],[Статус]],TRUE),\"\")","v":622},{"$f":"IFERROR(INDEX(tblData[Модульные кухни],MATCH(ROWS($L$2:tblData[[#This Row],[Индекс]]),tblData[Индекс],0)),\"\")","v":"Экраны под ванну"}]
[null,null,null,null,null,null,null,null,null,"Комплектующие для ванн",{"$f":"NOT(ISERROR(SEARCH($B$2,tblData[[#This Row],[Модульные кухни]])))","v":true},{"$f":"IF(tblData[[#This Row],[Статус]],COUNTIF($K$2:tblData[[#This Row],[Статус]],TRUE),\"\")","v":623},{"$f":"IFERROR(INDEX(tblData[Модульные кухни],MATCH(ROWS($L$2:tblData[[#This Row],[Индекс]]),tblData[Индекс],0)),\"\")","v":"Комплектующие для ванн"}]
[null,null,null,null,null,null,null,null,null,"Душевые кабины",{"$f":"NOT(ISERROR(SEARCH($B$2,tblData[[#This Row],[Модульные кухни]])))","v":true},{"$f":"IF(tblData[[#This Row],[Статус]],COUNTIF($K$2:tblData[[#This Row],[Статус]],TRUE),\"\")","v":624},{"$f":"IFERROR(INDEX(tblData[Модульные кухни],MATCH(ROWS($L$2:tblData[[#This Row],[Индекс]]),tblData[Индекс],0)),\"\")","v":"Душевые кабины"}]
[null,null,null,null,null,null,null,null,null,"Душевые поддоны",{"$f":"NOT(ISERROR(SEARCH($B$2,tblData[[#This Row],[Модульные кухни]])))","v":true},{"$f":"IF(tblData[[#This Row],[Статус]],COUNTIF($K$2:tblData[[#This Row],[Статус]],TRUE),\"\")","v":625},{"$f":"IFERROR(INDEX(tblData[Модульные кухни],MATCH(ROWS($L$2:tblData[[#This Row],[Индекс]]),tblData[Индекс],0)),\"\")","v":"Душевые поддоны"}]
[null,null,null,null,null,null,null,null,null,"Комплектующие для душевых кабин",{"$f":"NOT(ISERROR(SEARCH($B$2,tblData[[#This Row],[Модульные кухни]])))","v":true},{"$f":"IF(tblData[[#This Row],[Статус]],COUNTIF($K$2:tblData[[#This Row],[Статус]],TRUE),\"\")","v":626},{"$f":"IFERROR(INDEX(tblData[Модульные кухни],MATCH(ROWS($L$2:tblData[[#This Row],[Индекс]]),tblData[Индекс],0)),\"\")","v":"Комплектующие для душевых кабин"}]
[null,null,null,null,null,null,null,null,null,"Раковины для ванной",{"$f":"NOT(ISERROR(SEARCH($B$2,tblData[[#This Row],[Модульные кухни]])))","v":true},{"$f":"IF(tblData[[#This Row],[Статус]],COUNTIF($K$2:tblData[[#This Row],[Статус]],TRUE),\"\")","v":627},{"$f":"IFERROR(INDEX(tblData[Модульные кухни],MATCH(ROWS($L$2:tblData[[#This Row],[Индекс]]),tblData[Индекс],0)),\"\")","v":"Раковины для ванной"}]
[null,null,null,null,null,null,null,null,null,"Столешницы для ванной",{"$f":"NOT(ISERROR(SEARCH($B$2,tblData[[#This Row],[Модульные кухни]])))","v":true},{"$f":"IF(tblData[[#This Row],[Статус]],COUNTIF($K$2:tblData[[#This Row],[Статус]],TRUE),\"\")","v":628},{"$f":"IFERROR(INDEX(tblData[Модульные кухни],MATCH(ROWS($L$2:tblData[[#This Row],[Индекс]]),tblData[Индекс],0)),\"\")","v":"Столешницы для ванной"}]
[null,null,null,null,null,null,null,null,null,"Пьедесталы для раковин в ванную",{"$f":"NOT(ISERROR(SEARCH($B$2,tblData[[#This Row],[Модульные кухни]])))","v":true},{"$f":"IF(tblData[[#This Row],[Статус]],COUNTIF($K$2:tblData[[#This Row],[Статус]],TRUE),\"\")","v":629},{"$f":"IFERROR(INDEX(tblData[Модульные кухни],MATCH(ROWS($L$2:tblData[[#This Row],[Индекс]]),tblData[Индекс],0)),\"\")","v":"Пьедесталы для раковин в ванную"}]
[null,null,null,null,null,null,null,null,null,"Кронштейны для раковины",{"$f":"NOT(ISERROR(SEARCH($B$2,tblData[[#This Row],[Модульные кухни]])))","v":true},{"$f":"IF(tblData[[#This Row],[Статус]],COUNTIF($K$2:tblData[[#This Row],[Статус]],TRUE),\"\")","v":630},{"$f":"IFERROR(INDEX(tblData[Модульные кухни],MATCH(ROWS($L$2:tblData[[#This Row],[Индекс]]),tblData[Индекс],0)),\"\")","v":"Кронштейны для раковины"}]
[null,null,null,null,null,null,null,null,null,"Выпуски и заглушки для раковин",{"$f":"NOT(ISERROR(SEARCH($B$2,tblData[[#This Row],[Модульные кухни]])))","v":true},{"$f":"IF(tblData[[#This Row],[Статус]],COUNTIF($K$2:tblData[[#This Row],[Статус]],TRUE),\"\")","v":631},{"$f":"IFERROR(INDEX(tblData[Модульные кухни],MATCH(ROWS($L$2:tblData[[#This Row],[Индекс]]),tblData[Индекс],0)),\"\")","v":"Выпуски и заглушки для раковин"}]
[null,null,null,null,null,null,null,null,null,"Зеркала в ванную комнату",{"$f":"NOT(ISERROR(SEARCH($B$2,tblData[[#This Row],[Модульные кухни]])))","v":true},{"$f":"IF(tblData[[#This Row],[Статус]],COUNTIF($K$2:tblData[[#This Row],[Статус]],TRUE),\"\")","v":632},{"$f":"IFERROR(INDEX(tblData[Модульные кухни],MATCH(ROWS($L$2:tblData[[#This Row],[Индекс]]),tblData[Индекс],0)),\"\")","v":"Зеркала в ванную комнату"}]
[null,null,null,null,null,null,null,null,null,"Зеркала косметические",{"$f":"NOT(ISERROR(SEARCH($B$2,tblData[[#This Row],[Модульные кухни]])))","v":true},{"$f":"IF(tblData[[#This Row],[Статус]],COUNTIF($K$2:tblData[[#This Row],[Статус]],TRUE),\"\")","v":633},{"$f":"IFERROR(INDEX(tblData[Модульные кухни],MATCH(ROWS($L$2:tblData[[#This Row],[Индекс]]),tblData[Индекс],0)),\"\")","v":"Зеркала косметические"}]
[null,null,null,null,null,null,null,null,null,"Зеркальная плитка",{"$f":"NOT(ISERROR(SEARCH($B$2,tblData[[#This Row],[Модульные кухни]])))","v":true},{"$f":"IF(tblData[[#This Row],[Статус]],COUNTIF($K$2:tblData[[#This Row],[Статус]],TRUE),\"\")","v":634},{"$f":"IFERROR(INDEX(tblData[Модульные кухни],MATCH(ROWS($L$2:tblData[[#This Row],[Индекс]]),tblData[Индекс],0)),\"\")","v":"Зеркальная плитка"}]
[null,null,null,null,null,null,null,null,null,"Крепление и полки для зеркал в ванную",{"$f":"NOT(ISERROR(SEARCH($B$2,tblData[[#This Row],[Модульные кухни]])))","v":true},{"$f":"IF(tblData[[#This Row],[Статус]],COUNTIF($K$2:tblData[[#This Row],[Статус]],TRUE),\"\")","v":635},{"$f":"IFERROR(INDEX(tblData[Модульные кухни],MATCH(ROWS($L$2:tblData[[#This Row],[Индекс]]),tblData[Индекс],0)),\"\")","v":"Крепление и полки для зеркал в ванную"}]
[null,null,null,null,null,null,null,null,null,"Душевые стойки",{"$f":"NOT(ISERROR(SEARCH($B$2,tblData[[#This Row],[Модульные кухни]])))","v":true},{"$f":"IF(tblData[[#This Row],[Статус]],COUNTIF($K$2:tblData[[#This Row],[Статус]],TRUE),\"\")","v":636},{"$f":"IFERROR(INDEX(tblData[Модульные кухни],MATCH(ROWS($L$2:tblData[[#This Row],[Индекс]]),tblData[Индекс],0)),\"\")","v":"Душевые стойки"}]
[null,null,null,null,null,null,null,null,null,"Тропический душ",{"$f":"NOT(ISERROR(SEARCH($B$2,tblData[[#This Row],[Модульные кухни]])))","v":true},{"$f":"IF(tblData[[#This Row],[Статус]],COUNTIF($K$2:tblData[[#This Row],[Статус]],TRUE),\"\")","v":637},{"$f":"IFERROR(INDEX(tblData[Модульные кухни],MATCH(ROWS($L$2:tblData[[#This Row],[Индекс]]),tblData[Индекс],0)),\"\")","v":"Тропический душ"}]
[null,null,null,null,null,null,null,null,null,"Комплекты для душа",{"$f":"NOT(ISERROR(SEARCH($B$2,tblData[[#This Row],[Модульные кухни]])))","v":true},{"$f":"IF(tblData[[#This Row],[Статус]],COUNTIF($K$2:tblData[[#This Row],[Статус]],TRUE),\"\")","v":638},{"$f":"IFERROR(INDEX(tblData[Модульные кухни],MATCH(ROWS($L$2:tblData[[#This Row],[Индекс]]),tblData[Индекс],0)),\"\")","v":"Комплекты для душа"}]
[null,null,null,null,null,null,null,null,null,"Гигиенический душ",{"$f":"NOT(ISERROR(SEARCH($B$2,tblData[[#This Row],[Модульные кухни]])))","v":true},{"$f":"IF(tblData[[#This Row],[Статус]],COUNTIF($K$2:tblData[[#This Row],[Статус]],TRUE),\"\")","v":639},{"$f":"IFERROR(INDEX(tblData[Модульные кухни],MATCH(ROWS($L$2:tblData[[#This Row],[Индекс]]),tblData[Индекс],0)),\"\")","v":"Гигиенический душ"}]
[null,null,null,null,null,null,null,null,null,"Лейки для душа",{"$f":"NOT(ISERROR(SEARCH($B$2,tblData[[#This Row],[Модульные кухни]])))","v":true},{"$f":"IF(tblData[[#This Row],[Статус]],COUNTIF($K$2:tblData[[#This Row],[Статус]],TRUE),\"\")","v":640},{"$f":"IFERROR(INDEX(tblData[Модульные кухни],MATCH(ROWS($L$2:tblData[[#This Row],[Индекс]]),tblData[Индекс],0)),\"\")","v":"Лейки для душа"}]
[null,null,null,null,null,null,null,null,null,"Шланги для душа",{"$f":"NOT(ISERROR(SEARCH($B$2,tblData[[#This Row],[Модульные кухни]])))","v":true},{"$f":"IF(tblData[[#This Row],[Статус]],COUNTIF($K$2:tblData[[#This Row],[Статус]],TRUE),\"\")","v":641},{"$f":"IFERROR(INDEX(tblData[Модульные кухни],MATCH(ROWS($L$2:tblData[[#This Row],[Индекс]]),tblData[Индекс],0)),\"\")","v":"Шланги для душа"}]
[null,null,null,null,null,null,null,null,null,"Комплекты скрытого монтажа",{"$f":"NOT(ISERROR(SEARCH($B$2,tblData[[#This Row],[Модульные кухни]])))","v":true},{"$f":"IF(tblData[[#This Row],[Статус]],COUNTIF($K$2:tblData[[#This Row],[Статус]],TRUE),\"\")","v":642},{"$f":"IFERROR(INDEX(tblData[Модульные кухни],MATCH(ROWS($L$2:tblData[[#This Row],[Индекс]]),tblData[Индекс],0)),\"\")","v":"Комплекты скрытого монтажа"}]
[null,null,null,null,null,null,null,null,null,"Штанги для душа",{"$f":"NOT(ISERROR(SEARCH($B$2,tblData[[#This Row],[Модульные кухни]])))","v":true},{"$f":"IF(tblData[[#This Row],[Статус]],COUNTIF($K$2:tblData[[#This Row],[Статус]],TRUE),\"\")","v":643},{"$f":"IFERROR(INDEX(tblData[Модульные кухни],MATCH(ROWS($L$2:tblData[[#This Row],[Индекс]]),tblData[Индекс],0)),\"\")","v":"Штанги для душа"}]
[null,null,null,null,null,null,null,null,null,"Держатели для душа",{"$f":"NOT(ISERROR(SEARCH($B$2,tblData[[#This Row],[Модульные кухни]])))","v":true},{"$f":"IF(tblData[[#This Row],[Статус]],COUNTIF($K$2:tblData[[#This Row],[Статус]],TRUE),\"\")","v":644},{"$f":"IFERROR(INDEX(tblData[Модульные кухни],MATCH(ROWS($L$2:tblData[[#This Row],[Индекс]]),tblData[Индекс],0)),\"\")","v":"Держатели для душа"}]
[null,null,null,null,null,null,null,null,null,"Изливы для ванны и душа",{"$f":"NOT(ISERROR(SEARCH($B$2,tblData[[#This Row],[Модульные кухни]])))","v":true},{"$f":"IF(tblData[[#This Row],[Статус]],COUNTIF($K$2:tblData[[#This Row],[Статус]],TRUE),\"\")","v":645},{"$f":"IFERROR(INDEX(tblData[Модульные кухни],MATCH(ROWS($L$2:tblData[[#This Row],[Индекс]]),tblData[Индекс],0)),\"\")","v":"Изливы для ванны и душа"}]
[null,null,null,null,null,null,null,null,null,"Шланговое подключение для душа",{"$f":"NOT(ISERROR(SEARCH($B$2,tblData[[#This Row],[Модульные кухни]])))","v":true},{"$f":"IF(tblData[[#This Row],[Статус]],COUNTIF($K$2:tblData[[#This Row],[Статус]],TRUE),\"\")","v":646},{"$f":"IFERROR(INDEX(tblData[Модульные кухни],MATCH(ROWS($L$2:tblData[[#This Row],[Индекс]]),tblData[Индекс],0)),\"\")","v":"Шланговое подключение для душа"}]
[null,null,null,null,null,null,null,null,null,"Смесители для раковин",{"$f":"NOT(ISERROR(SEARCH($B$2,tblData[[#This Row],[Модульные кухни]])))","v":true},{"$f":"IF(tblData[[#This Row],[Статус]],COUNTIF($K$2:tblData[[#This Row],[Статус]],TRUE),\"\")","v":647},{"$f":"IFERROR(INDEX(tblData[Модульные кухни],MATCH(ROWS($L$2:tblData[[#This Row],[Индекс]]),tblData[Индекс],0)),\"\")","v":"Смесители для раковин"}]
[null,null,null,null,null,null,null,null,null,"Смесители для ванны",{"$f":"NOT(ISERROR(SEARCH($B$2,tblData[[#This Row],[Модульные кухни]])))","v":true},{"$f":"IF(tblData[[#This Row],[Статус]],COUNTIF($K$2:tblData[[#This Row],[Статус]],TRUE),\"\")","v":648},{"$f":"IFERROR(INDEX(tblData[Модульные кухни],MATCH(ROWS($L$2:tblData[[#This Row],[Индекс]]),tblData[Индекс],0)),\"\")","v":"Смесители для ванны"}]
[null,null,null,null,null,null,null,null,null,"Смесители с гигиеническим душем",{"$f":"NOT(ISERROR(SEARCH($B$2,tblData[[#This Row],[Модульные кухни]])))","v":true},{"$f":"IF(tblData[[#This Row],[Статус]],COUNTIF($K$2:tblData[[#This Row],[Статус]],TRUE),\"\")","v":649},{"$f":"IFERROR(INDEX(tblData[Модульные кухни],MATCH(ROWS($L$2:tblData[[#This Row],[Индекс]]),tblData[Индекс],0)),\"\")","v":"Смесители с гигиеническим душем"}]
[null,null,null,null,null,null,null,null,null,"Смесители для душа",{"$f":"NOT(ISERROR(SEARCH($B$2,tblData[[#This Row],[Модульные кухни]])))","v":true},{"$f":"IF(tblData[[#This Row],[Статус]],COUNTIF($K$2:tblData[[#This Row],[Статус]],TRUE),\"\")","v":650},{"$f":"IFERROR(INDEX(tblData[Модульные кухни],MATCH(ROWS($L$2:tblData[[#This Row],[Индекс]]),tblData[Индекс],0)),\"\")","v":"Смесители для душа"}]
[null,null,null,null,null,null,null,null,null,"Смесители с термостатом для ванной",{"$f":"NOT(ISERROR(SEARCH($B$2,tblData[[#This Row],[Модульные кухни]])))","v":true},{"$f":"IF(tblData[[#This Row],[Статус]],COUNTIF($K$2:tblData[[#This Row],[Статус]],TRUE),\"\")","v":651},{"$f":"IFERROR(INDEX(tblData[Модульные кухни],MATCH(ROWS($L$2:tblData[[#This Row],[Индекс]]),tblData[Индекс],0)),\"\")","v":"Смесители с термостатом для ванной"}]
[null,null,null,null,null,null,null,null,null,"Смесители скрытого монтажа",{"$f":"NOT(ISERROR(SEARCH($B$2,tblData[[#This Row],[Модульные кухни]])))","v":true},{"$f":"IF(tblData[[#This Row],[Статус]],COUNTIF($K$2:tblData[[#This Row],[Статус]],TRUE),\"\")","v":652},{"$f":"IFERROR(INDEX(tblData[Модульные кухни],MATCH(ROWS($L$2:tblData[[#This Row],[Индекс]]),tblData[Индекс],0)),\"\")","v":"Смесители скрытого монтажа"}]
[null,null,null,null,null,null,null,null,null,"Смесители для биде",{"$f":"NOT(ISERROR(SEARCH($B$2,tblData[[#This Row],[Модульные кухни]])))","v":true},{"$f":"IF(tblData[[#This Row],[Статус]],COUNTIF($K$2:tblData[[#This Row],[Статус]],TRUE),\"\")","v":653},{"$f":"IFERROR(INDEX(tblData[Модульные кухни],MATCH(ROWS($L$2:tblData[[#This Row],[Индекс]]),tblData[Индекс],0)),\"\")","v":"Смесители для биде"}]
[null,null,null,null,null,null,null,null,null,"Аэраторы и изливы для смесителей в ванную",{"$f":"NOT(ISERROR(SEARCH($B$2,tblData[[#This Row],[Модульные кухни]])))","v":true},{"$f":"IF(tblData[[#This Row],[Статус]],COUNTIF($K$2:tblData[[#This Row],[Статус]],TRUE),\"\")","v":654},{"$f":"IFERROR(INDEX(tblData[Модульные кухни],MATCH(ROWS($L$2:tblData[[#This Row],[Индекс]]),tblData[Индекс],0)),\"\")","v":"Аэраторы и изливы для смесителей в ванную"}]
[null,null,null,null,null,null,null,null,null,"Сушилки для белья",{"$f":"NOT(ISERROR(SEARCH($B$2,tblData[[#This Row],[Модульные кухни]])))","v":true},{"$f":"IF(tblData[[#This Row],[Статус]],COUNTIF($K$2:tblData[[#This Row],[Статус]],TRUE),\"\")","v":655},{"$f":"IFERROR(INDEX(tblData[Модульные кухни],MATCH(ROWS($L$2:tblData[[#This Row],[Индекс]]),tblData[Индекс],0)),\"\")","v":"Сушилки для белья"}]
[null,null,null,null,null,null,null,null,null,"Гладильные доски",{"$f":"NOT(ISERROR(SEARCH($B$2,tblData[[#This Row],[Модульные кухни]])))","v":true},{"$f":"IF(tblData[[#This Row],[Статус]],COUNTIF($K$2:tblData[[#This Row],[Статус]],TRUE),\"\")","v":656},{"$f":"IFERROR(INDEX(tblData[Модульные кухни],MATCH(ROWS($L$2:tblData[[#This Row],[Индекс]]),tblData[Индекс],0)),\"\")","v":"Гладильные доски"}]
[null,null,null,null,null,null,null,null,null,"Чехлы и аксессуары для гладильных досок",{"$f":"NOT(ISERROR(SEARCH($B$2,tblData[[#This Row],[Модульные кухни]])))","v":true},{"$f":"IF(tblData[[#This Row],[Статус]],COUNTIF($K$2:tblData[[#This Row],[Статус]],TRUE),\"\")","v":657},{"$f":"IFERROR(INDEX(tblData[Модульные кухни],MATCH(ROWS($L$2:tblData[[#This Row],[Индекс]]),tblData[Индекс],0)),\"\")","v":"Чехлы и аксессуары для гладильных досок"}]
[null,null,null,null,null,null,null,null,null,"Мыльницы",{"$f":"NOT(ISERROR(SEARCH($B$2,tblData[[#This Row],[Модульные кухни]])))","v":true},{"$f":"IF(tblData[[#This Row],[Статус]],COUNTIF($K$2:tblData[[#This Row],[Статус]],TRUE),\"\")","v":658},{"$f":"IFERROR(INDEX(tblData[Модульные кухни],MATCH(ROWS($L$2:tblData[[#This Row],[Индекс]]),tblData[Индекс],0)),\"\")","v":"Мыльницы"}]
[null,null,null,null,null,null,null,null,null,"Полки для ванной",{"$f":"NOT(ISERROR(SEARCH($B$2,tblData[[#This Row],[Модульные кухни]])))","v":true},{"$f":"IF(tblData[[#This Row],[Статус]],COUNTIF($K$2:tblData[[#This Row],[Статус]],TRUE),\"\")","v":659},{"$f":"IFERROR(INDEX(tblData[Модульные кухни],MATCH(ROWS($L$2:tblData[[#This Row],[Индекс]]),tblData[Индекс],0)),\"\")","v":"Полки для ванной"}]
[null,null,null,null,null,null,null,null,null,"Ершики для унитаза",{"$f":"NOT(ISERROR(SEARCH($B$2,tblData[[#This Row],[Модульные кухни]])))","v":true},{"$f":"IF(tblData[[#This Row],[Статус]],COUNTIF($K$2:tblData[[#This Row],[Статус]],TRUE),\"\")","v":660},{"$f":"IFERROR(INDEX(tblData[Модульные кухни],MATCH(ROWS($L$2:tblData[[#This Row],[Индекс]]),tblData[Индекс],0)),\"\")","v":"Ершики для унитаза"}]
[null,null,null,null,null,null,null,null,null,"Дозаторы для мыла",{"$f":"NOT(ISERROR(SEARCH($B$2,tblData[[#This Row],[Модульные кухни]])))","v":true},{"$f":"IF(tblData[[#This Row],[Статус]],COUNTIF($K$2:tblData[[#This Row],[Статус]],TRUE),\"\")","v":661},{"$f":"IFERROR(INDEX(tblData[Модульные кухни],MATCH(ROWS($L$2:tblData[[#This Row],[Индекс]]),tblData[Индекс],0)),\"\")","v":"Дозаторы для мыла"}]
[null,null,null,null,null,null,null,null,null,"Стаканы для зубных щеток",{"$f":"NOT(ISERROR(SEARCH($B$2,tblData[[#This Row],[Модульные кухни]])))","v":true},{"$f":"IF(tblData[[#This Row],[Статус]],COUNTIF($K$2:tblData[[#This Row],[Статус]],TRUE),\"\")","v":662},{"$f":"IFERROR(INDEX(tblData[Модульные кухни],MATCH(ROWS($L$2:tblData[[#This Row],[Индекс]]),tblData[Индекс],0)),\"\")","v":"Стаканы для зубных щеток"}]
[null,null,null,null,null,null,null,null,null,"Наборы аксессуаров для ванной",{"$f":"NOT(ISERROR(SEARCH($B$2,tblData[[#This Row],[Модульные кухни]])))","v":true},{"$f":"IF(tblData[[#This Row],[Статус]],COUNTIF($K$2:tblData[[#This Row],[Статус]],TRUE),\"\")","v":663},{"$f":"IFERROR(INDEX(tblData[Модульные кухни],MATCH(ROWS($L$2:tblData[[#This Row],[Индекс]]),tblData[Индекс],0)),\"\")","v":"Наборы аксессуаров для ванной"}]
[null,null,null,null,null,null,null,null,null,"Крючки для ванной",{"$f":"NOT(ISERROR(SEARCH($B$2,tblData[[#This Row],[Модульные кухни]])))","v":true},{"$f":"IF(tblData[[#This Row],[Статус]],COUNTIF($K$2:tblData[[#This Row],[Статус]],TRUE),\"\")","v":664},{"$f":"IFERROR(INDEX(tblData[Модульные кухни],MATCH(ROWS($L$2:tblData[[#This Row],[Индекс]]),tblData[Индекс],0)),\"\")","v":"Крючки для ванной"}]
[null,null,null,null,null,null,null,null,null,"Вешалки для ванной",{"$f":"NOT(ISERROR(SEARCH($B$2,tblData[[#This Row],[Модульные кухни]])))","v":true},{"$f":"IF(tblData[[#This Row],[Статус]],COUNTIF($K$2:tblData[[#This Row],[Статус]],TRUE),\"\")","v":665},{"$f":"IFERROR(INDEX(tblData[Модульные кухни],MATCH(ROWS($L$2:tblData[[#This Row],[Индекс]]),tblData[Индекс],0)),\"\")","v":"Вешалки для ванной"}]
[null,null,null,null,null,null,null,null,null,"Полотенцедержатели",{"$f":"NOT(ISERROR(SEARCH($B$2,tblData[[#This Row],[Модульные кухни]])))","v":true},{"$f":"IF(tblData[[#This Row],[Статус]],COUNTIF($K$2:tblData[[#This Row],[Статус]],TRUE),\"\")","v":666},{"$f":"IFERROR(INDEX(tblData[Модульные кухни],MATCH(ROWS($L$2:tblData[[#This Row],[Индекс]]),tblData[Индекс],0)),\"\")","v":"Полотенцедержатели"}]
[null,null,null,null,null,null,null,null,null,"Органайзеры для ванной",{"$f":"NOT(ISERROR(SEARCH($B$2,tblData[[#This Row],[Модульные кухни]])))","v":true},{"$f":"IF(tblData[[#This Row],[Статус]],COUNTIF($K$2:tblData[[#This Row],[Статус]],TRUE),\"\")","v":667},{"$f":"IFERROR(INDEX(tblData[Модульные кухни],MATCH(ROWS($L$2:tblData[[#This Row],[Индекс]]),tblData[Индекс],0)),\"\")","v":"Органайзеры для ванной"}]
[null,null,null,null,null,null,null,null,null,"Держатели для фена и дезодоранта",{"$f":"NOT(ISERROR(SEARCH($B$2,tblData[[#This Row],[Модульные кухни]])))","v":true},{"$f":"IF(tblData[[#This Row],[Статус]],COUNTIF($K$2:tblData[[#This Row],[Статус]],TRUE),\"\")","v":668},{"$f":"IFERROR(INDEX(tblData[Модульные кухни],MATCH(ROWS($L$2:tblData[[#This Row],[Индекс]]),tblData[Индекс],0)),\"\")","v":"Держатели для фена и дезодоранта"}]
[null,null,null,null,null,null,null,null,null,"Держатели для туалетной бумаги",{"$f":"NOT(ISERROR(SEARCH($B$2,tblData[[#This Row],[Модульные кухни]])))","v":true},{"$f":"IF(tblData[[#This Row],[Статус]],COUNTIF($K$2:tblData[[#This Row],[Статус]],TRUE),\"\")","v":669},{"$f":"IFERROR(INDEX(tblData[Модульные кухни],MATCH(ROWS($L$2:tblData[[#This Row],[Индекс]]),tblData[Индекс],0)),\"\")","v":"Держатели для туалетной бумаги"}]
[null,null,null,null,null,null,null,null,null,"Стойки для ванной",{"$f":"NOT(ISERROR(SEARCH($B$2,tblData[[#This Row],[Модульные кухни]])))","v":true},{"$f":"IF(tblData[[#This Row],[Статус]],COUNTIF($K$2:tblData[[#This Row],[Статус]],TRUE),\"\")","v":670},{"$f":"IFERROR(INDEX(tblData[Модульные кухни],MATCH(ROWS($L$2:tblData[[#This Row],[Индекс]]),tblData[Индекс],0)),\"\")","v":"Стойки для ванной"}]
[null,null,null,null,null,null,null,null,null,"Аксессуары безопасности",{"$f":"NOT(ISERROR(SEARCH($B$2,tblData[[#This Row],[Модульные кухни]])))","v":true},{"$f":"IF(tblData[[#This Row],[Статус]],COUNTIF($K$2:tblData[[#This Row],[Статус]],TRUE),\"\")","v":671},{"$f":"IFERROR(INDEX(tblData[Модульные кухни],MATCH(ROWS($L$2:tblData[[#This Row],[Индекс]]),tblData[Индекс],0)),\"\")","v":"Аксессуары безопасности"}]
[null,null,null,null,null,null,null,null,null,"Комплектующие для аксессуаров в ванную ",{"$f":"NOT(ISERROR(SEARCH($B$2,tblData[[#This Row],[Модульные кухни]])))","v":true},{"$f":"IF(tblData[[#This Row],[Статус]],COUNTIF($K$2:tblData[[#This Row],[Статус]],TRUE),\"\")","v":672},{"$f":"IFERROR(INDEX(tblData[Модульные кухни],MATCH(ROWS($L$2:tblData[[#This Row],[Индекс]]),tblData[Индекс],0)),\"\")","v":"Комплектующие для аксессуаров в ванную "}]
[null,null,null,null,null,null,null,null,null,"Шторки для ванной",{"$f":"NOT(ISERROR(SEARCH($B$2,tblData[[#This Row],[Модульные кухни]])))","v":true},{"$f":"IF(tblData[[#This Row],[Статус]],COUNTIF($K$2:tblData[[#This Row],[Статус]],TRUE),\"\")","v":673},{"$f":"IFERROR(INDEX(tblData[Модульные кухни],MATCH(ROWS($L$2:tblData[[#This Row],[Индекс]]),tblData[Индекс],0)),\"\")","v":"Шторки для ванной"}]
[null,null,null,null,null,null,null,null,null,"Коврики для ванной",{"$f":"NOT(ISERROR(SEARCH($B$2,tblData[[#This Row],[Модульные кухни]])))","v":true},{"$f":"IF(tblData[[#This Row],[Статус]],COUNTIF($K$2:tblData[[#This Row],[Статус]],TRUE),\"\")","v":674},{"$f":"IFERROR(INDEX(tblData[Модульные кухни],MATCH(ROWS($L$2:tblData[[#This Row],[Индекс]]),tblData[Индекс],0)),\"\")","v":"Коврики для ванной"}]
[null,null,null,null,null,null,null,null,null,"Штанги для шторок в ванную",{"$f":"NOT(ISERROR(SEARCH($B$2,tblData[[#This Row],[Модульные кухни]])))","v":true},{"$f":"IF(tblData[[#This Row],[Статус]],COUNTIF($K$2:tblData[[#This Row],[Статус]],TRUE),\"\")","v":675},{"$f":"IFERROR(INDEX(tblData[Модульные кухни],MATCH(ROWS($L$2:tblData[[#This Row],[Индекс]]),tblData[Индекс],0)),\"\")","v":"Штанги для шторок в ванную"}]
[null,null,null,null,null,null,null,null,null,"Кольца для шторок в ванную",{"$f":"NOT(ISERROR(SEARCH($B$2,tblData[[#This Row],[Модульные кухни]])))","v":true},{"$f":"IF(tblData[[#This Row],[Статус]],COUNTIF($K$2:tblData[[#This Row],[Статус]],TRUE),\"\")","v":676},{"$f":"IFERROR(INDEX(tblData[Модульные кухни],MATCH(ROWS($L$2:tblData[[#This Row],[Индекс]]),tblData[Индекс],0)),\"\")","v":"Кольца для шторок в ванную"}]
[null,null,null,null,null,null,null,null,null,"Корзины для белья",{"$f":"NOT(ISERROR(SEARCH($B$2,tblData[[#This Row],[Модульные кухни]])))","v":true},{"$f":"IF(tblData[[#This Row],[Статус]],COUNTIF($K$2:tblData[[#This Row],[Статус]],TRUE),\"\")","v":677},{"$f":"IFERROR(INDEX(tblData[Модульные кухни],MATCH(ROWS($L$2:tblData[[#This Row],[Индекс]]),tblData[Индекс],0)),\"\")","v":"Корзины для белья"}]
[null,null,null,null,null,null,null,null,null,"Мусорные баки в ванную",{"$f":"NOT(ISERROR(SEARCH($B$2,tblData[[#This Row],[Модульные кухни]])))","v":true},{"$f":"IF(tblData[[#This Row],[Статус]],COUNTIF($K$2:tblData[[#This Row],[Статус]],TRUE),\"\")","v":678},{"$f":"IFERROR(INDEX(tblData[Модульные кухни],MATCH(ROWS($L$2:tblData[[#This Row],[Индекс]]),tblData[Индекс],0)),\"\")","v":"Мусорные баки в ванную"}]
[null,null,null,null,null,null,null,null,null,"Корзины для хранения в ванной",{"$f":"NOT(ISERROR(SEARCH($B$2,tblData[[#This Row],[Модульные кухни]])))","v":true},{"$f":"IF(tblData[[#This Row],[Статус]],COUNTIF($K$2:tblData[[#This Row],[Статус]],TRUE),\"\")","v":679},{"$f":"IFERROR(INDEX(tblData[Модульные кухни],MATCH(ROWS($L$2:tblData[[#This Row],[Индекс]]),tblData[Индекс],0)),\"\")","v":"Корзины для хранения в ванной"}]
[null,null,null,null,null,null,null,null,null,"Мешки для стирки белья",{"$f":"NOT(ISERROR(SEARCH($B$2,tblData[[#This Row],[Модульные кухни]])))","v":true},{"$f":"IF(tblData[[#This Row],[Статус]],COUNTIF($K$2:tblData[[#This Row],[Статус]],TRUE),\"\")","v":680},{"$f":"IFERROR(INDEX(tblData[Модульные кухни],MATCH(ROWS($L$2:tblData[[#This Row],[Индекс]]),tblData[Индекс],0)),\"\")","v":"Мешки для стирки белья"}]
[null,null,null,null,null,null,null,null,null,"Контейнеры для стирального порошка",{"$f":"NOT(ISERROR(SEARCH($B$2,tblData[[#This Row],[Модульные кухни]])))","v":true},{"$f":"IF(tblData[[#This Row],[Статус]],COUNTIF($K$2:tblData[[#This Row],[Статус]],TRUE),\"\")","v":681},{"$f":"IFERROR(INDEX(tblData[Модульные кухни],MATCH(ROWS($L$2:tblData[[#This Row],[Индекс]]),tblData[Индекс],0)),\"\")","v":"Контейнеры для стирального порошка"}]
[null,null,null,null,null,null,null,null,null,"Хранение в ванной комнате",{"$f":"NOT(ISERROR(SEARCH($B$2,tblData[[#This Row],[Модульные кухни]])))","v":true},{"$f":"IF(tblData[[#This Row],[Статус]],COUNTIF($K$2:tblData[[#This Row],[Статус]],TRUE),\"\")","v":682},{"$f":"IFERROR(INDEX(tblData[Модульные кухни],MATCH(ROWS($L$2:tblData[[#This Row],[Индекс]]),tblData[Индекс],0)),\"\")","v":"Хранение в ванной комнате"}]
[null,null,null,null,null,null,null,null,null,"Комфорт и безопасность в ванной комнате",{"$f":"NOT(ISERROR(SEARCH($B$2,tblData[[#This Row],[Модульные кухни]])))","v":true},{"$f":"IF(tblData[[#This Row],[Статус]],COUNTIF($K$2:tblData[[#This Row],[Статус]],TRUE),\"\")","v":683},{"$f":"IFERROR(INDEX(tblData[Модульные кухни],MATCH(ROWS($L$2:tblData[[#This Row],[Индекс]]),tblData[Индекс],0)),\"\")","v":"Комфорт и безопасность в ванной комнате"}]
[null,null,null,null,null,null,null,null,null,"Обустройство ванной",{"$f":"NOT(ISERROR(SEARCH($B$2,tblData[[#This Row],[Модульные кухни]])))","v":true},{"$f":"IF(tblData[[#This Row],[Статус]],COUNTIF($K$2:tblData[[#This Row],[Статус]],TRUE),\"\")","v":684},{"$f":"IFERROR(INDEX(tblData[Модульные кухни],MATCH(ROWS($L$2:tblData[[#This Row],[Индекс]]),tblData[Индекс],0)),\"\")","v":"Обустройство ванной"}]
[null,null,null,null,null,null,null,null,null,"Стирка и сушка белья",{"$f":"NOT(ISERROR(SEARCH($B$2,tblData[[#This Row],[Модульные кухни]])))","v":true},{"$f":"IF(tblData[[#This Row],[Статус]],COUNTIF($K$2:tblData[[#This Row],[Статус]],TRUE),\"\")","v":685},{"$f":"IFERROR(INDEX(tblData[Модульные кухни],MATCH(ROWS($L$2:tblData[[#This Row],[Индекс]]),tblData[Индекс],0)),\"\")","v":"Стирка и сушка белья"}]
[null,null,null,null,null,null,null,null,null,"Краски для стен и потолков",{"$f":"NOT(ISERROR(SEARCH($B$2,tblData[[#This Row],[Модульные кухни]])))","v":true},{"$f":"IF(tblData[[#This Row],[Статус]],COUNTIF($K$2:tblData[[#This Row],[Статус]],TRUE),\"\")","v":686},{"$f":"IFERROR(INDEX(tblData[Модульные кухни],MATCH(ROWS($L$2:tblData[[#This Row],[Индекс]]),tblData[Индекс],0)),\"\")","v":"Краски для стен и потолков"}]
[null,null,null,null,null,null,null,null,null,"Жидкие обои",{"$f":"NOT(ISERROR(SEARCH($B$2,tblData[[#This Row],[Модульные кухни]])))","v":true},{"$f":"IF(tblData[[#This Row],[Статус]],COUNTIF($K$2:tblData[[#This Row],[Статус]],TRUE),\"\")","v":687},{"$f":"IFERROR(INDEX(tblData[Модульные кухни],MATCH(ROWS($L$2:tblData[[#This Row],[Индекс]]),tblData[Индекс],0)),\"\")","v":"Жидкие обои"}]
[null,null,null,null,null,null,null,null,null,"Краски для пола",{"$f":"NOT(ISERROR(SEARCH($B$2,tblData[[#This Row],[Модульные кухни]])))","v":true},{"$f":"IF(tblData[[#This Row],[Статус]],COUNTIF($K$2:tblData[[#This Row],[Статус]],TRUE),\"\")","v":688},{"$f":"IFERROR(INDEX(tblData[Модульные кухни],MATCH(ROWS($L$2:tblData[[#This Row],[Индекс]]),tblData[Индекс],0)),\"\")","v":"Краски для пола"}]
[null,null,null,null,null,null,null,null,null,"Колеры для краски",{"$f":"NOT(ISERROR(SEARCH($B$2,tblData[[#This Row],[Модульные кухни]])))","v":true},{"$f":"IF(tblData[[#This Row],[Статус]],COUNTIF($K$2:tblData[[#This Row],[Статус]],TRUE),\"\")","v":689},{"$f":"IFERROR(INDEX(tblData[Модульные кухни],MATCH(ROWS($L$2:tblData[[#This Row],[Индекс]]),tblData[Индекс],0)),\"\")","v":"Колеры для краски"}]
[null,null,null,null,null,null,null,null,null,"Пена монтажная",{"$f":"NOT(ISERROR(SEARCH($B$2,tblData[[#This Row],[Модульные кухни]])))","v":true},{"$f":"IF(tblData[[#This Row],[Статус]],COUNTIF($K$2:tblData[[#This Row],[Статус]],TRUE),\"\")","v":690},{"$f":"IFERROR(INDEX(tblData[Модульные кухни],MATCH(ROWS($L$2:tblData[[#This Row],[Индекс]]),tblData[Индекс],0)),\"\")","v":"Пена монтажная"}]
[null,null,null,null,null,null,null,null,null,"Герметики",{"$f":"NOT(ISERROR(SEARCH($B$2,tblData[[#This Row],[Модульные кухни]])))","v":true},{"$f":"IF(tblData[[#This Row],[Статус]],COUNTIF($K$2:tblData[[#This Row],[Статус]],TRUE),\"\")","v":691},{"$f":"IFERROR(INDEX(tblData[Модульные кухни],MATCH(ROWS($L$2:tblData[[#This Row],[Индекс]]),tblData[Индекс],0)),\"\")","v":"Герметики"}]
[null,null,null,null,null,null,null,null,null,"Уплотнитель для окон и дверей",{"$f":"NOT(ISERROR(SEARCH($B$2,tblData[[#This Row],[Модульные кухни]])))","v":true},{"$f":"IF(tblData[[#This Row],[Статус]],COUNTIF($K$2:tblData[[#This Row],[Статус]],TRUE),\"\")","v":692},{"$f":"IFERROR(INDEX(tblData[Модульные кухни],MATCH(ROWS($L$2:tblData[[#This Row],[Индекс]]),tblData[Индекс],0)),\"\")","v":"Уплотнитель для окон и дверей"}]
[null,null,null,null,null,null,null,null,null,"Бордюрная лента для ванны",{"$f":"NOT(ISERROR(SEARCH($B$2,tblData[[#This Row],[Модульные кухни]])))","v":true},{"$f":"IF(tblData[[#This Row],[Статус]],COUNTIF($K$2:tblData[[#This Row],[Статус]],TRUE),\"\")","v":693},{"$f":"IFERROR(INDEX(tblData[Модульные кухни],MATCH(ROWS($L$2:tblData[[#This Row],[Индекс]]),tblData[Индекс],0)),\"\")","v":"Бордюрная лента для ванны"}]
[null,null,null,null,null,null,null,null,null,"Жидкие гвозди",{"$f":"NOT(ISERROR(SEARCH($B$2,tblData[[#This Row],[Модульные кухни]])))","v":true},{"$f":"IF(tblData[[#This Row],[Статус]],COUNTIF($K$2:tblData[[#This Row],[Статус]],TRUE),\"\")","v":694},{"$f":"IFERROR(INDEX(tblData[Модульные кухни],MATCH(ROWS($L$2:tblData[[#This Row],[Индекс]]),tblData[Индекс],0)),\"\")","v":"Жидкие гвозди"}]
[null,null,null,null,null,null,null,null,null,"Супер клеи",{"$f":"NOT(ISERROR(SEARCH($B$2,tblData[[#This Row],[Модульные кухни]])))","v":true},{"$f":"IF(tblData[[#This Row],[Статус]],COUNTIF($K$2:tblData[[#This Row],[Статус]],TRUE),\"\")","v":695},{"$f":"IFERROR(INDEX(tblData[Модульные кухни],MATCH(ROWS($L$2:tblData[[#This Row],[Индекс]]),tblData[Индекс],0)),\"\")","v":"Супер клеи"}]
[null,null,null,null,null,null,null,null,null,"Клеи ПВА",{"$f":"NOT(ISERROR(SEARCH($B$2,tblData[[#This Row],[Модульные кухни]])))","v":true},{"$f":"IF(tblData[[#This Row],[Статус]],COUNTIF($K$2:tblData[[#This Row],[Статус]],TRUE),\"\")","v":696},{"$f":"IFERROR(INDEX(tblData[Модульные кухни],MATCH(ROWS($L$2:tblData[[#This Row],[Индекс]]),tblData[Индекс],0)),\"\")","v":"Клеи ПВА"}]
[null,null,null,null,null,null,null,null,null,"Универсальные клеи",{"$f":"NOT(ISERROR(SEARCH($B$2,tblData[[#This Row],[Модульные кухни]])))","v":true},{"$f":"IF(tblData[[#This Row],[Статус]],COUNTIF($K$2:tblData[[#This Row],[Статус]],TRUE),\"\")","v":697},{"$f":"IFERROR(INDEX(tblData[Модульные кухни],MATCH(ROWS($L$2:tblData[[#This Row],[Индекс]]),tblData[Индекс],0)),\"\")","v":"Универсальные клеи"}]
[null,null,null,null,null,null,null,null,null,"Эпоксидные клеи",{"$f":"NOT(ISERROR(SEARCH($B$2,tblData[[#This Row],[Модульные кухни]])))","v":true},{"$f":"IF(tblData[[#This Row],[Статус]],COUNTIF($K$2:tblData[[#This Row],[Статус]],TRUE),\"\")","v":698},{"$f":"IFERROR(INDEX(tblData[Модульные кухни],MATCH(ROWS($L$2:tblData[[#This Row],[Индекс]]),tblData[Индекс],0)),\"\")","v":"Эпоксидные клеи"}]
[null,null,null,null,null,null,null,null,null,"Специальные клеи",{"$f":"NOT(ISERROR(SEARCH($B$2,tblData[[#This Row],[Модульные кухни]])))","v":true},{"$f":"IF(tblData[[#This Row],[Статус]],COUNTIF($K$2:tblData[[#This Row],[Статус]],TRUE),\"\")","v":699},{"$f":"IFERROR(INDEX(tblData[Модульные кухни],MATCH(ROWS($L$2:tblData[[#This Row],[Индекс]]),tblData[Индекс],0)),\"\")","v":"Специальные клеи"}]
[null,null,null,null,null,null,null,null,null,"Фасадные краски",{"$f":"NOT(ISERROR(SEARCH($B$2,tblData[[#This Row],[Модульные кухни]])))","v":true},{"$f":"IF(tblData[[#This Row],[Статус]],COUNTIF($K$2:tblData[[#This Row],[Статус]],TRUE),\"\")","v":700},{"$f":"IFERROR(INDEX(tblData[Модульные кухни],MATCH(ROWS($L$2:tblData[[#This Row],[Индекс]]),tblData[Индекс],0)),\"\")","v":"Фасадные краски"}]
[null,null,null,null,null,null,null,null,null,"Лаки и пропитки для камня",{"$f":"NOT(ISERROR(SEARCH($B$2,tblData[[#This Row],[Модульные кухни]])))","v":true},{"$f":"IF(tblData[[#This Row],[Статус]],COUNTIF($K$2:tblData[[#This Row],[Статус]],TRUE),\"\")","v":701},{"$f":"IFERROR(INDEX(tblData[Модульные кухни],MATCH(ROWS($L$2:tblData[[#This Row],[Индекс]]),tblData[Индекс],0)),\"\")","v":"Лаки и пропитки для камня"}]
[null,null,null,null,null,null,null,null,null,"Краски для дорожных покрытий",{"$f":"NOT(ISERROR(SEARCH($B$2,tblData[[#This Row],[Модульные кухни]])))","v":true},{"$f":"IF(tblData[[#This Row],[Статус]],COUNTIF($K$2:tblData[[#This Row],[Статус]],TRUE),\"\")","v":702},{"$f":"IFERROR(INDEX(tblData[Модульные кухни],MATCH(ROWS($L$2:tblData[[#This Row],[Индекс]]),tblData[Индекс],0)),\"\")","v":"Краски для дорожных покрытий"}]
[null,null,null,null,null,null,null,null,null,"Лаки для металла и смешанных материалов",{"$f":"NOT(ISERROR(SEARCH($B$2,tblData[[#This Row],[Модульные кухни]])))","v":true},{"$f":"IF(tblData[[#This Row],[Статус]],COUNTIF($K$2:tblData[[#This Row],[Статус]],TRUE),\"\")","v":703},{"$f":"IFERROR(INDEX(tblData[Модульные кухни],MATCH(ROWS($L$2:tblData[[#This Row],[Индекс]]),tblData[Индекс],0)),\"\")","v":"Лаки для металла и смешанных материалов"}]
[null,null,null,null,null,null,null,null,null,"Эмали для наружных и внутренних работ",{"$f":"NOT(ISERROR(SEARCH($B$2,tblData[[#This Row],[Модульные кухни]])))","v":true},{"$f":"IF(tblData[[#This Row],[Статус]],COUNTIF($K$2:tblData[[#This Row],[Статус]],TRUE),\"\")","v":704},{"$f":"IFERROR(INDEX(tblData[Модульные кухни],MATCH(ROWS($L$2:tblData[[#This Row],[Индекс]]),tblData[Индекс],0)),\"\")","v":"Эмали для наружных и внутренних работ"}]
[null,null,null,null,null,null,null,null,null,"Эмали по ржавчине",{"$f":"NOT(ISERROR(SEARCH($B$2,tblData[[#This Row],[Модульные кухни]])))","v":true},{"$f":"IF(tblData[[#This Row],[Статус]],COUNTIF($K$2:tblData[[#This Row],[Статус]],TRUE),\"\")","v":705},{"$f":"IFERROR(INDEX(tblData[Модульные кухни],MATCH(ROWS($L$2:tblData[[#This Row],[Индекс]]),tblData[Индекс],0)),\"\")","v":"Эмали по ржавчине"}]
[null,null,null,null,null,null,null,null,null,"Аэрозольные краски",{"$f":"NOT(ISERROR(SEARCH($B$2,tblData[[#This Row],[Модульные кухни]])))","v":true},{"$f":"IF(tblData[[#This Row],[Статус]],COUNTIF($K$2:tblData[[#This Row],[Статус]],TRUE),\"\")","v":706},{"$f":"IFERROR(INDEX(tblData[Модульные кухни],MATCH(ROWS($L$2:tblData[[#This Row],[Индекс]]),tblData[Индекс],0)),\"\")","v":"Аэрозольные краски"}]
[null,null,null,null,null,null,null,null,null,"Эмали для пола и лестниц",{"$f":"NOT(ISERROR(SEARCH($B$2,tblData[[#This Row],[Модульные кухни]])))","v":true},{"$f":"IF(tblData[[#This Row],[Статус]],COUNTIF($K$2:tblData[[#This Row],[Статус]],TRUE),\"\")","v":707},{"$f":"IFERROR(INDEX(tblData[Модульные кухни],MATCH(ROWS($L$2:tblData[[#This Row],[Индекс]]),tblData[Индекс],0)),\"\")","v":"Эмали для пола и лестниц"}]
[null,null,null,null,null,null,null,null,null,"Эмали для радиаторов",{"$f":"NOT(ISERROR(SEARCH($B$2,tblData[[#This Row],[Модульные кухни]])))","v":true},{"$f":"IF(tblData[[#This Row],[Статус]],COUNTIF($K$2:tblData[[#This Row],[Статус]],TRUE),\"\")","v":708},{"$f":"IFERROR(INDEX(tblData[Модульные кухни],MATCH(ROWS($L$2:tblData[[#This Row],[Индекс]]),tblData[Индекс],0)),\"\")","v":"Эмали для радиаторов"}]
[null,null,null,null,null,null,null,null,null,"Эмали для окон и дверей",{"$f":"NOT(ISERROR(SEARCH($B$2,tblData[[#This Row],[Модульные кухни]])))","v":true},{"$f":"IF(tblData[[#This Row],[Статус]],COUNTIF($K$2:tblData[[#This Row],[Статус]],TRUE),\"\")","v":709},{"$f":"IFERROR(INDEX(tblData[Модульные кухни],MATCH(ROWS($L$2:tblData[[#This Row],[Индекс]]),tblData[Индекс],0)),\"\")","v":"Эмали для окон и дверей"}]
[null,null,null,null,null,null,null,null,null,"Эмали для мебели",{"$f":"NOT(ISERROR(SEARCH($B$2,tblData[[#This Row],[Модульные кухни]])))","v":true},{"$f":"IF(tblData[[#This Row],[Статус]],COUNTIF($K$2:tblData[[#This Row],[Статус]],TRUE),\"\")","v":710},{"$f":"IFERROR(INDEX(tblData[Модульные кухни],MATCH(ROWS($L$2:tblData[[#This Row],[Индекс]]),tblData[Индекс],0)),\"\")","v":"Эмали для мебели"}]
[null,null,null,null,null,null,null,null,null,"Эмали для ванной",{"$f":"NOT(ISERROR(SEARCH($B$2,tblData[[#This Row],[Модульные кухни]])))","v":true},{"$f":"IF(tblData[[#This Row],[Статус]],COUNTIF($K$2:tblData[[#This Row],[Статус]],TRUE),\"\")","v":711},{"$f":"IFERROR(INDEX(tblData[Модульные кухни],MATCH(ROWS($L$2:tblData[[#This Row],[Индекс]]),tblData[Индекс],0)),\"\")","v":"Эмали для ванной"}]
[null,null,null,null,null,null,null,null,null,"Специальные эмали",{"$f":"NOT(ISERROR(SEARCH($B$2,tblData[[#This Row],[Модульные кухни]])))","v":true},{"$f":"IF(tblData[[#This Row],[Статус]],COUNTIF($K$2:tblData[[#This Row],[Статус]],TRUE),\"\")","v":712},{"$f":"IFERROR(INDEX(tblData[Модульные кухни],MATCH(ROWS($L$2:tblData[[#This Row],[Индекс]]),tblData[Индекс],0)),\"\")","v":"Специальные эмали"}]
[null,null,null,null,null,null,null,null,null,"Антисептики для дерева",{"$f":"NOT(ISERROR(SEARCH($B$2,tblData[[#This Row],[Модульные кухни]])))","v":true},{"$f":"IF(tblData[[#This Row],[Статус]],COUNTIF($K$2:tblData[[#This Row],[Статус]],TRUE),\"\")","v":713},{"$f":"IFERROR(INDEX(tblData[Модульные кухни],MATCH(ROWS($L$2:tblData[[#This Row],[Индекс]]),tblData[Индекс],0)),\"\")","v":"Антисептики для дерева"}]
[null,null,null,null,null,null,null,null,null,"Пропитки для дерева",{"$f":"NOT(ISERROR(SEARCH($B$2,tblData[[#This Row],[Модульные кухни]])))","v":true},{"$f":"IF(tblData[[#This Row],[Статус]],COUNTIF($K$2:tblData[[#This Row],[Статус]],TRUE),\"\")","v":714},{"$f":"IFERROR(INDEX(tblData[Модульные кухни],MATCH(ROWS($L$2:tblData[[#This Row],[Индекс]]),tblData[Индекс],0)),\"\")","v":"Пропитки для дерева"}]
[null,null,null,null,null,null,null,null,null,"Масла и воски для дерева",{"$f":"NOT(ISERROR(SEARCH($B$2,tblData[[#This Row],[Модульные кухни]])))","v":true},{"$f":"IF(tblData[[#This Row],[Статус]],COUNTIF($K$2:tblData[[#This Row],[Статус]],TRUE),\"\")","v":715},{"$f":"IFERROR(INDEX(tblData[Модульные кухни],MATCH(ROWS($L$2:tblData[[#This Row],[Индекс]]),tblData[Индекс],0)),\"\")","v":"Масла и воски для дерева"}]
[null,null,null,null,null,null,null,null,null,"Лаки для дерева",{"$f":"NOT(ISERROR(SEARCH($B$2,tblData[[#This Row],[Модульные кухни]])))","v":true},{"$f":"IF(tblData[[#This Row],[Статус]],COUNTIF($K$2:tblData[[#This Row],[Статус]],TRUE),\"\")","v":716},{"$f":"IFERROR(INDEX(tblData[Модульные кухни],MATCH(ROWS($L$2:tblData[[#This Row],[Индекс]]),tblData[Индекс],0)),\"\")","v":"Лаки для дерева"}]
[null,null,null,null,null,null,null,null,null,"Огнебиозащита",{"$f":"NOT(ISERROR(SEARCH($B$2,tblData[[#This Row],[Модульные кухни]])))","v":true},{"$f":"IF(tblData[[#This Row],[Статус]],COUNTIF($K$2:tblData[[#This Row],[Статус]],TRUE),\"\")","v":717},{"$f":"IFERROR(INDEX(tblData[Модульные кухни],MATCH(ROWS($L$2:tblData[[#This Row],[Индекс]]),tblData[Индекс],0)),\"\")","v":"Огнебиозащита"}]
[null,null,null,null,null,null,null,null,null,"Морилки для дерева",{"$f":"NOT(ISERROR(SEARCH($B$2,tblData[[#This Row],[Модульные кухни]])))","v":true},{"$f":"IF(tblData[[#This Row],[Статус]],COUNTIF($K$2:tblData[[#This Row],[Статус]],TRUE),\"\")","v":718},{"$f":"IFERROR(INDEX(tblData[Модульные кухни],MATCH(ROWS($L$2:tblData[[#This Row],[Индекс]]),tblData[Индекс],0)),\"\")","v":"Морилки для дерева"}]
[null,null,null,null,null,null,null,null,null,"Паркетные лаки",{"$f":"NOT(ISERROR(SEARCH($B$2,tblData[[#This Row],[Модульные кухни]])))","v":true},{"$f":"IF(tblData[[#This Row],[Статус]],COUNTIF($K$2:tblData[[#This Row],[Статус]],TRUE),\"\")","v":719},{"$f":"IFERROR(INDEX(tblData[Модульные кухни],MATCH(ROWS($L$2:tblData[[#This Row],[Индекс]]),tblData[Индекс],0)),\"\")","v":"Паркетные лаки"}]
[null,null,null,null,null,null,null,null,null,"Лазури для дерева",{"$f":"NOT(ISERROR(SEARCH($B$2,tblData[[#This Row],[Модульные кухни]])))","v":true},{"$f":"IF(tblData[[#This Row],[Статус]],COUNTIF($K$2:tblData[[#This Row],[Статус]],TRUE),\"\")","v":720},{"$f":"IFERROR(INDEX(tblData[Модульные кухни],MATCH(ROWS($L$2:tblData[[#This Row],[Индекс]]),tblData[Индекс],0)),\"\")","v":"Лазури для дерева"}]
[null,null,null,null,null,null,null,null,null,"Отбеливатели для дерева",{"$f":"NOT(ISERROR(SEARCH($B$2,tblData[[#This Row],[Модульные кухни]])))","v":true},{"$f":"IF(tblData[[#This Row],[Статус]],COUNTIF($K$2:tblData[[#This Row],[Статус]],TRUE),\"\")","v":721},{"$f":"IFERROR(INDEX(tblData[Модульные кухни],MATCH(ROWS($L$2:tblData[[#This Row],[Индекс]]),tblData[Индекс],0)),\"\")","v":"Отбеливатели для дерева"}]
[null,null,null,null,null,null,null,null,null,"Грунтовка под покраску",{"$f":"NOT(ISERROR(SEARCH($B$2,tblData[[#This Row],[Модульные кухни]])))","v":true},{"$f":"IF(tblData[[#This Row],[Статус]],COUNTIF($K$2:tblData[[#This Row],[Статус]],TRUE),\"\")","v":722},{"$f":"IFERROR(INDEX(tblData[Модульные кухни],MATCH(ROWS($L$2:tblData[[#This Row],[Индекс]]),tblData[Индекс],0)),\"\")","v":"Грунтовка под покраску"}]
[null,null,null,null,null,null,null,null,null,"Растворители и очистители для краски",{"$f":"NOT(ISERROR(SEARCH($B$2,tblData[[#This Row],[Модульные кухни]])))","v":true},{"$f":"IF(tblData[[#This Row],[Статус]],COUNTIF($K$2:tblData[[#This Row],[Статус]],TRUE),\"\")","v":723},{"$f":"IFERROR(INDEX(tblData[Модульные кухни],MATCH(ROWS($L$2:tblData[[#This Row],[Индекс]]),tblData[Индекс],0)),\"\")","v":"Растворители и очистители для краски"}]
[null,null,null,null,null,null,null,null,null,"Шпатлевки",{"$f":"NOT(ISERROR(SEARCH($B$2,tblData[[#This Row],[Модульные кухни]])))","v":true},{"$f":"IF(tblData[[#This Row],[Статус]],COUNTIF($K$2:tblData[[#This Row],[Статус]],TRUE),\"\")","v":724},{"$f":"IFERROR(INDEX(tblData[Модульные кухни],MATCH(ROWS($L$2:tblData[[#This Row],[Индекс]]),tblData[Индекс],0)),\"\")","v":"Шпатлевки"}]
[null,null,null,null,null,null,null,null,null,"Краски для реставрации",{"$f":"NOT(ISERROR(SEARCH($B$2,tblData[[#This Row],[Модульные кухни]])))","v":true},{"$f":"IF(tblData[[#This Row],[Статус]],COUNTIF($K$2:tblData[[#This Row],[Статус]],TRUE),\"\")","v":725},{"$f":"IFERROR(INDEX(tblData[Модульные кухни],MATCH(ROWS($L$2:tblData[[#This Row],[Индекс]]),tblData[Индекс],0)),\"\")","v":"Краски для реставрации"}]
[null,null,null,null,null,null,null,null,null,"Малярные кисти",{"$f":"NOT(ISERROR(SEARCH($B$2,tblData[[#This Row],[Модульные кухни]])))","v":true},{"$f":"IF(tblData[[#This Row],[Статус]],COUNTIF($K$2:tblData[[#This Row],[Статус]],TRUE),\"\")","v":726},{"$f":"IFERROR(INDEX(tblData[Модульные кухни],MATCH(ROWS($L$2:tblData[[#This Row],[Индекс]]),tblData[Индекс],0)),\"\")","v":"Малярные кисти"}]
[null,null,null,null,null,null,null,null,null,"Валики",{"$f":"NOT(ISERROR(SEARCH($B$2,tblData[[#This Row],[Модульные кухни]])))","v":true},{"$f":"IF(tblData[[#This Row],[Статус]],COUNTIF($K$2:tblData[[#This Row],[Статус]],TRUE),\"\")","v":727},{"$f":"IFERROR(INDEX(tblData[Модульные кухни],MATCH(ROWS($L$2:tblData[[#This Row],[Индекс]]),tblData[Индекс],0)),\"\")","v":"Валики"}]
[null,null,null,null,null,null,null,null,null,"Аксессуары для валиков",{"$f":"NOT(ISERROR(SEARCH($B$2,tblData[[#This Row],[Модульные кухни]])))","v":true},{"$f":"IF(tblData[[#This Row],[Статус]],COUNTIF($K$2:tblData[[#This Row],[Статус]],TRUE),\"\")","v":728},{"$f":"IFERROR(INDEX(tblData[Модульные кухни],MATCH(ROWS($L$2:tblData[[#This Row],[Индекс]]),tblData[Индекс],0)),\"\")","v":"Аксессуары для валиков"}]
[null,null,null,null,null,null,null,null,null,"Емкости для краски",{"$f":"NOT(ISERROR(SEARCH($B$2,tblData[[#This Row],[Модульные кухни]])))","v":true},{"$f":"IF(tblData[[#This Row],[Статус]],COUNTIF($K$2:tblData[[#This Row],[Статус]],TRUE),\"\")","v":729},{"$f":"IFERROR(INDEX(tblData[Модульные кухни],MATCH(ROWS($L$2:tblData[[#This Row],[Индекс]]),tblData[Индекс],0)),\"\")","v":"Емкости для краски"}]
[null,null,null,null,null,null,null,null,null,"Малярные шпатели",{"$f":"NOT(ISERROR(SEARCH($B$2,tblData[[#This Row],[Модульные кухни]])))","v":true},{"$f":"IF(tblData[[#This Row],[Статус]],COUNTIF($K$2:tblData[[#This Row],[Статус]],TRUE),\"\")","v":730},{"$f":"IFERROR(INDEX(tblData[Модульные кухни],MATCH(ROWS($L$2:tblData[[#This Row],[Индекс]]),tblData[Индекс],0)),\"\")","v":"Малярные шпатели"}]
[null,null,null,null,null,null,null,null,null,"Декоративные инструменты",{"$f":"NOT(ISERROR(SEARCH($B$2,tblData[[#This Row],[Модульные кухни]])))","v":true},{"$f":"IF(tblData[[#This Row],[Статус]],COUNTIF($K$2:tblData[[#This Row],[Статус]],TRUE),\"\")","v":731},{"$f":"IFERROR(INDEX(tblData[Модульные кухни],MATCH(ROWS($L$2:tblData[[#This Row],[Индекс]]),tblData[Индекс],0)),\"\")","v":"Декоративные инструменты"}]
[null,null,null,null,null,null,null,null,null,"Защита от краски",{"$f":"NOT(ISERROR(SEARCH($B$2,tblData[[#This Row],[Модульные кухни]])))","v":true},{"$f":"IF(tblData[[#This Row],[Статус]],COUNTIF($K$2:tblData[[#This Row],[Статус]],TRUE),\"\")","v":732},{"$f":"IFERROR(INDEX(tblData[Модульные кухни],MATCH(ROWS($L$2:tblData[[#This Row],[Индекс]]),tblData[Индекс],0)),\"\")","v":"Защита от краски"}]
[null,null,null,null,null,null,null,null,null,"Наждачная бумага",{"$f":"NOT(ISERROR(SEARCH($B$2,tblData[[#This Row],[Модульные кухни]])))","v":true},{"$f":"IF(tblData[[#This Row],[Статус]],COUNTIF($K$2:tblData[[#This Row],[Статус]],TRUE),\"\")","v":733},{"$f":"IFERROR(INDEX(tblData[Модульные кухни],MATCH(ROWS($L$2:tblData[[#This Row],[Индекс]]),tblData[Индекс],0)),\"\")","v":"Наждачная бумага"}]
[null,null,null,null,null,null,null,null,null,"Клейкая лента",{"$f":"NOT(ISERROR(SEARCH($B$2,tblData[[#This Row],[Модульные кухни]])))","v":true},{"$f":"IF(tblData[[#This Row],[Статус]],COUNTIF($K$2:tblData[[#This Row],[Статус]],TRUE),\"\")","v":734},{"$f":"IFERROR(INDEX(tblData[Модульные кухни],MATCH(ROWS($L$2:tblData[[#This Row],[Индекс]]),tblData[Индекс],0)),\"\")","v":"Клейкая лента"}]
[null,null,null,null,null,null,null,null,null,"Стрейч-пленка",{"$f":"NOT(ISERROR(SEARCH($B$2,tblData[[#This Row],[Модульные кухни]])))","v":true},{"$f":"IF(tblData[[#This Row],[Статус]],COUNTIF($K$2:tblData[[#This Row],[Статус]],TRUE),\"\")","v":735},{"$f":"IFERROR(INDEX(tblData[Модульные кухни],MATCH(ROWS($L$2:tblData[[#This Row],[Индекс]]),tblData[Индекс],0)),\"\")","v":"Стрейч-пленка"}]
[null,null,null,null,null,null,null,null,null,"Керамогранит",{"$f":"NOT(ISERROR(SEARCH($B$2,tblData[[#This Row],[Модульные кухни]])))","v":true},{"$f":"IF(tblData[[#This Row],[Статус]],COUNTIF($K$2:tblData[[#This Row],[Статус]],TRUE),\"\")","v":736},{"$f":"IFERROR(INDEX(tblData[Модульные кухни],MATCH(ROWS($L$2:tblData[[#This Row],[Индекс]]),tblData[Индекс],0)),\"\")","v":"Керамогранит"}]
[null,null,null,null,null,null,null,null,null,"Керамическая плитка",{"$f":"NOT(ISERROR(SEARCH($B$2,tblData[[#This Row],[Модульные кухни]])))","v":true},{"$f":"IF(tblData[[#This Row],[Статус]],COUNTIF($K$2:tblData[[#This Row],[Статус]],TRUE),\"\")","v":737},{"$f":"IFERROR(INDEX(tblData[Модульные кухни],MATCH(ROWS($L$2:tblData[[#This Row],[Индекс]]),tblData[Индекс],0)),\"\")","v":"Керамическая плитка"}]
[null,null,null,null,null,null,null,null,null,"Плитка для ванной комнаты",{"$f":"NOT(ISERROR(SEARCH($B$2,tblData[[#This Row],[Модульные кухни]])))","v":true},{"$f":"IF(tblData[[#This Row],[Статус]],COUNTIF($K$2:tblData[[#This Row],[Статус]],TRUE),\"\")","v":738},{"$f":"IFERROR(INDEX(tblData[Модульные кухни],MATCH(ROWS($L$2:tblData[[#This Row],[Индекс]]),tblData[Индекс],0)),\"\")","v":"Плитка для ванной комнаты"}]
[null,null,null,null,null,null,null,null,null,"Напольная плитка",{"$f":"NOT(ISERROR(SEARCH($B$2,tblData[[#This Row],[Модульные кухни]])))","v":true},{"$f":"IF(tblData[[#This Row],[Статус]],COUNTIF($K$2:tblData[[#This Row],[Статус]],TRUE),\"\")","v":739},{"$f":"IFERROR(INDEX(tblData[Модульные кухни],MATCH(ROWS($L$2:tblData[[#This Row],[Индекс]]),tblData[Индекс],0)),\"\")","v":"Напольная плитка"}]
[null,null,null,null,null,null,null,null,null,"Декоративная мозаика",{"$f":"NOT(ISERROR(SEARCH($B$2,tblData[[#This Row],[Модульные кухни]])))","v":true},{"$f":"IF(tblData[[#This Row],[Статус]],COUNTIF($K$2:tblData[[#This Row],[Статус]],TRUE),\"\")","v":740},{"$f":"IFERROR(INDEX(tblData[Модульные кухни],MATCH(ROWS($L$2:tblData[[#This Row],[Индекс]]),tblData[Индекс],0)),\"\")","v":"Декоративная мозаика"}]
[null,null,null,null,null,null,null,null,null,"Керамические уголки для ванной",{"$f":"NOT(ISERROR(SEARCH($B$2,tblData[[#This Row],[Модульные кухни]])))","v":true},{"$f":"IF(tblData[[#This Row],[Статус]],COUNTIF($K$2:tblData[[#This Row],[Статус]],TRUE),\"\")","v":741},{"$f":"IFERROR(INDEX(tblData[Модульные кухни],MATCH(ROWS($L$2:tblData[[#This Row],[Индекс]]),tblData[Индекс],0)),\"\")","v":"Керамические уголки для ванной"}]
[null,null,null,null,null,null,null,null,null,"Профили для плитки",{"$f":"NOT(ISERROR(SEARCH($B$2,tblData[[#This Row],[Модульные кухни]])))","v":true},{"$f":"IF(tblData[[#This Row],[Статус]],COUNTIF($K$2:tblData[[#This Row],[Статус]],TRUE),\"\")","v":742},{"$f":"IFERROR(INDEX(tblData[Модульные кухни],MATCH(ROWS($L$2:tblData[[#This Row],[Индекс]]),tblData[Индекс],0)),\"\")","v":"Профили для плитки"}]
[null,null,null,null,null,null,null,null,null,"Затирки цементные для плитки",{"$f":"NOT(ISERROR(SEARCH($B$2,tblData[[#This Row],[Модульные кухни]])))","v":true},{"$f":"IF(tblData[[#This Row],[Статус]],COUNTIF($K$2:tblData[[#This Row],[Статус]],TRUE),\"\")","v":743},{"$f":"IFERROR(INDEX(tblData[Модульные кухни],MATCH(ROWS($L$2:tblData[[#This Row],[Индекс]]),tblData[Индекс],0)),\"\")","v":"Затирки цементные для плитки"}]
[null,null,null,null,null,null,null,null,null,"Затирки эпоксидные для плитки",{"$f":"NOT(ISERROR(SEARCH($B$2,tblData[[#This Row],[Модульные кухни]])))","v":true},{"$f":"IF(tblData[[#This Row],[Статус]],COUNTIF($K$2:tblData[[#This Row],[Статус]],TRUE),\"\")","v":744},{"$f":"IFERROR(INDEX(tblData[Модульные кухни],MATCH(ROWS($L$2:tblData[[#This Row],[Индекс]]),tblData[Индекс],0)),\"\")","v":"Затирки эпоксидные для плитки"}]
[null,null,null,null,null,null,null,null,null,"Затирки силиконовые для плитки",{"$f":"NOT(ISERROR(SEARCH($B$2,tblData[[#This Row],[Модульные кухни]])))","v":true},{"$f":"IF(tblData[[#This Row],[Статус]],COUNTIF($K$2:tblData[[#This Row],[Статус]],TRUE),\"\")","v":745},{"$f":"IFERROR(INDEX(tblData[Модульные кухни],MATCH(ROWS($L$2:tblData[[#This Row],[Индекс]]),tblData[Индекс],0)),\"\")","v":"Затирки силиконовые для плитки"}]
[null,null,null,null,null,null,null,null,null,"Краска для швов плитки",{"$f":"NOT(ISERROR(SEARCH($B$2,tblData[[#This Row],[Модульные кухни]])))","v":true},{"$f":"IF(tblData[[#This Row],[Статус]],COUNTIF($K$2:tblData[[#This Row],[Статус]],TRUE),\"\")","v":746},{"$f":"IFERROR(INDEX(tblData[Модульные кухни],MATCH(ROWS($L$2:tblData[[#This Row],[Индекс]]),tblData[Индекс],0)),\"\")","v":"Краска для швов плитки"}]
[null,null,null,null,null,null,null,null,null,"Цементные плиточные клеи",{"$f":"NOT(ISERROR(SEARCH($B$2,tblData[[#This Row],[Модульные кухни]])))","v":true},{"$f":"IF(tblData[[#This Row],[Статус]],COUNTIF($K$2:tblData[[#This Row],[Статус]],TRUE),\"\")","v":747},{"$f":"IFERROR(INDEX(tblData[Модульные кухни],MATCH(ROWS($L$2:tblData[[#This Row],[Индекс]]),tblData[Индекс],0)),\"\")","v":"Цементные плиточные клеи"}]
[null,null,null,null,null,null,null,null,null,"Готовые клеи для плитки",{"$f":"NOT(ISERROR(SEARCH($B$2,tblData[[#This Row],[Модульные кухни]])))","v":true},{"$f":"IF(tblData[[#This Row],[Статус]],COUNTIF($K$2:tblData[[#This Row],[Статус]],TRUE),\"\")","v":748},{"$f":"IFERROR(INDEX(tblData[Модульные кухни],MATCH(ROWS($L$2:tblData[[#This Row],[Индекс]]),tblData[Индекс],0)),\"\")","v":"Готовые клеи для плитки"}]
[null,null,null,null,null,null,null,null,null,"Грунтовки под плитку",{"$f":"NOT(ISERROR(SEARCH($B$2,tblData[[#This Row],[Модульные кухни]])))","v":true},{"$f":"IF(tblData[[#This Row],[Статус]],COUNTIF($K$2:tblData[[#This Row],[Статус]],TRUE),\"\")","v":749},{"$f":"IFERROR(INDEX(tblData[Модульные кухни],MATCH(ROWS($L$2:tblData[[#This Row],[Индекс]]),tblData[Индекс],0)),\"\")","v":"Грунтовки под плитку"}]
[null,null,null,null,null,null,null,null,null,"Средства для гидроизоляции под плитку",{"$f":"NOT(ISERROR(SEARCH($B$2,tblData[[#This Row],[Модульные кухни]])))","v":true},{"$f":"IF(tblData[[#This Row],[Статус]],COUNTIF($K$2:tblData[[#This Row],[Статус]],TRUE),\"\")","v":750},{"$f":"IFERROR(INDEX(tblData[Модульные кухни],MATCH(ROWS($L$2:tblData[[#This Row],[Индекс]]),tblData[Индекс],0)),\"\")","v":"Средства для гидроизоляции под плитку"}]
[null,null,null,null,null,null,null,null,null,"Средства для очистки и ухода за плиткой",{"$f":"NOT(ISERROR(SEARCH($B$2,tblData[[#This Row],[Модульные кухни]])))","v":true},{"$f":"IF(tblData[[#This Row],[Статус]],COUNTIF($K$2:tblData[[#This Row],[Статус]],TRUE),\"\")","v":751},{"$f":"IFERROR(INDEX(tblData[Модульные кухни],MATCH(ROWS($L$2:tblData[[#This Row],[Индекс]]),tblData[Индекс],0)),\"\")","v":"Средства для очистки и ухода за плиткой"}]
[null,null,null,null,null,null,null,null,null,"Крестики и СВП для плитки",{"$f":"NOT(ISERROR(SEARCH($B$2,tblData[[#This Row],[Модульные кухни]])))","v":true},{"$f":"IF(tblData[[#This Row],[Статус]],COUNTIF($K$2:tblData[[#This Row],[Статус]],TRUE),\"\")","v":752},{"$f":"IFERROR(INDEX(tblData[Модульные кухни],MATCH(ROWS($L$2:tblData[[#This Row],[Индекс]]),tblData[Индекс],0)),\"\")","v":"Крестики и СВП для плитки"}]
[null,null,null,null,null,null,null,null,null,"Противоскользящие ленты для плитки",{"$f":"NOT(ISERROR(SEARCH($B$2,tblData[[#This Row],[Модульные кухни]])))","v":true},{"$f":"IF(tblData[[#This Row],[Статус]],COUNTIF($K$2:tblData[[#This Row],[Статус]],TRUE),\"\")","v":753},{"$f":"IFERROR(INDEX(tblData[Модульные кухни],MATCH(ROWS($L$2:tblData[[#This Row],[Индекс]]),tblData[Индекс],0)),\"\")","v":"Противоскользящие ленты для плитки"}]
[null,null,null,null,null,null,null,null,null,"Инструменты для затирки плиточных швов",{"$f":"NOT(ISERROR(SEARCH($B$2,tblData[[#This Row],[Модульные кухни]])))","v":true},{"$f":"IF(tblData[[#This Row],[Статус]],COUNTIF($K$2:tblData[[#This Row],[Статус]],TRUE),\"\")","v":754},{"$f":"IFERROR(INDEX(tblData[Модульные кухни],MATCH(ROWS($L$2:tblData[[#This Row],[Индекс]]),tblData[Индекс],0)),\"\")","v":"Инструменты для затирки плиточных швов"}]
[null,null,null,null,null,null,null,null,null,"Плиткорезы",{"$f":"NOT(ISERROR(SEARCH($B$2,tblData[[#This Row],[Модульные кухни]])))","v":true},{"$f":"IF(tblData[[#This Row],[Статус]],COUNTIF($K$2:tblData[[#This Row],[Статус]],TRUE),\"\")","v":755},{"$f":"IFERROR(INDEX(tblData[Модульные кухни],MATCH(ROWS($L$2:tblData[[#This Row],[Индекс]]),tblData[Индекс],0)),\"\")","v":"Плиткорезы"}]
[null,null,null,null,null,null,null,null,null,"Диски и ролики для резки плитки",{"$f":"NOT(ISERROR(SEARCH($B$2,tblData[[#This Row],[Модульные кухни]])))","v":true},{"$f":"IF(tblData[[#This Row],[Статус]],COUNTIF($K$2:tblData[[#This Row],[Статус]],TRUE),\"\")","v":756},{"$f":"IFERROR(INDEX(tblData[Модульные кухни],MATCH(ROWS($L$2:tblData[[#This Row],[Индекс]]),tblData[Индекс],0)),\"\")","v":"Диски и ролики для резки плитки"}]
[null,null,null,null,null,null,null,null,null,"Сверла и коронки по плитке",{"$f":"NOT(ISERROR(SEARCH($B$2,tblData[[#This Row],[Модульные кухни]])))","v":true},{"$f":"IF(tblData[[#This Row],[Статус]],COUNTIF($K$2:tblData[[#This Row],[Статус]],TRUE),\"\")","v":757},{"$f":"IFERROR(INDEX(tblData[Модульные кухни],MATCH(ROWS($L$2:tblData[[#This Row],[Индекс]]),tblData[Индекс],0)),\"\")","v":"Сверла и коронки по плитке"}]
[null,null,null,null,null,null,null,null,null,"Инструменты для укладки плитки",{"$f":"NOT(ISERROR(SEARCH($B$2,tblData[[#This Row],[Модульные кухни]])))","v":true},{"$f":"IF(tblData[[#This Row],[Статус]],COUNTIF($K$2:tblData[[#This Row],[Статус]],TRUE),\"\")","v":758},{"$f":"IFERROR(INDEX(tblData[Модульные кухни],MATCH(ROWS($L$2:tblData[[#This Row],[Индекс]]),tblData[Индекс],0)),\"\")","v":"Инструменты для укладки плитки"}]
[null,null,null,null,null,null,null,null,null,"Наколенники и перчатки для укладки плитки",{"$f":"NOT(ISERROR(SEARCH($B$2,tblData[[#This Row],[Модульные кухни]])))","v":true},{"$f":"IF(tblData[[#This Row],[Статус]],COUNTIF($K$2:tblData[[#This Row],[Статус]],TRUE),\"\")","v":759},{"$f":"IFERROR(INDEX(tblData[Модульные кухни],MATCH(ROWS($L$2:tblData[[#This Row],[Индекс]]),tblData[Индекс],0)),\"\")","v":"Наколенники и перчатки для укладки плитки"}]
[null,null,null,null,null,null,null,null,null,"Инструменты для укладки мозаики",{"$f":"NOT(ISERROR(SEARCH($B$2,tblData[[#This Row],[Модульные кухни]])))","v":true},{"$f":"IF(tblData[[#This Row],[Статус]],COUNTIF($K$2:tblData[[#This Row],[Статус]],TRUE),\"\")","v":760},{"$f":"IFERROR(INDEX(tblData[Модульные кухни],MATCH(ROWS($L$2:tblData[[#This Row],[Индекс]]),tblData[Индекс],0)),\"\")","v":"Инструменты для укладки мозаики"}]
[null,null,null,null,null,null,null,null,null,"Плитка для ступеней",{"$f":"NOT(ISERROR(SEARCH($B$2,tblData[[#This Row],[Модульные кухни]])))","v":true},{"$f":"IF(tblData[[#This Row],[Статус]],COUNTIF($K$2:tblData[[#This Row],[Статус]],TRUE),\"\")","v":761},{"$f":"IFERROR(INDEX(tblData[Модульные кухни],MATCH(ROWS($L$2:tblData[[#This Row],[Индекс]]),tblData[Индекс],0)),\"\")","v":"Плитка для ступеней"}]
[null,null,null,null,null,null,null,null,null,"Плитка для ступеней крыльца",{"$f":"NOT(ISERROR(SEARCH($B$2,tblData[[#This Row],[Модульные кухни]])))","v":true},{"$f":"IF(tblData[[#This Row],[Статус]],COUNTIF($K$2:tblData[[#This Row],[Статус]],TRUE),\"\")","v":762},{"$f":"IFERROR(INDEX(tblData[Модульные кухни],MATCH(ROWS($L$2:tblData[[#This Row],[Индекс]]),tblData[Индекс],0)),\"\")","v":"Плитка для ступеней крыльца"}]
[null,null,null,null,null,null,null,null,null,"Ламинат",{"$f":"NOT(ISERROR(SEARCH($B$2,tblData[[#This Row],[Модульные кухни]])))","v":true},{"$f":"IF(tblData[[#This Row],[Статус]],COUNTIF($K$2:tblData[[#This Row],[Статус]],TRUE),\"\")","v":763},{"$f":"IFERROR(INDEX(tblData[Модульные кухни],MATCH(ROWS($L$2:tblData[[#This Row],[Индекс]]),tblData[Индекс],0)),\"\")","v":"Ламинат"}]
[null,null,null,null,null,null,null,null,null,"Линолеум",{"$f":"NOT(ISERROR(SEARCH($B$2,tblData[[#This Row],[Модульные кухни]])))","v":true},{"$f":"IF(tblData[[#This Row],[Статус]],COUNTIF($K$2:tblData[[#This Row],[Статус]],TRUE),\"\")","v":764},{"$f":"IFERROR(INDEX(tblData[Модульные кухни],MATCH(ROWS($L$2:tblData[[#This Row],[Индекс]]),tblData[Индекс],0)),\"\")","v":"Линолеум"}]
[null,null,null,null,null,null,null,null,null,"ПВХ-плитка",{"$f":"NOT(ISERROR(SEARCH($B$2,tblData[[#This Row],[Модульные кухни]])))","v":true},{"$f":"IF(tblData[[#This Row],[Статус]],COUNTIF($K$2:tblData[[#This Row],[Статус]],TRUE),\"\")","v":765},{"$f":"IFERROR(INDEX(tblData[Модульные кухни],MATCH(ROWS($L$2:tblData[[#This Row],[Индекс]]),tblData[Индекс],0)),\"\")","v":"ПВХ-плитка"}]
[null,null,null,null,null,null,null,null,null,"Ковровые дорожки",{"$f":"NOT(ISERROR(SEARCH($B$2,tblData[[#This Row],[Модульные кухни]])))","v":true},{"$f":"IF(tblData[[#This Row],[Статус]],COUNTIF($K$2:tblData[[#This Row],[Статус]],TRUE),\"\")","v":766},{"$f":"IFERROR(INDEX(tblData[Модульные кухни],MATCH(ROWS($L$2:tblData[[#This Row],[Индекс]]),tblData[Индекс],0)),\"\")","v":"Ковровые дорожки"}]
[null,null,null,null,null,null,null,null,null,"Паркетная доска",{"$f":"NOT(ISERROR(SEARCH($B$2,tblData[[#This Row],[Модульные кухни]])))","v":true},{"$f":"IF(tblData[[#This Row],[Статус]],COUNTIF($K$2:tblData[[#This Row],[Статус]],TRUE),\"\")","v":767},{"$f":"IFERROR(INDEX(tblData[Модульные кухни],MATCH(ROWS($L$2:tblData[[#This Row],[Индекс]]),tblData[Индекс],0)),\"\")","v":"Паркетная доска"}]
[null,null,null,null,null,null,null,null,null,"Искусственная трава",{"$f":"NOT(ISERROR(SEARCH($B$2,tblData[[#This Row],[Модульные кухни]])))","v":true},{"$f":"IF(tblData[[#This Row],[Статус]],COUNTIF($K$2:tblData[[#This Row],[Статус]],TRUE),\"\")","v":768},{"$f":"IFERROR(INDEX(tblData[Модульные кухни],MATCH(ROWS($L$2:tblData[[#This Row],[Индекс]]),tblData[Индекс],0)),\"\")","v":"Искусственная трава"}]
[null,null,null,null,null,null,null,null,null,"Напольные плинтусы",{"$f":"NOT(ISERROR(SEARCH($B$2,tblData[[#This Row],[Модульные кухни]])))","v":true},{"$f":"IF(tblData[[#This Row],[Статус]],COUNTIF($K$2:tblData[[#This Row],[Статус]],TRUE),\"\")","v":769},{"$f":"IFERROR(INDEX(tblData[Модульные кухни],MATCH(ROWS($L$2:tblData[[#This Row],[Индекс]]),tblData[Индекс],0)),\"\")","v":"Напольные плинтусы"}]
[null,null,null,null,null,null,null,null,null,"Порожки для пола",{"$f":"NOT(ISERROR(SEARCH($B$2,tblData[[#This Row],[Модульные кухни]])))","v":true},{"$f":"IF(tblData[[#This Row],[Статус]],COUNTIF($K$2:tblData[[#This Row],[Статус]],TRUE),\"\")","v":770},{"$f":"IFERROR(INDEX(tblData[Модульные кухни],MATCH(ROWS($L$2:tblData[[#This Row],[Индекс]]),tblData[Индекс],0)),\"\")","v":"Порожки для пола"}]
[null,null,null,null,null,null,null,null,null,"Фурнитура для плинтусов",{"$f":"NOT(ISERROR(SEARCH($B$2,tblData[[#This Row],[Модульные кухни]])))","v":true},{"$f":"IF(tblData[[#This Row],[Статус]],COUNTIF($K$2:tblData[[#This Row],[Статус]],TRUE),\"\")","v":771},{"$f":"IFERROR(INDEX(tblData[Модульные кухни],MATCH(ROWS($L$2:tblData[[#This Row],[Индекс]]),tblData[Индекс],0)),\"\")","v":"Фурнитура для плинтусов"}]
[null,null,null,null,null,null,null,null,null,"Подложка под напольные покрытия",{"$f":"NOT(ISERROR(SEARCH($B$2,tblData[[#This Row],[Модульные кухни]])))","v":true},{"$f":"IF(tblData[[#This Row],[Статус]],COUNTIF($K$2:tblData[[#This Row],[Статус]],TRUE),\"\")","v":772},{"$f":"IFERROR(INDEX(tblData[Модульные кухни],MATCH(ROWS($L$2:tblData[[#This Row],[Индекс]]),tblData[Индекс],0)),\"\")","v":"Подложка под напольные покрытия"}]
[null,null,null,null,null,null,null,null,null,"Клеи для напольных покрытий",{"$f":"NOT(ISERROR(SEARCH($B$2,tblData[[#This Row],[Модульные кухни]])))","v":true},{"$f":"IF(tblData[[#This Row],[Статус]],COUNTIF($K$2:tblData[[#This Row],[Статус]],TRUE),\"\")","v":773},{"$f":"IFERROR(INDEX(tblData[Модульные кухни],MATCH(ROWS($L$2:tblData[[#This Row],[Индекс]]),tblData[Индекс],0)),\"\")","v":"Клеи для напольных покрытий"}]
[null,null,null,null,null,null,null,null,null,"Инструменты для укладки напольных покрытий",{"$f":"NOT(ISERROR(SEARCH($B$2,tblData[[#This Row],[Модульные кухни]])))","v":true},{"$f":"IF(tblData[[#This Row],[Статус]],COUNTIF($K$2:tblData[[#This Row],[Статус]],TRUE),\"\")","v":774},{"$f":"IFERROR(INDEX(tblData[Модульные кухни],MATCH(ROWS($L$2:tblData[[#This Row],[Индекс]]),tblData[Индекс],0)),\"\")","v":"Инструменты для укладки напольных покрытий"}]
[null,null,null,null,null,null,null,null,null,"Гидроизоляционная пленка для напольных покрытий",{"$f":"NOT(ISERROR(SEARCH($B$2,tblData[[#This Row],[Модульные кухни]])))","v":true},{"$f":"IF(tblData[[#This Row],[Статус]],COUNTIF($K$2:tblData[[#This Row],[Статус]],TRUE),\"\")","v":775},{"$f":"IFERROR(INDEX(tblData[Модульные кухни],MATCH(ROWS($L$2:tblData[[#This Row],[Индекс]]),tblData[Индекс],0)),\"\")","v":"Гидроизоляционная пленка для напольных покрытий"}]
[null,null,null,null,null,null,null,null,null,"Герметики для напольных покрытий",{"$f":"NOT(ISERROR(SEARCH($B$2,tblData[[#This Row],[Модульные кухни]])))","v":true},{"$f":"IF(tblData[[#This Row],[Статус]],COUNTIF($K$2:tblData[[#This Row],[Статус]],TRUE),\"\")","v":776},{"$f":"IFERROR(INDEX(tblData[Модульные кухни],MATCH(ROWS($L$2:tblData[[#This Row],[Индекс]]),tblData[Индекс],0)),\"\")","v":"Герметики для напольных покрытий"}]
[null,null,null,null,null,null,null,null,null,"Средства для реставрации напольных покрытий",{"$f":"NOT(ISERROR(SEARCH($B$2,tblData[[#This Row],[Модульные кухни]])))","v":true},{"$f":"IF(tblData[[#This Row],[Статус]],COUNTIF($K$2:tblData[[#This Row],[Статус]],TRUE),\"\")","v":777},{"$f":"IFERROR(INDEX(tblData[Модульные кухни],MATCH(ROWS($L$2:tblData[[#This Row],[Индекс]]),tblData[Индекс],0)),\"\")","v":"Средства для реставрации напольных покрытий"}]
[null,null,null,null,null,null,null,null,null,"Средства для чистки напольных покрытий",{"$f":"NOT(ISERROR(SEARCH($B$2,tblData[[#This Row],[Модульные кухни]])))","v":true},{"$f":"IF(tblData[[#This Row],[Статус]],COUNTIF($K$2:tblData[[#This Row],[Статус]],TRUE),\"\")","v":778},{"$f":"IFERROR(INDEX(tblData[Модульные кухни],MATCH(ROWS($L$2:tblData[[#This Row],[Индекс]]),tblData[Индекс],0)),\"\")","v":"Средства для чистки напольных покрытий"}]
[null,null,null,null,null,null,null,null,null,"Триммеры",{"$f":"NOT(ISERROR(SEARCH($B$2,tblData[[#This Row],[Модульные кухни]])))","v":true},{"$f":"IF(tblData[[#This Row],[Статус]],COUNTIF($K$2:tblData[[#This Row],[Статус]],TRUE),\"\")","v":779},{"$f":"IFERROR(INDEX(tblData[Модульные кухни],MATCH(ROWS($L$2:tblData[[#This Row],[Индекс]]),tblData[Индекс],0)),\"\")","v":"Триммеры"}]
[null,null,null,null,null,null,null,null,null,"Газонокосилки",{"$f":"NOT(ISERROR(SEARCH($B$2,tblData[[#This Row],[Модульные кухни]])))","v":true},{"$f":"IF(tblData[[#This Row],[Статус]],COUNTIF($K$2:tblData[[#This Row],[Статус]],TRUE),\"\")","v":780},{"$f":"IFERROR(INDEX(tblData[Модульные кухни],MATCH(ROWS($L$2:tblData[[#This Row],[Индекс]]),tblData[Индекс],0)),\"\")","v":"Газонокосилки"}]
[null,null,null,null,null,null,null,null,null,"Цепные пилы",{"$f":"NOT(ISERROR(SEARCH($B$2,tblData[[#This Row],[Модульные кухни]])))","v":true},{"$f":"IF(tblData[[#This Row],[Статус]],COUNTIF($K$2:tblData[[#This Row],[Статус]],TRUE),\"\")","v":781},{"$f":"IFERROR(INDEX(tblData[Модульные кухни],MATCH(ROWS($L$2:tblData[[#This Row],[Индекс]]),tblData[Индекс],0)),\"\")","v":"Цепные пилы"}]
[null,null,null,null,null,null,null,null,null,"Мотоблоки",{"$f":"NOT(ISERROR(SEARCH($B$2,tblData[[#This Row],[Модульные кухни]])))","v":true},{"$f":"IF(tblData[[#This Row],[Статус]],COUNTIF($K$2:tblData[[#This Row],[Статус]],TRUE),\"\")","v":782},{"$f":"IFERROR(INDEX(tblData[Модульные кухни],MATCH(ROWS($L$2:tblData[[#This Row],[Индекс]]),tblData[Индекс],0)),\"\")","v":"Мотоблоки"}]
[null,null,null,null,null,null,null,null,null,"Культиваторы",{"$f":"NOT(ISERROR(SEARCH($B$2,tblData[[#This Row],[Модульные кухни]])))","v":true},{"$f":"IF(tblData[[#This Row],[Статус]],COUNTIF($K$2:tblData[[#This Row],[Статус]],TRUE),\"\")","v":783},{"$f":"IFERROR(INDEX(tblData[Модульные кухни],MATCH(ROWS($L$2:tblData[[#This Row],[Индекс]]),tblData[Индекс],0)),\"\")","v":"Культиваторы"}]
[null,null,null,null,null,null,null,null,null,"Садовые измельчители",{"$f":"NOT(ISERROR(SEARCH($B$2,tblData[[#This Row],[Модульные кухни]])))","v":true},{"$f":"IF(tblData[[#This Row],[Статус]],COUNTIF($K$2:tblData[[#This Row],[Статус]],TRUE),\"\")","v":784},{"$f":"IFERROR(INDEX(tblData[Модульные кухни],MATCH(ROWS($L$2:tblData[[#This Row],[Индекс]]),tblData[Индекс],0)),\"\")","v":"Садовые измельчители"}]
[null,null,null,null,null,null,null,null,null,"Аккумуляторная садовая техника",{"$f":"NOT(ISERROR(SEARCH($B$2,tblData[[#This Row],[Модульные кухни]])))","v":true},{"$f":"IF(tblData[[#This Row],[Статус]],COUNTIF($K$2:tblData[[#This Row],[Статус]],TRUE),\"\")","v":785},{"$f":"IFERROR(INDEX(tblData[Модульные кухни],MATCH(ROWS($L$2:tblData[[#This Row],[Индекс]]),tblData[Индекс],0)),\"\")","v":"Аккумуляторная садовая техника"}]
[null,null,null,null,null,null,null,null,null,"Аэраторы и скарификаторы для газона",{"$f":"NOT(ISERROR(SEARCH($B$2,tblData[[#This Row],[Модульные кухни]])))","v":true},{"$f":"IF(tblData[[#This Row],[Статус]],COUNTIF($K$2:tblData[[#This Row],[Статус]],TRUE),\"\")","v":786},{"$f":"IFERROR(INDEX(tblData[Модульные кухни],MATCH(ROWS($L$2:tblData[[#This Row],[Индекс]]),tblData[Индекс],0)),\"\")","v":"Аэраторы и скарификаторы для газона"}]
[null,null,null,null,null,null,null,null,null,"Кусторезы",{"$f":"NOT(ISERROR(SEARCH($B$2,tblData[[#This Row],[Модульные кухни]])))","v":true},{"$f":"IF(tblData[[#This Row],[Статус]],COUNTIF($K$2:tblData[[#This Row],[Статус]],TRUE),\"\")","v":787},{"$f":"IFERROR(INDEX(tblData[Модульные кухни],MATCH(ROWS($L$2:tblData[[#This Row],[Индекс]]),tblData[Индекс],0)),\"\")","v":"Кусторезы"}]
[null,null,null,null,null,null,null,null,null,"Садовые пылесосы и воздуходувки",{"$f":"NOT(ISERROR(SEARCH($B$2,tblData[[#This Row],[Модульные кухни]])))","v":true},{"$f":"IF(tblData[[#This Row],[Статус]],COUNTIF($K$2:tblData[[#This Row],[Статус]],TRUE),\"\")","v":788},{"$f":"IFERROR(INDEX(tblData[Модульные кухни],MATCH(ROWS($L$2:tblData[[#This Row],[Индекс]]),tblData[Индекс],0)),\"\")","v":"Садовые пылесосы и воздуходувки"}]
[null,null,null,null,null,null,null,null,null,"Ножницы аккумуляторные",{"$f":"NOT(ISERROR(SEARCH($B$2,tblData[[#This Row],[Модульные кухни]])))","v":true},{"$f":"IF(tblData[[#This Row],[Статус]],COUNTIF($K$2:tblData[[#This Row],[Статус]],TRUE),\"\")","v":789},{"$f":"IFERROR(INDEX(tblData[Модульные кухни],MATCH(ROWS($L$2:tblData[[#This Row],[Индекс]]),tblData[Индекс],0)),\"\")","v":"Ножницы аккумуляторные"}]
[null,null,null,null,null,null,null,null,null,"Бензобуры",{"$f":"NOT(ISERROR(SEARCH($B$2,tblData[[#This Row],[Модульные кухни]])))","v":true},{"$f":"IF(tblData[[#This Row],[Статус]],COUNTIF($K$2:tblData[[#This Row],[Статус]],TRUE),\"\")","v":790},{"$f":"IFERROR(INDEX(tblData[Модульные кухни],MATCH(ROWS($L$2:tblData[[#This Row],[Индекс]]),tblData[Индекс],0)),\"\")","v":"Бензобуры"}]
[null,null,null,null,null,null,null,null,null,"Дровоколы электрические",{"$f":"NOT(ISERROR(SEARCH($B$2,tblData[[#This Row],[Модульные кухни]])))","v":true},{"$f":"IF(tblData[[#This Row],[Статус]],COUNTIF($K$2:tblData[[#This Row],[Статус]],TRUE),\"\")","v":791},{"$f":"IFERROR(INDEX(tblData[Модульные кухни],MATCH(ROWS($L$2:tblData[[#This Row],[Индекс]]),tblData[Индекс],0)),\"\")","v":"Дровоколы электрические"}]
[null,null,null,null,null,null,null,null,null,"Зернодробилки домашние",{"$f":"NOT(ISERROR(SEARCH($B$2,tblData[[#This Row],[Модульные кухни]])))","v":true},{"$f":"IF(tblData[[#This Row],[Статус]],COUNTIF($K$2:tblData[[#This Row],[Статус]],TRUE),\"\")","v":792},{"$f":"IFERROR(INDEX(tblData[Модульные кухни],MATCH(ROWS($L$2:tblData[[#This Row],[Индекс]]),tblData[Индекс],0)),\"\")","v":"Зернодробилки домашние"}]
[null,null,null,null,null,null,null,null,null,"Мини-тракторы",{"$f":"NOT(ISERROR(SEARCH($B$2,tblData[[#This Row],[Модульные кухни]])))","v":true},{"$f":"IF(tblData[[#This Row],[Статус]],COUNTIF($K$2:tblData[[#This Row],[Статус]],TRUE),\"\")","v":793},{"$f":"IFERROR(INDEX(tblData[Модульные кухни],MATCH(ROWS($L$2:tblData[[#This Row],[Индекс]]),tblData[Индекс],0)),\"\")","v":"Мини-тракторы"}]
[null,null,null,null,null,null,null,null,null,"Наборы садовой мебели",{"$f":"NOT(ISERROR(SEARCH($B$2,tblData[[#This Row],[Модульные кухни]])))","v":true},{"$f":"IF(tblData[[#This Row],[Статус]],COUNTIF($K$2:tblData[[#This Row],[Статус]],TRUE),\"\")","v":794},{"$f":"IFERROR(INDEX(tblData[Модульные кухни],MATCH(ROWS($L$2:tblData[[#This Row],[Индекс]]),tblData[Индекс],0)),\"\")","v":"Наборы садовой мебели"}]
[null,null,null,null,null,null,null,null,null,"Столы для дачи",{"$f":"NOT(ISERROR(SEARCH($B$2,tblData[[#This Row],[Модульные кухни]])))","v":true},{"$f":"IF(tblData[[#This Row],[Статус]],COUNTIF($K$2:tblData[[#This Row],[Статус]],TRUE),\"\")","v":795},{"$f":"IFERROR(INDEX(tblData[Модульные кухни],MATCH(ROWS($L$2:tblData[[#This Row],[Индекс]]),tblData[Индекс],0)),\"\")","v":"Столы для дачи"}]
[null,null,null,null,null,null,null,null,null,"Стулья для дачи",{"$f":"NOT(ISERROR(SEARCH($B$2,tblData[[#This Row],[Модульные кухни]])))","v":true},{"$f":"IF(tblData[[#This Row],[Статус]],COUNTIF($K$2:tblData[[#This Row],[Статус]],TRUE),\"\")","v":796},{"$f":"IFERROR(INDEX(tblData[Модульные кухни],MATCH(ROWS($L$2:tblData[[#This Row],[Индекс]]),tblData[Индекс],0)),\"\")","v":"Стулья для дачи"}]
[null,null,null,null,null,null,null,null,null,"Кресла для дачи",{"$f":"NOT(ISERROR(SEARCH($B$2,tblData[[#This Row],[Модульные кухни]])))","v":true},{"$f":"IF(tblData[[#This Row],[Статус]],COUNTIF($K$2:tblData[[#This Row],[Статус]],TRUE),\"\")","v":797},{"$f":"IFERROR(INDEX(tblData[Модульные кухни],MATCH(ROWS($L$2:tblData[[#This Row],[Индекс]]),tblData[Индекс],0)),\"\")","v":"Кресла для дачи"}]
[null,null,null,null,null,null,null,null,null,"Диваны для дачи",{"$f":"NOT(ISERROR(SEARCH($B$2,tblData[[#This Row],[Модульные кухни]])))","v":true},{"$f":"IF(tblData[[#This Row],[Статус]],COUNTIF($K$2:tblData[[#This Row],[Статус]],TRUE),\"\")","v":798},{"$f":"IFERROR(INDEX(tblData[Модульные кухни],MATCH(ROWS($L$2:tblData[[#This Row],[Индекс]]),tblData[Индекс],0)),\"\")","v":"Диваны для дачи"}]
[null,null,null,null,null,null,null,null,null,"Кресла подвесные",{"$f":"NOT(ISERROR(SEARCH($B$2,tblData[[#This Row],[Модульные кухни]])))","v":true},{"$f":"IF(tblData[[#This Row],[Статус]],COUNTIF($K$2:tblData[[#This Row],[Статус]],TRUE),\"\")","v":799},{"$f":"IFERROR(INDEX(tblData[Модульные кухни],MATCH(ROWS($L$2:tblData[[#This Row],[Индекс]]),tblData[Индекс],0)),\"\")","v":"Кресла подвесные"}]
[null,null,null,null,null,null,null,null,null,"Секаторы садовые",{"$f":"NOT(ISERROR(SEARCH($B$2,tblData[[#This Row],[Модульные кухни]])))","v":true},{"$f":"IF(tblData[[#This Row],[Статус]],COUNTIF($K$2:tblData[[#This Row],[Статус]],TRUE),\"\")","v":800},{"$f":"IFERROR(INDEX(tblData[Модульные кухни],MATCH(ROWS($L$2:tblData[[#This Row],[Индекс]]),tblData[Индекс],0)),\"\")","v":"Секаторы садовые"}]
[null,null,null,null,null,null,null,null,null,"Тачки садовые",{"$f":"NOT(ISERROR(SEARCH($B$2,tblData[[#This Row],[Модульные кухни]])))","v":true},{"$f":"IF(tblData[[#This Row],[Статус]],COUNTIF($K$2:tblData[[#This Row],[Статус]],TRUE),\"\")","v":801},{"$f":"IFERROR(INDEX(tblData[Модульные кухни],MATCH(ROWS($L$2:tblData[[#This Row],[Индекс]]),tblData[Индекс],0)),\"\")","v":"Тачки садовые"}]
[null,null,null,null,null,null,null,null,null,"Топоры",{"$f":"NOT(ISERROR(SEARCH($B$2,tblData[[#This Row],[Модульные кухни]])))","v":true},{"$f":"IF(tblData[[#This Row],[Статус]],COUNTIF($K$2:tblData[[#This Row],[Статус]],TRUE),\"\")","v":802},{"$f":"IFERROR(INDEX(tblData[Модульные кухни],MATCH(ROWS($L$2:tblData[[#This Row],[Индекс]]),tblData[Индекс],0)),\"\")","v":"Топоры"}]
[null,null,null,null,null,null,null,null,null,"Лопаты",{"$f":"NOT(ISERROR(SEARCH($B$2,tblData[[#This Row],[Модульные кухни]])))","v":true},{"$f":"IF(tblData[[#This Row],[Статус]],COUNTIF($K$2:tblData[[#This Row],[Статус]],TRUE),\"\")","v":803},{"$f":"IFERROR(INDEX(tblData[Модульные кухни],MATCH(ROWS($L$2:tblData[[#This Row],[Индекс]]),tblData[Индекс],0)),\"\")","v":"Лопаты"}]
[null,null,null,null,null,null,null,null,null,"Пилы садовые",{"$f":"NOT(ISERROR(SEARCH($B$2,tblData[[#This Row],[Модульные кухни]])))","v":true},{"$f":"IF(tblData[[#This Row],[Статус]],COUNTIF($K$2:tblData[[#This Row],[Статус]],TRUE),\"\")","v":804},{"$f":"IFERROR(INDEX(tblData[Модульные кухни],MATCH(ROWS($L$2:tblData[[#This Row],[Индекс]]),tblData[Индекс],0)),\"\")","v":"Пилы садовые"}]
[null,null,null,null,null,null,null,null,null,"Грабли",{"$f":"NOT(ISERROR(SEARCH($B$2,tblData[[#This Row],[Модульные кухни]])))","v":true},{"$f":"IF(tblData[[#This Row],[Статус]],COUNTIF($K$2:tblData[[#This Row],[Статус]],TRUE),\"\")","v":805},{"$f":"IFERROR(INDEX(tblData[Модульные кухни],MATCH(ROWS($L$2:tblData[[#This Row],[Индекс]]),tblData[Индекс],0)),\"\")","v":"Грабли"}]
[null,null,null,null,null,null,null,null,null,"Сучкорезы садовые",{"$f":"NOT(ISERROR(SEARCH($B$2,tblData[[#This Row],[Модульные кухни]])))","v":true},{"$f":"IF(tblData[[#This Row],[Статус]],COUNTIF($K$2:tblData[[#This Row],[Статус]],TRUE),\"\")","v":806},{"$f":"IFERROR(INDEX(tblData[Модульные кухни],MATCH(ROWS($L$2:tblData[[#This Row],[Индекс]]),tblData[Индекс],0)),\"\")","v":"Сучкорезы садовые"}]
[null,null,null,null,null,null,null,null,null,"Косы и серпы",{"$f":"NOT(ISERROR(SEARCH($B$2,tblData[[#This Row],[Модульные кухни]])))","v":true},{"$f":"IF(tblData[[#This Row],[Статус]],COUNTIF($K$2:tblData[[#This Row],[Статус]],TRUE),\"\")","v":807},{"$f":"IFERROR(INDEX(tblData[Модульные кухни],MATCH(ROWS($L$2:tblData[[#This Row],[Индекс]]),tblData[Индекс],0)),\"\")","v":"Косы и серпы"}]
[null,null,null,null,null,null,null,null,null,"Кусторезы садовые",{"$f":"NOT(ISERROR(SEARCH($B$2,tblData[[#This Row],[Модульные кухни]])))","v":true},{"$f":"IF(tblData[[#This Row],[Статус]],COUNTIF($K$2:tblData[[#This Row],[Статус]],TRUE),\"\")","v":808},{"$f":"IFERROR(INDEX(tblData[Модульные кухни],MATCH(ROWS($L$2:tblData[[#This Row],[Индекс]]),tblData[Индекс],0)),\"\")","v":"Кусторезы садовые"}]
[null,null,null,null,null,null,null,null,null,"Ножницы садовые",{"$f":"NOT(ISERROR(SEARCH($B$2,tblData[[#This Row],[Модульные кухни]])))","v":true},{"$f":"IF(tblData[[#This Row],[Статус]],COUNTIF($K$2:tblData[[#This Row],[Статус]],TRUE),\"\")","v":809},{"$f":"IFERROR(INDEX(tblData[Модульные кухни],MATCH(ROWS($L$2:tblData[[#This Row],[Индекс]]),tblData[Индекс],0)),\"\")","v":"Ножницы садовые"}]
[null,null,null,null,null,null,null,null,null,"Баки для мусора",{"$f":"NOT(ISERROR(SEARCH($B$2,tblData[[#This Row],[Модульные кухни]])))","v":true},{"$f":"IF(tblData[[#This Row],[Статус]],COUNTIF($K$2:tblData[[#This Row],[Статус]],TRUE),\"\")","v":810},{"$f":"IFERROR(INDEX(tblData[Модульные кухни],MATCH(ROWS($L$2:tblData[[#This Row],[Индекс]]),tblData[Индекс],0)),\"\")","v":"Баки для мусора"}]
[null,null,null,null,null,null,null,null,null,"Мётлы, веники и товары для уборки",{"$f":"NOT(ISERROR(SEARCH($B$2,tblData[[#This Row],[Модульные кухни]])))","v":true},{"$f":"IF(tblData[[#This Row],[Статус]],COUNTIF($K$2:tblData[[#This Row],[Статус]],TRUE),\"\")","v":811},{"$f":"IFERROR(INDEX(tblData[Модульные кухни],MATCH(ROWS($L$2:tblData[[#This Row],[Индекс]]),tblData[Индекс],0)),\"\")","v":"Мётлы, веники и товары для уборки"}]
[null,null,null,null,null,null,null,null,null,"Вилы",{"$f":"NOT(ISERROR(SEARCH($B$2,tblData[[#This Row],[Модульные кухни]])))","v":true},{"$f":"IF(tblData[[#This Row],[Статус]],COUNTIF($K$2:tblData[[#This Row],[Статус]],TRUE),\"\")","v":812},{"$f":"IFERROR(INDEX(tblData[Модульные кухни],MATCH(ROWS($L$2:tblData[[#This Row],[Индекс]]),tblData[Индекс],0)),\"\")","v":"Вилы"}]
[null,null,null,null,null,null,null,null,null,"Ручные буры и культиваторы",{"$f":"NOT(ISERROR(SEARCH($B$2,tblData[[#This Row],[Модульные кухни]])))","v":true},{"$f":"IF(tblData[[#This Row],[Статус]],COUNTIF($K$2:tblData[[#This Row],[Статус]],TRUE),\"\")","v":813},{"$f":"IFERROR(INDEX(tblData[Модульные кухни],MATCH(ROWS($L$2:tblData[[#This Row],[Индекс]]),tblData[Индекс],0)),\"\")","v":"Ручные буры и культиваторы"}]
[null,null,null,null,null,null,null,null,null,"Инструменты для посадки растений",{"$f":"NOT(ISERROR(SEARCH($B$2,tblData[[#This Row],[Модульные кухни]])))","v":true},{"$f":"IF(tblData[[#This Row],[Статус]],COUNTIF($K$2:tblData[[#This Row],[Статус]],TRUE),\"\")","v":814},{"$f":"IFERROR(INDEX(tblData[Модульные кухни],MATCH(ROWS($L$2:tblData[[#This Row],[Индекс]]),tblData[Индекс],0)),\"\")","v":"Инструменты для посадки растений"}]
[null,null,null,null,null,null,null,null,null,"Тяпки, мотыги и плоскорезы",{"$f":"NOT(ISERROR(SEARCH($B$2,tblData[[#This Row],[Модульные кухни]])))","v":true},{"$f":"IF(tblData[[#This Row],[Статус]],COUNTIF($K$2:tblData[[#This Row],[Статус]],TRUE),\"\")","v":815},{"$f":"IFERROR(INDEX(tblData[Модульные кухни],MATCH(ROWS($L$2:tblData[[#This Row],[Индекс]]),tblData[Индекс],0)),\"\")","v":"Тяпки, мотыги и плоскорезы"}]
[null,null,null,null,null,null,null,null,null,"Корнеудалители садовые ",{"$f":"NOT(ISERROR(SEARCH($B$2,tblData[[#This Row],[Модульные кухни]])))","v":true},{"$f":"IF(tblData[[#This Row],[Статус]],COUNTIF($K$2:tblData[[#This Row],[Статус]],TRUE),\"\")","v":816},{"$f":"IFERROR(INDEX(tblData[Модульные кухни],MATCH(ROWS($L$2:tblData[[#This Row],[Индекс]]),tblData[Индекс],0)),\"\")","v":"Корнеудалители садовые "}]
[null,null,null,null,null,null,null,null,null,"Плодосъемники",{"$f":"NOT(ISERROR(SEARCH($B$2,tblData[[#This Row],[Модульные кухни]])))","v":true},{"$f":"IF(tblData[[#This Row],[Статус]],COUNTIF($K$2:tblData[[#This Row],[Статус]],TRUE),\"\")","v":817},{"$f":"IFERROR(INDEX(tblData[Модульные кухни],MATCH(ROWS($L$2:tblData[[#This Row],[Индекс]]),tblData[Индекс],0)),\"\")","v":"Плодосъемники"}]
[null,null,null,null,null,null,null,null,null,"Ножи прививочные",{"$f":"NOT(ISERROR(SEARCH($B$2,tblData[[#This Row],[Модульные кухни]])))","v":true},{"$f":"IF(tblData[[#This Row],[Статус]],COUNTIF($K$2:tblData[[#This Row],[Статус]],TRUE),\"\")","v":818},{"$f":"IFERROR(INDEX(tblData[Модульные кухни],MATCH(ROWS($L$2:tblData[[#This Row],[Индекс]]),tblData[Индекс],0)),\"\")","v":"Ножи прививочные"}]
[null,null,null,null,null,null,null,null,null,"Точилки для инструментов",{"$f":"NOT(ISERROR(SEARCH($B$2,tblData[[#This Row],[Модульные кухни]])))","v":true},{"$f":"IF(tblData[[#This Row],[Статус]],COUNTIF($K$2:tblData[[#This Row],[Статус]],TRUE),\"\")","v":819},{"$f":"IFERROR(INDEX(tblData[Модульные кухни],MATCH(ROWS($L$2:tblData[[#This Row],[Индекс]]),tblData[Индекс],0)),\"\")","v":"Точилки для инструментов"}]
[null,null,null,null,null,null,null,null,null,"Колёса, камеры и запчасти для садовых тачек",{"$f":"NOT(ISERROR(SEARCH($B$2,tblData[[#This Row],[Модульные кухни]])))","v":true},{"$f":"IF(tblData[[#This Row],[Статус]],COUNTIF($K$2:tblData[[#This Row],[Статус]],TRUE),\"\")","v":820},{"$f":"IFERROR(INDEX(tblData[Модульные кухни],MATCH(ROWS($L$2:tblData[[#This Row],[Индекс]]),tblData[Индекс],0)),\"\")","v":"Колёса, камеры и запчасти для садовых тачек"}]
[null,null,null,null,null,null,null,null,null,"Черенки и ручки для инструментов",{"$f":"NOT(ISERROR(SEARCH($B$2,tblData[[#This Row],[Модульные кухни]])))","v":true},{"$f":"IF(tblData[[#This Row],[Статус]],COUNTIF($K$2:tblData[[#This Row],[Статус]],TRUE),\"\")","v":821},{"$f":"IFERROR(INDEX(tblData[Модульные кухни],MATCH(ROWS($L$2:tblData[[#This Row],[Индекс]]),tblData[Индекс],0)),\"\")","v":"Черенки и ручки для инструментов"}]
[null,null,null,null,null,null,null,null,null,"Механические аэраторы",{"$f":"NOT(ISERROR(SEARCH($B$2,tblData[[#This Row],[Модульные кухни]])))","v":true},{"$f":"IF(tblData[[#This Row],[Статус]],COUNTIF($K$2:tblData[[#This Row],[Статус]],TRUE),\"\")","v":822},{"$f":"IFERROR(INDEX(tblData[Модульные кухни],MATCH(ROWS($L$2:tblData[[#This Row],[Индекс]]),tblData[Индекс],0)),\"\")","v":"Механические аэраторы"}]
[null,null,null,null,null,null,null,null,null,"Термометры и другие измерительные приборы",{"$f":"NOT(ISERROR(SEARCH($B$2,tblData[[#This Row],[Модульные кухни]])))","v":true},{"$f":"IF(tblData[[#This Row],[Статус]],COUNTIF($K$2:tblData[[#This Row],[Статус]],TRUE),\"\")","v":823},{"$f":"IFERROR(INDEX(tblData[Модульные кухни],MATCH(ROWS($L$2:tblData[[#This Row],[Индекс]]),tblData[Индекс],0)),\"\")","v":"Термометры и другие измерительные приборы"}]
[null,null,null,null,null,null,null,null,null,"Грунты для растений",{"$f":"NOT(ISERROR(SEARCH($B$2,tblData[[#This Row],[Модульные кухни]])))","v":true},{"$f":"IF(tblData[[#This Row],[Статус]],COUNTIF($K$2:tblData[[#This Row],[Статус]],TRUE),\"\")","v":824},{"$f":"IFERROR(INDEX(tblData[Модульные кухни],MATCH(ROWS($L$2:tblData[[#This Row],[Индекс]]),tblData[Индекс],0)),\"\")","v":"Грунты для растений"}]
[null,null,null,null,null,null,null,null,null,"Мульча",{"$f":"NOT(ISERROR(SEARCH($B$2,tblData[[#This Row],[Модульные кухни]])))","v":true},{"$f":"IF(tblData[[#This Row],[Статус]],COUNTIF($K$2:tblData[[#This Row],[Статус]],TRUE),\"\")","v":825},{"$f":"IFERROR(INDEX(tblData[Модульные кухни],MATCH(ROWS($L$2:tblData[[#This Row],[Индекс]]),tblData[Индекс],0)),\"\")","v":"Мульча"}]
[null,null,null,null,null,null,null,null,null,"Удобрения для растений",{"$f":"NOT(ISERROR(SEARCH($B$2,tblData[[#This Row],[Модульные кухни]])))","v":true},{"$f":"IF(tblData[[#This Row],[Статус]],COUNTIF($K$2:tblData[[#This Row],[Статус]],TRUE),\"\")","v":826},{"$f":"IFERROR(INDEX(tblData[Модульные кухни],MATCH(ROWS($L$2:tblData[[#This Row],[Индекс]]),tblData[Индекс],0)),\"\")","v":"Удобрения для растений"}]
[null,null,null,null,null,null,null,null,null,"Опрыскиватели и аксессуары",{"$f":"NOT(ISERROR(SEARCH($B$2,tblData[[#This Row],[Модульные кухни]])))","v":true},{"$f":"IF(tblData[[#This Row],[Статус]],COUNTIF($K$2:tblData[[#This Row],[Статус]],TRUE),\"\")","v":827},{"$f":"IFERROR(INDEX(tblData[Модульные кухни],MATCH(ROWS($L$2:tblData[[#This Row],[Индекс]]),tblData[Индекс],0)),\"\")","v":"Опрыскиватели и аксессуары"}]
[null,null,null,null,null,null,null,null,null,"Защита растений от болезней",{"$f":"NOT(ISERROR(SEARCH($B$2,tblData[[#This Row],[Модульные кухни]])))","v":true},{"$f":"IF(tblData[[#This Row],[Статус]],COUNTIF($K$2:tblData[[#This Row],[Статус]],TRUE),\"\")","v":828},{"$f":"IFERROR(INDEX(tblData[Модульные кухни],MATCH(ROWS($L$2:tblData[[#This Row],[Индекс]]),tblData[Индекс],0)),\"\")","v":"Защита растений от болезней"}]
[null,null,null,null,null,null,null,null,null,"Защита растений от вредителей",{"$f":"NOT(ISERROR(SEARCH($B$2,tblData[[#This Row],[Модульные кухни]])))","v":true},{"$f":"IF(tblData[[#This Row],[Статус]],COUNTIF($K$2:tblData[[#This Row],[Статус]],TRUE),\"\")","v":829},{"$f":"IFERROR(INDEX(tblData[Модульные кухни],MATCH(ROWS($L$2:tblData[[#This Row],[Индекс]]),tblData[Индекс],0)),\"\")","v":"Защита растений от вредителей"}]
[null,null,null,null,null,null,null,null,null,"Средства от сорняков",{"$f":"NOT(ISERROR(SEARCH($B$2,tblData[[#This Row],[Модульные кухни]])))","v":true},{"$f":"IF(tblData[[#This Row],[Статус]],COUNTIF($K$2:tblData[[#This Row],[Статус]],TRUE),\"\")","v":830},{"$f":"IFERROR(INDEX(tblData[Модульные кухни],MATCH(ROWS($L$2:tblData[[#This Row],[Индекс]]),tblData[Индекс],0)),\"\")","v":"Средства от сорняков"}]
[null,null,null,null,null,null,null,null,null,"Укрывной материал для растений",{"$f":"NOT(ISERROR(SEARCH($B$2,tblData[[#This Row],[Модульные кухни]])))","v":true},{"$f":"IF(tblData[[#This Row],[Статус]],COUNTIF($K$2:tblData[[#This Row],[Статус]],TRUE),\"\")","v":831},{"$f":"IFERROR(INDEX(tblData[Модульные кухни],MATCH(ROWS($L$2:tblData[[#This Row],[Индекс]]),tblData[Индекс],0)),\"\")","v":"Укрывной материал для растений"}]
[null,null,null,null,null,null,null,null,null,"Опоры и подвязки для растений",{"$f":"NOT(ISERROR(SEARCH($B$2,tblData[[#This Row],[Модульные кухни]])))","v":true},{"$f":"IF(tblData[[#This Row],[Статус]],COUNTIF($K$2:tblData[[#This Row],[Статус]],TRUE),\"\")","v":832},{"$f":"IFERROR(INDEX(tblData[Модульные кухни],MATCH(ROWS($L$2:tblData[[#This Row],[Индекс]]),tblData[Индекс],0)),\"\")","v":"Опоры и подвязки для растений"}]
[null,null,null,null,null,null,null,null,null,"Мангалы",{"$f":"NOT(ISERROR(SEARCH($B$2,tblData[[#This Row],[Модульные кухни]])))","v":true},{"$f":"IF(tblData[[#This Row],[Статус]],COUNTIF($K$2:tblData[[#This Row],[Статус]],TRUE),\"\")","v":833},{"$f":"IFERROR(INDEX(tblData[Модульные кухни],MATCH(ROWS($L$2:tblData[[#This Row],[Индекс]]),tblData[Индекс],0)),\"\")","v":"Мангалы"}]
[null,null,null,null,null,null,null,null,null,"Уголь, дрова и средства для розжига",{"$f":"NOT(ISERROR(SEARCH($B$2,tblData[[#This Row],[Модульные кухни]])))","v":true},{"$f":"IF(tblData[[#This Row],[Статус]],COUNTIF($K$2:tblData[[#This Row],[Статус]],TRUE),\"\")","v":834},{"$f":"IFERROR(INDEX(tblData[Модульные кухни],MATCH(ROWS($L$2:tblData[[#This Row],[Индекс]]),tblData[Индекс],0)),\"\")","v":"Уголь, дрова и средства для розжига"}]
[null,null,null,null,null,null,null,null,null,"Шампуры и решетки для мангала",{"$f":"NOT(ISERROR(SEARCH($B$2,tblData[[#This Row],[Модульные кухни]])))","v":true},{"$f":"IF(tblData[[#This Row],[Статус]],COUNTIF($K$2:tblData[[#This Row],[Статус]],TRUE),\"\")","v":835},{"$f":"IFERROR(INDEX(tblData[Модульные кухни],MATCH(ROWS($L$2:tblData[[#This Row],[Индекс]]),tblData[Индекс],0)),\"\")","v":"Шампуры и решетки для мангала"}]
[null,null,null,null,null,null,null,null,null,"Щепа для копчения",{"$f":"NOT(ISERROR(SEARCH($B$2,tblData[[#This Row],[Модульные кухни]])))","v":true},{"$f":"IF(tblData[[#This Row],[Статус]],COUNTIF($K$2:tblData[[#This Row],[Статус]],TRUE),\"\")","v":836},{"$f":"IFERROR(INDEX(tblData[Модульные кухни],MATCH(ROWS($L$2:tblData[[#This Row],[Индекс]]),tblData[Индекс],0)),\"\")","v":"Щепа для копчения"}]
[null,null,null,null,null,null,null,null,null,"Насосы дренажные",{"$f":"NOT(ISERROR(SEARCH($B$2,tblData[[#This Row],[Модульные кухни]])))","v":true},{"$f":"IF(tblData[[#This Row],[Статус]],COUNTIF($K$2:tblData[[#This Row],[Статус]],TRUE),\"\")","v":837},{"$f":"IFERROR(INDEX(tblData[Модульные кухни],MATCH(ROWS($L$2:tblData[[#This Row],[Индекс]]),tblData[Индекс],0)),\"\")","v":"Насосы дренажные"}]
[null,null,null,null,null,null,null,null,null,"Насосные станции",{"$f":"NOT(ISERROR(SEARCH($B$2,tblData[[#This Row],[Модульные кухни]])))","v":true},{"$f":"IF(tblData[[#This Row],[Статус]],COUNTIF($K$2:tblData[[#This Row],[Статус]],TRUE),\"\")","v":838},{"$f":"IFERROR(INDEX(tblData[Модульные кухни],MATCH(ROWS($L$2:tblData[[#This Row],[Индекс]]),tblData[Индекс],0)),\"\")","v":"Насосные станции"}]
[null,null,null,null,null,null,null,null,null,"Насосы для скважин",{"$f":"NOT(ISERROR(SEARCH($B$2,tblData[[#This Row],[Модульные кухни]])))","v":true},{"$f":"IF(tblData[[#This Row],[Статус]],COUNTIF($K$2:tblData[[#This Row],[Статус]],TRUE),\"\")","v":839},{"$f":"IFERROR(INDEX(tblData[Модульные кухни],MATCH(ROWS($L$2:tblData[[#This Row],[Индекс]]),tblData[Индекс],0)),\"\")","v":"Насосы для скважин"}]
[null,null,null,null,null,null,null,null,null,"Насосы для колодца",{"$f":"NOT(ISERROR(SEARCH($B$2,tblData[[#This Row],[Модульные кухни]])))","v":true},{"$f":"IF(tblData[[#This Row],[Статус]],COUNTIF($K$2:tblData[[#This Row],[Статус]],TRUE),\"\")","v":840},{"$f":"IFERROR(INDEX(tblData[Модульные кухни],MATCH(ROWS($L$2:tblData[[#This Row],[Индекс]]),tblData[Индекс],0)),\"\")","v":"Насосы для колодца"}]
[null,null,null,null,null,null,null,null,null,"Насосы поверхностные",{"$f":"NOT(ISERROR(SEARCH($B$2,tblData[[#This Row],[Модульные кухни]])))","v":true},{"$f":"IF(tblData[[#This Row],[Статус]],COUNTIF($K$2:tblData[[#This Row],[Статус]],TRUE),\"\")","v":841},{"$f":"IFERROR(INDEX(tblData[Модульные кухни],MATCH(ROWS($L$2:tblData[[#This Row],[Индекс]]),tblData[Индекс],0)),\"\")","v":"Насосы поверхностные"}]
[null,null,null,null,null,null,null,null,null,"Насосы фекальные",{"$f":"NOT(ISERROR(SEARCH($B$2,tblData[[#This Row],[Модульные кухни]])))","v":true},{"$f":"IF(tblData[[#This Row],[Статус]],COUNTIF($K$2:tblData[[#This Row],[Статус]],TRUE),\"\")","v":842},{"$f":"IFERROR(INDEX(tblData[Модульные кухни],MATCH(ROWS($L$2:tblData[[#This Row],[Индекс]]),tblData[Индекс],0)),\"\")","v":"Насосы фекальные"}]
[null,null,null,null,null,null,null,null,null,"Насосы для бочки",{"$f":"NOT(ISERROR(SEARCH($B$2,tblData[[#This Row],[Модульные кухни]])))","v":true},{"$f":"IF(tblData[[#This Row],[Статус]],COUNTIF($K$2:tblData[[#This Row],[Статус]],TRUE),\"\")","v":843},{"$f":"IFERROR(INDEX(tblData[Модульные кухни],MATCH(ROWS($L$2:tblData[[#This Row],[Индекс]]),tblData[Индекс],0)),\"\")","v":"Насосы для бочки"}]
[null,null,null,null,null,null,null,null,null,"Насосы вибрационные",{"$f":"NOT(ISERROR(SEARCH($B$2,tblData[[#This Row],[Модульные кухни]])))","v":true},{"$f":"IF(tblData[[#This Row],[Статус]],COUNTIF($K$2:tblData[[#This Row],[Статус]],TRUE),\"\")","v":844},{"$f":"IFERROR(INDEX(tblData[Модульные кухни],MATCH(ROWS($L$2:tblData[[#This Row],[Индекс]]),tblData[Индекс],0)),\"\")","v":"Насосы вибрационные"}]
[null,null,null,null,null,null,null,null,null,"Заборные шланги",{"$f":"NOT(ISERROR(SEARCH($B$2,tblData[[#This Row],[Модульные кухни]])))","v":true},{"$f":"IF(tblData[[#This Row],[Статус]],COUNTIF($K$2:tblData[[#This Row],[Статус]],TRUE),\"\")","v":845},{"$f":"IFERROR(INDEX(tblData[Модульные кухни],MATCH(ROWS($L$2:tblData[[#This Row],[Индекс]]),tblData[Индекс],0)),\"\")","v":"Заборные шланги"}]
[null,null,null,null,null,null,null,null,null,"Шланги для полива",{"$f":"NOT(ISERROR(SEARCH($B$2,tblData[[#This Row],[Модульные кухни]])))","v":true},{"$f":"IF(tblData[[#This Row],[Статус]],COUNTIF($K$2:tblData[[#This Row],[Статус]],TRUE),\"\")","v":846},{"$f":"IFERROR(INDEX(tblData[Модульные кухни],MATCH(ROWS($L$2:tblData[[#This Row],[Индекс]]),tblData[Индекс],0)),\"\")","v":"Шланги для полива"}]
[null,null,null,null,null,null,null,null,null,"Коннекторы для шлангов",{"$f":"NOT(ISERROR(SEARCH($B$2,tblData[[#This Row],[Модульные кухни]])))","v":true},{"$f":"IF(tblData[[#This Row],[Статус]],COUNTIF($K$2:tblData[[#This Row],[Статус]],TRUE),\"\")","v":847},{"$f":"IFERROR(INDEX(tblData[Модульные кухни],MATCH(ROWS($L$2:tblData[[#This Row],[Индекс]]),tblData[Индекс],0)),\"\")","v":"Коннекторы для шлангов"}]
[null,null,null,null,null,null,null,null,null,"Пистолеты для полива",{"$f":"NOT(ISERROR(SEARCH($B$2,tblData[[#This Row],[Модульные кухни]])))","v":true},{"$f":"IF(tblData[[#This Row],[Статус]],COUNTIF($K$2:tblData[[#This Row],[Статус]],TRUE),\"\")","v":848},{"$f":"IFERROR(INDEX(tblData[Модульные кухни],MATCH(ROWS($L$2:tblData[[#This Row],[Индекс]]),tblData[Индекс],0)),\"\")","v":"Пистолеты для полива"}]
[null,null,null,null,null,null,null,null,null,"Капельный полив",{"$f":"NOT(ISERROR(SEARCH($B$2,tblData[[#This Row],[Модульные кухни]])))","v":true},{"$f":"IF(tblData[[#This Row],[Статус]],COUNTIF($K$2:tblData[[#This Row],[Статус]],TRUE),\"\")","v":849},{"$f":"IFERROR(INDEX(tblData[Модульные кухни],MATCH(ROWS($L$2:tblData[[#This Row],[Индекс]]),tblData[Индекс],0)),\"\")","v":"Капельный полив"}]
[null,null,null,null,null,null,null,null,null,"Лейки, ведра и баки",{"$f":"NOT(ISERROR(SEARCH($B$2,tblData[[#This Row],[Модульные кухни]])))","v":true},{"$f":"IF(tblData[[#This Row],[Статус]],COUNTIF($K$2:tblData[[#This Row],[Статус]],TRUE),\"\")","v":850},{"$f":"IFERROR(INDEX(tblData[Модульные кухни],MATCH(ROWS($L$2:tblData[[#This Row],[Индекс]]),tblData[Индекс],0)),\"\")","v":"Лейки, ведра и баки"}]
[null,null,null,null,null,null,null,null,null,"Дождеватели",{"$f":"NOT(ISERROR(SEARCH($B$2,tblData[[#This Row],[Модульные кухни]])))","v":true},{"$f":"IF(tblData[[#This Row],[Статус]],COUNTIF($K$2:tblData[[#This Row],[Статус]],TRUE),\"\")","v":851},{"$f":"IFERROR(INDEX(tblData[Модульные кухни],MATCH(ROWS($L$2:tblData[[#This Row],[Индекс]]),tblData[Индекс],0)),\"\")","v":"Дождеватели"}]
[null,null,null,null,null,null,null,null,null,"Катушки и тележки для шлангов",{"$f":"NOT(ISERROR(SEARCH($B$2,tblData[[#This Row],[Модульные кухни]])))","v":true},{"$f":"IF(tblData[[#This Row],[Статус]],COUNTIF($K$2:tblData[[#This Row],[Статус]],TRUE),\"\")","v":852},{"$f":"IFERROR(INDEX(tblData[Модульные кухни],MATCH(ROWS($L$2:tblData[[#This Row],[Индекс]]),tblData[Индекс],0)),\"\")","v":"Катушки и тележки для шлангов"}]
[null,null,null,null,null,null,null,null,null,"Кронштейны для шлангов",{"$f":"NOT(ISERROR(SEARCH($B$2,tblData[[#This Row],[Модульные кухни]])))","v":true},{"$f":"IF(tblData[[#This Row],[Статус]],COUNTIF($K$2:tblData[[#This Row],[Статус]],TRUE),\"\")","v":853},{"$f":"IFERROR(INDEX(tblData[Модульные кухни],MATCH(ROWS($L$2:tblData[[#This Row],[Индекс]]),tblData[Индекс],0)),\"\")","v":"Кронштейны для шлангов"}]
[null,null,null,null,null,null,null,null,null,"Штуцеры для шлангов",{"$f":"NOT(ISERROR(SEARCH($B$2,tblData[[#This Row],[Модульные кухни]])))","v":true},{"$f":"IF(tblData[[#This Row],[Статус]],COUNTIF($K$2:tblData[[#This Row],[Статус]],TRUE),\"\")","v":854},{"$f":"IFERROR(INDEX(tblData[Модульные кухни],MATCH(ROWS($L$2:tblData[[#This Row],[Индекс]]),tblData[Индекс],0)),\"\")","v":"Штуцеры для шлангов"}]
[null,null,null,null,null,null,null,null,null,"Системы автоматического полива",{"$f":"NOT(ISERROR(SEARCH($B$2,tblData[[#This Row],[Модульные кухни]])))","v":true},{"$f":"IF(tblData[[#This Row],[Статус]],COUNTIF($K$2:tblData[[#This Row],[Статус]],TRUE),\"\")","v":855},{"$f":"IFERROR(INDEX(tblData[Модульные кухни],MATCH(ROWS($L$2:tblData[[#This Row],[Индекс]]),tblData[Индекс],0)),\"\")","v":"Системы автоматического полива"}]
[null,null,null,null,null,null,null,null,null,"Таймеры для полива",{"$f":"NOT(ISERROR(SEARCH($B$2,tblData[[#This Row],[Модульные кухни]])))","v":true},{"$f":"IF(tblData[[#This Row],[Статус]],COUNTIF($K$2:tblData[[#This Row],[Статус]],TRUE),\"\")","v":856},{"$f":"IFERROR(INDEX(tblData[Модульные кухни],MATCH(ROWS($L$2:tblData[[#This Row],[Индекс]]),tblData[Индекс],0)),\"\")","v":"Таймеры для полива"}]
[null,null,null,null,null,null,null,null,null,"Хомуты для шлангов",{"$f":"NOT(ISERROR(SEARCH($B$2,tblData[[#This Row],[Модульные кухни]])))","v":true},{"$f":"IF(tblData[[#This Row],[Статус]],COUNTIF($K$2:tblData[[#This Row],[Статус]],TRUE),\"\")","v":857},{"$f":"IFERROR(INDEX(tblData[Модульные кухни],MATCH(ROWS($L$2:tblData[[#This Row],[Индекс]]),tblData[Индекс],0)),\"\")","v":"Хомуты для шлангов"}]
[null,null,null,null,null,null,null,null,null,"Полив из бочки",{"$f":"NOT(ISERROR(SEARCH($B$2,tblData[[#This Row],[Модульные кухни]])))","v":true},{"$f":"IF(tblData[[#This Row],[Статус]],COUNTIF($K$2:tblData[[#This Row],[Статус]],TRUE),\"\")","v":858},{"$f":"IFERROR(INDEX(tblData[Модульные кухни],MATCH(ROWS($L$2:tblData[[#This Row],[Индекс]]),tblData[Индекс],0)),\"\")","v":"Полив из бочки"}]
[null,null,null,null,null,null,null,null,null,"Дачные туалеты",{"$f":"NOT(ISERROR(SEARCH($B$2,tblData[[#This Row],[Модульные кухни]])))","v":true},{"$f":"IF(tblData[[#This Row],[Статус]],COUNTIF($K$2:tblData[[#This Row],[Статус]],TRUE),\"\")","v":859},{"$f":"IFERROR(INDEX(tblData[Модульные кухни],MATCH(ROWS($L$2:tblData[[#This Row],[Индекс]]),tblData[Индекс],0)),\"\")","v":"Дачные туалеты"}]
[null,null,null,null,null,null,null,null,null,"Баки для душа",{"$f":"NOT(ISERROR(SEARCH($B$2,tblData[[#This Row],[Модульные кухни]])))","v":true},{"$f":"IF(tblData[[#This Row],[Статус]],COUNTIF($K$2:tblData[[#This Row],[Статус]],TRUE),\"\")","v":860},{"$f":"IFERROR(INDEX(tblData[Модульные кухни],MATCH(ROWS($L$2:tblData[[#This Row],[Индекс]]),tblData[Индекс],0)),\"\")","v":"Баки для душа"}]
[null,null,null,null,null,null,null,null,null,"Товары для стирки и уборки на даче",{"$f":"NOT(ISERROR(SEARCH($B$2,tblData[[#This Row],[Модульные кухни]])))","v":true},{"$f":"IF(tblData[[#This Row],[Статус]],COUNTIF($K$2:tblData[[#This Row],[Статус]],TRUE),\"\")","v":861},{"$f":"IFERROR(INDEX(tblData[Модульные кухни],MATCH(ROWS($L$2:tblData[[#This Row],[Индекс]]),tblData[Индекс],0)),\"\")","v":"Товары для стирки и уборки на даче"}]
[null,null,null,null,null,null,null,null,null,"Комплектующие для дачной сантехники",{"$f":"NOT(ISERROR(SEARCH($B$2,tblData[[#This Row],[Модульные кухни]])))","v":true},{"$f":"IF(tblData[[#This Row],[Статус]],COUNTIF($K$2:tblData[[#This Row],[Статус]],TRUE),\"\")","v":862},{"$f":"IFERROR(INDEX(tblData[Модульные кухни],MATCH(ROWS($L$2:tblData[[#This Row],[Индекс]]),tblData[Индекс],0)),\"\")","v":"Комплектующие для дачной сантехники"}]
[null,null,null,null,null,null,null,null,null,"Дачные бочки",{"$f":"NOT(ISERROR(SEARCH($B$2,tblData[[#This Row],[Модульные кухни]])))","v":true},{"$f":"IF(tblData[[#This Row],[Статус]],COUNTIF($K$2:tblData[[#This Row],[Статус]],TRUE),\"\")","v":863},{"$f":"IFERROR(INDEX(tblData[Модульные кухни],MATCH(ROWS($L$2:tblData[[#This Row],[Индекс]]),tblData[Индекс],0)),\"\")","v":"Дачные бочки"}]
[null,null,null,null,null,null,null,null,null,"Умывальники дачные",{"$f":"NOT(ISERROR(SEARCH($B$2,tblData[[#This Row],[Модульные кухни]])))","v":true},{"$f":"IF(tblData[[#This Row],[Статус]],COUNTIF($K$2:tblData[[#This Row],[Статус]],TRUE),\"\")","v":864},{"$f":"IFERROR(INDEX(tblData[Модульные кухни],MATCH(ROWS($L$2:tblData[[#This Row],[Индекс]]),tblData[Индекс],0)),\"\")","v":"Умывальники дачные"}]
[null,null,null,null,null,null,null,null,null,"Средства для септиков и биотуалетов",{"$f":"NOT(ISERROR(SEARCH($B$2,tblData[[#This Row],[Модульные кухни]])))","v":true},{"$f":"IF(tblData[[#This Row],[Статус]],COUNTIF($K$2:tblData[[#This Row],[Статус]],TRUE),\"\")","v":865},{"$f":"IFERROR(INDEX(tblData[Модульные кухни],MATCH(ROWS($L$2:tblData[[#This Row],[Индекс]]),tblData[Индекс],0)),\"\")","v":"Средства для септиков и биотуалетов"}]
[null,null,null,null,null,null,null,null,null,"Семена газона",{"$f":"NOT(ISERROR(SEARCH($B$2,tblData[[#This Row],[Модульные кухни]])))","v":true},{"$f":"IF(tblData[[#This Row],[Статус]],COUNTIF($K$2:tblData[[#This Row],[Статус]],TRUE),\"\")","v":866},{"$f":"IFERROR(INDEX(tblData[Модульные кухни],MATCH(ROWS($L$2:tblData[[#This Row],[Индекс]]),tblData[Индекс],0)),\"\")","v":"Семена газона"}]
[null,null,null,null,null,null,null,null,null,"Луковичные цветы",{"$f":"NOT(ISERROR(SEARCH($B$2,tblData[[#This Row],[Модульные кухни]])))","v":true},{"$f":"IF(tblData[[#This Row],[Статус]],COUNTIF($K$2:tblData[[#This Row],[Статус]],TRUE),\"\")","v":867},{"$f":"IFERROR(INDEX(tblData[Модульные кухни],MATCH(ROWS($L$2:tblData[[#This Row],[Индекс]]),tblData[Индекс],0)),\"\")","v":"Луковичные цветы"}]
[null,null,null,null,null,null,null,null,null,"Корневище растений",{"$f":"NOT(ISERROR(SEARCH($B$2,tblData[[#This Row],[Модульные кухни]])))","v":true},{"$f":"IF(tblData[[#This Row],[Статус]],COUNTIF($K$2:tblData[[#This Row],[Статус]],TRUE),\"\")","v":868},{"$f":"IFERROR(INDEX(tblData[Модульные кухни],MATCH(ROWS($L$2:tblData[[#This Row],[Индекс]]),tblData[Индекс],0)),\"\")","v":"Корневище растений"}]
[null,null,null,null,null,null,null,null,null,"Наборы для выращивания растений",{"$f":"NOT(ISERROR(SEARCH($B$2,tblData[[#This Row],[Модульные кухни]])))","v":true},{"$f":"IF(tblData[[#This Row],[Статус]],COUNTIF($K$2:tblData[[#This Row],[Статус]],TRUE),\"\")","v":869},{"$f":"IFERROR(INDEX(tblData[Модульные кухни],MATCH(ROWS($L$2:tblData[[#This Row],[Индекс]]),tblData[Индекс],0)),\"\")","v":"Наборы для выращивания растений"}]
[null,null,null,null,null,null,null,null,null,"Семена зелени и пряных трав",{"$f":"NOT(ISERROR(SEARCH($B$2,tblData[[#This Row],[Модульные кухни]])))","v":true},{"$f":"IF(tblData[[#This Row],[Статус]],COUNTIF($K$2:tblData[[#This Row],[Статус]],TRUE),\"\")","v":870},{"$f":"IFERROR(INDEX(tblData[Модульные кухни],MATCH(ROWS($L$2:tblData[[#This Row],[Индекс]]),tblData[Индекс],0)),\"\")","v":"Семена зелени и пряных трав"}]
[null,null,null,null,null,null,null,null,null,"Семена овощей",{"$f":"NOT(ISERROR(SEARCH($B$2,tblData[[#This Row],[Модульные кухни]])))","v":true},{"$f":"IF(tblData[[#This Row],[Статус]],COUNTIF($K$2:tblData[[#This Row],[Статус]],TRUE),\"\")","v":871},{"$f":"IFERROR(INDEX(tblData[Модульные кухни],MATCH(ROWS($L$2:tblData[[#This Row],[Индекс]]),tblData[Индекс],0)),\"\")","v":"Семена овощей"}]
[null,null,null,null,null,null,null,null,null,"Семена цветов",{"$f":"NOT(ISERROR(SEARCH($B$2,tblData[[#This Row],[Модульные кухни]])))","v":true},{"$f":"IF(tblData[[#This Row],[Статус]],COUNTIF($K$2:tblData[[#This Row],[Статус]],TRUE),\"\")","v":872},{"$f":"IFERROR(INDEX(tblData[Модульные кухни],MATCH(ROWS($L$2:tblData[[#This Row],[Индекс]]),tblData[Индекс],0)),\"\")","v":"Семена цветов"}]
[null,null,null,null,null,null,null,null,null,"Семена ягод и фруктов",{"$f":"NOT(ISERROR(SEARCH($B$2,tblData[[#This Row],[Модульные кухни]])))","v":true},{"$f":"IF(tblData[[#This Row],[Статус]],COUNTIF($K$2:tblData[[#This Row],[Статус]],TRUE),\"\")","v":873},{"$f":"IFERROR(INDEX(tblData[Модульные кухни],MATCH(ROWS($L$2:tblData[[#This Row],[Индекс]]),tblData[Индекс],0)),\"\")","v":"Семена ягод и фруктов"}]
[null,null,null,null,null,null,null,null,null,"Мицелий грибов",{"$f":"NOT(ISERROR(SEARCH($B$2,tblData[[#This Row],[Модульные кухни]])))","v":true},{"$f":"IF(tblData[[#This Row],[Статус]],COUNTIF($K$2:tblData[[#This Row],[Статус]],TRUE),\"\")","v":874},{"$f":"IFERROR(INDEX(tblData[Модульные кухни],MATCH(ROWS($L$2:tblData[[#This Row],[Индекс]]),tblData[Индекс],0)),\"\")","v":"Мицелий грибов"}]
[null,null,null,null,null,null,null,null,null,"Семена трав для животных",{"$f":"NOT(ISERROR(SEARCH($B$2,tblData[[#This Row],[Модульные кухни]])))","v":true},{"$f":"IF(tblData[[#This Row],[Статус]],COUNTIF($K$2:tblData[[#This Row],[Статус]],TRUE),\"\")","v":875},{"$f":"IFERROR(INDEX(tblData[Модульные кухни],MATCH(ROWS($L$2:tblData[[#This Row],[Индекс]]),tblData[Индекс],0)),\"\")","v":"Семена трав для животных"}]
[null,null,null,null,null,null,null,null,null,"Сидераты",{"$f":"NOT(ISERROR(SEARCH($B$2,tblData[[#This Row],[Модульные кухни]])))","v":true},{"$f":"IF(tblData[[#This Row],[Статус]],COUNTIF($K$2:tblData[[#This Row],[Статус]],TRUE),\"\")","v":876},{"$f":"IFERROR(INDEX(tblData[Модульные кухни],MATCH(ROWS($L$2:tblData[[#This Row],[Индекс]]),tblData[Индекс],0)),\"\")","v":"Сидераты"}]
[null,null,null,null,null,null,null,null,null,"Семена для профессионалов",{"$f":"NOT(ISERROR(SEARCH($B$2,tblData[[#This Row],[Модульные кухни]])))","v":true},{"$f":"IF(tblData[[#This Row],[Статус]],COUNTIF($K$2:tblData[[#This Row],[Статус]],TRUE),\"\")","v":877},{"$f":"IFERROR(INDEX(tblData[Модульные кухни],MATCH(ROWS($L$2:tblData[[#This Row],[Индекс]]),tblData[Индекс],0)),\"\")","v":"Семена для профессионалов"}]
[null,null,null,null,null,null,null,null,null,"Семена авторские",{"$f":"NOT(ISERROR(SEARCH($B$2,tblData[[#This Row],[Модульные кухни]])))","v":true},{"$f":"IF(tblData[[#This Row],[Статус]],COUNTIF($K$2:tblData[[#This Row],[Статус]],TRUE),\"\")","v":878},{"$f":"IFERROR(INDEX(tblData[Модульные кухни],MATCH(ROWS($L$2:tblData[[#This Row],[Индекс]]),tblData[Индекс],0)),\"\")","v":"Семена авторские"}]
[null,null,null,null,null,null,null,null,null,"Семена от Октябрины Ганичкиной",{"$f":"NOT(ISERROR(SEARCH($B$2,tblData[[#This Row],[Модульные кухни]])))","v":true},{"$f":"IF(tblData[[#This Row],[Статус]],COUNTIF($K$2:tblData[[#This Row],[Статус]],TRUE),\"\")","v":879},{"$f":"IFERROR(INDEX(tblData[Модульные кухни],MATCH(ROWS($L$2:tblData[[#This Row],[Индекс]]),tblData[Индекс],0)),\"\")","v":"Семена от Октябрины Ганичкиной"}]
[null,null,null,null,null,null,null,null,null,"Наборы семян",{"$f":"NOT(ISERROR(SEARCH($B$2,tblData[[#This Row],[Модульные кухни]])))","v":true},{"$f":"IF(tblData[[#This Row],[Статус]],COUNTIF($K$2:tblData[[#This Row],[Статус]],TRUE),\"\")","v":880},{"$f":"IFERROR(INDEX(tblData[Модульные кухни],MATCH(ROWS($L$2:tblData[[#This Row],[Индекс]]),tblData[Индекс],0)),\"\")","v":"Наборы семян"}]
[null,null,null,null,null,null,null,null,null,"Лук-севок",{"$f":"NOT(ISERROR(SEARCH($B$2,tblData[[#This Row],[Модульные кухни]])))","v":true},{"$f":"IF(tblData[[#This Row],[Статус]],COUNTIF($K$2:tblData[[#This Row],[Статус]],TRUE),\"\")","v":881},{"$f":"IFERROR(INDEX(tblData[Модульные кухни],MATCH(ROWS($L$2:tblData[[#This Row],[Индекс]]),tblData[Индекс],0)),\"\")","v":"Лук-севок"}]
[null,null,null,null,null,null,null,null,null,"Семена для начинающих огородников",{"$f":"NOT(ISERROR(SEARCH($B$2,tblData[[#This Row],[Модульные кухни]])))","v":true},{"$f":"IF(tblData[[#This Row],[Статус]],COUNTIF($K$2:tblData[[#This Row],[Статус]],TRUE),\"\")","v":882},{"$f":"IFERROR(INDEX(tblData[Модульные кухни],MATCH(ROWS($L$2:tblData[[#This Row],[Индекс]]),tblData[Индекс],0)),\"\")","v":"Семена для начинающих огородников"}]
[null,null,null,null,null,null,null,null,null,"Грунты для рассады",{"$f":"NOT(ISERROR(SEARCH($B$2,tblData[[#This Row],[Модульные кухни]])))","v":true},{"$f":"IF(tblData[[#This Row],[Статус]],COUNTIF($K$2:tblData[[#This Row],[Статус]],TRUE),\"\")","v":883},{"$f":"IFERROR(INDEX(tblData[Модульные кухни],MATCH(ROWS($L$2:tblData[[#This Row],[Индекс]]),tblData[Индекс],0)),\"\")","v":"Грунты для рассады"}]
[null,null,null,null,null,null,null,null,null,"Торфяные горшки и таблетки",{"$f":"NOT(ISERROR(SEARCH($B$2,tblData[[#This Row],[Модульные кухни]])))","v":true},{"$f":"IF(tblData[[#This Row],[Статус]],COUNTIF($K$2:tblData[[#This Row],[Статус]],TRUE),\"\")","v":884},{"$f":"IFERROR(INDEX(tblData[Модульные кухни],MATCH(ROWS($L$2:tblData[[#This Row],[Индекс]]),tblData[Индекс],0)),\"\")","v":"Торфяные горшки и таблетки"}]
[null,null,null,null,null,null,null,null,null,"Кассеты для рассады",{"$f":"NOT(ISERROR(SEARCH($B$2,tblData[[#This Row],[Модульные кухни]])))","v":true},{"$f":"IF(tblData[[#This Row],[Статус]],COUNTIF($K$2:tblData[[#This Row],[Статус]],TRUE),\"\")","v":885},{"$f":"IFERROR(INDEX(tblData[Модульные кухни],MATCH(ROWS($L$2:tblData[[#This Row],[Индекс]]),tblData[Индекс],0)),\"\")","v":"Кассеты для рассады"}]
[null,null,null,null,null,null,null,null,null,"Парники для рассады",{"$f":"NOT(ISERROR(SEARCH($B$2,tblData[[#This Row],[Модульные кухни]])))","v":true},{"$f":"IF(tblData[[#This Row],[Статус]],COUNTIF($K$2:tblData[[#This Row],[Статус]],TRUE),\"\")","v":886},{"$f":"IFERROR(INDEX(tblData[Модульные кухни],MATCH(ROWS($L$2:tblData[[#This Row],[Индекс]]),tblData[Индекс],0)),\"\")","v":"Парники для рассады"}]
[null,null,null,null,null,null,null,null,null,"Лампы для растений",{"$f":"NOT(ISERROR(SEARCH($B$2,tblData[[#This Row],[Модульные кухни]])))","v":true},{"$f":"IF(tblData[[#This Row],[Статус]],COUNTIF($K$2:tblData[[#This Row],[Статус]],TRUE),\"\")","v":887},{"$f":"IFERROR(INDEX(tblData[Модульные кухни],MATCH(ROWS($L$2:tblData[[#This Row],[Индекс]]),tblData[Индекс],0)),\"\")","v":"Лампы для растений"}]
[null,null,null,null,null,null,null,null,null,"Проращиватели",{"$f":"NOT(ISERROR(SEARCH($B$2,tblData[[#This Row],[Модульные кухни]])))","v":true},{"$f":"IF(tblData[[#This Row],[Статус]],COUNTIF($K$2:tblData[[#This Row],[Статус]],TRUE),\"\")","v":888},{"$f":"IFERROR(INDEX(tblData[Модульные кухни],MATCH(ROWS($L$2:tblData[[#This Row],[Индекс]]),tblData[Индекс],0)),\"\")","v":"Проращиватели"}]
[null,null,null,null,null,null,null,null,null,"Стимуляторы роста",{"$f":"NOT(ISERROR(SEARCH($B$2,tblData[[#This Row],[Модульные кухни]])))","v":true},{"$f":"IF(tblData[[#This Row],[Статус]],COUNTIF($K$2:tblData[[#This Row],[Статус]],TRUE),\"\")","v":889},{"$f":"IFERROR(INDEX(tblData[Модульные кухни],MATCH(ROWS($L$2:tblData[[#This Row],[Индекс]]),tblData[Индекс],0)),\"\")","v":"Стимуляторы роста"}]
[null,null,null,null,null,null,null,null,null,"Садовые перчатки",{"$f":"NOT(ISERROR(SEARCH($B$2,tblData[[#This Row],[Модульные кухни]])))","v":true},{"$f":"IF(tblData[[#This Row],[Статус]],COUNTIF($K$2:tblData[[#This Row],[Статус]],TRUE),\"\")","v":890},{"$f":"IFERROR(INDEX(tblData[Модульные кухни],MATCH(ROWS($L$2:tblData[[#This Row],[Индекс]]),tblData[Индекс],0)),\"\")","v":"Садовые перчатки"}]
[null,null,null,null,null,null,null,null,null,"Дождевики",{"$f":"NOT(ISERROR(SEARCH($B$2,tblData[[#This Row],[Модульные кухни]])))","v":true},{"$f":"IF(tblData[[#This Row],[Статус]],COUNTIF($K$2:tblData[[#This Row],[Статус]],TRUE),\"\")","v":891},{"$f":"IFERROR(INDEX(tblData[Модульные кухни],MATCH(ROWS($L$2:tblData[[#This Row],[Индекс]]),tblData[Индекс],0)),\"\")","v":"Дождевики"}]
[null,null,null,null,null,null,null,null,null,"Наколенники садовые",{"$f":"NOT(ISERROR(SEARCH($B$2,tblData[[#This Row],[Модульные кухни]])))","v":true},{"$f":"IF(tblData[[#This Row],[Статус]],COUNTIF($K$2:tblData[[#This Row],[Статус]],TRUE),\"\")","v":892},{"$f":"IFERROR(INDEX(tblData[Модульные кухни],MATCH(ROWS($L$2:tblData[[#This Row],[Индекс]]),tblData[Индекс],0)),\"\")","v":"Наколенники садовые"}]
[null,null,null,null,null,null,null,null,null,"Защитные кремы для рук",{"$f":"NOT(ISERROR(SEARCH($B$2,tblData[[#This Row],[Модульные кухни]])))","v":true},{"$f":"IF(tblData[[#This Row],[Статус]],COUNTIF($K$2:tblData[[#This Row],[Статус]],TRUE),\"\")","v":893},{"$f":"IFERROR(INDEX(tblData[Модульные кухни],MATCH(ROWS($L$2:tblData[[#This Row],[Индекс]]),tblData[Индекс],0)),\"\")","v":"Защитные кремы для рук"}]
[null,null,null,null,null,null,null,null,null,"Одежда для работы в саду",{"$f":"NOT(ISERROR(SEARCH($B$2,tblData[[#This Row],[Модульные кухни]])))","v":true},{"$f":"IF(tblData[[#This Row],[Статус]],COUNTIF($K$2:tblData[[#This Row],[Статус]],TRUE),\"\")","v":894},{"$f":"IFERROR(INDEX(tblData[Модульные кухни],MATCH(ROWS($L$2:tblData[[#This Row],[Индекс]]),tblData[Индекс],0)),\"\")","v":"Одежда для работы в саду"}]
[null,null,null,null,null,null,null,null,null,"Средства от комаров",{"$f":"NOT(ISERROR(SEARCH($B$2,tblData[[#This Row],[Модульные кухни]])))","v":true},{"$f":"IF(tblData[[#This Row],[Статус]],COUNTIF($K$2:tblData[[#This Row],[Статус]],TRUE),\"\")","v":895},{"$f":"IFERROR(INDEX(tblData[Модульные кухни],MATCH(ROWS($L$2:tblData[[#This Row],[Индекс]]),tblData[Индекс],0)),\"\")","v":"Средства от комаров"}]
[null,null,null,null,null,null,null,null,null,"Средства от муравьев",{"$f":"NOT(ISERROR(SEARCH($B$2,tblData[[#This Row],[Модульные кухни]])))","v":true},{"$f":"IF(tblData[[#This Row],[Статус]],COUNTIF($K$2:tblData[[#This Row],[Статус]],TRUE),\"\")","v":896},{"$f":"IFERROR(INDEX(tblData[Модульные кухни],MATCH(ROWS($L$2:tblData[[#This Row],[Индекс]]),tblData[Индекс],0)),\"\")","v":"Средства от муравьев"}]
[null,null,null,null,null,null,null,null,null,"Средства от тараканов",{"$f":"NOT(ISERROR(SEARCH($B$2,tblData[[#This Row],[Модульные кухни]])))","v":true},{"$f":"IF(tblData[[#This Row],[Статус]],COUNTIF($K$2:tblData[[#This Row],[Статус]],TRUE),\"\")","v":897},{"$f":"IFERROR(INDEX(tblData[Модульные кухни],MATCH(ROWS($L$2:tblData[[#This Row],[Индекс]]),tblData[Индекс],0)),\"\")","v":"Средства от тараканов"}]
[null,null,null,null,null,null,null,null,null,"Средства от мышей и крыс",{"$f":"NOT(ISERROR(SEARCH($B$2,tblData[[#This Row],[Модульные кухни]])))","v":true},{"$f":"IF(tblData[[#This Row],[Статус]],COUNTIF($K$2:tblData[[#This Row],[Статус]],TRUE),\"\")","v":898},{"$f":"IFERROR(INDEX(tblData[Модульные кухни],MATCH(ROWS($L$2:tblData[[#This Row],[Индекс]]),tblData[Индекс],0)),\"\")","v":"Средства от мышей и крыс"}]
[null,null,null,null,null,null,null,null,null,"Средства от клопов",{"$f":"NOT(ISERROR(SEARCH($B$2,tblData[[#This Row],[Модульные кухни]])))","v":true},{"$f":"IF(tblData[[#This Row],[Статус]],COUNTIF($K$2:tblData[[#This Row],[Статус]],TRUE),\"\")","v":899},{"$f":"IFERROR(INDEX(tblData[Модульные кухни],MATCH(ROWS($L$2:tblData[[#This Row],[Индекс]]),tblData[Индекс],0)),\"\")","v":"Средства от клопов"}]
[null,null,null,null,null,null,null,null,null,"Искусственные ели",{"$f":"NOT(ISERROR(SEARCH($B$2,tblData[[#This Row],[Модульные кухни]])))","v":true},{"$f":"IF(tblData[[#This Row],[Статус]],COUNTIF($K$2:tblData[[#This Row],[Статус]],TRUE),\"\")","v":900},{"$f":"IFERROR(INDEX(tblData[Модульные кухни],MATCH(ROWS($L$2:tblData[[#This Row],[Индекс]]),tblData[Индекс],0)),\"\")","v":"Искусственные ели"}]
[null,null,null,null,null,null,null,null,null,"Электрические гирлянды",{"$f":"NOT(ISERROR(SEARCH($B$2,tblData[[#This Row],[Модульные кухни]])))","v":true},{"$f":"IF(tblData[[#This Row],[Статус]],COUNTIF($K$2:tblData[[#This Row],[Статус]],TRUE),\"\")","v":901},{"$f":"IFERROR(INDEX(tblData[Модульные кухни],MATCH(ROWS($L$2:tblData[[#This Row],[Индекс]]),tblData[Индекс],0)),\"\")","v":"Электрические гирлянды"}]
[null,null,null,null,null,null,null,null,null,"Ёлочные игрушки",{"$f":"NOT(ISERROR(SEARCH($B$2,tblData[[#This Row],[Модульные кухни]])))","v":true},{"$f":"IF(tblData[[#This Row],[Статус]],COUNTIF($K$2:tblData[[#This Row],[Статус]],TRUE),\"\")","v":902},{"$f":"IFERROR(INDEX(tblData[Модульные кухни],MATCH(ROWS($L$2:tblData[[#This Row],[Индекс]]),tblData[Индекс],0)),\"\")","v":"Ёлочные игрушки"}]
[null,null,null,null,null,null,null,null,null,"Светодиодные фигуры ",{"$f":"NOT(ISERROR(SEARCH($B$2,tblData[[#This Row],[Модульные кухни]])))","v":true},{"$f":"IF(tblData[[#This Row],[Статус]],COUNTIF($K$2:tblData[[#This Row],[Статус]],TRUE),\"\")","v":903},{"$f":"IFERROR(INDEX(tblData[Модульные кухни],MATCH(ROWS($L$2:tblData[[#This Row],[Индекс]]),tblData[Индекс],0)),\"\")","v":"Светодиодные фигуры "}]
[null,null,null,null,null,null,null,null,null,"Новогодние украшения интерьера",{"$f":"NOT(ISERROR(SEARCH($B$2,tblData[[#This Row],[Модульные кухни]])))","v":true},{"$f":"IF(tblData[[#This Row],[Статус]],COUNTIF($K$2:tblData[[#This Row],[Статус]],TRUE),\"\")","v":904},{"$f":"IFERROR(INDEX(tblData[Модульные кухни],MATCH(ROWS($L$2:tblData[[#This Row],[Индекс]]),tblData[Индекс],0)),\"\")","v":"Новогодние украшения интерьера"}]
[null,null,null,null,null,null,null,null,null,"Новогодние гирлянды",{"$f":"NOT(ISERROR(SEARCH($B$2,tblData[[#This Row],[Модульные кухни]])))","v":true},{"$f":"IF(tblData[[#This Row],[Статус]],COUNTIF($K$2:tblData[[#This Row],[Статус]],TRUE),\"\")","v":905},{"$f":"IFERROR(INDEX(tblData[Модульные кухни],MATCH(ROWS($L$2:tblData[[#This Row],[Индекс]]),tblData[Индекс],0)),\"\")","v":"Новогодние гирлянды"}]
[null,null,null,null,null,null,null,null,null,"Мишура новогодняя",{"$f":"NOT(ISERROR(SEARCH($B$2,tblData[[#This Row],[Модульные кухни]])))","v":true},{"$f":"IF(tblData[[#This Row],[Статус]],COUNTIF($K$2:tblData[[#This Row],[Статус]],TRUE),\"\")","v":906},{"$f":"IFERROR(INDEX(tblData[Модульные кухни],MATCH(ROWS($L$2:tblData[[#This Row],[Индекс]]),tblData[Индекс],0)),\"\")","v":"Мишура новогодняя"}]
[null,null,null,null,null,null,null,null,null,"Подставки под елку",{"$f":"NOT(ISERROR(SEARCH($B$2,tblData[[#This Row],[Модульные кухни]])))","v":true},{"$f":"IF(tblData[[#This Row],[Статус]],COUNTIF($K$2:tblData[[#This Row],[Статус]],TRUE),\"\")","v":907},{"$f":"IFERROR(INDEX(tblData[Модульные кухни],MATCH(ROWS($L$2:tblData[[#This Row],[Индекс]]),tblData[Индекс],0)),\"\")","v":"Подставки под елку"}]
[null,null,null,null,null,null,null,null,null,"Бусы новогодние ",{"$f":"NOT(ISERROR(SEARCH($B$2,tblData[[#This Row],[Модульные кухни]])))","v":true},{"$f":"IF(tblData[[#This Row],[Статус]],COUNTIF($K$2:tblData[[#This Row],[Статус]],TRUE),\"\")","v":908},{"$f":"IFERROR(INDEX(tblData[Модульные кухни],MATCH(ROWS($L$2:tblData[[#This Row],[Индекс]]),tblData[Индекс],0)),\"\")","v":"Бусы новогодние "}]
[null,null,null,null,null,null,null,null,null,"Новогодние наклейки",{"$f":"NOT(ISERROR(SEARCH($B$2,tblData[[#This Row],[Модульные кухни]])))","v":true},{"$f":"IF(tblData[[#This Row],[Статус]],COUNTIF($K$2:tblData[[#This Row],[Статус]],TRUE),\"\")","v":909},{"$f":"IFERROR(INDEX(tblData[Модульные кухни],MATCH(ROWS($L$2:tblData[[#This Row],[Индекс]]),tblData[Индекс],0)),\"\")","v":"Новогодние наклейки"}]
[null,null,null,null,null,null,null,null,null,"Хлопушки и бенгальские огни",{"$f":"NOT(ISERROR(SEARCH($B$2,tblData[[#This Row],[Модульные кухни]])))","v":true},{"$f":"IF(tblData[[#This Row],[Статус]],COUNTIF($K$2:tblData[[#This Row],[Статус]],TRUE),\"\")","v":910},{"$f":"IFERROR(INDEX(tblData[Модульные кухни],MATCH(ROWS($L$2:tblData[[#This Row],[Индекс]]),tblData[Индекс],0)),\"\")","v":"Хлопушки и бенгальские огни"}]
[null,null,null,null,null,null,null,null,null,"Снегоуборочные машины",{"$f":"NOT(ISERROR(SEARCH($B$2,tblData[[#This Row],[Модульные кухни]])))","v":true},{"$f":"IF(tblData[[#This Row],[Статус]],COUNTIF($K$2:tblData[[#This Row],[Статус]],TRUE),\"\")","v":911},{"$f":"IFERROR(INDEX(tblData[Модульные кухни],MATCH(ROWS($L$2:tblData[[#This Row],[Индекс]]),tblData[Индекс],0)),\"\")","v":"Снегоуборочные машины"}]
[null,null,null,null,null,null,null,null,null,"Подметальные машины",{"$f":"NOT(ISERROR(SEARCH($B$2,tblData[[#This Row],[Модульные кухни]])))","v":true},{"$f":"IF(tblData[[#This Row],[Статус]],COUNTIF($K$2:tblData[[#This Row],[Статус]],TRUE),\"\")","v":912},{"$f":"IFERROR(INDEX(tblData[Модульные кухни],MATCH(ROWS($L$2:tblData[[#This Row],[Индекс]]),tblData[Индекс],0)),\"\")","v":"Подметальные машины"}]
[null,null,null,null,null,null,null,null,null,"Лопаты для уборки снега",{"$f":"NOT(ISERROR(SEARCH($B$2,tblData[[#This Row],[Модульные кухни]])))","v":true},{"$f":"IF(tblData[[#This Row],[Статус]],COUNTIF($K$2:tblData[[#This Row],[Статус]],TRUE),\"\")","v":913},{"$f":"IFERROR(INDEX(tblData[Модульные кухни],MATCH(ROWS($L$2:tblData[[#This Row],[Индекс]]),tblData[Индекс],0)),\"\")","v":"Лопаты для уборки снега"}]
[null,null,null,null,null,null,null,null,null,"Движки для уборки снега",{"$f":"NOT(ISERROR(SEARCH($B$2,tblData[[#This Row],[Модульные кухни]])))","v":true},{"$f":"IF(tblData[[#This Row],[Статус]],COUNTIF($K$2:tblData[[#This Row],[Статус]],TRUE),\"\")","v":914},{"$f":"IFERROR(INDEX(tblData[Модульные кухни],MATCH(ROWS($L$2:tblData[[#This Row],[Индекс]]),tblData[Индекс],0)),\"\")","v":"Движки для уборки снега"}]
[null,null,null,null,null,null,null,null,null,"Ледорубы",{"$f":"NOT(ISERROR(SEARCH($B$2,tblData[[#This Row],[Модульные кухни]])))","v":true},{"$f":"IF(tblData[[#This Row],[Статус]],COUNTIF($K$2:tblData[[#This Row],[Статус]],TRUE),\"\")","v":915},{"$f":"IFERROR(INDEX(tblData[Модульные кухни],MATCH(ROWS($L$2:tblData[[#This Row],[Индекс]]),tblData[Индекс],0)),\"\")","v":"Ледорубы"}]
[null,null,null,null,null,null,null,null,null,"Противогололедный реагент",{"$f":"NOT(ISERROR(SEARCH($B$2,tblData[[#This Row],[Модульные кухни]])))","v":true},{"$f":"IF(tblData[[#This Row],[Статус]],COUNTIF($K$2:tblData[[#This Row],[Статус]],TRUE),\"\")","v":916},{"$f":"IFERROR(INDEX(tblData[Модульные кухни],MATCH(ROWS($L$2:tblData[[#This Row],[Индекс]]),tblData[Индекс],0)),\"\")","v":"Противогололедный реагент"}]
[null,null,null,null,null,null,null,null,null,"Щетки автомобильные",{"$f":"NOT(ISERROR(SEARCH($B$2,tblData[[#This Row],[Модульные кухни]])))","v":true},{"$f":"IF(tblData[[#This Row],[Статус]],COUNTIF($K$2:tblData[[#This Row],[Статус]],TRUE),\"\")","v":917},{"$f":"IFERROR(INDEX(tblData[Модульные кухни],MATCH(ROWS($L$2:tblData[[#This Row],[Индекс]]),tblData[Индекс],0)),\"\")","v":"Щетки автомобильные"}]
[null,null,null,null,null,null,null,null,null,"Срезные болты для снегоуборщиков",{"$f":"NOT(ISERROR(SEARCH($B$2,tblData[[#This Row],[Модульные кухни]])))","v":true},{"$f":"IF(tblData[[#This Row],[Статус]],COUNTIF($K$2:tblData[[#This Row],[Статус]],TRUE),\"\")","v":918},{"$f":"IFERROR(INDEX(tblData[Модульные кухни],MATCH(ROWS($L$2:tblData[[#This Row],[Индекс]]),tblData[Индекс],0)),\"\")","v":"Срезные болты для снегоуборщиков"}]